Workbook

Sheet PPF NAV
B1: NAV (updated automatically) | E1: Subscription / (Redemption) After Fees in USD | P1: Ordinary unit | Q1: Fund's HWM
A2: Date | B2: Ordinary unit | C2: Elite unit | E2: Investor 1 | F2: Investor 2 | G2: Investor 3 | H2: Investor 4 | I2: Investor 5 | J2: Investor 6 | K2: Investor 7 | L2: Investor 8 | M2: Investor 9 | N2: Investor 10 | O2: Total | P2: Additional Amount due to timing difference in Equalisation
A3: 2017-08-31 | B3: 10 | C3: 0 | O3: =IF(A3="","",SUM(E3:N3)) -> 0 | P3: =SUM(Overall!L17)-SUM('Investor 1'!L17,'Investor 2'!L17,'Investor 3'!L17,'Investor 4'!L17,'Investor 5'!L17,'Investor 6'!L17,'Investor 7'!L17,'Investor 8'!L17,'Investor 9'!L17,'Investor 10'!L17) -> 0 | Q3: =PPF_NAV[[#This Row],[Ordinary unit]] -> 10.00000000
A4: 2017-09-29 | B4: 10.52118829 | C4: 100 | E4: $500,000.00 | O4: =IF(A4="","",SUM(E4:N4)) -> $500,000.00 | P4: =SUM(Overall!L18)-SUM('Investor 1'!L18,'Investor 2'!L18,'Investor 3'!L18,'Investor 4'!L18,'Investor 5'!L18,'Investor 6'!L18,'Investor 7'!L18,'Investor 8'!L18,'Investor 9'!L18,'Investor 10'!L18) -> 0 | Q4: =IFERROR(MAX(PPF_NAV[[#This Row],[Ordinary unit]],Q3*1.06^(1/12)),"") -> 10.52118829 | R4: =IFERROR(MAX(PPF_NAV[[#This Row],[Elite unit]],Q3*1.06^(1/12)),"") -> 100.00000000
A5: 2017-10-31 | B5: 10.55771391 | C5: 100.3471624 | F5: $100,000.00 | O5: $100,000.00 | P5: =SUM(Overall!L19)-SUM('Investor 1'!L19,'Investor 2'!L19,'Investor 3'!L19,'Investor 4'!L19,'Investor 5'!L19,'Investor 6'!L19,'Investor 7'!L19,'Investor 8'!L19,'Investor 9'!L19,'Investor 10'!L19) -> 0 | Q5: =IFERROR(MAX(PPF_NAV[[#This Row],[Ordinary unit]],Q4*1.06^(1/12)),"") -> 10.57240071 | R5: =IFERROR(MAX(PPF_NAV[[#This Row],[Elite unit]],R4*1.06^(1/12)),"") -> 100.48675506
A6: 2017-11-30 | B6: 10.8181495 | C6: 102.9148377 | O6: 0 | P6: =SUM(Overall!L20)-SUM('Investor 1'!L20,'Investor 2'!L20,'Investor 3'!L20,'Investor 4'!L20,'Investor 5'!L20,'Investor 6'!L20,'Investor 7'!L20,'Investor 8'!L20,'Investor 9'!L20,'Investor 10'!L20) -> 0 | Q6: =IFERROR(MAX(PPF_NAV[[#This Row],[Ordinary unit]],Q5*1.06^(1/12)),"") -> 10.81814950 | R6: =IFERROR(MAX(PPF_NAV[[#This Row],[Elite unit]],R5*1.06^(1/12)),"") -> 102.9148377
A7: 2017-12-29 | B7: 11.06400252 | C7: 105.3455728 | O7: 0 | P7: =SUM(Overall!L21)-SUM('Investor 1'!L21,'Investor 2'!L21,'Investor 3'!L21,'Investor 4'!L21,'Investor 5'!L21,'Investor 6'!L21,'Investor 7'!L21,'Investor 8'!L21,'Investor 9'!L21,'Investor 10'!L21) -> 0 | Q7: =IFERROR(MAX(PPF_NAV[[#This Row],[Ordinary unit]],Q6*1.06^(1/12)),"") -> 11.06400252 | R7: =IFERROR(MAX(PPF_NAV[[#This Row],[Elite unit]],R6*1.06^(1/12)),"") -> 105.3455728
A8: 2018-01-31 | B8: 11.58256302 | C8: 110.5042653 | O8: 0 | P8: =SUM(Overall!L22)-SUM('Investor 1'!L22,'Investor 2'!L22,'Investor 3'!L22,'Investor 4'!L22,'Investor 5'!L22,'Investor 6'!L22,'Investor 7'!L22,'Investor 8'!L22,'Investor 9'!L22,'Investor 10'!L22) -> 0 | Q8: =IFERROR(MAX(PPF_NAV[[#This Row],[Ordinary unit]],Q7*1.06^(1/12)),"") -> 11.58256302 | R8: =IFERROR(MAX(PPF_NAV[[#This Row],[Elite unit]],R7*1.06^(1/12)),"") -> 110.5042653
A9: 2018-02-28 | B9: 11.53287528 | C9: 110.0302158 | O9: 0 | P9: =SUM(Overall!L23)-SUM('Investor 1'!L23,'Investor 2'!L23,'Investor 3'!L23,'Investor 4'!L23,'Investor 5'!L23,'Investor 6'!L23,'Investor 7'!L23,'Investor 8'!L23,'Investor 9'!L23,'Investor 10'!L23) -> 0 | Q9: =IFERROR(MAX(PPF_NAV[[#This Row],[Ordinary unit]],Q8*1.06^(1/12)),"") -> 11.63894173 | R9: =IFERROR(MAX(PPF_NAV[[#This Row],[Elite unit]],R8*1.06^(1/12)),"") -> 111.04215035
A10: 2018-03-29 | B10: 11.15013975 | C10: 106.3787004 | O10: 0 | P10: =SUM(Overall!L24)-SUM('Investor 1'!L24,'Investor 2'!L24,'Investor 3'!L24,'Investor 4'!L24,'Investor 5'!L24,'Investor 6'!L24,'Investor 7'!L24,'Investor 8'!L24,'Investor 9'!L24,'Investor 10'!L24) -> 0 | Q10: =IFERROR(MAX(PPF_NAV[[#This Row],[Ordinary unit]],Q9*1.06^(1/12)),"") -> 11.69559487 | R10: =IFERROR(MAX(PPF_NAV[[#This Row],[Elite unit]],R9*1.06^(1/12)),"") -> 111.58265363
A11: 2018-04-30 | B11: 10.63382226 | C11: 101.452737 | O11: 0 | P11: =SUM(Overall!L25)-SUM('Investor 1'!L25,'Investor 2'!L25,'Investor 3'!L25,'Investor 4'!L25,'Investor 5'!L25,'Investor 6'!L25,'Investor 7'!L25,'Investor 8'!L25,'Investor 9'!L25,'Investor 10'!L25) -> 0 | Q11: =IFERROR(MAX(PPF_NAV[[#This Row],[Ordinary unit]],Q10*1.06^(1/12)),"") -> 11.75252377 | R11: =IFERROR(MAX(PPF_NAV[[#This Row],[Elite unit]],R10*1.06^(1/12)),"") -> 112.12578784
A12: 2018-05-31 | B12: 10.58956599 | C12: 101.0305066 | O12: 0 | P12: =SUM(Overall!L26)-SUM('Investor 1'!L26,'Investor 2'!L26,'Investor 3'!L26,'Investor 4'!L26,'Investor 5'!L26,'Investor 6'!L26,'Investor 7'!L26,'Investor 8'!L26,'Investor 9'!L26,'Investor 10'!L26) -> 0 | Q12: =IFERROR(MAX(PPF_NAV[[#This Row],[Ordinary unit]],Q11*1.06^(1/12)),"") -> 11.80972977 | R12: =IFERROR(MAX(PPF_NAV[[#This Row],[Elite unit]],R11*1.06^(1/12)),"") -> 112.67156578
A13: 2018-06-29 | B13: 9.93456512 | C13: 94.78142418 | O13: 0 | P13: =SUM(Overall!L27)-SUM('Investor 1'!L27,'Investor 2'!L27,'Investor 3'!L27,'Investor 4'!L27,'Investor 5'!L27,'Investor 6'!L27,'Investor 7'!L27,'Investor 8'!L27,'Investor 9'!L27,'Investor 10'!L27) -> 0 | Q13: =IFERROR(MAX(PPF_NAV[[#This Row],[Ordinary unit]],Q12*1.06^(1/12)),"") -> 11.86721423 | R13: =IFERROR(MAX(PPF_NAV[[#This Row],[Elite unit]],R12*1.06^(1/12)),"") -> 113.22000032
A14: 2018-07-31 | B14: 11.31681371 | C14: 107.9688651 | O14: 0 | P14: =SUM(Overall!L28)-SUM('Investor 1'!L28,'Investor 2'!L28,'Investor 3'!L28,'Investor 4'!L28,'Investor 5'!L28,'Investor 6'!L28,'Investor 7'!L28,'Investor 8'!L28,'Investor 9'!L28,'Investor 10'!L28) -> 0 | Q14: =IFERROR(MAX(PPF_NAV[[#This Row],[Ordinary unit]],Q13*1.06^(1/12)),"") -> 11.92497849 | R14: =IFERROR(MAX(PPF_NAV[[#This Row],[Elite unit]],R13*1.06^(1/12)),"") -> 113.77110440
A15: 2018-08-31 | B15: 12.29986874 | C15: 117.4989155 | O15: 0 | P15: =SUM(Overall!L29)-SUM('Investor 1'!L29,'Investor 2'!L29,'Investor 3'!L29,'Investor 4'!L29,'Investor 5'!L29,'Investor 6'!L29,'Investor 7'!L29,'Investor 8'!L29,'Investor 9'!L29,'Investor 10'!L29) -> 0 | Q15: =IFERROR(MAX(PPF_NAV[[#This Row],[Ordinary unit]],Q14*1.06^(1/12)),"") -> 12.29986874 | R15: =IFERROR(MAX(PPF_NAV[[#This Row],[Elite unit]],R14*1.06^(1/12)),"") -> 117.4989155
A16: 2018-09-30 | B16: 12.72602597 | C16: 121.7448899 | E16: $500,000.00 | O16: $500,000.00 | P16: =SUM(Overall!L30)-SUM('Investor 1'!L30,'Investor 2'!L30,'Investor 3'!L30,'Investor 4'!L30,'Investor 5'!L30,'Investor 6'!L30,'Investor 7'!L30,'Investor 8'!L30,'Investor 9'!L30,'Investor 10'!L30) -> 0 | Q16: =IFERROR(MAX(PPF_NAV[[#This Row],[Ordinary unit]],Q15*1.06^(1/12)),"") -> 12.72602597 | R16: =IFERROR(MAX(PPF_NAV[[#This Row],[Elite unit]],R15*1.06^(1/12)),"") -> 121.74488990
A17: 2018-10-31 | B17: 12.03385793 | C17: 115.1231903 | O17: 0 | P17: =SUM(Overall!L31)-SUM('Investor 1'!L31,'Investor 2'!L31,'Investor 3'!L31,'Investor 4'!L31,'Investor 5'!L31,'Investor 6'!L31,'Investor 7'!L31,'Investor 8'!L31,'Investor 9'!L31,'Investor 10'!L31) -> 0 | Q17: =IFERROR(MAX(PPF_NAV[[#This Row],[Ordinary unit]],Q16*1.06^(1/12)),"") -> 12.78797054 | R17: =IFERROR(MAX(PPF_NAV[[#This Row],[Elite unit]],R16*1.06^(1/12)),"") -> 122.33748931
A18: 2018-11-30 | B18: 13.45332811 | C18: 128.9911902 | O18: 0 | P18: =SUM(Overall!L32)-SUM('Investor 1'!L32,'Investor 2'!L32,'Investor 3'!L32,'Investor 4'!L32,'Investor 5'!L32,'Investor 6'!L32,'Investor 7'!L32,'Investor 8'!L32,'Investor 9'!L32,'Investor 10'!L32) -> 0 | Q18: =IFERROR(MAX(PPF_NAV[[#This Row],[Ordinary unit]],Q17*1.06^(1/12)),"") -> 13.45332811 | R18: =IFERROR(MAX(PPF_NAV[[#This Row],[Elite unit]],R17*1.06^(1/12)),"") -> 128.9911902
A19: 2018-12-31 | B19: 11.97451954 | C19: 114.8122989 | O19: 0 | P19: =SUM(Overall!L33)-SUM('Investor 1'!L33,'Investor 2'!L33,'Investor 3'!L33,'Investor 4'!L33,'Investor 5'!L33,'Investor 6'!L33,'Investor 7'!L33,'Investor 8'!L33,'Investor 9'!L33,'Investor 10'!L33) -> 0 | Q19: =IFERROR(MAX(PPF_NAV[[#This Row],[Ordinary unit]],Q18*1.06^(1/12)),"") -> 13.51881286 | R19: =IFERROR(MAX(PPF_NAV[[#This Row],[Elite unit]],R18*1.06^(1/12)),"") -> 129.61906137
A20: 2019-01-31 | B20: 12.21819785 | C20: 117.1486988 | F20: $200,000.00 | O20: $200,000.00 | P20: =SUM(Overall!L34)-SUM('Investor 1'!L34,'Investor 2'!L34,'Investor 3'!L34,'Investor 4'!L34,'Investor 5'!L34,'Investor 6'!L34,'Investor 7'!L34,'Investor 8'!L34,'Investor 9'!L34,'Investor 10'!L34) -> 0 | Q20: =IFERROR(MAX(PPF_NAV[[#This Row],[Ordinary unit]],Q19*1.06^(1/12)),"") -> 13.58461637 | R20: =IFERROR(MAX(PPF_NAV[[#This Row],[Elite unit]],R19*1.06^(1/12)),"") -> 130.24998871
A21: 2019-02-28 | B21: 11.67431452 | C21: 111.933918 | O21: 0 | P21: =SUM(Overall!L35)-SUM('Investor 1'!L35,'Investor 2'!L35,'Investor 3'!L35,'Investor 4'!L35,'Investor 5'!L35,'Investor 6'!L35,'Investor 7'!L35,'Investor 8'!L35,'Investor 9'!L35,'Investor 10'!L35) -> 0 | Q21: =IFERROR(MAX(PPF_NAV[[#This Row],[Ordinary unit]],Q20*1.06^(1/12)),"") -> 13.65074018 | R21: =IFERROR(MAX(PPF_NAV[[#This Row],[Elite unit]],R20*1.06^(1/12)),"") -> 130.88398711
A22: 2019-03-31 | B22: 11.53240184 | C22: 110.573252 | O22: 0 | P22: =SUM(Overall!L36)-SUM('Investor 1'!L36,'Investor 2'!L36,'Investor 3'!L36,'Investor 4'!L36,'Investor 5'!L36,'Investor 6'!L36,'Investor 7'!L36,'Investor 8'!L36,'Investor 9'!L36,'Investor 10'!L36) -> 0 | Q22: =IFERROR(MAX(PPF_NAV[[#This Row],[Ordinary unit]],Q21*1.06^(1/12)),"") -> 13.71718585 | R22: =IFERROR(MAX(PPF_NAV[[#This Row],[Elite unit]],R21*1.06^(1/12)),"") -> 131.52107154
A23: 2019-04-30 | B23: 13.66031085 | C23: 130.9757512 | O23: 0 | P23: =SUM(Overall!L37)-SUM('Investor 1'!L37,'Investor 2'!L37,'Investor 3'!L37,'Investor 4'!L37,'Investor 5'!L37,'Investor 6'!L37,'Investor 7'!L37,'Investor 8'!L37,'Investor 9'!L37,'Investor 10'!L37) -> $1,721.27 | Q23: =IFERROR(MAX(PPF_NAV[[#This Row],[Ordinary unit]],Q22*1.06^(1/12)),"") -> 13.78395494 | R23: =IFERROR(MAX(PPF_NAV[[#This Row],[Elite unit]],R22*1.06^(1/12)),"") -> 132.16125700
A24: 2019-05-31 | B24: 11.33562876 | C24: 108.6865817 | O24: 0 | P24: =SUM(Overall!L38)-SUM('Investor 1'!L38,'Investor 2'!L38,'Investor 3'!L38,'Investor 4'!L38,'Investor 5'!L38,'Investor 6'!L38,'Investor 7'!L38,'Investor 8'!L38,'Investor 9'!L38,'Investor 10'!L38) -> $1,428.35 | Q24: =IFERROR(MAX(PPF_NAV[[#This Row],[Ordinary unit]],Q23*1.06^(1/12)),"") -> 13.85104904 | R24: =IFERROR(MAX(PPF_NAV[[#This Row],[Elite unit]],R23*1.06^(1/12)),"") -> 132.80455861
A25: 2019-06-30 | B25: 13.39496858 | C25: 128.4316361 | O25: 0 | P25: =SUM(Overall!L39)-SUM('Investor 1'!L39,'Investor 2'!L39,'Investor 3'!L39,'Investor 4'!L39,'Investor 5'!L39,'Investor 6'!L39,'Investor 7'!L39,'Investor 8'!L39,'Investor 9'!L39,'Investor 10'!L39) -> $1,687.84 | Q25: =IFERROR(MAX(PPF_NAV[[#This Row],[Ordinary unit]],Q24*1.06^(1/12)),"") -> 13.91846972 | R25: =IFERROR(MAX(PPF_NAV[[#This Row],[Elite unit]],R24*1.06^(1/12)),"") -> 133.45099151
A26: 2019-07-31 | B26: 12.27363307 | C26: 117.6802146 | O26: 0 | P26: =SUM(Overall!L40)-SUM('Investor 1'!L40,'Investor 2'!L40,'Investor 3'!L40,'Investor 4'!L40,'Investor 5'!L40,'Investor 6'!L40,'Investor 7'!L40,'Investor 8'!L40,'Investor 9'!L40,'Investor 10'!L40) -> $1,546.54 | Q26: =IFERROR(MAX(PPF_NAV[[#This Row],[Ordinary unit]],Q25*1.06^(1/12)),"") -> 13.98621858 | R26: =IFERROR(MAX(PPF_NAV[[#This Row],[Elite unit]],R25*1.06^(1/12)),"") -> 134.10057096
A27: 2019-08-31 | B27: 12.04981624 | C27: 115.5342474 | O27: 0 | P27: =SUM(Overall!L41)-SUM('Investor 1'!L41,'Investor 2'!L41,'Investor 3'!L41,'Investor 4'!L41,'Investor 5'!L41,'Investor 6'!L41,'Investor 7'!L41,'Investor 8'!L41,'Investor 9'!L41,'Investor 10'!L41) -> $1,518.34 | Q27: =IFERROR(MAX(PPF_NAV[[#This Row],[Ordinary unit]],Q26*1.06^(1/12)),"") -> 14.05429720 | R27: =IFERROR(MAX(PPF_NAV[[#This Row],[Elite unit]],R26*1.06^(1/12)),"") -> 134.75331227
A28: 2019-09-30 | B28: 12.90722853 | C28: 123.7551599 | O28: 0 | P28: =SUM(Overall!L42)-SUM('Investor 1'!L42,'Investor 2'!L42,'Investor 3'!L42,'Investor 4'!L42,'Investor 5'!L42,'Investor 6'!L42,'Investor 7'!L42,'Investor 8'!L42,'Investor 9'!L42,'Investor 10'!L42) -> $1,626.38 | Q28: =IFERROR(MAX(PPF_NAV[[#This Row],[Ordinary unit]],Q27*1.06^(1/12)),"") -> 14.12270720 | R28: =IFERROR(MAX(PPF_NAV[[#This Row],[Elite unit]],R27*1.06^(1/12)),"") -> 135.40923083
A29: 2019-10-31 | B29: 14.03268066 | C29: 134.5460517 | O29: 0 | P29: =SUM(Overall!L43)-SUM('Investor 1'!L43,'Investor 2'!L43,'Investor 3'!L43,'Investor 4'!L43,'Investor 5'!L43,'Investor 6'!L43,'Investor 7'!L43,'Investor 8'!L43,'Investor 9'!L43,'Investor 10'!L43) -> $1,768.19 | Q29: =IFERROR(MAX(PPF_NAV[[#This Row],[Ordinary unit]],Q28*1.06^(1/12)),"") -> 14.19145020 | R29: =IFERROR(MAX(PPF_NAV[[#This Row],[Elite unit]],R28*1.06^(1/12)),"") -> 136.06834211
A30: 2019-11-30 | B30: 15.14215321 | C30: 145.606384 | O30: 0 | P30: =SUM(Overall!L44)-SUM('Investor 1'!L44,'Investor 2'!L44,'Investor 3'!L44,'Investor 4'!L44,'Investor 5'!L44,'Investor 6'!L44,'Investor 7'!L44,'Investor 8'!L44,'Investor 9'!L44,'Investor 10'!L44) -> $130.18 | Q30: =IFERROR(MAX(PPF_NAV[[#This Row],[Ordinary unit]],Q29*1.06^(1/12)),"") -> 15.14215321 | R30: =IFERROR(MAX(PPF_NAV[[#This Row],[Elite unit]],R29*1.06^(1/12)),"") -> 145.606384
A31: 2019-12-31 | B31: 16.11108866 | C31: 155.3540564 | O31: 0 | P31: =SUM(Overall!L45)-SUM('Investor 1'!L45,'Investor 2'!L45,'Investor 3'!L45,'Investor 4'!L45,'Investor 5'!L45,'Investor 6'!L45,'Investor 7'!L45,'Investor 8'!L45,'Investor 9'!L45,'Investor 10'!L45) -> $138.90 | Q31: =IFERROR(MAX(PPF_NAV[[#This Row],[Ordinary unit]],Q30*1.06^(1/12)),"") -> 16.11108866 | R31: =IFERROR(MAX(PPF_NAV[[#This Row],[Elite unit]],R30*1.06^(1/12)),"") -> 155.3540564
A32: 2020-01-31 | B32: 15.677982 | C32: 151.177748 | O32: 0 | P32: =SUM(Overall!L46)-SUM('Investor 1'!L46,'Investor 2'!L46,'Investor 3'!L46,'Investor 4'!L46,'Investor 5'!L46,'Investor 6'!L46,'Investor 7'!L46,'Investor 8'!L46,'Investor 9'!L46,'Investor 10'!L46) -> $135.17 | Q32: =IFERROR(MAX(PPF_NAV[[#This Row],[Ordinary unit]],Q31*1.06^(1/12)),"") -> 16.18951020 | R32: =IFERROR(MAX(PPF_NAV[[#This Row],[Elite unit]],R31*1.06^(1/12)),"") -> 156.11025012
A33: 2020-02-29 | B33: 11.62651198 | C33: 112.1107231 | O33: 0 | P33: =SUM(Overall!L47)-SUM('Investor 1'!L47,'Investor 2'!L47,'Investor 3'!L47,'Investor 4'!L47,'Investor 5'!L47,'Investor 6'!L47,'Investor 7'!L47,'Investor 8'!L47,'Investor 9'!L47,'Investor 10'!L47) -> $100.24 | Q33: =IFERROR(MAX(PPF_NAV[[#This Row],[Ordinary unit]],Q32*1.06^(1/12)),"") -> 16.26831346 | R33: =IFERROR(MAX(PPF_NAV[[#This Row],[Elite unit]],R32*1.06^(1/12)),"") -> 156.87012465
A34: 2020-03-31 | B34: 6.25117066 | C34: 60.27821342 | O34: 0 | P34: =SUM(Overall!L48)-SUM('Investor 1'!L48,'Investor 2'!L48,'Investor 3'!L48,'Investor 4'!L48,'Investor 5'!L48,'Investor 6'!L48,'Investor 7'!L48,'Investor 8'!L48,'Investor 9'!L48,'Investor 10'!L48) -> $53.89 | Q34: =IFERROR(MAX(PPF_NAV[[#This Row],[Ordinary unit]],Q33*1.06^(1/12)),"") -> 16.34750030 | R34: =IFERROR(MAX(PPF_NAV[[#This Row],[Elite unit]],R33*1.06^(1/12)),"") -> 157.63369792
A35: 2020-04-30 | B35: 6.76136982 | C35: 65.19791497 | O35: 0 | P35: =SUM(Overall!L49)-SUM('Investor 1'!L49,'Investor 2'!L49,'Investor 3'!L49,'Investor 4'!L49,'Investor 5'!L49,'Investor 6'!L49,'Investor 7'!L49,'Investor 8'!L49,'Investor 9'!L49,'Investor 10'!L49) -> $58.29 | Q35: =IFERROR(MAX(PPF_NAV[[#This Row],[Ordinary unit]],Q34*1.06^(1/12)),"") -> 16.42707258 | R35: =IFERROR(MAX(PPF_NAV[[#This Row],[Elite unit]],R34*1.06^(1/12)),"") -> 158.40098791
A36: 2020-05-31 | B36: 6.32572071 | C36: 60.99707783 | O36: 0 | P36: =SUM(Overall!L50)-SUM('Investor 1'!L50,'Investor 2'!L50,'Investor 3'!L50,'Investor 4'!L50,'Investor 5'!L50,'Investor 6'!L50,'Investor 7'!L50,'Investor 8'!L50,'Investor 9'!L50,'Investor 10'!L50) -> $54.54 | Q36: =IFERROR(MAX(PPF_NAV[[#This Row],[Ordinary unit]],Q35*1.06^(1/12)),"") -> 16.50703219 | R36: =IFERROR(MAX(PPF_NAV[[#This Row],[Elite unit]],R35*1.06^(1/12)),"") -> 159.17201273
A37: 2020-06-30 | B37: 5.95179292 | C37: 57.39140142 | O37: 0 | P37: =SUM(Overall!L51)-SUM('Investor 1'!L51,'Investor 2'!L51,'Investor 3'!L51,'Investor 4'!L51,'Investor 5'!L51,'Investor 6'!L51,'Investor 7'!L51,'Investor 8'!L51,'Investor 9'!L51,'Investor 10'!L51) -> $51.31 | Q37: =IFERROR(MAX(PPF_NAV[[#This Row],[Ordinary unit]],Q36*1.06^(1/12)),"") -> 16.58738100 | R37: =IFERROR(MAX(PPF_NAV[[#This Row],[Elite unit]],R36*1.06^(1/12)),"") -> 159.94679055
A38: 2020-07-31 | B38: 7.14125904 | C38: 68.86087486 | O38: 0 | P38: =SUM(Overall!L52)-SUM('Investor 1'!L52,'Investor 2'!L52,'Investor 3'!L52,'Investor 4'!L52,'Investor 5'!L52,'Investor 6'!L52,'Investor 7'!L52,'Investor 8'!L52,'Investor 9'!L52,'Investor 10'!L52) -> $61.57 | Q38: =IFERROR(MAX(PPF_NAV[[#This Row],[Ordinary unit]],Q37*1.06^(1/12)),"") -> 16.66812092 | R38: =IFERROR(MAX(PPF_NAV[[#This Row],[Elite unit]],R37*1.06^(1/12)),"") -> 160.72533964
A39: 2020-08-31 | B39: 8.43274779 | C39: 81.31428746 | O39: 0 | P39: =SUM(Overall!L53)-SUM('Investor 1'!L53,'Investor 2'!L53,'Investor 3'!L53,'Investor 4'!L53,'Investor 5'!L53,'Investor 6'!L53,'Investor 7'!L53,'Investor 8'!L53,'Investor 9'!L53,'Investor 10'!L53) -> $72.70 | Q39: =IFERROR(MAX(PPF_NAV[[#This Row],[Ordinary unit]],Q38*1.06^(1/12)),"") -> 16.74925384 | R39: =IFERROR(MAX(PPF_NAV[[#This Row],[Elite unit]],R38*1.06^(1/12)),"") -> 161.50767836
A40: 2020-09-30 | B40: 8.11076527 | C40: 78.20951311 | O40: 0 | P40: =SUM(Overall!L54)-SUM('Investor 1'!L54,'Investor 2'!L54,'Investor 3'!L54,'Investor 4'!L54,'Investor 5'!L54,'Investor 6'!L54,'Investor 7'!L54,'Investor 8'!L54,'Investor 9'!L54,'Investor 10'!L54) -> $69.93 | Q40: =IFERROR(MAX(PPF_NAV[[#This Row],[Ordinary unit]],Q39*1.06^(1/12)),"") -> 16.83078168 | R40: =IFERROR(MAX(PPF_NAV[[#This Row],[Elite unit]],R39*1.06^(1/12)),"") -> 162.29382515
A41: 2020-10-31 | B41: 7.8755998 | C41: 75.94188777 | O41: 0 | P41: =SUM(Overall!L55)-SUM('Investor 1'!L55,'Investor 2'!L55,'Investor 3'!L55,'Investor 4'!L55,'Investor 5'!L55,'Investor 6'!L55,'Investor 7'!L55,'Investor 8'!L55,'Investor 9'!L55,'Investor 10'!L55) -> $67.90 | Q41: =IFERROR(MAX(PPF_NAV[[#This Row],[Ordinary unit]],Q40*1.06^(1/12)),"") -> 16.91270636 | R41: =IFERROR(MAX(PPF_NAV[[#This Row],[Elite unit]],R40*1.06^(1/12)),"") -> 163.08379855
A42: 2020-11-30 | B42: 9.20657959 | C42: 88.77609992 | O42: 0 | P42: =SUM(Overall!L56)-SUM('Investor 1'!L56,'Investor 2'!L56,'Investor 3'!L56,'Investor 4'!L56,'Investor 5'!L56,'Investor 6'!L56,'Investor 7'!L56,'Investor 8'!L56,'Investor 9'!L56,'Investor 10'!L56) -> $79.37 | Q42: =IFERROR(MAX(PPF_NAV[[#This Row],[Ordinary unit]],Q41*1.06^(1/12)),"") -> 16.99502981 | R42: =IFERROR(MAX(PPF_NAV[[#This Row],[Elite unit]],R41*1.06^(1/12)),"") -> 163.87761719
A43: 2020-12-31 | B43: 9.70852832 | C43: 93.61623088 | O43: 0 | P43: =SUM(Overall!L57)-SUM('Investor 1'!L57,'Investor 2'!L57,'Investor 3'!L57,'Investor 4'!L57,'Investor 5'!L57,'Investor 6'!L57,'Investor 7'!L57,'Investor 8'!L57,'Investor 9'!L57,'Investor 10'!L57) -> $83.70 | Q43: =IFERROR(MAX(PPF_NAV[[#This Row],[Ordinary unit]],Q42*1.06^(1/12)),"") -> 17.07775398 | R43: =IFERROR(MAX(PPF_NAV[[#This Row],[Elite unit]],R42*1.06^(1/12)),"") -> 164.67529977
A44: 2021-01-31 | B44: 9.80830377 | C44: 94.57833346 | O44: 0 | P44: =SUM(Overall!L58)-SUM('Investor 1'!L58,'Investor 2'!L58,'Investor 3'!L58,'Investor 4'!L58,'Investor 5'!L58,'Investor 6'!L58,'Investor 7'!L58,'Investor 8'!L58,'Investor 9'!L58,'Investor 10'!L58) -> $84.56 | Q44: =IFERROR(MAX(PPF_NAV[[#This Row],[Ordinary unit]],Q43*1.06^(1/12)),"") -> 17.16088081 | R44: =IFERROR(MAX(PPF_NAV[[#This Row],[Elite unit]],R43*1.06^(1/12)),"") -> 165.47686512
A45: 2021-02-28 | B45: 10.28349132 | C45: 99.160415 | O45: 0 | P45: =SUM(Overall!L59)-SUM('Investor 1'!L59,'Investor 2'!L59,'Investor 3'!L59,'Investor 4'!L59,'Investor 5'!L59,'Investor 6'!L59,'Investor 7'!L59,'Investor 8'!L59,'Investor 9'!L59,'Investor 10'!L59) -> $88.66 | Q45: =IFERROR(MAX(PPF_NAV[[#This Row],[Ordinary unit]],Q44*1.06^(1/12)),"") -> 17.24441227 | R45: =IFERROR(MAX(PPF_NAV[[#This Row],[Elite unit]],R44*1.06^(1/12)),"") -> 166.28233213
A46: 2021-03-31 | B46: 11.48568697 | C46: 110.7528028 | O46: 0 | P46: =SUM(Overall!L60)-SUM('Investor 1'!L60,'Investor 2'!L60,'Investor 3'!L60,'Investor 4'!L60,'Investor 5'!L60,'Investor 6'!L60,'Investor 7'!L60,'Investor 8'!L60,'Investor 9'!L60,'Investor 10'!L60) -> $99.02 | Q46: =IFERROR(MAX(PPF_NAV[[#This Row],[Ordinary unit]],Q45*1.06^(1/12)),"") -> 17.32835031 | R46: =IFERROR(MAX(PPF_NAV[[#This Row],[Elite unit]],R45*1.06^(1/12)),"") -> 167.09171979
A47: 2021-04-30 | B47: 12.15558255 | C47: 117.2123815 | O47: 0 | P47: =SUM(Overall!L61)-SUM('Investor 1'!L61,'Investor 2'!L61,'Investor 3'!L61,'Investor 4'!L61,'Investor 5'!L61,'Investor 6'!L61,'Investor 7'!L61,'Investor 8'!L61,'Investor 9'!L61,'Investor 10'!L61) -> $104.80 | Q47: =IFERROR(MAX(PPF_NAV[[#This Row],[Ordinary unit]],Q46*1.06^(1/12)),"") -> 17.41269694 | R47: =IFERROR(MAX(PPF_NAV[[#This Row],[Elite unit]],R46*1.06^(1/12)),"") -> 167.90504719
A48: 2021-05-31 | B48: 12.49571288 | C48: 120.4921492 | O48: 0 | P48: =SUM(Overall!L62)-SUM('Investor 1'!L62,'Investor 2'!L62,'Investor 3'!L62,'Investor 4'!L62,'Investor 5'!L62,'Investor 6'!L62,'Investor 7'!L62,'Investor 8'!L62,'Investor 9'!L62,'Investor 10'!L62) -> $107.73 | Q48: =IFERROR(MAX(PPF_NAV[[#This Row],[Ordinary unit]],Q47*1.06^(1/12)),"") -> 17.49745412 | R48: =IFERROR(MAX(PPF_NAV[[#This Row],[Elite unit]],R47*1.06^(1/12)),"") -> 168.72233349
A49: 2021-06-30 | B49: 12.40534722 | C49: 119.6207798 | O49: 0 | P49: =SUM(Overall!L63)-SUM('Investor 1'!L63,'Investor 2'!L63,'Investor 3'!L63,'Investor 4'!L63,'Investor 5'!L63,'Investor 6'!L63,'Investor 7'!L63,'Investor 8'!L63,'Investor 9'!L63,'Investor 10'!L63) -> $106.95 | Q49: =IFERROR(MAX(PPF_NAV[[#This Row],[Ordinary unit]],Q48*1.06^(1/12)),"") -> 17.58262386 | R49: =IFERROR(MAX(PPF_NAV[[#This Row],[Elite unit]],R48*1.06^(1/12)),"") -> 169.54359798
A50: 2021-07-31 | B50: 13.11714398 | C50: 126.4844172 | O50: 0 | P50: =SUM(Overall!L64)-SUM('Investor 1'!L64,'Investor 2'!L64,'Investor 3'!L64,'Investor 4'!L64,'Investor 5'!L64,'Investor 6'!L64,'Investor 7'!L64,'Investor 8'!L64,'Investor 9'!L64,'Investor 10'!L64) -> $113.09 | Q50: =IFERROR(MAX(PPF_NAV[[#This Row],[Ordinary unit]],Q49*1.06^(1/12)),"") -> 17.66820817 | R50: =IFERROR(MAX(PPF_NAV[[#This Row],[Elite unit]],R49*1.06^(1/12)),"") -> 170.36886002
A51: 2021-08-31 | B51: 13.08509867 | C51: 126.1754126 | O51: 0 | P51: =SUM(Overall!L65)-SUM('Investor 1'!L65,'Investor 2'!L65,'Investor 3'!L65,'Investor 4'!L65,'Investor 5'!L65,'Investor 6'!L65,'Investor 7'!L65,'Investor 8'!L65,'Investor 9'!L65,'Investor 10'!L65) -> $112.81 | Q51: =IFERROR(MAX(PPF_NAV[[#This Row],[Ordinary unit]],Q50*1.06^(1/12)),"") -> 17.75420907 | R51: =IFERROR(MAX(PPF_NAV[[#This Row],[Elite unit]],R50*1.06^(1/12)),"") -> 171.19813906
A52: 2021-09-30 | B52: 13.24288858 | C52: 127.6969333 | O52: 0 | P52: =SUM(Overall!L66)-SUM('Investor 1'!L66,'Investor 2'!L66,'Investor 3'!L66,'Investor 4'!L66,'Investor 5'!L66,'Investor 6'!L66,'Investor 7'!L66,'Investor 8'!L66,'Investor 9'!L66,'Investor 10'!L66) -> $114.17 | Q52: =IFERROR(MAX(PPF_NAV[[#This Row],[Ordinary unit]],Q51*1.06^(1/12)),"") -> 17.84062858 | R52: =IFERROR(MAX(PPF_NAV[[#This Row],[Elite unit]],R51*1.06^(1/12)),"") -> 172.03145466
A53: 2021-10-31 | B53: 13.31757786 | C53: 128.4171473 | O53: 0 | P53: =SUM(Overall!L67)-SUM('Investor 1'!L67,'Investor 2'!L67,'Investor 3'!L67,'Investor 4'!L67,'Investor 5'!L67,'Investor 6'!L67,'Investor 7'!L67,'Investor 8'!L67,'Investor 9'!L67,'Investor 10'!L67) -> $114.82 | Q53: =IFERROR(MAX(PPF_NAV[[#This Row],[Ordinary unit]],Q52*1.06^(1/12)),"") -> 17.92746874 | R53: =IFERROR(MAX(PPF_NAV[[#This Row],[Elite unit]],R52*1.06^(1/12)),"") -> 172.86882646
A54: 2021-11-30 | B54: 13.09036618 | C54: 126.2262178 | O54: 0 | P54: =SUM(Overall!L68)-SUM('Investor 1'!L68,'Investor 2'!L68,'Investor 3'!L68,'Investor 4'!L68,'Investor 5'!L68,'Investor 6'!L68,'Investor 7'!L68,'Investor 8'!L68,'Investor 9'!L68,'Investor 10'!L68) -> $112.86 | Q54: =IFERROR(MAX(PPF_NAV[[#This Row],[Ordinary unit]],Q53*1.06^(1/12)),"") -> 18.01473160 | R54: =IFERROR(MAX(PPF_NAV[[#This Row],[Elite unit]],R53*1.06^(1/12)),"") -> 173.71027422
A55: 2021-12-31 | B55: 13.82220923 | C55: 133.2831464 | O55: 0 | P55: =SUM(Overall!L69)-SUM('Investor 1'!L69,'Investor 2'!L69,'Investor 3'!L69,'Investor 4'!L69,'Investor 5'!L69,'Investor 6'!L69,'Investor 7'!L69,'Investor 8'!L69,'Investor 9'!L69,'Investor 10'!L69) -> $119.17 | Q55: =IFERROR(MAX(PPF_NAV[[#This Row],[Ordinary unit]],Q54*1.06^(1/12)),"") -> 18.10241922 | R55: =IFERROR(MAX(PPF_NAV[[#This Row],[Elite unit]],R54*1.06^(1/12)),"") -> 174.55581776
A56: 2022-01-31 | B56: 12.96275372 | C56: 124.9956915 | O56: 0 | P56: =SUM(Overall!L70)-SUM('Investor 1'!L70,'Investor 2'!L70,'Investor 3'!L70,'Investor 4'!L70,'Investor 5'!L70,'Investor 6'!L70,'Investor 7'!L70,'Investor 8'!L70,'Investor 9'!L70,'Investor 10'!L70) -> $111.76 | Q56: =IFERROR(MAX(PPF_NAV[[#This Row],[Ordinary unit]],Q55*1.06^(1/12)),"") -> 18.19053366 | R56: =IFERROR(MAX(PPF_NAV[[#This Row],[Elite unit]],R55*1.06^(1/12)),"") -> 175.40547703
A57: 2022-02-28 | B57: 12.40863929 | C57: 119.6525432 | O57: 0 | P57: =SUM(Overall!L71)-SUM('Investor 1'!L71,'Investor 2'!L71,'Investor 3'!L71,'Investor 4'!L71,'Investor 5'!L71,'Investor 6'!L71,'Investor 7'!L71,'Investor 8'!L71,'Investor 9'!L71,'Investor 10'!L71) -> $106.98 | Q57: =IFERROR(MAX(PPF_NAV[[#This Row],[Ordinary unit]],Q56*1.06^(1/12)),"") -> 18.27907700 | R57: =IFERROR(MAX(PPF_NAV[[#This Row],[Elite unit]],R56*1.06^(1/12)),"") -> 176.25927206
A58: 2022-03-31 | B58: 12.51708356 | C58: 120.6982368 | O58: 0 | P58: =SUM(Overall!L72)-SUM('Investor 1'!L72,'Investor 2'!L72,'Investor 3'!L72,'Investor 4'!L72,'Investor 5'!L72,'Investor 6'!L72,'Investor 7'!L72,'Investor 8'!L72,'Investor 9'!L72,'Investor 10'!L72) -> $107.91 | Q58: =IFERROR(MAX(PPF_NAV[[#This Row],[Ordinary unit]],Q57*1.06^(1/12)),"") -> 18.36805133 | R58: =IFERROR(MAX(PPF_NAV[[#This Row],[Elite unit]],R57*1.06^(1/12)),"") -> 177.11722298
A59: 2022-04-30 | B59: 11.32588384 | C59: 109.2118782 | O59: 0 | P59: =SUM(Overall!L73)-SUM('Investor 1'!L73,'Investor 2'!L73,'Investor 3'!L73,'Investor 4'!L73,'Investor 5'!L73,'Investor 6'!L73,'Investor 7'!L73,'Investor 8'!L73,'Investor 9'!L73,'Investor 10'!L73) -> $97.64 | Q59: =IFERROR(MAX(PPF_NAV[[#This Row],[Ordinary unit]],Q58*1.06^(1/12)),"") -> 18.45745875 | R59: =IFERROR(MAX(PPF_NAV[[#This Row],[Elite unit]],R58*1.06^(1/12)),"") -> 177.97935002
A60: 2022-05-31 | B60: 11.8447608 | C60: 114.2152432 | O60: 0 | P60: =SUM(Overall!L74)-SUM('Investor 1'!L74,'Investor 2'!L74,'Investor 3'!L74,'Investor 4'!L74,'Investor 5'!L74,'Investor 6'!L74,'Investor 7'!L74,'Investor 8'!L74,'Investor 9'!L74,'Investor 10'!L74) -> $102.12 | Q60: =IFERROR(MAX(PPF_NAV[[#This Row],[Ordinary unit]],Q59*1.06^(1/12)),"") -> 18.54730137 | R60: =IFERROR(MAX(PPF_NAV[[#This Row],[Elite unit]],R59*1.06^(1/12)),"") -> 178.84567350
A61: 2022-06-30 | B61: 11.52821932 | C61: 111.1629351 | O61: 0 | P61: =SUM(Overall!L75)-SUM('Investor 1'!L75,'Investor 2'!L75,'Investor 3'!L75,'Investor 4'!L75,'Investor 5'!L75,'Investor 6'!L75,'Investor 7'!L75,'Investor 8'!L75,'Investor 9'!L75,'Investor 10'!L75) -> $99.39 | Q61: =IFERROR(MAX(PPF_NAV[[#This Row],[Ordinary unit]],Q60*1.06^(1/12)),"") -> 18.63758129 | R61: =IFERROR(MAX(PPF_NAV[[#This Row],[Elite unit]],R60*1.06^(1/12)),"") -> 179.71621386
A62: 2022-07-31 | B62: 12.68015448 | C62: 122.2706779 | O62: 0 | P62: =SUM(Overall!L76)-SUM('Investor 1'!L76,'Investor 2'!L76,'Investor 3'!L76,'Investor 4'!L76,'Investor 5'!L76,'Investor 6'!L76,'Investor 7'!L76,'Investor 8'!L76,'Investor 9'!L76,'Investor 10'!L76) -> $109.32 | Q62: =IFERROR(MAX(PPF_NAV[[#This Row],[Ordinary unit]],Q61*1.06^(1/12)),"") -> 18.72830066 | R62: =IFERROR(MAX(PPF_NAV[[#This Row],[Elite unit]],R61*1.06^(1/12)),"") -> 180.59099162
A63: 2022-08-31 | B63: 12.32808413 | C63: 118.8760343 | O63: 0 | P63: =SUM(Overall!L77)-SUM('Investor 1'!L77,'Investor 2'!L77,'Investor 3'!L77,'Investor 4'!L77,'Investor 5'!L77,'Investor 6'!L77,'Investor 7'!L77,'Investor 8'!L77,'Investor 9'!L77,'Investor 10'!L77) -> $106.29 | Q63: =IFERROR(MAX(PPF_NAV[[#This Row],[Ordinary unit]],Q62*1.06^(1/12)),"") -> 18.81946161 | R63: =IFERROR(MAX(PPF_NAV[[#This Row],[Elite unit]],R62*1.06^(1/12)),"") -> 181.47002740
A64: 2022-09-30 | B64: 11.50150824 | C64: 110.9056097 | O64: 0 | P64: =SUM(Overall!L78)-SUM('Investor 1'!L78,'Investor 2'!L78,'Investor 3'!L78,'Investor 4'!L78,'Investor 5'!L78,'Investor 6'!L78,'Investor 7'!L78,'Investor 8'!L78,'Investor 9'!L78,'Investor 10'!L78) -> $99.16 | Q64: =IFERROR(MAX(PPF_NAV[[#This Row],[Ordinary unit]],Q63*1.06^(1/12)),"") -> 18.91106629 | R64: =IFERROR(MAX(PPF_NAV[[#This Row],[Elite unit]],R63*1.06^(1/12)),"") -> 182.35334194
A65: 2022-10-31 | B65: 12.48904638 | C65: 120.4281453 | O65: 0 | P65: =SUM(Overall!L79)-SUM('Investor 1'!L79,'Investor 2'!L79,'Investor 3'!L79,'Investor 4'!L79,'Investor 5'!L79,'Investor 6'!L79,'Investor 7'!L79,'Investor 8'!L79,'Investor 9'!L79,'Investor 10'!L79) -> $107.67 | Q65: =IFERROR(MAX(PPF_NAV[[#This Row],[Ordinary unit]],Q64*1.06^(1/12)),"") -> 19.00311687 | R65: =IFERROR(MAX(PPF_NAV[[#This Row],[Elite unit]],R64*1.06^(1/12)),"") -> 183.24095605
A66: 2022-11-30 | B66: 13.32825794 | C66: 128.5204114 | O66: 0 | P66: =SUM(Overall!L80)-SUM('Investor 1'!L80,'Investor 2'!L80,'Investor 3'!L80,'Investor 4'!L80,'Investor 5'!L80,'Investor 6'!L80,'Investor 7'!L80,'Investor 8'!L80,'Investor 9'!L80,'Investor 10'!L80) -> $114.91 | Q66: =IFERROR(MAX(PPF_NAV[[#This Row],[Ordinary unit]],Q65*1.06^(1/12)),"") -> 19.09561550 | R66: =IFERROR(MAX(PPF_NAV[[#This Row],[Elite unit]],R65*1.06^(1/12)),"") -> 184.13289067
A67: 2022-12-31 | B67: 12.62144199 | C67: 121.7048228 | O67: 0 | P67: =SUM(Overall!L81)-SUM('Investor 1'!L81,'Investor 2'!L81,'Investor 3'!L81,'Investor 4'!L81,'Investor 5'!L81,'Investor 6'!L81,'Investor 7'!L81,'Investor 8'!L81,'Investor 9'!L81,'Investor 10'!L81) -> $108.81 | Q67: =IFERROR(MAX(PPF_NAV[[#This Row],[Ordinary unit]],Q66*1.06^(1/12)),"") -> 19.18856437 | R67: =IFERROR(MAX(PPF_NAV[[#This Row],[Elite unit]],R66*1.06^(1/12)),"") -> 185.02916683
O68: =IF(A68="","",SUM(E68:N68)) ->  | P68: =SUM(Overall!L82)-SUM('Investor 1'!L82,'Investor 2'!L82,'Investor 3'!L82,'Investor 4'!L82,'Investor 5'!L82,'Investor 6'!L82,'Investor 7'!L82,'Investor 8'!L82,'Investor 9'!L82,'Investor 10'!L82) -> 0 | Q68: =IFERROR(MAX(PPF_NAV[[#This Row],[Ordinary unit]],Q67*1.06^(1/12)),"") ->  | R68: =IFERROR(MAX(PPF_NAV[[#This Row],[Elite unit]],R67*1.06^(1/12)),"") -> 
P69: =SUM(Overall!L83)-SUM('Investor 1'!L83,'Investor 2'!L83,'Investor 3'!L83,'Investor 4'!L83,'Investor 5'!L83,'Investor 6'!L83,'Investor 7'!L83,'Investor 8'!L83,'Investor 9'!L83,'Investor 10'!L83) -> 0 | Q69: =IFERROR(MAX(PPF_NAV[[#This Row],[Ordinary unit]],Q68*1.06^(1/12)),"") ->  | R69: =IFERROR(MAX(PPF_NAV[[#This Row],[Elite unit]],R68*1.06^(1/12)),"") -> 
P70: =SUM(Overall!L84)-SUM('Investor 1'!L84,'Investor 2'!L84,'Investor 3'!L84,'Investor 4'!L84,'Investor 5'!L84,'Investor 6'!L84,'Investor 7'!L84,'Investor 8'!L84,'Investor 9'!L84,'Investor 10'!L84) -> 0 | Q70: =IFERROR(MAX(PPF_NAV[[#This Row],[Ordinary unit]],Q69*1.06^(1/12)),"") ->  | R70: =IFERROR(MAX(PPF_NAV[[#This Row],[Elite unit]],R69*1.06^(1/12)),"") -> 
P71: =SUM(Overall!L85)-SUM('Investor 1'!L85,'Investor 2'!L85,'Investor 3'!L85,'Investor 4'!L85,'Investor 5'!L85,'Investor 6'!L85,'Investor 7'!L85,'Investor 8'!L85,'Investor 9'!L85,'Investor 10'!L85) -> 0 | Q71: =IFERROR(MAX(PPF_NAV[[#This Row],[Ordinary unit]],Q70*1.06^(1/12)),"") ->  | R71: =IFERROR(MAX(PPF_NAV[[#This Row],[Elite unit]],R70*1.06^(1/12)),"") -> 
P72: =SUM(Overall!L86)-SUM('Investor 1'!L86,'Investor 2'!L86,'Investor 3'!L86,'Investor 4'!L86,'Investor 5'!L86,'Investor 6'!L86,'Investor 7'!L86,'Investor 8'!L86,'Investor 9'!L86,'Investor 10'!L86) -> 0 | Q72: =IFERROR(MAX(PPF_NAV[[#This Row],[Ordinary unit]],Q71*1.06^(1/12)),"") ->  | R72: =IFERROR(MAX(PPF_NAV[[#This Row],[Elite unit]],R71*1.06^(1/12)),"") -> 
P73: =SUM(Overall!L87)-SUM('Investor 1'!L87,'Investor 2'!L87,'Investor 3'!L87,'Investor 4'!L87,'Investor 5'!L87,'Investor 6'!L87,'Investor 7'!L87,'Investor 8'!L87,'Investor 9'!L87,'Investor 10'!L87) -> 0 | Q73: =IFERROR(MAX(PPF_NAV[[#This Row],[Ordinary unit]],Q72*1.06^(1/12)),"") ->  | R73: =IFERROR(MAX(PPF_NAV[[#This Row],[Elite unit]],R72*1.06^(1/12)),"") -> 
P74: =SUM(Overall!L88)-SUM('Investor 1'!L88,'Investor 2'!L88,'Investor 3'!L88,'Investor 4'!L88,'Investor 5'!L88,'Investor 6'!L88,'Investor 7'!L88,'Investor 8'!L88,'Investor 9'!L88,'Investor 10'!L88) -> 0 | Q74: =IFERROR(MAX(PPF_NAV[[#This Row],[Ordinary unit]],Q73*1.06^(1/12)),"") ->  | R74: =IFERROR(MAX(PPF_NAV[[#This Row],[Elite unit]],R73*1.06^(1/12)),"") -> 
P75: =SUM(Overall!L89)-SUM('Investor 1'!L89,'Investor 2'!L89,'Investor 3'!L89,'Investor 4'!L89,'Investor 5'!L89,'Investor 6'!L89,'Investor 7'!L89,'Investor 8'!L89,'Investor 9'!L89,'Investor 10'!L89) -> 0 | Q75: =IFERROR(MAX(PPF_NAV[[#This Row],[Ordinary unit]],Q74*1.06^(1/12)),"") ->  | R75: =IFERROR(MAX(PPF_NAV[[#This Row],[Elite unit]],R74*1.06^(1/12)),"") -> 
P76: =SUM(Overall!L90)-SUM('Investor 1'!L90,'Investor 2'!L90,'Investor 3'!L90,'Investor 4'!L90,'Investor 5'!L90,'Investor 6'!L90,'Investor 7'!L90,'Investor 8'!L90,'Investor 9'!L90,'Investor 10'!L90) -> 0 | Q76: =IFERROR(MAX(PPF_NAV[[#This Row],[Ordinary unit]],Q75*1.06^(1/12)),"") ->  | R76: =IFERROR(MAX(PPF_NAV[[#This Row],[Elite unit]],R75*1.06^(1/12)),"") -> 
P77: =SUM(Overall!L91)-SUM('Investor 1'!L91,'Investor 2'!L91,'Investor 3'!L91,'Investor 4'!L91,'Investor 5'!L91,'Investor 6'!L91,'Investor 7'!L91,'Investor 8'!L91,'Investor 9'!L91,'Investor 10'!L91) -> 0 | Q77: =IFERROR(MAX(PPF_NAV[[#This Row],[Ordinary unit]],Q76*1.06^(1/12)),"") ->  | R77: =IFERROR(MAX(PPF_NAV[[#This Row],[Elite unit]],R76*1.06^(1/12)),"") -> 
P78: =SUM(Overall!L92)-SUM('Investor 1'!L92,'Investor 2'!L92,'Investor 3'!L92,'Investor 4'!L92,'Investor 5'!L92,'Investor 6'!L92,'Investor 7'!L92,'Investor 8'!L92,'Investor 9'!L92,'Investor 10'!L92) -> 0 | Q78: =IFERROR(MAX(PPF_NAV[[#This Row],[Ordinary unit]],Q77*1.06^(1/12)),"") ->  | R78: =IFERROR(MAX(PPF_NAV[[#This Row],[Elite unit]],R77*1.06^(1/12)),"") -> 
P79: =SUM(Overall!L93)-SUM('Investor 1'!L93,'Investor 2'!L93,'Investor 3'!L93,'Investor 4'!L93,'Investor 5'!L93,'Investor 6'!L93,'Investor 7'!L93,'Investor 8'!L93,'Investor 9'!L93,'Investor 10'!L93) -> 0 | Q79: =IFERROR(MAX(PPF_NAV[[#This Row],[Ordinary unit]],Q78*1.06^(1/12)),"") ->  | R79: =IFERROR(MAX(PPF_NAV[[#This Row],[Elite unit]],R78*1.06^(1/12)),"") -> 
P80: =SUM(Overall!L94)-SUM('Investor 1'!L94,'Investor 2'!L94,'Investor 3'!L94,'Investor 4'!L94,'Investor 5'!L94,'Investor 6'!L94,'Investor 7'!L94,'Investor 8'!L94,'Investor 9'!L94,'Investor 10'!L94) -> 0 | Q80: =IFERROR(MAX(PPF_NAV[[#This Row],[Ordinary unit]],Q79*1.06^(1/12)),"") ->  | R80: =IFERROR(MAX(PPF_NAV[[#This Row],[Elite unit]],R79*1.06^(1/12)),"") -> 
P81: =SUM(Overall!L95)-SUM('Investor 1'!L95,'Investor 2'!L95,'Investor 3'!L95,'Investor 4'!L95,'Investor 5'!L95,'Investor 6'!L95,'Investor 7'!L95,'Investor 8'!L95,'Investor 9'!L95,'Investor 10'!L95) -> 0 | Q81: =IFERROR(MAX(PPF_NAV[[#This Row],[Ordinary unit]],Q80*1.06^(1/12)),"") ->  | R81: =IFERROR(MAX(PPF_NAV[[#This Row],[Elite unit]],R80*1.06^(1/12)),"") -> 
P82: =SUM(Overall!L96)-SUM('Investor 1'!L96,'Investor 2'!L96,'Investor 3'!L96,'Investor 4'!L96,'Investor 5'!L96,'Investor 6'!L96,'Investor 7'!L96,'Investor 8'!L96,'Investor 9'!L96,'Investor 10'!L96) -> 0 | Q82: =IFERROR(MAX(PPF_NAV[[#This Row],[Ordinary unit]],Q81*1.06^(1/12)),"") ->  | R82: =IFERROR(MAX(PPF_NAV[[#This Row],[Elite unit]],R81*1.06^(1/12)),"") -> 
P83: =SUM(Overall!L97)-SUM('Investor 1'!L97,'Investor 2'!L97,'Investor 3'!L97,'Investor 4'!L97,'Investor 5'!L97,'Investor 6'!L97,'Investor 7'!L97,'Investor 8'!L97,'Investor 9'!L97,'Investor 10'!L97) -> 0 | Q83: =IFERROR(MAX(PPF_NAV[[#This Row],[Ordinary unit]],Q82*1.06^(1/12)),"") ->  | R83: =IFERROR(MAX(PPF_NAV[[#This Row],[Elite unit]],R82*1.06^(1/12)),"") -> 
P84: =SUM(Overall!L98)-SUM('Investor 1'!L98,'Investor 2'!L98,'Investor 3'!L98,'Investor 4'!L98,'Investor 5'!L98,'Investor 6'!L98,'Investor 7'!L98,'Investor 8'!L98,'Investor 9'!L98,'Investor 10'!L98) -> 0 | Q84: =IFERROR(MAX(PPF_NAV[[#This Row],[Ordinary unit]],Q83*1.06^(1/12)),"") ->  | R84: =IFERROR(MAX(PPF_NAV[[#This Row],[Elite unit]],R83*1.06^(1/12)),"") -> 
P85: =SUM(Overall!L99)-SUM('Investor 1'!L99,'Investor 2'!L99,'Investor 3'!L99,'Investor 4'!L99,'Investor 5'!L99,'Investor 6'!L99,'Investor 7'!L99,'Investor 8'!L99,'Investor 9'!L99,'Investor 10'!L99) -> 0 | Q85: =IFERROR(MAX(PPF_NAV[[#This Row],[Ordinary unit]],Q84*1.06^(1/12)),"") ->  | R85: =IFERROR(MAX(PPF_NAV[[#This Row],[Elite unit]],R84*1.06^(1/12)),"") -> 
P86: =SUM(Overall!L100)-SUM('Investor 1'!L100,'Investor 2'!L100,'Investor 3'!L100,'Investor 4'!L100,'Investor 5'!L100,'Investor 6'!L100,'Investor 7'!L100,'Investor 8'!L100,'Investor 9'!L100,'Investor 10'!L100) -> 0 | Q86: =IFERROR(MAX(PPF_NAV[[#This Row],[Ordinary unit]],Q85*1.06^(1/12)),"") ->  | R86: =IFERROR(MAX(PPF_NAV[[#This Row],[Elite unit]],R85*1.06^(1/12)),"") -> 
P87: =SUM(Overall!L101)-SUM('Investor 1'!L101,'Investor 2'!L101,'Investor 3'!L101,'Investor 4'!L101,'Investor 5'!L101,'Investor 6'!L101,'Investor 7'!L101,'Investor 8'!L101,'Investor 9'!L101,'Investor 10'!L101) -> 0 | Q87: =IFERROR(MAX(PPF_NAV[[#This Row],[Ordinary unit]],Q86*1.06^(1/12)),"") ->  | R87: =IFERROR(MAX(PPF_NAV[[#This Row],[Elite unit]],R86*1.06^(1/12)),"") -> 
P88: =SUM(Overall!L102)-SUM('Investor 1'!L102,'Investor 2'!L102,'Investor 3'!L102,'Investor 4'!L102,'Investor 5'!L102,'Investor 6'!L102,'Investor 7'!L102,'Investor 8'!L102,'Investor 9'!L102,'Investor 10'!L102) -> 0 | Q88: =IFERROR(MAX(PPF_NAV[[#This Row],[Ordinary unit]],Q87*1.06^(1/12)),"") ->  | R88: =IFERROR(MAX(PPF_NAV[[#This Row],[Elite unit]],R87*1.06^(1/12)),"") -> 
P89: =SUM(Overall!L103)-SUM('Investor 1'!L103,'Investor 2'!L103,'Investor 3'!L103,'Investor 4'!L103,'Investor 5'!L103,'Investor 6'!L103,'Investor 7'!L103,'Investor 8'!L103,'Investor 9'!L103,'Investor 10'!L103) -> 0 | Q89: =IFERROR(MAX(PPF_NAV[[#This Row],[Ordinary unit]],Q88*1.06^(1/12)),"") ->  | R89: =IFERROR(MAX(PPF_NAV[[#This Row],[Elite unit]],R88*1.06^(1/12)),"") -> 
P90: =SUM(Overall!L104)-SUM('Investor 1'!L104,'Investor 2'!L104,'Investor 3'!L104,'Investor 4'!L104,'Investor 5'!L104,'Investor 6'!L104,'Investor 7'!L104,'Investor 8'!L104,'Investor 9'!L104,'Investor 10'!L104) -> 0 | Q90: =IFERROR(MAX(PPF_NAV[[#This Row],[Ordinary unit]],Q89*1.06^(1/12)),"") ->  | R90: =IFERROR(MAX(PPF_NAV[[#This Row],[Elite unit]],R89*1.06^(1/12)),"") -> 
P91: =SUM(Overall!L105)-SUM('Investor 1'!L105,'Investor 2'!L105,'Investor 3'!L105,'Investor 4'!L105,'Investor 5'!L105,'Investor 6'!L105,'Investor 7'!L105,'Investor 8'!L105,'Investor 9'!L105,'Investor 10'!L105) -> 0 | Q91: =IFERROR(MAX(PPF_NAV[[#This Row],[Ordinary unit]],Q90*1.06^(1/12)),"") ->  | R91: =IFERROR(MAX(PPF_NAV[[#This Row],[Elite unit]],R90*1.06^(1/12)),"") -> 
P92: =SUM(Overall!L106)-SUM('Investor 1'!L106,'Investor 2'!L106,'Investor 3'!L106,'Investor 4'!L106,'Investor 5'!L106,'Investor 6'!L106,'Investor 7'!L106,'Investor 8'!L106,'Investor 9'!L106,'Investor 10'!L106) -> 0 | Q92: =IFERROR(MAX(PPF_NAV[[#This Row],[Ordinary unit]],Q91*1.06^(1/12)),"") ->  | R92: =IFERROR(MAX(PPF_NAV[[#This Row],[Elite unit]],R91*1.06^(1/12)),"") -> 
P93: =SUM(Overall!L107)-SUM('Investor 1'!L107,'Investor 2'!L107,'Investor 3'!L107,'Investor 4'!L107,'Investor 5'!L107,'Investor 6'!L107,'Investor 7'!L107,'Investor 8'!L107,'Investor 9'!L107,'Investor 10'!L107) -> 0 | Q93: =IFERROR(MAX(PPF_NAV[[#This Row],[Ordinary unit]],Q92*1.06^(1/12)),"") ->  | R93: =IFERROR(MAX(PPF_NAV[[#This Row],[Elite unit]],R92*1.06^(1/12)),"") -> 
P94: =SUM(Overall!L108)-SUM('Investor 1'!L108,'Investor 2'!L108,'Investor 3'!L108,'Investor 4'!L108,'Investor 5'!L108,'Investor 6'!L108,'Investor 7'!L108,'Investor 8'!L108,'Investor 9'!L108,'Investor 10'!L108) -> 0 | Q94: =IFERROR(MAX(PPF_NAV[[#This Row],[Ordinary unit]],Q93*1.06^(1/12)),"") ->  | R94: =IFERROR(MAX(PPF_NAV[[#This Row],[Elite unit]],R93*1.06^(1/12)),"") -> 
P95: =SUM(Overall!L109)-SUM('Investor 1'!L109,'Investor 2'!L109,'Investor 3'!L109,'Investor 4'!L109,'Investor 5'!L109,'Investor 6'!L109,'Investor 7'!L109,'Investor 8'!L109,'Investor 9'!L109,'Investor 10'!L109) -> 0 | Q95: =IFERROR(MAX(PPF_NAV[[#This Row],[Ordinary unit]],Q94*1.06^(1/12)),"") ->  | R95: =IFERROR(MAX(PPF_NAV[[#This Row],[Elite unit]],R94*1.06^(1/12)),"") -> 
P96: =SUM(Overall!L110)-SUM('Investor 1'!L110,'Investor 2'!L110,'Investor 3'!L110,'Investor 4'!L110,'Investor 5'!L110,'Investor 6'!L110,'Investor 7'!L110,'Investor 8'!L110,'Investor 9'!L110,'Investor 10'!L110) -> 0 | Q96: =IFERROR(MAX(PPF_NAV[[#This Row],[Ordinary unit]],Q95*1.06^(1/12)),"") ->  | R96: =IFERROR(MAX(PPF_NAV[[#This Row],[Elite unit]],R95*1.06^(1/12)),"") -> 
P97: =SUM(Overall!L111)-SUM('Investor 1'!L111,'Investor 2'!L111,'Investor 3'!L111,'Investor 4'!L111,'Investor 5'!L111,'Investor 6'!L111,'Investor 7'!L111,'Investor 8'!L111,'Investor 9'!L111,'Investor 10'!L111) -> 0 | Q97: =IFERROR(MAX(PPF_NAV[[#This Row],[Ordinary unit]],Q96*1.06^(1/12)),"") ->  | R97: =IFERROR(MAX(PPF_NAV[[#This Row],[Elite unit]],R96*1.06^(1/12)),"") -> 
P98: =SUM(Overall!L112)-SUM('Investor 1'!L112,'Investor 2'!L112,'Investor 3'!L112,'Investor 4'!L112,'Investor 5'!L112,'Investor 6'!L112,'Investor 7'!L112,'Investor 8'!L112,'Investor 9'!L112,'Investor 10'!L112) -> 0 | Q98: =IFERROR(MAX(PPF_NAV[[#This Row],[Ordinary unit]],Q97*1.06^(1/12)),"") ->  | R98: =IFERROR(MAX(PPF_NAV[[#This Row],[Elite unit]],R97*1.06^(1/12)),"") -> 
P99: =SUM(Overall!L113)-SUM('Investor 1'!L113,'Investor 2'!L113,'Investor 3'!L113,'Investor 4'!L113,'Investor 5'!L113,'Investor 6'!L113,'Investor 7'!L113,'Investor 8'!L113,'Investor 9'!L113,'Investor 10'!L113) -> 0 | Q99: =IFERROR(MAX(PPF_NAV[[#This Row],[Ordinary unit]],Q98*1.06^(1/12)),"") ->  | R99: =IFERROR(MAX(PPF_NAV[[#This Row],[Elite unit]],R98*1.06^(1/12)),"") -> 
P100: =SUM(Overall!L114)-SUM('Investor 1'!L114,'Investor 2'!L114,'Investor 3'!L114,'Investor 4'!L114,'Investor 5'!L114,'Investor 6'!L114,'Investor 7'!L114,'Investor 8'!L114,'Investor 9'!L114,'Investor 10'!L114) -> 0 | Q100: =IFERROR(MAX(PPF_NAV[[#This Row],[Ordinary unit]],Q99*1.06^(1/12)),"") ->  | R100: =IFERROR(MAX(PPF_NAV[[#This Row],[Elite unit]],R99*1.06^(1/12)),"") -> 
P101: =SUM(Overall!L115)-SUM('Investor 1'!L115,'Investor 2'!L115,'Investor 3'!L115,'Investor 4'!L115,'Investor 5'!L115,'Investor 6'!L115,'Investor 7'!L115,'Investor 8'!L115,'Investor 9'!L115,'Investor 10'!L115) -> 0 | Q101: =IFERROR(MAX(PPF_NAV[[#This Row],[Ordinary unit]],Q100*1.06^(1/12)),"") ->  | R101: =IFERROR(MAX(PPF_NAV[[#This Row],[Elite unit]],R100*1.06^(1/12)),"") -> 
P102: =SUM(Overall!L116)-SUM('Investor 1'!L116,'Investor 2'!L116,'Investor 3'!L116,'Investor 4'!L116,'Investor 5'!L116,'Investor 6'!L116,'Investor 7'!L116,'Investor 8'!L116,'Investor 9'!L116,'Investor 10'!L116) -> 0 | Q102: =IFERROR(MAX(PPF_NAV[[#This Row],[Ordinary unit]],Q101*1.06^(1/12)),"") ->  | R102: =IFERROR(MAX(PPF_NAV[[#This Row],[Elite unit]],R101*1.06^(1/12)),"") -> 
P103: =SUM(Overall!L117)-SUM('Investor 1'!L117,'Investor 2'!L117,'Investor 3'!L117,'Investor 4'!L117,'Investor 5'!L117,'Investor 6'!L117,'Investor 7'!L117,'Investor 8'!L117,'Investor 9'!L117,'Investor 10'!L117) -> 0 | Q103: =IFERROR(MAX(PPF_NAV[[#This Row],[Ordinary unit]],Q102*1.06^(1/12)),"") ->  | R103: =IFERROR(MAX(PPF_NAV[[#This Row],[Elite unit]],R102*1.06^(1/12)),"") -> 
P104: =SUM(Overall!L118)-SUM('Investor 1'!L118,'Investor 2'!L118,'Investor 3'!L118,'Investor 4'!L118,'Investor 5'!L118,'Investor 6'!L118,'Investor 7'!L118,'Investor 8'!L118,'Investor 9'!L118,'Investor 10'!L118) -> 0 | Q104: =IFERROR(MAX(PPF_NAV[[#This Row],[Ordinary unit]],Q103*1.06^(1/12)),"") ->  | R104: =IFERROR(MAX(PPF_NAV[[#This Row],[Elite unit]],R103*1.06^(1/12)),"") -> 
P105: =SUM(Overall!L119)-SUM('Investor 1'!L119,'Investor 2'!L119,'Investor 3'!L119,'Investor 4'!L119,'Investor 5'!L119,'Investor 6'!L119,'Investor 7'!L119,'Investor 8'!L119,'Investor 9'!L119,'Investor 10'!L119) -> 0 | Q105: =IFERROR(MAX(PPF_NAV[[#This Row],[Ordinary unit]],Q104*1.06^(1/12)),"") ->  | R105: =IFERROR(MAX(PPF_NAV[[#This Row],[Elite unit]],R104*1.06^(1/12)),"") -> 
P106: =SUM(Overall!L120)-SUM('Investor 1'!L120,'Investor 2'!L120,'Investor 3'!L120,'Investor 4'!L120,'Investor 5'!L120,'Investor 6'!L120,'Investor 7'!L120,'Investor 8'!L120,'Investor 9'!L120,'Investor 10'!L120) -> 0 | Q106: =IFERROR(MAX(PPF_NAV[[#This Row],[Ordinary unit]],Q105*1.06^(1/12)),"") ->  | R106: =IFERROR(MAX(PPF_NAV[[#This Row],[Elite unit]],R105*1.06^(1/12)),"") -> 
P107: =SUM(Overall!L121)-SUM('Investor 1'!L121,'Investor 2'!L121,'Investor 3'!L121,'Investor 4'!L121,'Investor 5'!L121,'Investor 6'!L121,'Investor 7'!L121,'Investor 8'!L121,'Investor 9'!L121,'Investor 10'!L121) -> 0 | Q107: =IFERROR(MAX(PPF_NAV[[#This Row],[Ordinary unit]],Q106*1.06^(1/12)),"") ->  | R107: =IFERROR(MAX(PPF_NAV[[#This Row],[Elite unit]],R106*1.06^(1/12)),"") -> 
P108: =SUM(Overall!L122)-SUM('Investor 1'!L122,'Investor 2'!L122,'Investor 3'!L122,'Investor 4'!L122,'Investor 5'!L122,'Investor 6'!L122,'Investor 7'!L122,'Investor 8'!L122,'Investor 9'!L122,'Investor 10'!L122) -> 0 | Q108: =IFERROR(MAX(PPF_NAV[[#This Row],[Ordinary unit]],Q107*1.06^(1/12)),"") ->  | R108: =IFERROR(MAX(PPF_NAV[[#This Row],[Elite unit]],R107*1.06^(1/12)),"") -> 
P109: =SUM(Overall!L123)-SUM('Investor 1'!L123,'Investor 2'!L123,'Investor 3'!L123,'Investor 4'!L123,'Investor 5'!L123,'Investor 6'!L123,'Investor 7'!L123,'Investor 8'!L123,'Investor 9'!L123,'Investor 10'!L123) -> 0 | Q109: =IFERROR(MAX(PPF_NAV[[#This Row],[Ordinary unit]],Q108*1.06^(1/12)),"") ->  | R109: =IFERROR(MAX(PPF_NAV[[#This Row],[Elite unit]],R108*1.06^(1/12)),"") -> 
P110: =SUM(Overall!L124)-SUM('Investor 1'!L124,'Investor 2'!L124,'Investor 3'!L124,'Investor 4'!L124,'Investor 5'!L124,'Investor 6'!L124,'Investor 7'!L124,'Investor 8'!L124,'Investor 9'!L124,'Investor 10'!L124) -> 0 | Q110: =IFERROR(MAX(PPF_NAV[[#This Row],[Ordinary unit]],Q109*1.06^(1/12)),"") ->  | R110: =IFERROR(MAX(PPF_NAV[[#This Row],[Elite unit]],R109*1.06^(1/12)),"") -> 
P111: =SUM(Overall!L125)-SUM('Investor 1'!L125,'Investor 2'!L125,'Investor 3'!L125,'Investor 4'!L125,'Investor 5'!L125,'Investor 6'!L125,'Investor 7'!L125,'Investor 8'!L125,'Investor 9'!L125,'Investor 10'!L125) -> 0 | Q111: =IFERROR(MAX(PPF_NAV[[#This Row],[Ordinary unit]],Q110*1.06^(1/12)),"") ->  | R111: =IFERROR(MAX(PPF_NAV[[#This Row],[Elite unit]],R110*1.06^(1/12)),"") -> 
P112: =SUM(Overall!L126)-SUM('Investor 1'!L126,'Investor 2'!L126,'Investor 3'!L126,'Investor 4'!L126,'Investor 5'!L126,'Investor 6'!L126,'Investor 7'!L126,'Investor 8'!L126,'Investor 9'!L126,'Investor 10'!L126) -> 0 | Q112: =IFERROR(MAX(PPF_NAV[[#This Row],[Ordinary unit]],Q111*1.06^(1/12)),"") ->  | R112: =IFERROR(MAX(PPF_NAV[[#This Row],[Elite unit]],R111*1.06^(1/12)),"") -> 
P113: =SUM(Overall!L127)-SUM('Investor 1'!L127,'Investor 2'!L127,'Investor 3'!L127,'Investor 4'!L127,'Investor 5'!L127,'Investor 6'!L127,'Investor 7'!L127,'Investor 8'!L127,'Investor 9'!L127,'Investor 10'!L127) -> 0 | Q113: =IFERROR(MAX(PPF_NAV[[#This Row],[Ordinary unit]],Q112*1.06^(1/12)),"") ->  | R113: =IFERROR(MAX(PPF_NAV[[#This Row],[Elite unit]],R112*1.06^(1/12)),"") -> 
P114: =SUM(Overall!L128)-SUM('Investor 1'!L128,'Investor 2'!L128,'Investor 3'!L128,'Investor 4'!L128,'Investor 5'!L128,'Investor 6'!L128,'Investor 7'!L128,'Investor 8'!L128,'Investor 9'!L128,'Investor 10'!L128) -> 0 | Q114: =IFERROR(MAX(PPF_NAV[[#This Row],[Ordinary unit]],Q113*1.06^(1/12)),"") ->  | R114: =IFERROR(MAX(PPF_NAV[[#This Row],[Elite unit]],R113*1.06^(1/12)),"") -> 
P115: =SUM(Overall!L129)-SUM('Investor 1'!L129,'Investor 2'!L129,'Investor 3'!L129,'Investor 4'!L129,'Investor 5'!L129,'Investor 6'!L129,'Investor 7'!L129,'Investor 8'!L129,'Investor 9'!L129,'Investor 10'!L129) -> 0 | Q115: =IFERROR(MAX(PPF_NAV[[#This Row],[Ordinary unit]],Q114*1.06^(1/12)),"") ->  | R115: =IFERROR(MAX(PPF_NAV[[#This Row],[Elite unit]],R114*1.06^(1/12)),"") -> 
P116: =SUM(Overall!L130)-SUM('Investor 1'!L130,'Investor 2'!L130,'Investor 3'!L130,'Investor 4'!L130,'Investor 5'!L130,'Investor 6'!L130,'Investor 7'!L130,'Investor 8'!L130,'Investor 9'!L130,'Investor 10'!L130) -> 0 | Q116: =IFERROR(MAX(PPF_NAV[[#This Row],[Ordinary unit]],Q115*1.06^(1/12)),"") ->  | R116: =IFERROR(MAX(PPF_NAV[[#This Row],[Elite unit]],R115*1.06^(1/12)),"") -> 
P117: =SUM(Overall!L131)-SUM('Investor 1'!L131,'Investor 2'!L131,'Investor 3'!L131,'Investor 4'!L131,'Investor 5'!L131,'Investor 6'!L131,'Investor 7'!L131,'Investor 8'!L131,'Investor 9'!L131,'Investor 10'!L131) -> 0 | Q117: =IFERROR(MAX(PPF_NAV[[#This Row],[Ordinary unit]],Q116*1.06^(1/12)),"") ->  | R117: =IFERROR(MAX(PPF_NAV[[#This Row],[Elite unit]],R116*1.06^(1/12)),"") -> 
P118: =SUM(Overall!L132)-SUM('Investor 1'!L132,'Investor 2'!L132,'Investor 3'!L132,'Investor 4'!L132,'Investor 5'!L132,'Investor 6'!L132,'Investor 7'!L132,'Investor 8'!L132,'Investor 9'!L132,'Investor 10'!L132) -> 0 | Q118: =IFERROR(MAX(PPF_NAV[[#This Row],[Ordinary unit]],Q117*1.06^(1/12)),"") ->  | R118: =IFERROR(MAX(PPF_NAV[[#This Row],[Elite unit]],R117*1.06^(1/12)),"") -> 
P119: =SUM(Overall!L133)-SUM('Investor 1'!L133,'Investor 2'!L133,'Investor 3'!L133,'Investor 4'!L133,'Investor 5'!L133,'Investor 6'!L133,'Investor 7'!L133,'Investor 8'!L133,'Investor 9'!L133,'Investor 10'!L133) -> 0 | Q119: =IFERROR(MAX(PPF_NAV[[#This Row],[Ordinary unit]],Q118*1.06^(1/12)),"") ->  | R119: =IFERROR(MAX(PPF_NAV[[#This Row],[Elite unit]],R118*1.06^(1/12)),"") -> 
P120: =SUM(Overall!L134)-SUM('Investor 1'!L134,'Investor 2'!L134,'Investor 3'!L134,'Investor 4'!L134,'Investor 5'!L134,'Investor 6'!L134,'Investor 7'!L134,'Investor 8'!L134,'Investor 9'!L134,'Investor 10'!L134) -> 0 | Q120: =IFERROR(MAX(PPF_NAV[[#This Row],[Ordinary unit]],Q119*1.06^(1/12)),"") ->  | R120: =IFERROR(MAX(PPF_NAV[[#This Row],[Elite unit]],R119*1.06^(1/12)),"") -> 
P121: =SUM(Overall!L135)-SUM('Investor 1'!L135,'Investor 2'!L135,'Investor 3'!L135,'Investor 4'!L135,'Investor 5'!L135,'Investor 6'!L135,'Investor 7'!L135,'Investor 8'!L135,'Investor 9'!L135,'Investor 10'!L135) -> 0 | Q121: =IFERROR(MAX(PPF_NAV[[#This Row],[Ordinary unit]],Q120*1.06^(1/12)),"") ->  | R121: =IFERROR(MAX(PPF_NAV[[#This Row],[Elite unit]],R120*1.06^(1/12)),"") -> 
P122: =SUM(Overall!L136)-SUM('Investor 1'!L136,'Investor 2'!L136,'Investor 3'!L136,'Investor 4'!L136,'Investor 5'!L136,'Investor 6'!L136,'Investor 7'!L136,'Investor 8'!L136,'Investor 9'!L136,'Investor 10'!L136) -> 0 | Q122: =IFERROR(MAX(PPF_NAV[[#This Row],[Ordinary unit]],Q121*1.06^(1/12)),"") ->  | R122: =IFERROR(MAX(PPF_NAV[[#This Row],[Elite unit]],R121*1.06^(1/12)),"") -> 
P123: =SUM(Overall!L137)-SUM('Investor 1'!L137,'Investor 2'!L137,'Investor 3'!L137,'Investor 4'!L137,'Investor 5'!L137,'Investor 6'!L137,'Investor 7'!L137,'Investor 8'!L137,'Investor 9'!L137,'Investor 10'!L137) -> 0 | Q123: =IFERROR(MAX(PPF_NAV[[#This Row],[Ordinary unit]],Q122*1.06^(1/12)),"") ->  | R123: =IFERROR(MAX(PPF_NAV[[#This Row],[Elite unit]],R122*1.06^(1/12)),"") -> 
P124: =SUM(Overall!L138)-SUM('Investor 1'!L138,'Investor 2'!L138,'Investor 3'!L138,'Investor 4'!L138,'Investor 5'!L138,'Investor 6'!L138,'Investor 7'!L138,'Investor 8'!L138,'Investor 9'!L138,'Investor 10'!L138) -> 0 | Q124: =IFERROR(MAX(PPF_NAV[[#This Row],[Ordinary unit]],Q123*1.06^(1/12)),"") ->  | R124: =IFERROR(MAX(PPF_NAV[[#This Row],[Elite unit]],R123*1.06^(1/12)),"") -> 
P125: =SUM(Overall!L139)-SUM('Investor 1'!L139,'Investor 2'!L139,'Investor 3'!L139,'Investor 4'!L139,'Investor 5'!L139,'Investor 6'!L139,'Investor 7'!L139,'Investor 8'!L139,'Investor 9'!L139,'Investor 10'!L139) -> 0 | Q125: =IFERROR(MAX(PPF_NAV[[#This Row],[Ordinary unit]],Q124*1.06^(1/12)),"") ->  | R125: =IFERROR(MAX(PPF_NAV[[#This Row],[Elite unit]],R124*1.06^(1/12)),"") -> 
P126: =SUM(Overall!L140)-SUM('Investor 1'!L140,'Investor 2'!L140,'Investor 3'!L140,'Investor 4'!L140,'Investor 5'!L140,'Investor 6'!L140,'Investor 7'!L140,'Investor 8'!L140,'Investor 9'!L140,'Investor 10'!L140) -> 0 | Q126: =IFERROR(MAX(PPF_NAV[[#This Row],[Ordinary unit]],Q125*1.06^(1/12)),"") ->  | R126: =IFERROR(MAX(PPF_NAV[[#This Row],[Elite unit]],R125*1.06^(1/12)),"") -> 
P127: =SUM(Overall!L141)-SUM('Investor 1'!L141,'Investor 2'!L141,'Investor 3'!L141,'Investor 4'!L141,'Investor 5'!L141,'Investor 6'!L141,'Investor 7'!L141,'Investor 8'!L141,'Investor 9'!L141,'Investor 10'!L141) -> 0 | Q127: =IFERROR(MAX(PPF_NAV[[#This Row],[Ordinary unit]],Q126*1.06^(1/12)),"") ->  | R127: =IFERROR(MAX(PPF_NAV[[#This Row],[Elite unit]],R126*1.06^(1/12)),"") -> 
P128: =SUM(Overall!L142)-SUM('Investor 1'!L142,'Investor 2'!L142,'Investor 3'!L142,'Investor 4'!L142,'Investor 5'!L142,'Investor 6'!L142,'Investor 7'!L142,'Investor 8'!L142,'Investor 9'!L142,'Investor 10'!L142) -> 0 | Q128: =IFERROR(MAX(PPF_NAV[[#This Row],[Ordinary unit]],Q127*1.06^(1/12)),"") ->  | R128: =IFERROR(MAX(PPF_NAV[[#This Row],[Elite unit]],R127*1.06^(1/12)),"") -> 
P129: =SUM(Overall!L143)-SUM('Investor 1'!L143,'Investor 2'!L143,'Investor 3'!L143,'Investor 4'!L143,'Investor 5'!L143,'Investor 6'!L143,'Investor 7'!L143,'Investor 8'!L143,'Investor 9'!L143,'Investor 10'!L143) -> 0 | Q129: =IFERROR(MAX(PPF_NAV[[#This Row],[Ordinary unit]],Q128*1.06^(1/12)),"") ->  | R129: =IFERROR(MAX(PPF_NAV[[#This Row],[Elite unit]],R128*1.06^(1/12)),"") -> 
P130: =SUM(Overall!L144)-SUM('Investor 1'!L144,'Investor 2'!L144,'Investor 3'!L144,'Investor 4'!L144,'Investor 5'!L144,'Investor 6'!L144,'Investor 7'!L144,'Investor 8'!L144,'Investor 9'!L144,'Investor 10'!L144) -> 0 | Q130: =IFERROR(MAX(PPF_NAV[[#This Row],[Ordinary unit]],Q129*1.06^(1/12)),"") ->  | R130: =IFERROR(MAX(PPF_NAV[[#This Row],[Elite unit]],R129*1.06^(1/12)),"") -> 
P131: =SUM(Overall!L145)-SUM('Investor 1'!L145,'Investor 2'!L145,'Investor 3'!L145,'Investor 4'!L145,'Investor 5'!L145,'Investor 6'!L145,'Investor 7'!L145,'Investor 8'!L145,'Investor 9'!L145,'Investor 10'!L145) -> 0 | Q131: =IFERROR(MAX(PPF_NAV[[#This Row],[Ordinary unit]],Q130*1.06^(1/12)),"") ->  | R131: =IFERROR(MAX(PPF_NAV[[#This Row],[Elite unit]],R130*1.06^(1/12)),"") -> 
O132: =IF(A132="","",SUM(E132:N132)) ->  | P132: =SUM(Overall!L146)-SUM('Investor 1'!L146,'Investor 2'!L146,'Investor 3'!L146,'Investor 4'!L146,'Investor 5'!L146,'Investor 6'!L146,'Investor 7'!L146,'Investor 8'!L146,'Investor 9'!L146,'Investor 10'!L146) -> 0 | Q132: =IFERROR(MAX(PPF_NAV[[#This Row],[Ordinary unit]],Q131*1.06^(1/12)),"") ->  | R132: =IFERROR(MAX(PPF_NAV[[#This Row],[Elite unit]],R131*1.06^(1/12)),"") -> 
P133: =SUM(Overall!L147)-SUM('Investor 1'!L147,'Investor 2'!L147,'Investor 3'!L147,'Investor 4'!L147,'Investor 5'!L147,'Investor 6'!L147,'Investor 7'!L147,'Investor 8'!L147,'Investor 9'!L147,'Investor 10'!L147) -> 0 | Q133: =IFERROR(MAX(PPF_NAV[[#This Row],[Ordinary unit]],Q132*1.06^(1/12)),"") ->  | R133: =IFERROR(MAX(PPF_NAV[[#This Row],[Elite unit]],R132*1.06^(1/12)),"") -> 
P134: =SUM(Overall!L148)-SUM('Investor 1'!L148,'Investor 2'!L148,'Investor 3'!L148,'Investor 4'!L148,'Investor 5'!L148,'Investor 6'!L148,'Investor 7'!L148,'Investor 8'!L148,'Investor 9'!L148,'Investor 10'!L148) -> 0 | Q134: =IFERROR(MAX(PPF_NAV[[#This Row],[Ordinary unit]],Q133*1.06^(1/12)),"") ->  | R134: =IFERROR(MAX(PPF_NAV[[#This Row],[Elite unit]],R133*1.06^(1/12)),"") -> 
P135: =SUM(Overall!L149)-SUM('Investor 1'!L149,'Investor 2'!L149,'Investor 3'!L149,'Investor 4'!L149,'Investor 5'!L149,'Investor 6'!L149,'Investor 7'!L149,'Investor 8'!L149,'Investor 9'!L149,'Investor 10'!L149) -> 0 | Q135: =IFERROR(MAX(PPF_NAV[[#This Row],[Ordinary unit]],Q134*1.06^(1/12)),"") ->  | R135: =IFERROR(MAX(PPF_NAV[[#This Row],[Elite unit]],R134*1.06^(1/12)),"") -> 
P136: =SUM(Overall!L150)-SUM('Investor 1'!L150,'Investor 2'!L150,'Investor 3'!L150,'Investor 4'!L150,'Investor 5'!L150,'Investor 6'!L150,'Investor 7'!L150,'Investor 8'!L150,'Investor 9'!L150,'Investor 10'!L150) -> 0 | Q136: =IFERROR(MAX(PPF_NAV[[#This Row],[Ordinary unit]],Q135*1.06^(1/12)),"") ->  | R136: =IFERROR(MAX(PPF_NAV[[#This Row],[Elite unit]],R135*1.06^(1/12)),"") -> 
P137: =SUM(Overall!L151)-SUM('Investor 1'!L151,'Investor 2'!L151,'Investor 3'!L151,'Investor 4'!L151,'Investor 5'!L151,'Investor 6'!L151,'Investor 7'!L151,'Investor 8'!L151,'Investor 9'!L151,'Investor 10'!L151) -> 0 | Q137: =IFERROR(MAX(PPF_NAV[[#This Row],[Ordinary unit]],Q136*1.06^(1/12)),"") ->  | R137: =IFERROR(MAX(PPF_NAV[[#This Row],[Elite unit]],R136*1.06^(1/12)),"") -> 
P138: =SUM(Overall!L152)-SUM('Investor 1'!L152,'Investor 2'!L152,'Investor 3'!L152,'Investor 4'!L152,'Investor 5'!L152,'Investor 6'!L152,'Investor 7'!L152,'Investor 8'!L152,'Investor 9'!L152,'Investor 10'!L152) -> 0 | Q138: =IFERROR(MAX(PPF_NAV[[#This Row],[Ordinary unit]],Q137*1.06^(1/12)),"") ->  | R138: =IFERROR(MAX(PPF_NAV[[#This Row],[Elite unit]],R137*1.06^(1/12)),"") -> 
P139: =SUM(Overall!L153)-SUM('Investor 1'!L153,'Investor 2'!L153,'Investor 3'!L153,'Investor 4'!L153,'Investor 5'!L153,'Investor 6'!L153,'Investor 7'!L153,'Investor 8'!L153,'Investor 9'!L153,'Investor 10'!L153) -> 0 | Q139: =IFERROR(MAX(PPF_NAV[[#This Row],[Ordinary unit]],Q138*1.06^(1/12)),"") ->  | R139: =IFERROR(MAX(PPF_NAV[[#This Row],[Elite unit]],R138*1.06^(1/12)),"") -> 
P140: =SUM(Overall!L154)-SUM('Investor 1'!L154,'Investor 2'!L154,'Investor 3'!L154,'Investor 4'!L154,'Investor 5'!L154,'Investor 6'!L154,'Investor 7'!L154,'Investor 8'!L154,'Investor 9'!L154,'Investor 10'!L154) -> 0 | Q140: =IFERROR(MAX(PPF_NAV[[#This Row],[Ordinary unit]],Q139*1.06^(1/12)),"") ->  | R140: =IFERROR(MAX(PPF_NAV[[#This Row],[Elite unit]],R139*1.06^(1/12)),"") -> 
P141: =SUM(Overall!L155)-SUM('Investor 1'!L155,'Investor 2'!L155,'Investor 3'!L155,'Investor 4'!L155,'Investor 5'!L155,'Investor 6'!L155,'Investor 7'!L155,'Investor 8'!L155,'Investor 9'!L155,'Investor 10'!L155) -> 0 | Q141: =IFERROR(MAX(PPF_NAV[[#This Row],[Ordinary unit]],Q140*1.06^(1/12)),"") ->  | R141: =IFERROR(MAX(PPF_NAV[[#This Row],[Elite unit]],R140*1.06^(1/12)),"") -> 
P142: =SUM(Overall!L156)-SUM('Investor 1'!L156,'Investor 2'!L156,'Investor 3'!L156,'Investor 4'!L156,'Investor 5'!L156,'Investor 6'!L156,'Investor 7'!L156,'Investor 8'!L156,'Investor 9'!L156,'Investor 10'!L156) -> 0 | Q142: =IFERROR(MAX(PPF_NAV[[#This Row],[Ordinary unit]],Q141*1.06^(1/12)),"") ->  | R142: =IFERROR(MAX(PPF_NAV[[#This Row],[Elite unit]],R141*1.06^(1/12)),"") -> 
P143: =SUM(Overall!L157)-SUM('Investor 1'!L157,'Investor 2'!L157,'Investor 3'!L157,'Investor 4'!L157,'Investor 5'!L157,'Investor 6'!L157,'Investor 7'!L157,'Investor 8'!L157,'Investor 9'!L157,'Investor 10'!L157) -> 0 | Q143: =IFERROR(MAX(PPF_NAV[[#This Row],[Ordinary unit]],Q142*1.06^(1/12)),"") ->  | R143: =IFERROR(MAX(PPF_NAV[[#This Row],[Elite unit]],R142*1.06^(1/12)),"") -> 
P144: =SUM(Overall!L158)-SUM('Investor 1'!L158,'Investor 2'!L158,'Investor 3'!L158,'Investor 4'!L158,'Investor 5'!L158,'Investor 6'!L158,'Investor 7'!L158,'Investor 8'!L158,'Investor 9'!L158,'Investor 10'!L158) -> 0 | Q144: =IFERROR(MAX(PPF_NAV[[#This Row],[Ordinary unit]],Q143*1.06^(1/12)),"") ->  | R144: =IFERROR(MAX(PPF_NAV[[#This Row],[Elite unit]],R143*1.06^(1/12)),"") -> 
P145: =SUM(Overall!L159)-SUM('Investor 1'!L159,'Investor 2'!L159,'Investor 3'!L159,'Investor 4'!L159,'Investor 5'!L159,'Investor 6'!L159,'Investor 7'!L159,'Investor 8'!L159,'Investor 9'!L159,'Investor 10'!L159) -> 0 | Q145: =IFERROR(MAX(PPF_NAV[[#This Row],[Ordinary unit]],Q144*1.06^(1/12)),"") ->  | R145: =IFERROR(MAX(PPF_NAV[[#This Row],[Elite unit]],R144*1.06^(1/12)),"") -> 
P146: =SUM(Overall!L160)-SUM('Investor 1'!L160,'Investor 2'!L160,'Investor 3'!L160,'Investor 4'!L160,'Investor 5'!L160,'Investor 6'!L160,'Investor 7'!L160,'Investor 8'!L160,'Investor 9'!L160,'Investor 10'!L160) -> 0 | Q146: =IFERROR(MAX(PPF_NAV[[#This Row],[Ordinary unit]],Q145*1.06^(1/12)),"") ->  | R146: =IFERROR(MAX(PPF_NAV[[#This Row],[Elite unit]],R145*1.06^(1/12)),"") -> 
P147: =SUM(Overall!L161)-SUM('Investor 1'!L161,'Investor 2'!L161,'Investor 3'!L161,'Investor 4'!L161,'Investor 5'!L161,'Investor 6'!L161,'Investor 7'!L161,'Investor 8'!L161,'Investor 9'!L161,'Investor 10'!L161) -> 0 | Q147: =IFERROR(MAX(PPF_NAV[[#This Row],[Ordinary unit]],Q146*1.06^(1/12)),"") ->  | R147: =IFERROR(MAX(PPF_NAV[[#This Row],[Elite unit]],R146*1.06^(1/12)),"") -> 
P148: =SUM(Overall!L162)-SUM('Investor 1'!L162,'Investor 2'!L162,'Investor 3'!L162,'Investor 4'!L162,'Investor 5'!L162,'Investor 6'!L162,'Investor 7'!L162,'Investor 8'!L162,'Investor 9'!L162,'Investor 10'!L162) -> 0 | Q148: =IFERROR(MAX(PPF_NAV[[#This Row],[Ordinary unit]],Q147*1.06^(1/12)),"") ->  | R148: =IFERROR(MAX(PPF_NAV[[#This Row],[Elite unit]],R147*1.06^(1/12)),"") -> 
P149: =SUM(Overall!L163)-SUM('Investor 1'!L163,'Investor 2'!L163,'Investor 3'!L163,'Investor 4'!L163,'Investor 5'!L163,'Investor 6'!L163,'Investor 7'!L163,'Investor 8'!L163,'Investor 9'!L163,'Investor 10'!L163) -> 0 | Q149: =IFERROR(MAX(PPF_NAV[[#This Row],[Ordinary unit]],Q148*1.06^(1/12)),"") ->  | R149: =IFERROR(MAX(PPF_NAV[[#This Row],[Elite unit]],R148*1.06^(1/12)),"") -> 
P150: =SUM(Overall!L164)-SUM('Investor 1'!L164,'Investor 2'!L164,'Investor 3'!L164,'Investor 4'!L164,'Investor 5'!L164,'Investor 6'!L164,'Investor 7'!L164,'Investor 8'!L164,'Investor 9'!L164,'Investor 10'!L164) -> 0 | Q150: =IFERROR(MAX(PPF_NAV[[#This Row],[Ordinary unit]],Q149*1.06^(1/12)),"") ->  | R150: =IFERROR(MAX(PPF_NAV[[#This Row],[Elite unit]],R149*1.06^(1/12)),"") -> 
P151: =SUM(Overall!L165)-SUM('Investor 1'!L165,'Investor 2'!L165,'Investor 3'!L165,'Investor 4'!L165,'Investor 5'!L165,'Investor 6'!L165,'Investor 7'!L165,'Investor 8'!L165,'Investor 9'!L165,'Investor 10'!L165) -> 0 | Q151: =IFERROR(MAX(PPF_NAV[[#This Row],[Ordinary unit]],Q150*1.06^(1/12)),"") ->  | R151: =IFERROR(MAX(PPF_NAV[[#This Row],[Elite unit]],R150*1.06^(1/12)),"") -> 
P152: =SUM(Overall!L166)-SUM('Investor 1'!L166,'Investor 2'!L166,'Investor 3'!L166,'Investor 4'!L166,'Investor 5'!L166,'Investor 6'!L166,'Investor 7'!L166,'Investor 8'!L166,'Investor 9'!L166,'Investor 10'!L166) -> 0 | Q152: =IFERROR(MAX(PPF_NAV[[#This Row],[Ordinary unit]],Q151*1.06^(1/12)),"") ->  | R152: =IFERROR(MAX(PPF_NAV[[#This Row],[Elite unit]],R151*1.06^(1/12)),"") -> 
P153: =SUM(Overall!L167)-SUM('Investor 1'!L167,'Investor 2'!L167,'Investor 3'!L167,'Investor 4'!L167,'Investor 5'!L167,'Investor 6'!L167,'Investor 7'!L167,'Investor 8'!L167,'Investor 9'!L167,'Investor 10'!L167) -> 0 | Q153: =IFERROR(MAX(PPF_NAV[[#This Row],[Ordinary unit]],Q152*1.06^(1/12)),"") ->  | R153: =IFERROR(MAX(PPF_NAV[[#This Row],[Elite unit]],R152*1.06^(1/12)),"") -> 
P154: =SUM(Overall!L168)-SUM('Investor 1'!L168,'Investor 2'!L168,'Investor 3'!L168,'Investor 4'!L168,'Investor 5'!L168,'Investor 6'!L168,'Investor 7'!L168,'Investor 8'!L168,'Investor 9'!L168,'Investor 10'!L168) -> 0 | Q154: =IFERROR(MAX(PPF_NAV[[#This Row],[Ordinary unit]],Q153*1.06^(1/12)),"") ->  | R154: =IFERROR(MAX(PPF_NAV[[#This Row],[Elite unit]],R153*1.06^(1/12)),"") -> 
P155: =SUM(Overall!L169)-SUM('Investor 1'!L169,'Investor 2'!L169,'Investor 3'!L169,'Investor 4'!L169,'Investor 5'!L169,'Investor 6'!L169,'Investor 7'!L169,'Investor 8'!L169,'Investor 9'!L169,'Investor 10'!L169) -> 0 | Q155: =IFERROR(MAX(PPF_NAV[[#This Row],[Ordinary unit]],Q154*1.06^(1/12)),"") ->  | R155: =IFERROR(MAX(PPF_NAV[[#This Row],[Elite unit]],R154*1.06^(1/12)),"") -> 
P156: =SUM(Overall!L170)-SUM('Investor 1'!L170,'Investor 2'!L170,'Investor 3'!L170,'Investor 4'!L170,'Investor 5'!L170,'Investor 6'!L170,'Investor 7'!L170,'Investor 8'!L170,'Investor 9'!L170,'Investor 10'!L170) -> 0 | Q156: =IFERROR(MAX(PPF_NAV[[#This Row],[Ordinary unit]],Q155*1.06^(1/12)),"") ->  | R156: =IFERROR(MAX(PPF_NAV[[#This Row],[Elite unit]],R155*1.06^(1/12)),"") -> 
P157: =SUM(Overall!L171)-SUM('Investor 1'!L171,'Investor 2'!L171,'Investor 3'!L171,'Investor 4'!L171,'Investor 5'!L171,'Investor 6'!L171,'Investor 7'!L171,'Investor 8'!L171,'Investor 9'!L171,'Investor 10'!L171) -> 0 | Q157: =IFERROR(MAX(PPF_NAV[[#This Row],[Ordinary unit]],Q156*1.06^(1/12)),"") ->  | R157: =IFERROR(MAX(PPF_NAV[[#This Row],[Elite unit]],R156*1.06^(1/12)),"") -> 
P158: =SUM(Overall!L172)-SUM('Investor 1'!L172,'Investor 2'!L172,'Investor 3'!L172,'Investor 4'!L172,'Investor 5'!L172,'Investor 6'!L172,'Investor 7'!L172,'Investor 8'!L172,'Investor 9'!L172,'Investor 10'!L172) -> 0 | Q158: =IFERROR(MAX(PPF_NAV[[#This Row],[Ordinary unit]],Q157*1.06^(1/12)),"") ->  | R158: =IFERROR(MAX(PPF_NAV[[#This Row],[Elite unit]],R157*1.06^(1/12)),"") -> 
P159: =SUM(Overall!L173)-SUM('Investor 1'!L173,'Investor 2'!L173,'Investor 3'!L173,'Investor 4'!L173,'Investor 5'!L173,'Investor 6'!L173,'Investor 7'!L173,'Investor 8'!L173,'Investor 9'!L173,'Investor 10'!L173) -> 0 | Q159: =IFERROR(MAX(PPF_NAV[[#This Row],[Ordinary unit]],Q158*1.06^(1/12)),"") ->  | R159: =IFERROR(MAX(PPF_NAV[[#This Row],[Elite unit]],R158*1.06^(1/12)),"") -> 
P160: =SUM(Overall!L174)-SUM('Investor 1'!L174,'Investor 2'!L174,'Investor 3'!L174,'Investor 4'!L174,'Investor 5'!L174,'Investor 6'!L174,'Investor 7'!L174,'Investor 8'!L174,'Investor 9'!L174,'Investor 10'!L174) -> 0 | Q160: =IFERROR(MAX(PPF_NAV[[#This Row],[Ordinary unit]],Q159*1.06^(1/12)),"") ->  | R160: =IFERROR(MAX(PPF_NAV[[#This Row],[Elite unit]],R159*1.06^(1/12)),"") -> 
P161: =SUM(Overall!L175)-SUM('Investor 1'!L175,'Investor 2'!L175,'Investor 3'!L175,'Investor 4'!L175,'Investor 5'!L175,'Investor 6'!L175,'Investor 7'!L175,'Investor 8'!L175,'Investor 9'!L175,'Investor 10'!L175) -> 0 | Q161: =IFERROR(MAX(PPF_NAV[[#This Row],[Ordinary unit]],Q160*1.06^(1/12)),"") ->  | R161: =IFERROR(MAX(PPF_NAV[[#This Row],[Elite unit]],R160*1.06^(1/12)),"") -> 
P162: =SUM(Overall!L176)-SUM('Investor 1'!L176,'Investor 2'!L176,'Investor 3'!L176,'Investor 4'!L176,'Investor 5'!L176,'Investor 6'!L176,'Investor 7'!L176,'Investor 8'!L176,'Investor 9'!L176,'Investor 10'!L176) -> 0 | Q162: =IFERROR(MAX(PPF_NAV[[#This Row],[Ordinary unit]],Q161*1.06^(1/12)),"") ->  | R162: =IFERROR(MAX(PPF_NAV[[#This Row],[Elite unit]],R161*1.06^(1/12)),"") -> 
P163: =SUM(Overall!L177)-SUM('Investor 1'!L177,'Investor 2'!L177,'Investor 3'!L177,'Investor 4'!L177,'Investor 5'!L177,'Investor 6'!L177,'Investor 7'!L177,'Investor 8'!L177,'Investor 9'!L177,'Investor 10'!L177) -> 0 | Q163: =IFERROR(MAX(PPF_NAV[[#This Row],[Ordinary unit]],Q162*1.06^(1/12)),"") ->  | R163: =IFERROR(MAX(PPF_NAV[[#This Row],[Elite unit]],R162*1.06^(1/12)),"") -> 
P164: =SUM(Overall!L178)-SUM('Investor 1'!L178,'Investor 2'!L178,'Investor 3'!L178,'Investor 4'!L178,'Investor 5'!L178,'Investor 6'!L178,'Investor 7'!L178,'Investor 8'!L178,'Investor 9'!L178,'Investor 10'!L178) -> 0 | Q164: =IFERROR(MAX(PPF_NAV[[#This Row],[Ordinary unit]],Q163*1.06^(1/12)),"") ->  | R164: =IFERROR(MAX(PPF_NAV[[#This Row],[Elite unit]],R163*1.06^(1/12)),"") -> 
P165: =SUM(Overall!L179)-SUM('Investor 1'!L179,'Investor 2'!L179,'Investor 3'!L179,'Investor 4'!L179,'Investor 5'!L179,'Investor 6'!L179,'Investor 7'!L179,'Investor 8'!L179,'Investor 9'!L179,'Investor 10'!L179) -> 0 | Q165: =IFERROR(MAX(PPF_NAV[[#This Row],[Ordinary unit]],Q164*1.06^(1/12)),"") ->  | R165: =IFERROR(MAX(PPF_NAV[[#This Row],[Elite unit]],R164*1.06^(1/12)),"") -> 
P166: =SUM(Overall!L180)-SUM('Investor 1'!L180,'Investor 2'!L180,'Investor 3'!L180,'Investor 4'!L180,'Investor 5'!L180,'Investor 6'!L180,'Investor 7'!L180,'Investor 8'!L180,'Investor 9'!L180,'Investor 10'!L180) -> 0 | Q166: =IFERROR(MAX(PPF_NAV[[#This Row],[Ordinary unit]],Q165*1.06^(1/12)),"") ->  | R166: =IFERROR(MAX(PPF_NAV[[#This Row],[Elite unit]],R165*1.06^(1/12)),"") -> 
P167: =SUM(Overall!L181)-SUM('Investor 1'!L181,'Investor 2'!L181,'Investor 3'!L181,'Investor 4'!L181,'Investor 5'!L181,'Investor 6'!L181,'Investor 7'!L181,'Investor 8'!L181,'Investor 9'!L181,'Investor 10'!L181) -> 0 | Q167: =IFERROR(MAX(PPF_NAV[[#This Row],[Ordinary unit]],Q166*1.06^(1/12)),"") ->  | R167: =IFERROR(MAX(PPF_NAV[[#This Row],[Elite unit]],R166*1.06^(1/12)),"") -> 
P168: =SUM(Overall!L182)-SUM('Investor 1'!L182,'Investor 2'!L182,'Investor 3'!L182,'Investor 4'!L182,'Investor 5'!L182,'Investor 6'!L182,'Investor 7'!L182,'Investor 8'!L182,'Investor 9'!L182,'Investor 10'!L182) -> 0 | Q168: =IFERROR(MAX(PPF_NAV[[#This Row],[Ordinary unit]],Q167*1.06^(1/12)),"") ->  | R168: =IFERROR(MAX(PPF_NAV[[#This Row],[Elite unit]],R167*1.06^(1/12)),"") -> 
P169: =SUM(Overall!L183)-SUM('Investor 1'!L183,'Investor 2'!L183,'Investor 3'!L183,'Investor 4'!L183,'Investor 5'!L183,'Investor 6'!L183,'Investor 7'!L183,'Investor 8'!L183,'Investor 9'!L183,'Investor 10'!L183) -> 0 | Q169: =IFERROR(MAX(PPF_NAV[[#This Row],[Ordinary unit]],Q168*1.06^(1/12)),"") ->  | R169: =IFERROR(MAX(PPF_NAV[[#This Row],[Elite unit]],R168*1.06^(1/12)),"") -> 
P170: =SUM(Overall!L184)-SUM('Investor 1'!L184,'Investor 2'!L184,'Investor 3'!L184,'Investor 4'!L184,'Investor 5'!L184,'Investor 6'!L184,'Investor 7'!L184,'Investor 8'!L184,'Investor 9'!L184,'Investor 10'!L184) -> 0 | Q170: =IFERROR(MAX(PPF_NAV[[#This Row],[Ordinary unit]],Q169*1.06^(1/12)),"") ->  | R170: =IFERROR(MAX(PPF_NAV[[#This Row],[Elite unit]],R169*1.06^(1/12)),"") -> 
P171: =SUM(Overall!L185)-SUM('Investor 1'!L185,'Investor 2'!L185,'Investor 3'!L185,'Investor 4'!L185,'Investor 5'!L185,'Investor 6'!L185,'Investor 7'!L185,'Investor 8'!L185,'Investor 9'!L185,'Investor 10'!L185) -> 0 | Q171: =IFERROR(MAX(PPF_NAV[[#This Row],[Ordinary unit]],Q170*1.06^(1/12)),"") ->  | R171: =IFERROR(MAX(PPF_NAV[[#This Row],[Elite unit]],R170*1.06^(1/12)),"") -> 
P172: =SUM(Overall!L186)-SUM('Investor 1'!L186,'Investor 2'!L186,'Investor 3'!L186,'Investor 4'!L186,'Investor 5'!L186,'Investor 6'!L186,'Investor 7'!L186,'Investor 8'!L186,'Investor 9'!L186,'Investor 10'!L186) -> 0 | Q172: =IFERROR(MAX(PPF_NAV[[#This Row],[Ordinary unit]],Q171*1.06^(1/12)),"") ->  | R172: =IFERROR(MAX(PPF_NAV[[#This Row],[Elite unit]],R171*1.06^(1/12)),"") -> 
P173: =SUM(Overall!L187)-SUM('Investor 1'!L187,'Investor 2'!L187,'Investor 3'!L187,'Investor 4'!L187,'Investor 5'!L187,'Investor 6'!L187,'Investor 7'!L187,'Investor 8'!L187,'Investor 9'!L187,'Investor 10'!L187) -> 0 | Q173: =IFERROR(MAX(PPF_NAV[[#This Row],[Ordinary unit]],Q172*1.06^(1/12)),"") ->  | R173: =IFERROR(MAX(PPF_NAV[[#This Row],[Elite unit]],R172*1.06^(1/12)),"") -> 
P174: =SUM(Overall!L188)-SUM('Investor 1'!L188,'Investor 2'!L188,'Investor 3'!L188,'Investor 4'!L188,'Investor 5'!L188,'Investor 6'!L188,'Investor 7'!L188,'Investor 8'!L188,'Investor 9'!L188,'Investor 10'!L188) -> 0 | Q174: =IFERROR(MAX(PPF_NAV[[#This Row],[Ordinary unit]],Q173*1.06^(1/12)),"") ->  | R174: =IFERROR(MAX(PPF_NAV[[#This Row],[Elite unit]],R173*1.06^(1/12)),"") -> 
P175: =SUM(Overall!L189)-SUM('Investor 1'!L189,'Investor 2'!L189,'Investor 3'!L189,'Investor 4'!L189,'Investor 5'!L189,'Investor 6'!L189,'Investor 7'!L189,'Investor 8'!L189,'Investor 9'!L189,'Investor 10'!L189) -> 0 | Q175: =IFERROR(MAX(PPF_NAV[[#This Row],[Ordinary unit]],Q174*1.06^(1/12)),"") ->  | R175: =IFERROR(MAX(PPF_NAV[[#This Row],[Elite unit]],R174*1.06^(1/12)),"") -> 
P176: =SUM(Overall!L190)-SUM('Investor 1'!L190,'Investor 2'!L190,'Investor 3'!L190,'Investor 4'!L190,'Investor 5'!L190,'Investor 6'!L190,'Investor 7'!L190,'Investor 8'!L190,'Investor 9'!L190,'Investor 10'!L190) -> 0 | Q176: =IFERROR(MAX(PPF_NAV[[#This Row],[Ordinary unit]],Q175*1.06^(1/12)),"") ->  | R176: =IFERROR(MAX(PPF_NAV[[#This Row],[Elite unit]],R175*1.06^(1/12)),"") -> 
P177: =SUM(Overall!L191)-SUM('Investor 1'!L191,'Investor 2'!L191,'Investor 3'!L191,'Investor 4'!L191,'Investor 5'!L191,'Investor 6'!L191,'Investor 7'!L191,'Investor 8'!L191,'Investor 9'!L191,'Investor 10'!L191) -> 0 | Q177: =IFERROR(MAX(PPF_NAV[[#This Row],[Ordinary unit]],Q176*1.06^(1/12)),"") ->  | R177: =IFERROR(MAX(PPF_NAV[[#This Row],[Elite unit]],R176*1.06^(1/12)),"") -> 
P178: =SUM(Overall!L192)-SUM('Investor 1'!L192,'Investor 2'!L192,'Investor 3'!L192,'Investor 4'!L192,'Investor 5'!L192,'Investor 6'!L192,'Investor 7'!L192,'Investor 8'!L192,'Investor 9'!L192,'Investor 10'!L192) -> 0 | Q178: =IFERROR(MAX(PPF_NAV[[#This Row],[Ordinary unit]],Q177*1.06^(1/12)),"") ->  | R178: =IFERROR(MAX(PPF_NAV[[#This Row],[Elite unit]],R177*1.06^(1/12)),"") -> 
P179: =SUM(Overall!L193)-SUM('Investor 1'!L193,'Investor 2'!L193,'Investor 3'!L193,'Investor 4'!L193,'Investor 5'!L193,'Investor 6'!L193,'Investor 7'!L193,'Investor 8'!L193,'Investor 9'!L193,'Investor 10'!L193) -> 0 | Q179: =IFERROR(MAX(PPF_NAV[[#This Row],[Ordinary unit]],Q178*1.06^(1/12)),"") ->  | R179: =IFERROR(MAX(PPF_NAV[[#This Row],[Elite unit]],R178*1.06^(1/12)),"") -> 
P180: =SUM(Overall!L194)-SUM('Investor 1'!L194,'Investor 2'!L194,'Investor 3'!L194,'Investor 4'!L194,'Investor 5'!L194,'Investor 6'!L194,'Investor 7'!L194,'Investor 8'!L194,'Investor 9'!L194,'Investor 10'!L194) -> 0 | Q180: =IFERROR(MAX(PPF_NAV[[#This Row],[Ordinary unit]],Q179*1.06^(1/12)),"") ->  | R180: =IFERROR(MAX(PPF_NAV[[#This Row],[Elite unit]],R179*1.06^(1/12)),"") -> 
P181: =SUM(Overall!L195)-SUM('Investor 1'!L195,'Investor 2'!L195,'Investor 3'!L195,'Investor 4'!L195,'Investor 5'!L195,'Investor 6'!L195,'Investor 7'!L195,'Investor 8'!L195,'Investor 9'!L195,'Investor 10'!L195) -> 0 | Q181: =IFERROR(MAX(PPF_NAV[[#This Row],[Ordinary unit]],Q180*1.06^(1/12)),"") ->  | R181: =IFERROR(MAX(PPF_NAV[[#This Row],[Elite unit]],R180*1.06^(1/12)),"") -> 
P182: =SUM(Overall!L196)-SUM('Investor 1'!L196,'Investor 2'!L196,'Investor 3'!L196,'Investor 4'!L196,'Investor 5'!L196,'Investor 6'!L196,'Investor 7'!L196,'Investor 8'!L196,'Investor 9'!L196,'Investor 10'!L196) -> 0 | Q182: =IFERROR(MAX(PPF_NAV[[#This Row],[Ordinary unit]],Q181*1.06^(1/12)),"") ->  | R182: =IFERROR(MAX(PPF_NAV[[#This Row],[Elite unit]],R181*1.06^(1/12)),"") -> 
P183: =SUM(Overall!L197)-SUM('Investor 1'!L197,'Investor 2'!L197,'Investor 3'!L197,'Investor 4'!L197,'Investor 5'!L197,'Investor 6'!L197,'Investor 7'!L197,'Investor 8'!L197,'Investor 9'!L197,'Investor 10'!L197) -> 0 | Q183: =IFERROR(MAX(PPF_NAV[[#This Row],[Ordinary unit]],Q182*1.06^(1/12)),"") ->  | R183: =IFERROR(MAX(PPF_NAV[[#This Row],[Elite unit]],R182*1.06^(1/12)),"") -> 
P184: =SUM(Overall!L198)-SUM('Investor 1'!L198,'Investor 2'!L198,'Investor 3'!L198,'Investor 4'!L198,'Investor 5'!L198,'Investor 6'!L198,'Investor 7'!L198,'Investor 8'!L198,'Investor 9'!L198,'Investor 10'!L198) -> 0 | Q184: =IFERROR(MAX(PPF_NAV[[#This Row],[Ordinary unit]],Q183*1.06^(1/12)),"") ->  | R184: =IFERROR(MAX(PPF_NAV[[#This Row],[Elite unit]],R183*1.06^(1/12)),"") -> 
P185: =SUM(Overall!L199)-SUM('Investor 1'!L199,'Investor 2'!L199,'Investor 3'!L199,'Investor 4'!L199,'Investor 5'!L199,'Investor 6'!L199,'Investor 7'!L199,'Investor 8'!L199,'Investor 9'!L199,'Investor 10'!L199) -> 0 | Q185: =IFERROR(MAX(PPF_NAV[[#This Row],[Ordinary unit]],Q184*1.06^(1/12)),"") ->  | R185: =IFERROR(MAX(PPF_NAV[[#This Row],[Elite unit]],R184*1.06^(1/12)),"") -> 
P186: =SUM(Overall!L200)-SUM('Investor 1'!L200,'Investor 2'!L200,'Investor 3'!L200,'Investor 4'!L200,'Investor 5'!L200,'Investor 6'!L200,'Investor 7'!L200,'Investor 8'!L200,'Investor 9'!L200,'Investor 10'!L200) -> 0 | Q186: =IFERROR(MAX(PPF_NAV[[#This Row],[Ordinary unit]],Q185*1.06^(1/12)),"") ->  | R186: =IFERROR(MAX(PPF_NAV[[#This Row],[Elite unit]],R185*1.06^(1/12)),"") -> 
P187: =SUM(Overall!L201)-SUM('Investor 1'!L201,'Investor 2'!L201,'Investor 3'!L201,'Investor 4'!L201,'Investor 5'!L201,'Investor 6'!L201,'Investor 7'!L201,'Investor 8'!L201,'Investor 9'!L201,'Investor 10'!L201) -> 0 | Q187: =IFERROR(MAX(PPF_NAV[[#This Row],[Ordinary unit]],Q186*1.06^(1/12)),"") ->  | R187: =IFERROR(MAX(PPF_NAV[[#This Row],[Elite unit]],R186*1.06^(1/12)),"") -> 
P188: =SUM(Overall!L202)-SUM('Investor 1'!L202,'Investor 2'!L202,'Investor 3'!L202,'Investor 4'!L202,'Investor 5'!L202,'Investor 6'!L202,'Investor 7'!L202,'Investor 8'!L202,'Investor 9'!L202,'Investor 10'!L202) -> 0 | Q188: =IFERROR(MAX(PPF_NAV[[#This Row],[Ordinary unit]],Q187*1.06^(1/12)),"") ->  | R188: =IFERROR(MAX(PPF_NAV[[#This Row],[Elite unit]],R187*1.06^(1/12)),"") -> 
P189: =SUM(Overall!L203)-SUM('Investor 1'!L203,'Investor 2'!L203,'Investor 3'!L203,'Investor 4'!L203,'Investor 5'!L203,'Investor 6'!L203,'Investor 7'!L203,'Investor 8'!L203,'Investor 9'!L203,'Investor 10'!L203) -> 0 | Q189: =IFERROR(MAX(PPF_NAV[[#This Row],[Ordinary unit]],Q188*1.06^(1/12)),"") ->  | R189: =IFERROR(MAX(PPF_NAV[[#This Row],[Elite unit]],R188*1.06^(1/12)),"") -> 
P190: =SUM(Overall!L204)-SUM('Investor 1'!L204,'Investor 2'!L204,'Investor 3'!L204,'Investor 4'!L204,'Investor 5'!L204,'Investor 6'!L204,'Investor 7'!L204,'Investor 8'!L204,'Investor 9'!L204,'Investor 10'!L204) -> 0 | Q190: =IFERROR(MAX(PPF_NAV[[#This Row],[Ordinary unit]],Q189*1.06^(1/12)),"") ->  | R190: =IFERROR(MAX(PPF_NAV[[#This Row],[Elite unit]],R189*1.06^(1/12)),"") -> 
P191: =SUM(Overall!L205)-SUM('Investor 1'!L205,'Investor 2'!L205,'Investor 3'!L205,'Investor 4'!L205,'Investor 5'!L205,'Investor 6'!L205,'Investor 7'!L205,'Investor 8'!L205,'Investor 9'!L205,'Investor 10'!L205) -> 0 | Q191: =IFERROR(MAX(PPF_NAV[[#This Row],[Ordinary unit]],Q190*1.06^(1/12)),"") ->  | R191: =IFERROR(MAX(PPF_NAV[[#This Row],[Elite unit]],R190*1.06^(1/12)),"") -> 
P192: =SUM(Overall!L206)-SUM('Investor 1'!L206,'Investor 2'!L206,'Investor 3'!L206,'Investor 4'!L206,'Investor 5'!L206,'Investor 6'!L206,'Investor 7'!L206,'Investor 8'!L206,'Investor 9'!L206,'Investor 10'!L206) -> 0 | Q192: =IFERROR(MAX(PPF_NAV[[#This Row],[Ordinary unit]],Q191*1.06^(1/12)),"") ->  | R192: =IFERROR(MAX(PPF_NAV[[#This Row],[Elite unit]],R191*1.06^(1/12)),"") -> 
P193: =SUM(Overall!L207)-SUM('Investor 1'!L207,'Investor 2'!L207,'Investor 3'!L207,'Investor 4'!L207,'Investor 5'!L207,'Investor 6'!L207,'Investor 7'!L207,'Investor 8'!L207,'Investor 9'!L207,'Investor 10'!L207) -> 0 | Q193: =IFERROR(MAX(PPF_NAV[[#This Row],[Ordinary unit]],Q192*1.06^(1/12)),"") ->  | R193: =IFERROR(MAX(PPF_NAV[[#This Row],[Elite unit]],R192*1.06^(1/12)),"") -> 
P194: =SUM(Overall!L208)-SUM('Investor 1'!L208,'Investor 2'!L208,'Investor 3'!L208,'Investor 4'!L208,'Investor 5'!L208,'Investor 6'!L208,'Investor 7'!L208,'Investor 8'!L208,'Investor 9'!L208,'Investor 10'!L208) -> 0 | Q194: =IFERROR(MAX(PPF_NAV[[#This Row],[Ordinary unit]],Q193*1.06^(1/12)),"") ->  | R194: =IFERROR(MAX(PPF_NAV[[#This Row],[Elite unit]],R193*1.06^(1/12)),"") -> 
P195: =SUM(Overall!L209)-SUM('Investor 1'!L209,'Investor 2'!L209,'Investor 3'!L209,'Investor 4'!L209,'Investor 5'!L209,'Investor 6'!L209,'Investor 7'!L209,'Investor 8'!L209,'Investor 9'!L209,'Investor 10'!L209) -> 0 | Q195: =IFERROR(MAX(PPF_NAV[[#This Row],[Ordinary unit]],Q194*1.06^(1/12)),"") ->  | R195: =IFERROR(MAX(PPF_NAV[[#This Row],[Elite unit]],R194*1.06^(1/12)),"") -> 
O196: =IF(A196="","",SUM(E196:N196)) ->  | P196: =SUM(Overall!L210)-SUM('Investor 1'!L210,'Investor 2'!L210,'Investor 3'!L210,'Investor 4'!L210,'Investor 5'!L210,'Investor 6'!L210,'Investor 7'!L210,'Investor 8'!L210,'Investor 9'!L210,'Investor 10'!L210) -> 0 | Q196: =IFERROR(MAX(PPF_NAV[[#This Row],[Ordinary unit]],Q195*1.06^(1/12)),"") ->  | R196: =IFERROR(MAX(PPF_NAV[[#This Row],[Elite unit]],R195*1.06^(1/12)),"") -> 
P197: =SUM(Overall!L211)-SUM('Investor 1'!L211,'Investor 2'!L211,'Investor 3'!L211,'Investor 4'!L211,'Investor 5'!L211,'Investor 6'!L211,'Investor 7'!L211,'Investor 8'!L211,'Investor 9'!L211,'Investor 10'!L211) -> 0 | Q197: =IFERROR(MAX(PPF_NAV[[#This Row],[Ordinary unit]],Q196*1.06^(1/12)),"") ->  | R197: =IFERROR(MAX(PPF_NAV[[#This Row],[Elite unit]],R196*1.06^(1/12)),"") -> 
P198: =SUM(Overall!L212)-SUM('Investor 1'!L212,'Investor 2'!L212,'Investor 3'!L212,'Investor 4'!L212,'Investor 5'!L212,'Investor 6'!L212,'Investor 7'!L212,'Investor 8'!L212,'Investor 9'!L212,'Investor 10'!L212) -> 0 | Q198: =IFERROR(MAX(PPF_NAV[[#This Row],[Ordinary unit]],Q197*1.06^(1/12)),"") ->  | R198: =IFERROR(MAX(PPF_NAV[[#This Row],[Elite unit]],R197*1.06^(1/12)),"") -> 
P199: =SUM(Overall!L213)-SUM('Investor 1'!L213,'Investor 2'!L213,'Investor 3'!L213,'Investor 4'!L213,'Investor 5'!L213,'Investor 6'!L213,'Investor 7'!L213,'Investor 8'!L213,'Investor 9'!L213,'Investor 10'!L213) -> 0 | Q199: =IFERROR(MAX(PPF_NAV[[#This Row],[Ordinary unit]],Q198*1.06^(1/12)),"") ->  | R199: =IFERROR(MAX(PPF_NAV[[#This Row],[Elite unit]],R198*1.06^(1/12)),"") -> 
P200: =SUM(Overall!L214)-SUM('Investor 1'!L214,'Investor 2'!L214,'Investor 3'!L214,'Investor 4'!L214,'Investor 5'!L214,'Investor 6'!L214,'Investor 7'!L214,'Investor 8'!L214,'Investor 9'!L214,'Investor 10'!L214) -> 0 | Q200: =IFERROR(MAX(PPF_NAV[[#This Row],[Ordinary unit]],Q199*1.06^(1/12)),"") ->  | R200: =IFERROR(MAX(PPF_NAV[[#This Row],[Elite unit]],R199*1.06^(1/12)),"") -> 
... 102 more rows

Sheet Overall
A1: Overall Investment in Peter Partnership Fund
F2: In USD | H2: in Units | J2: In $ Per Unit
A3: ="Total Investments until " & TEXT(C7,"dd/mm/yyyy") -> Total Investments until 31/12/2022 | F3: =SUMIF(B17:INDEX(B:B,MATCH(C7,A:A,0)),">0") -> $1,300,000.00 | H3: =IFERROR(H5-SUM(H4),"") -> 11,745.07490458 | J3: =IFERROR(F3/H3,"") -> $110.6847
A4: ="Total Withdrawn until " & TEXT(C7,"dd/mm/yyyy") -> Total Withdrawn until 31/12/2022 | F4: =SUMIF(B17:INDEX(B:B,MATCH(C7,A:A,0)),"<0") -> 0 | H4: =IFERROR(1/(1/SUMIF(C17:INDEX(C:C,MATCH(C7,A:A,0)),"<0")),"") ->  | J4: =IFERROR(F4/H4,"") -> 
A5: ="Net Capital Invested until " & TEXT(C7,"dd/mm/yyyy") -> Net Capital Invested until 31/12/2022 | F5: =SUM(F3:F4) -> $1,300,000.00 | H5: =IFERROR(VLOOKUP(C7,A:K,11,FALSE),"") -> 11,745.07490458 | J5: =IFERROR(F5/H5,"") -> $110.6847
A7: Market Value at | C7: 2022-12-31 | F7: =IFERROR(H7*J7,"") -> $1,429,432.26 | H7: =H5 -> 11,745.07490458 | J7: =VLOOKUP(C7,A:D,4,0) -> $121.7048
A8: Total Increase / (Decrease) in USD | F8: =IFERROR(F7-F5,"") -> $129,432.26 | J8: =IFERROR(J7-J5,"") -> $11.0201 | S8: Yes
A9: Total Increase / (Decrease) in % of Total Investments | F9: =IFERROR(F8/F3,"") -> 10.0% | S9: No
A10: Weighted Average of Total Investments (in Years) | F10: =IFERROR(SUM(Q17:INDEX($Q$17:$Q$316,MATCH(C7,$A$17:$A$314,0)))/F3,"") -> 4.7
A11: ="Annualised Return until " & TEXT(C7,"dd/mm/yyyy") -> Annualised Return until 31/12/2022 | F11: =IFERROR(VLOOKUP(C7,A:N,14,FALSE),"") -> 2.1% | J11: =IF((MAX(P:P)-MIN(P:P))=1,"Adjust Graph's for Conversion to Elite?","") -> Adjust Graph's for Conversion to Elite? | N11: Yes
A14: Detailed Transactions and Performance Fee (Equalisation) calculation | O14: Conversion Factor (Elite / Ordinary NAV) | P14: Elite? | Q14: Low | R14: =FLOOR(MIN(U:W),INT(MIN(U:W)/10)+1) -> $54.00 | S14: =FLOOR(MIN(0,X:X),(INT(MIN(X:X)/1000)+1)*1000) -> 0 | T14: Date | U14: ="NAV" & IF(AND(N11="Yes",MAX(P:P)-MIN(P:P))," and adjusted NAV","") -> NAV and adjusted NAV | V14: ="Fund's High Water Mark (HWM)"&IF(AND(N11="Yes",MAX(P:P)-MIN(P:P))," and Fund's adjusted HWM","") -> Fund's High Water Mark (HWM) and Fund's adjusted HWM | W14: ="Investor's Weighted Average High Water Mark (WAHWM)"&IF(AND(N11="Yes",MAX(P:P)-MIN(P:P))," and Investor's adjusted WAHWM","") -> Investor's Weighted Average High Water Mark (WAHWM) and Investor's adjusted WAHWM | X14: Subscription / (Redemption) After Fees (in USD)
A15: Date | B15: Subscription / (Redemption) after Fees | D15: NAV | E15: Before Fee | G15: Performance Fee (Equalisation) (Weighted Average) | I15: After Fee (if any) | K15: Investment Value after Fees | M15: Monthly Return after Fees | N15: Annualised Return | Q15: High | R15: =CEILING(MAX(U:W),INT(MAX(U:W)/10)+1) -> $190.00 | S15: =CEILING(MAX(X:X,1),(INT(MAX(X:X)/1000)+1)*1000) -> $501,000
B16: In USD | C16: In Units | E16: Fund's High Water Mark (HWM) | F16: Investor's Weighted Average HWM | G16: In USD | H16: In Units | I16: Fund's High Water Mark (HWM) | J16: Investor's Weighted Average HWM | K16: In Units | L16: In USD | Q16: Range | R16: =ROUND((R15-R14)/10,1-(1+INT(LOG10(ABS((R15-R14)/5))))) -> $10 | S16: =ROUND((S15-S14)/10,1-(1+INT(LOG10(ABS((S15-S14)/5))))) -> $100,000
A17: =IF('PPF NAV'!A3="","",'PPF NAV'!A3) -> 2017-08-31 | B17: =IFERROR(1/(1/'PPF NAV'!O3),"") ->  | C17: =IFERROR(ROUND(B17/D17,8),"") ->  | D17: =IF(A17="","",_xlfn.NUMBERVALUE(VLOOKUP(A17,'PPF NAV'!A:C,IF(AND('PPF NAV'!$P$1="Ordinary unit",P17=0),2,3),0))) -> $10.00000000 | I17: =IFERROR(VLOOKUP(A17,'PPF NAV'!A:R,IF(OR(P17=1,'PPF NAV'!$P$1="Elite Unit"),18,17)),"") -> $10.00000000 | J17: =IF(B17<>"",D17,"") ->  | K17: =IFERROR(C17,"") ->  | L17: =IFERROR(K17*$D17,"") ->  | M17: =IFERROR((L17-SUM(B17))/L16-1,"") ->  | N17: =IFERROR(XIRR( IF(1-FREQUENCY(9^9,INDIRECT(CONCATENATE("A",MATCH(TRUE,$B$17:$B$498<>"",0)+16)):$A17), IF(INDIRECT(CONCATENATE("B",MATCH(TRUE,$B$17:$B$498<>"",0)+16)):$B17="",0,INDIRECT(CONCATENATE("B",MATCH(TRUE,$B$17:$B$498<>"",0)+16)):$B17),-L17), IF(1-FREQUENCY(9^9,INDIRECT(CONCATENATE("A",MATCH(TRUE,$B$17:$B$498<>"",0)+16)):$A17), INDIRECT(CONCATENATE("A",MATCH(TRUE,$B$17:$B$498<>"",0)+16)):$A17,$A17), IF(L17<SUM(INDIRECT(CONCATENATE("B",MATCH(TRUE,$B$17:$B$498<>"",0)+16)):$B17),-0.5,0.5)),"") ->  | O17: =O18 -> 9.50 | P17: 0 | Q17: =IFERROR(($C$7-A17)/365*B17,"") ->  | R17: 200 | S17: 601254 | T17: =A17 -> 2017-08-31 | U17: =IFERROR(ROUND(VLOOKUP(T17,A:D,4,0)*IF(AND($N$11="Yes",MAX(P:P)-MIN(P:P),VLOOKUP(T17,A:P,16)=0),VLOOKUP(T17,A:O,15,1),1),2),"") -> $95.05 | V17: =U17 -> $95.05 | X17: =IFERROR(VLOOKUP(T17,A:B,2,0),"") -> 
A18: =IF('PPF NAV'!A4="","",'PPF NAV'!A4) -> 2017-09-29 | B18: =IFERROR(1/(1/'PPF NAV'!O4),"") -> $500,000.00 | C18: =IFERROR(ROUND(B18/D18,8),"") -> 47,523.14911760 | D18: =IF(A18="","",_xlfn.NUMBERVALUE(VLOOKUP(A18,'PPF NAV'!A:C,IF(AND('PPF NAV'!$P$1="Ordinary unit",P18=0),2,3),0))) -> $10.52118829 | E18: =IFERROR(1/(1/(I17*1.06^(1/12))),"") -> $10.04867551 | F18: =IFERROR(1/(1/(J17*1.06^(1/12))),"") ->  | G18: =IFERROR(1/(1/ROUND(MIN(-(MIN(_xlfn.NUMBERVALUE(VLOOKUP(A18,'PPF NAV'!A:C,IF(AND('PPF NAV'!$P$1="Ordinary unit",P17=0),2,3),0)),E18)-F18)*(20%-IF(OR(P17=1,'PPF NAV'!$P$1="Elite Unit"),4%)-IF(A18>=DATE(2021,4,30),2%))*K17,0),2)),"") ->  | H18: =IFERROR(1/(1/ROUND(G18/_xlfn.NUMBERVALUE(VLOOKUP(A18,'PPF NAV'!A:C,IF(AND('PPF NAV'!$P$1="Ordinary unit",P17=0),2,3),0)),8)),"") ->  | I18: =IFERROR(VLOOKUP(A18,'PPF NAV'!A:R,IF(OR(P18=1,'PPF NAV'!$P$1="Elite Unit"),18,17)),"") -> $10.52118829 | J18: =IFERROR((MAX(D18,SUM(F18)*IF(P18<>P17,O18,1))*SUM(K17)/IF(P18<>P17,O18,1)+SUM(B18))/(SUM(C18)+SUM(K17)/IF(P18<>P17,O18,1)),"") -> $10.52118829 | K18: =IFERROR(1/(1/((SUM(K17)+SUM(H18))/IF(P17<>P18,O18,1)+SUM(C18))),"") -> 47,523.14911760 | L18: =IFERROR(K18*$D18,"") -> $500,000.00 | M18: =IFERROR((L18-SUM(B18))/L17-1,"") ->  | N18: =IFERROR(XIRR( IF(1-FREQUENCY(9^9,INDIRECT(CONCATENATE("A",MATCH(TRUE,$B$17:$B$498<>"",0)+16)):$A18), IF(INDIRECT(CONCATENATE("B",MATCH(TRUE,$B$17:$B$498<>"",0)+16)):$B18="",0,INDIRECT(CONCATENATE("B",MATCH(TRUE,$B$17:$B$498<>"",0)+16)):$B18),-L18), IF(1-FREQUENCY(9^9,INDIRECT(CONCATENATE("A",MATCH(TRUE,$B$17:$B$498<>"",0)+16)):$A18), INDIRECT(CONCATENATE("A",MATCH(TRUE,$B$17:$B$498<>"",0)+16)):$A18,$A18), IF(L18<SUM(INDIRECT(CONCATENATE("B",MATCH(TRUE,$B$17:$B$498<>"",0)+16)):$B18),-0.5,0.5)),"") ->  | O18: =IFERROR(VLOOKUP(A18,PPF_NAV[],3)/VLOOKUP(A18,PPF_NAV[],2),"") -> 9.50 | P18: =IFERROR(IF(OR(P17=1,(_xlfn.NUMBERVALUE(K17)*VLOOKUP(A18,PPF_NAV[],2,0)+SUM(B18,G18))>=1000000),1,0),"") -> 0 | Q18: =IFERROR(($C$7-A18)/365*B18,"") -> 2628767.123 | T18: =INDEX(A:A,17+INT((ROW()-17)/2),1) -> 2017-08-31 | U18: $95.05 | V18: =IFERROR(IF(T18>T17,V17*1.06^(1/12),VLOOKUP(T18,A:I,9,0)*IF(AND($N$11="Yes",MAX(P:P)-MIN(P:P),VLOOKUP(T18,A:P,16)=0),VLOOKUP(T18,A:O,15),1)),"") -> $95.05 | W18: =IFERROR(IF(T18>T17,W17*1.06^(1/12),VLOOKUP(T18,A:J,10,0)*IF(AND($N$11="Yes",MAX(P:P)-MIN(P:P),VLOOKUP(T18,A:P,16)=0),VLOOKUP(T18,A:O,15),1)),"") ->  | X18: =IFERROR(VLOOKUP(T18,A:B,2,0),"") -> 
A19: =IF('PPF NAV'!A5="","",'PPF NAV'!A5) -> 2017-10-31 | B19: =IFERROR(1/(1/'PPF NAV'!O5),"") -> $100,000.00 | C19: =IFERROR(ROUND(B19/D19,8),"") -> 9,471.74746848 | D19: =IF(A19="","",_xlfn.NUMBERVALUE(VLOOKUP(A19,'PPF NAV'!A:C,IF(AND('PPF NAV'!$P$1="Ordinary unit",P19=0),2,3),0))) -> $10.55771391 | E19: =IFERROR(1/(1/(I18*1.06^(1/12))),"") -> $10.57240071 | F19: =IFERROR(1/(1/(J18*1.06^(1/12))),"") -> $10.57240071 | G19: =IFERROR(1/(1/ROUND(MIN(-(MIN(_xlfn.NUMBERVALUE(VLOOKUP(A19,'PPF NAV'!A:C,IF(AND('PPF NAV'!$P$1="Ordinary unit",P18=0),2,3),0)),E19)-F19)*(20%-IF(OR(P18=1,'PPF NAV'!$P$1="Elite Unit"),4%)-IF(A19>=DATE(2021,4,30),2%))*K18,0),2)),"") ->  | H19: =IFERROR(1/(1/ROUND(G19/_xlfn.NUMBERVALUE(VLOOKUP(A19,'PPF NAV'!A:C,IF(AND('PPF NAV'!$P$1="Ordinary unit",P18=0),2,3),0)),8)),"") ->  | I19: =IFERROR(VLOOKUP(A19,'PPF NAV'!A:R,IF(OR(P19=1,'PPF NAV'!$P$1="Elite Unit"),18,17)),"") -> $10.57240071 | J19: =IFERROR((MAX(D19,SUM(F19)*IF(P19<>P18,O19,1))*SUM(K18)/IF(P19<>P18,O19,1)+SUM(B19))/(SUM(C19)+SUM(K18)/IF(P19<>P18,O19,1)),"") -> $10.56995997 | K19: =IFERROR(1/(1/((SUM(K18)+SUM(H19))/IF(P18<>P19,O19,1)+SUM(C19))),"") -> 56,994.89658608 | L19: =IFERROR(K19*$D19,"") -> $601,735.81 | M19: =IFERROR((L19-SUM(B19))/L18-1,"") -> 0.35% | N19: =IFERROR(XIRR( IF(1-FREQUENCY(9^9,INDIRECT(CONCATENATE("A",MATCH(TRUE,$B$17:$B$498<>"",0)+16)):$A19), IF(INDIRECT(CONCATENATE("B",MATCH(TRUE,$B$17:$B$498<>"",0)+16)):$B19="",0,INDIRECT(CONCATENATE("B",MATCH(TRUE,$B$17:$B$498<>"",0)+16)):$B19),-L19), IF(1-FREQUENCY(9^9,INDIRECT(CONCATENATE("A",MATCH(TRUE,$B$17:$B$498<>"",0)+16)):$A19), INDIRECT(CONCATENATE("A",MATCH(TRUE,$B$17:$B$498<>"",0)+16)):$A19,$A19), IF(L19<SUM(INDIRECT(CONCATENATE("B",MATCH(TRUE,$B$17:$B$498<>"",0)+16)):$B19),-0.5,0.5)),"") -> 4.03% | O19: =IFERROR(VLOOKUP(A19,PPF_NAV[],3)/VLOOKUP(A19,PPF_NAV[],2),"") -> 9.50 | P19: =IFERROR(IF(OR(P18=1,(_xlfn.NUMBERVALUE(K18)*VLOOKUP(A19,PPF_NAV[],2,0)+SUM(B19,G19))>=1000000),1,0),"") -> 0 | Q19: =IFERROR(($C$7-A19)/365*B19,"") -> 516986.3014 | T19: =INDEX(A:A,17+INT((ROW()-17)/2),1) -> 2017-09-29 | U19: $100.00 | V19: $95.51 | X19: $500,000
A20: =IF('PPF NAV'!A6="","",'PPF NAV'!A6) -> 2017-11-30 | B20: =IFERROR(1/(1/'PPF NAV'!O6),"") ->  | D20: =IF(A20="","",_xlfn.NUMBERVALUE(VLOOKUP(A20,'PPF NAV'!A:C,IF(AND('PPF NAV'!$P$1="Ordinary unit",P20=0),2,3),0))) -> $10.81814950 | E20: $10.62386240 | F20: $10.62140978 | G20: =IFERROR(1/(1/ROUND(MIN(-(MIN(_xlfn.NUMBERVALUE(VLOOKUP(A20,'PPF NAV'!A:C,IF(AND('PPF NAV'!$P$1="Ordinary unit",P19=0),2,3),0)),E20)-F20)*(20%-IF(OR(P19=1,'PPF NAV'!$P$1="Elite Unit"),4%)-IF(A20>=DATE(2021,4,30),2%))*K19,0),2)),"") -> $(27.96) | H20: =IFERROR(1/(1/ROUND(G20/_xlfn.NUMBERVALUE(VLOOKUP(A20,'PPF NAV'!A:C,IF(AND('PPF NAV'!$P$1="Ordinary unit",P19=0),2,3),0)),8)),"") -> -2.58454554 | I20: =IFERROR(VLOOKUP(A20,'PPF NAV'!A:R,IF(OR(P20=1,'PPF NAV'!$P$1="Elite Unit"),18,17)),"") -> $10.81814950 | J20: $10.81814950 | K20: 56,992.31204054 | L20: =IFERROR(K20*$D20,"") -> $616,551.35 | M20: =IFERROR((L20-SUM(B20))/L19-1,"") -> 2.46% | N20: =IFERROR(XIRR( IF(1-FREQUENCY(9^9,INDIRECT(CONCATENATE("A",MATCH(TRUE,$B$17:$B$498<>"",0)+16)):$A20), IF(INDIRECT(CONCATENATE("B",MATCH(TRUE,$B$17:$B$498<>"",0)+16)):$B20="",0,INDIRECT(CONCATENATE("B",MATCH(TRUE,$B$17:$B$498<>"",0)+16)):$B20),-L20), IF(1-FREQUENCY(9^9,INDIRECT(CONCATENATE("A",MATCH(TRUE,$B$17:$B$498<>"",0)+16)):$A20), INDIRECT(CONCATENATE("A",MATCH(TRUE,$B$17:$B$498<>"",0)+16)):$A20,$A20), IF(L20<SUM(INDIRECT(CONCATENATE("B",MATCH(TRUE,$B$17:$B$498<>"",0)+16)):$B20),-0.5,0.5)),"") -> 19.15% | O20: =IFERROR(VLOOKUP(A20,PPF_NAV[],3)/VLOOKUP(A20,PPF_NAV[],2),"") -> 9.51 | P20: =IFERROR(IF(OR(P19=1,(_xlfn.NUMBERVALUE(K19)*VLOOKUP(A20,PPF_NAV[],2,0)+SUM(B20,G20))>=1000000),1,0),"") -> 0 | T20: =INDEX(A:A,17+INT((ROW()-17)/2),1) -> 2017-09-29 | U20: $100.00 | V20: $100.00 | W20: $100.00 | X20: $500,000
A21: =IF('PPF NAV'!A7="","",'PPF NAV'!A7) -> 2017-12-29 | B21: =IFERROR(1/(1/'PPF NAV'!O7),"") ->  | D21: =IF(A21="","",_xlfn.NUMBERVALUE(VLOOKUP(A21,'PPF NAV'!A:C,IF(AND('PPF NAV'!$P$1="Ordinary unit",P21=0),2,3),0))) -> $11.06400252 | E21: $10.87080739 | F21: $10.87080739 | G21: =IFERROR(1/(1/ROUND(MIN(-(MIN(_xlfn.NUMBERVALUE(VLOOKUP(A21,'PPF NAV'!A:C,IF(AND('PPF NAV'!$P$1="Ordinary unit",P20=0),2,3),0)),E21)-F21)*(20%-IF(OR(P20=1,'PPF NAV'!$P$1="Elite Unit"),4%)-IF(A21>=DATE(2021,4,30),2%))*K20,0),2)),"") ->  | H21: =IFERROR(1/(1/ROUND(G21/_xlfn.NUMBERVALUE(VLOOKUP(A21,'PPF NAV'!A:C,IF(AND('PPF NAV'!$P$1="Ordinary unit",P20=0),2,3),0)),8)),"") ->  | I21: =IFERROR(VLOOKUP(A21,'PPF NAV'!A:R,IF(OR(P21=1,'PPF NAV'!$P$1="Elite Unit"),18,17)),"") -> $11.06400252 | J21: $11.06400252 | K21: 56,992.31204054 | L21: $630,563.08 | M21: 2.27% | N21: =IFERROR(XIRR( IF(1-FREQUENCY(9^9,INDIRECT(CONCATENATE("A",MATCH(TRUE,$B$17:$B$498<>"",0)+16)):$A21), IF(INDIRECT(CONCATENATE("B",MATCH(TRUE,$B$17:$B$498<>"",0)+16)):$B21="",0,INDIRECT(CONCATENATE("B",MATCH(TRUE,$B$17:$B$498<>"",0)+16)):$B21),-L21), IF(1-FREQUENCY(9^9,INDIRECT(CONCATENATE("A",MATCH(TRUE,$B$17:$B$498<>"",0)+16)):$A21), INDIRECT(CONCATENATE("A",MATCH(TRUE,$B$17:$B$498<>"",0)+16)):$A21,$A21), IF(L21<SUM(INDIRECT(CONCATENATE("B",MATCH(TRUE,$B$17:$B$498<>"",0)+16)):$B21),-0.5,0.5)),"") -> 23.56% | O21: =IFERROR(VLOOKUP(A21,PPF_NAV[],3)/VLOOKUP(A21,PPF_NAV[],2),"") -> 9.52 | P21: =IFERROR(IF(OR(P20=1,(_xlfn.NUMBERVALUE(K20)*VLOOKUP(A21,PPF_NAV[],2,0)+SUM(B21,G21))>=1000000),1,0),"") -> 0 | T21: =INDEX(A:A,17+INT((ROW()-17)/2),1) -> 2017-10-31 | U21: $100.35 | V21: $100.49 | W21: $100.49 | X21: $100,000
A22: =IF('PPF NAV'!A8="","",'PPF NAV'!A8) -> 2018-01-31 | B22: =IFERROR(1/(1/'PPF NAV'!O8),"") ->  | D22: =IF(A22="","",_xlfn.NUMBERVALUE(VLOOKUP(A22,'PPF NAV'!A:C,IF(AND('PPF NAV'!$P$1="Ordinary unit",P22=0),2,3),0))) -> $11.58256302 | E22: $11.11785711 | F22: $11.11785711 | G22: =IFERROR(1/(1/ROUND(MIN(-(MIN(_xlfn.NUMBERVALUE(VLOOKUP(A22,'PPF NAV'!A:C,IF(AND('PPF NAV'!$P$1="Ordinary unit",P21=0),2,3),0)),E22)-F22)*(20%-IF(OR(P21=1,'PPF NAV'!$P$1="Elite Unit"),4%)-IF(A22>=DATE(2021,4,30),2%))*K21,0),2)),"") ->  | H22: =IFERROR(1/(1/ROUND(G22/_xlfn.NUMBERVALUE(VLOOKUP(A22,'PPF NAV'!A:C,IF(AND('PPF NAV'!$P$1="Ordinary unit",P21=0),2,3),0)),8)),"") ->  | I22: =IFERROR(VLOOKUP(A22,'PPF NAV'!A:R,IF(OR(P22=1,'PPF NAV'!$P$1="Elite Unit"),18,17)),"") -> $11.58256302 | J22: $11.58256302 | K22: 56,992.31204054 | L22: $660,117.05 | M22: 4.69% | N22: =IFERROR(XIRR( IF(1-FREQUENCY(9^9,INDIRECT(CONCATENATE("A",MATCH(TRUE,$B$17:$B$498<>"",0)+16)):$A22), IF(INDIRECT(CONCATENATE("B",MATCH(TRUE,$B$17:$B$498<>"",0)+16)):$B22="",0,INDIRECT(CONCATENATE("B",MATCH(TRUE,$B$17:$B$498<>"",0)+16)):$B22),-L22), IF(1-FREQUENCY(9^9,INDIRECT(CONCATENATE("A",MATCH(TRUE,$B$17:$B$498<>"",0)+16)):$A22), INDIRECT(CONCATENATE("A",MATCH(TRUE,$B$17:$B$498<>"",0)+16)):$A22,$A22), IF(L22<SUM(INDIRECT(CONCATENATE("B",MATCH(TRUE,$B$17:$B$498<>"",0)+16)):$B22),-0.5,0.5)),"") -> 34.12% | O22: =IFERROR(VLOOKUP(A22,PPF_NAV[],3)/VLOOKUP(A22,PPF_NAV[],2),"") -> 9.54 | P22: =IFERROR(IF(OR(P21=1,(_xlfn.NUMBERVALUE(K21)*VLOOKUP(A22,PPF_NAV[],2,0)+SUM(B22,G22))>=1000000),1,0),"") -> 0 | T22: =INDEX(A:A,17+INT((ROW()-17)/2),1) -> 2017-10-31 | U22: $100.35 | V22: $100.49 | W22: $100.46 | X22: $100,000
A23: =IF('PPF NAV'!A9="","",'PPF NAV'!A9) -> 2018-02-28 | B23: =IFERROR(1/(1/'PPF NAV'!O9),"") ->  | D23: =IF(A23="","",_xlfn.NUMBERVALUE(VLOOKUP(A23,'PPF NAV'!A:C,IF(AND('PPF NAV'!$P$1="Ordinary unit",P23=0),2,3),0))) -> $11.53287528 | E23: $11.63894173 | F23: $11.63894173 | G23: =IFERROR(1/(1/ROUND(MIN(-(MIN(_xlfn.NUMBERVALUE(VLOOKUP(A23,'PPF NAV'!A:C,IF(AND('PPF NAV'!$P$1="Ordinary unit",P22=0),2,3),0)),E23)-F23)*(20%-IF(OR(P22=1,'PPF NAV'!$P$1="Elite Unit"),4%)-IF(A23>=DATE(2021,4,30),2%))*K22,0),2)),"") ->  | H23: =IFERROR(1/(1/ROUND(G23/_xlfn.NUMBERVALUE(VLOOKUP(A23,'PPF NAV'!A:C,IF(AND('PPF NAV'!$P$1="Ordinary unit",P22=0),2,3),0)),8)),"") ->  | I23: =IFERROR(VLOOKUP(A23,'PPF NAV'!A:R,IF(OR(P23=1,'PPF NAV'!$P$1="Elite Unit"),18,17)),"") -> $11.63894173 | J23: $11.63894173 | K23: 56,992.31204054 | L23: $657,285.23 | M23: -0.43% | N23: =IFERROR(XIRR( IF(1-FREQUENCY(9^9,INDIRECT(CONCATENATE("A",MATCH(TRUE,$B$17:$B$498<>"",0)+16)):$A23), IF(INDIRECT(CONCATENATE("B",MATCH(TRUE,$B$17:$B$498<>"",0)+16)):$B23="",0,INDIRECT(CONCATENATE("B",MATCH(TRUE,$B$17:$B$498<>"",0)+16)):$B23),-L23), IF(1-FREQUENCY(9^9,INDIRECT(CONCATENATE("A",MATCH(TRUE,$B$17:$B$498<>"",0)+16)):$A23), INDIRECT(CONCATENATE("A",MATCH(TRUE,$B$17:$B$498<>"",0)+16)):$A23,$A23), IF(L23<SUM(INDIRECT(CONCATENATE("B",MATCH(TRUE,$B$17:$B$498<>"",0)+16)):$B23),-0.5,0.5)),"") -> 25.47% | O23: =IFERROR(VLOOKUP(A23,PPF_NAV[],3)/VLOOKUP(A23,PPF_NAV[],2),"") -> 9.54 | P23: =IFERROR(IF(OR(P22=1,(_xlfn.NUMBERVALUE(K22)*VLOOKUP(A23,PPF_NAV[],2,0)+SUM(B23,G23))>=1000000),1,0),"") -> 0 | T23: =INDEX(A:A,17+INT((ROW()-17)/2),1) -> 2017-11-30 | U23: $102.91 | V23: $100.98 | W23: $100.95
A24: =IF('PPF NAV'!A10="","",'PPF NAV'!A10) -> 2018-03-29 | B24: =IFERROR(1/(1/'PPF NAV'!O10),"") ->  | D24: =IF(A24="","",_xlfn.NUMBERVALUE(VLOOKUP(A24,'PPF NAV'!A:C,IF(AND('PPF NAV'!$P$1="Ordinary unit",P24=0),2,3),0))) -> $11.15013975 | E24: $11.69559487 | F24: $11.69559487 | G24: =IFERROR(1/(1/ROUND(MIN(-(MIN(_xlfn.NUMBERVALUE(VLOOKUP(A24,'PPF NAV'!A:C,IF(AND('PPF NAV'!$P$1="Ordinary unit",P23=0),2,3),0)),E24)-F24)*(20%-IF(OR(P23=1,'PPF NAV'!$P$1="Elite Unit"),4%)-IF(A24>=DATE(2021,4,30),2%))*K23,0),2)),"") ->  | H24: =IFERROR(1/(1/ROUND(G24/_xlfn.NUMBERVALUE(VLOOKUP(A24,'PPF NAV'!A:C,IF(AND('PPF NAV'!$P$1="Ordinary unit",P23=0),2,3),0)),8)),"") ->  | I24: =IFERROR(VLOOKUP(A24,'PPF NAV'!A:R,IF(OR(P24=1,'PPF NAV'!$P$1="Elite Unit"),18,17)),"") -> $11.69559487 | J24: $11.69559487 | K24: 56,992.31204054 | L24: $635,472.24 | M24: -3.32% | N24: =IFERROR(XIRR( IF(1-FREQUENCY(9^9,INDIRECT(CONCATENATE("A",MATCH(TRUE,$B$17:$B$498<>"",0)+16)):$A24), IF(INDIRECT(CONCATENATE("B",MATCH(TRUE,$B$17:$B$498<>"",0)+16)):$B24="",0,INDIRECT(CONCATENATE("B",MATCH(TRUE,$B$17:$B$498<>"",0)+16)):$B24),-L24), IF(1-FREQUENCY(9^9,INDIRECT(CONCATENATE("A",MATCH(TRUE,$B$17:$B$498<>"",0)+16)):$A24), INDIRECT(CONCATENATE("A",MATCH(TRUE,$B$17:$B$498<>"",0)+16)):$A24,$A24), IF(L24<SUM(INDIRECT(CONCATENATE("B",MATCH(TRUE,$B$17:$B$498<>"",0)+16)):$B24),-0.5,0.5)),"") -> 12.67% | O24: =IFERROR(VLOOKUP(A24,PPF_NAV[],3)/VLOOKUP(A24,PPF_NAV[],2),"") -> 9.54 | P24: =IFERROR(IF(OR(P23=1,(_xlfn.NUMBERVALUE(K23)*VLOOKUP(A24,PPF_NAV[],2,0)+SUM(B24,G24))>=1000000),1,0),"") -> 0 | T24: =INDEX(A:A,17+INT((ROW()-17)/2),1) -> 2017-11-30 | U24: $102.91 | V24: $102.91 | W24: $102.91
A25: =IF('PPF NAV'!A11="","",'PPF NAV'!A11) -> 2018-04-30 | B25: =IFERROR(1/(1/'PPF NAV'!O11),"") ->  | D25: =IF(A25="","",_xlfn.NUMBERVALUE(VLOOKUP(A25,'PPF NAV'!A:C,IF(AND('PPF NAV'!$P$1="Ordinary unit",P25=0),2,3),0))) -> $10.63382226 | E25: $11.75252377 | F25: $11.75252377 | G25: =IFERROR(1/(1/ROUND(MIN(-(MIN(_xlfn.NUMBERVALUE(VLOOKUP(A25,'PPF NAV'!A:C,IF(AND('PPF NAV'!$P$1="Ordinary unit",P24=0),2,3),0)),E25)-F25)*(20%-IF(OR(P24=1,'PPF NAV'!$P$1="Elite Unit"),4%)-IF(A25>=DATE(2021,4,30),2%))*K24,0),2)),"") ->  | H25: =IFERROR(1/(1/ROUND(G25/_xlfn.NUMBERVALUE(VLOOKUP(A25,'PPF NAV'!A:C,IF(AND('PPF NAV'!$P$1="Ordinary unit",P24=0),2,3),0)),8)),"") ->  | I25: =IFERROR(VLOOKUP(A25,'PPF NAV'!A:R,IF(OR(P25=1,'PPF NAV'!$P$1="Elite Unit"),18,17)),"") -> $11.75252377 | J25: $11.75252377 | K25: 56,992.31204054 | L25: $606,046.12 | M25: -4.63% | N25: =IFERROR(XIRR( IF(1-FREQUENCY(9^9,INDIRECT(CONCATENATE("A",MATCH(TRUE,$B$17:$B$498<>"",0)+16)):$A25), IF(INDIRECT(CONCATENATE("B",MATCH(TRUE,$B$17:$B$498<>"",0)+16)):$B25="",0,INDIRECT(CONCATENATE("B",MATCH(TRUE,$B$17:$B$498<>"",0)+16)):$B25),-L25), IF(1-FREQUENCY(9^9,INDIRECT(CONCATENATE("A",MATCH(TRUE,$B$17:$B$498<>"",0)+16)):$A25), INDIRECT(CONCATENATE("A",MATCH(TRUE,$B$17:$B$498<>"",0)+16)):$A25,$A25), IF(L25<SUM(INDIRECT(CONCATENATE("B",MATCH(TRUE,$B$17:$B$498<>"",0)+16)):$B25),-0.5,0.5)),"") -> 1.78% | O25: =IFERROR(VLOOKUP(A25,PPF_NAV[],3)/VLOOKUP(A25,PPF_NAV[],2),"") -> 9.54 | P25: =IFERROR(IF(OR(P24=1,(_xlfn.NUMBERVALUE(K24)*VLOOKUP(A25,PPF_NAV[],2,0)+SUM(B25,G25))>=1000000),1,0),"") -> 0 | T25: =INDEX(A:A,17+INT((ROW()-17)/2),1) -> 2017-12-29 | U25: $105.35 | V25: $103.42 | W25: $103.42
A26: =IF('PPF NAV'!A12="","",'PPF NAV'!A12) -> 2018-05-31 | B26: =IFERROR(1/(1/'PPF NAV'!O12),"") ->  | D26: =IF(A26="","",_xlfn.NUMBERVALUE(VLOOKUP(A26,'PPF NAV'!A:C,IF(AND('PPF NAV'!$P$1="Ordinary unit",P26=0),2,3),0))) -> $10.58956599 | E26: $11.80972977 | F26: $11.80972977 | G26: =IFERROR(1/(1/ROUND(MIN(-(MIN(_xlfn.NUMBERVALUE(VLOOKUP(A26,'PPF NAV'!A:C,IF(AND('PPF NAV'!$P$1="Ordinary unit",P25=0),2,3),0)),E26)-F26)*(20%-IF(OR(P25=1,'PPF NAV'!$P$1="Elite Unit"),4%)-IF(A26>=DATE(2021,4,30),2%))*K25,0),2)),"") ->  | H26: =IFERROR(1/(1/ROUND(G26/_xlfn.NUMBERVALUE(VLOOKUP(A26,'PPF NAV'!A:C,IF(AND('PPF NAV'!$P$1="Ordinary unit",P25=0),2,3),0)),8)),"") ->  | I26: =IFERROR(VLOOKUP(A26,'PPF NAV'!A:R,IF(OR(P26=1,'PPF NAV'!$P$1="Elite Unit"),18,17)),"") -> $11.80972977 | J26: $11.80972977 | K26: 56,992.31204054 | L26: $603,523.85 | M26: -0.42% | N26: =IFERROR(XIRR( IF(1-FREQUENCY(9^9,INDIRECT(CONCATENATE("A",MATCH(TRUE,$B$17:$B$498<>"",0)+16)):$A26), IF(INDIRECT(CONCATENATE("B",MATCH(TRUE,$B$17:$B$498<>"",0)+16)):$B26="",0,INDIRECT(CONCATENATE("B",MATCH(TRUE,$B$17:$B$498<>"",0)+16)):$B26),-L26), IF(1-FREQUENCY(9^9,INDIRECT(CONCATENATE("A",MATCH(TRUE,$B$17:$B$498<>"",0)+16)):$A26), INDIRECT(CONCATENATE("A",MATCH(TRUE,$B$17:$B$498<>"",0)+16)):$A26,$A26), IF(L26<SUM(INDIRECT(CONCATENATE("B",MATCH(TRUE,$B$17:$B$498<>"",0)+16)):$B26),-0.5,0.5)),"") -> 0.90% | O26: =IFERROR(VLOOKUP(A26,PPF_NAV[],3)/VLOOKUP(A26,PPF_NAV[],2),"") -> 9.54 | P26: =IFERROR(IF(OR(P25=1,(_xlfn.NUMBERVALUE(K25)*VLOOKUP(A26,PPF_NAV[],2,0)+SUM(B26,G26))>=1000000),1,0),"") -> 0 | T26: =INDEX(A:A,17+INT((ROW()-17)/2),1) -> 2017-12-29 | U26: $105.35 | V26: $105.35 | W26: $105.35
A27: =IF('PPF NAV'!A13="","",'PPF NAV'!A13) -> 2018-06-29 | B27: =IFERROR(1/(1/'PPF NAV'!O13),"") ->  | D27: =IF(A27="","",_xlfn.NUMBERVALUE(VLOOKUP(A27,'PPF NAV'!A:C,IF(AND('PPF NAV'!$P$1="Ordinary unit",P27=0),2,3),0))) -> $9.93456512 | E27: $11.86721423 | F27: $11.86721423 | G27: =IFERROR(1/(1/ROUND(MIN(-(MIN(_xlfn.NUMBERVALUE(VLOOKUP(A27,'PPF NAV'!A:C,IF(AND('PPF NAV'!$P$1="Ordinary unit",P26=0),2,3),0)),E27)-F27)*(20%-IF(OR(P26=1,'PPF NAV'!$P$1="Elite Unit"),4%)-IF(A27>=DATE(2021,4,30),2%))*K26,0),2)),"") ->  | H27: =IFERROR(1/(1/ROUND(G27/_xlfn.NUMBERVALUE(VLOOKUP(A27,'PPF NAV'!A:C,IF(AND('PPF NAV'!$P$1="Ordinary unit",P26=0),2,3),0)),8)),"") ->  | I27: =IFERROR(VLOOKUP(A27,'PPF NAV'!A:R,IF(OR(P27=1,'PPF NAV'!$P$1="Elite Unit"),18,17)),"") -> $11.86721423 | J27: $11.86721423 | K27: 56,992.31204054 | L27: $566,193.84 | M27: -6.19% | N27: =IFERROR(XIRR( IF(1-FREQUENCY(9^9,INDIRECT(CONCATENATE("A",MATCH(TRUE,$B$17:$B$498<>"",0)+16)):$A27), IF(INDIRECT(CONCATENATE("B",MATCH(TRUE,$B$17:$B$498<>"",0)+16)):$B27="",0,INDIRECT(CONCATENATE("B",MATCH(TRUE,$B$17:$B$498<>"",0)+16)):$B27),-L27), IF(1-FREQUENCY(9^9,INDIRECT(CONCATENATE("A",MATCH(TRUE,$B$17:$B$498<>"",0)+16)):$A27), INDIRECT(CONCATENATE("A",MATCH(TRUE,$B$17:$B$498<>"",0)+16)):$A27,$A27), IF(L27<SUM(INDIRECT(CONCATENATE("B",MATCH(TRUE,$B$17:$B$498<>"",0)+16)):$B27),-0.5,0.5)),"") -> -7.60% | O27: =IFERROR(VLOOKUP(A27,PPF_NAV[],3)/VLOOKUP(A27,PPF_NAV[],2),"") -> 9.54 | P27: =IFERROR(IF(OR(P26=1,(_xlfn.NUMBERVALUE(K26)*VLOOKUP(A27,PPF_NAV[],2,0)+SUM(B27,G27))>=1000000),1,0),"") -> 0 | T27: =INDEX(A:A,17+INT((ROW()-17)/2),1) -> 2018-01-31 | U27: $110.50 | V27: $105.86 | W27: $105.86
A28: =IF('PPF NAV'!A14="","",'PPF NAV'!A14) -> 2018-07-31 | B28: =IFERROR(1/(1/'PPF NAV'!O14),"") ->  | C28: =IFERROR(ROUND(B28/D28,8),"") ->  | D28: =IF(A28="","",_xlfn.NUMBERVALUE(VLOOKUP(A28,'PPF NAV'!A:C,IF(AND('PPF NAV'!$P$1="Ordinary unit",P28=0),2,3),0))) -> $11.31681371 | E28: =IFERROR(1/(1/(I27*1.06^(1/12))),"") -> $11.92497849 | F28: =IFERROR(1/(1/(J27*1.06^(1/12))),"") -> $11.92497849 | G28: =IFERROR(1/(1/ROUND(MIN(-(MIN(_xlfn.NUMBERVALUE(VLOOKUP(A28,'PPF NAV'!A:C,IF(AND('PPF NAV'!$P$1="Ordinary unit",P27=0),2,3),0)),E28)-F28)*(20%-IF(OR(P27=1,'PPF NAV'!$P$1="Elite Unit"),4%)-IF(A28>=DATE(2021,4,30),2%))*K27,0),2)),"") ->  | H28: =IFERROR(1/(1/ROUND(G28/_xlfn.NUMBERVALUE(VLOOKUP(A28,'PPF NAV'!A:C,IF(AND('PPF NAV'!$P$1="Ordinary unit",P27=0),2,3),0)),8)),"") ->  | I28: =IFERROR(VLOOKUP(A28,'PPF NAV'!A:R,IF(OR(P28=1,'PPF NAV'!$P$1="Elite Unit"),18,17)),"") -> $11.92497849 | J28: =IFERROR((MAX(D28,SUM(F28)*IF(P28<>P27,O28,1))*SUM(K27)/IF(P28<>P27,O28,1)+SUM(B28))/(SUM(C28)+SUM(K27)/IF(P28<>P27,O28,1)),"") -> $11.92497849 | K28: =IFERROR(1/(1/((SUM(K27)+SUM(H28))/IF(P27<>P28,O28,1)+SUM(C28))),"") -> 56,992.31204054 | L28: =IFERROR(K28*$D28,"") -> $644,971.38 | M28: 13.91% | N28: =IFERROR(XIRR( IF(1-FREQUENCY(9^9,INDIRECT(CONCATENATE("A",MATCH(TRUE,$B$17:$B$498<>"",0)+16)):$A28), IF(INDIRECT(CONCATENATE("B",MATCH(TRUE,$B$17:$B$498<>"",0)+16)):$B28="",0,INDIRECT(CONCATENATE("B",MATCH(TRUE,$B$17:$B$498<>"",0)+16)):$B28),-L28), IF(1-FREQUENCY(9^9,INDIRECT(CONCATENATE("A",MATCH(TRUE,$B$17:$B$498<>"",0)+16)):$A28), INDIRECT(CONCATENATE("A",MATCH(TRUE,$B$17:$B$498<>"",0)+16)):$A28,$A28), IF(L28<SUM(INDIRECT(CONCATENATE("B",MATCH(TRUE,$B$17:$B$498<>"",0)+16)):$B28),-0.5,0.5)),"") -> 9.20% | O28: =IFERROR(VLOOKUP(A28,PPF_NAV[],3)/VLOOKUP(A28,PPF_NAV[],2),"") -> 9.54 | P28: =IFERROR(IF(OR(P27=1,(_xlfn.NUMBERVALUE(K27)*VLOOKUP(A28,PPF_NAV[],2,0)+SUM(B28,G28))>=1000000),1,0),"") -> 0 | T28: =INDEX(A:A,17+INT((ROW()-17)/2),1) -> 2018-01-31 | U28: $110.50 | V28: $110.50 | W28: $110.50
A29: =IF('PPF NAV'!A15="","",'PPF NAV'!A15) -> 2018-08-31 | B29: =IFERROR(1/(1/'PPF NAV'!O15),"") ->  | D29: =IF(A29="","",_xlfn.NUMBERVALUE(VLOOKUP(A29,'PPF NAV'!A:C,IF(AND('PPF NAV'!$P$1="Ordinary unit",P29=0),2,3),0))) -> $12.29986874 | E29: $11.98302393 | F29: $11.98302393 | G29: =IFERROR(1/(1/ROUND(MIN(-(MIN(_xlfn.NUMBERVALUE(VLOOKUP(A29,'PPF NAV'!A:C,IF(AND('PPF NAV'!$P$1="Ordinary unit",P28=0),2,3),0)),E29)-F29)*(20%-IF(OR(P28=1,'PPF NAV'!$P$1="Elite Unit"),4%)-IF(A29>=DATE(2021,4,30),2%))*K28,0),2)),"") ->  | H29: =IFERROR(1/(1/ROUND(G29/_xlfn.NUMBERVALUE(VLOOKUP(A29,'PPF NAV'!A:C,IF(AND('PPF NAV'!$P$1="Ordinary unit",P28=0),2,3),0)),8)),"") ->  | I29: =IFERROR(VLOOKUP(A29,'PPF NAV'!A:R,IF(OR(P29=1,'PPF NAV'!$P$1="Elite Unit"),18,17)),"") -> $12.29986874 | J29: $12.29986874 | K29: 56,992.31204054 | L29: $700,997.96 | M29: 8.69% | N29: =IFERROR(XIRR( IF(1-FREQUENCY(9^9,INDIRECT(CONCATENATE("A",MATCH(TRUE,$B$17:$B$498<>"",0)+16)):$A29), IF(INDIRECT(CONCATENATE("B",MATCH(TRUE,$B$17:$B$498<>"",0)+16)):$B29="",0,INDIRECT(CONCATENATE("B",MATCH(TRUE,$B$17:$B$498<>"",0)+16)):$B29),-L29), IF(1-FREQUENCY(9^9,INDIRECT(CONCATENATE("A",MATCH(TRUE,$B$17:$B$498<>"",0)+16)):$A29), INDIRECT(CONCATENATE("A",MATCH(TRUE,$B$17:$B$498<>"",0)+16)):$A29,$A29), IF(L29<SUM(INDIRECT(CONCATENATE("B",MATCH(TRUE,$B$17:$B$498<>"",0)+16)):$B29),-0.5,0.5)),"") -> 18.73% | O29: =IFERROR(VLOOKUP(A29,PPF_NAV[],3)/VLOOKUP(A29,PPF_NAV[],2),"") -> 9.55 | P29: =IFERROR(IF(OR(P28=1,(_xlfn.NUMBERVALUE(K28)*VLOOKUP(A29,PPF_NAV[],2,0)+SUM(B29,G29))>=1000000),1,0),"") -> 0 | T29: =INDEX(A:A,17+INT((ROW()-17)/2),1) -> 2018-02-28 | U29: $110.03 | V29: $111.04 | W29: $111.04
A30: =IF('PPF NAV'!A16="","",'PPF NAV'!A16) -> 2018-09-30 | B30: =IFERROR(1/(1/'PPF NAV'!O16),"") -> $500,000.00 | C30: 4,106.94855785 | D30: =IF(A30="","",_xlfn.NUMBERVALUE(VLOOKUP(A30,'PPF NAV'!A:C,IF(AND('PPF NAV'!$P$1="Ordinary unit",P30=0),2,3),0))) -> $121.74488990 | E30: $12.35973897 | F30: $12.35973897 | G30: =IFERROR(1/(1/ROUND(MIN(-(MIN(_xlfn.NUMBERVALUE(VLOOKUP(A30,'PPF NAV'!A:C,IF(AND('PPF NAV'!$P$1="Ordinary unit",P29=0),2,3),0)),E30)-F30)*(20%-IF(OR(P29=1,'PPF NAV'!$P$1="Elite Unit"),4%)-IF(A30>=DATE(2021,4,30),2%))*K29,0),2)),"") ->  | H30: =IFERROR(1/(1/ROUND(G30/_xlfn.NUMBERVALUE(VLOOKUP(A30,'PPF NAV'!A:C,IF(AND('PPF NAV'!$P$1="Ordinary unit",P29=0),2,3),0)),8)),"") ->  | I30: =IFERROR(VLOOKUP(A30,'PPF NAV'!A:R,IF(OR(P30=1,'PPF NAV'!$P$1="Elite Unit"),18,17)),"") -> $121.74488990 | J30: $121.74488990 | K30: 10,064.37020991 | L30: $1,225,285.64 | M30: 3.46% | N30: =IFERROR(XIRR( IF(1-FREQUENCY(9^9,INDIRECT(CONCATENATE("A",MATCH(TRUE,$B$17:$B$498<>"",0)+16)):$A30), IF(INDIRECT(CONCATENATE("B",MATCH(TRUE,$B$17:$B$498<>"",0)+16)):$B30="",0,INDIRECT(CONCATENATE("B",MATCH(TRUE,$B$17:$B$498<>"",0)+16)):$B30),-L30), IF(1-FREQUENCY(9^9,INDIRECT(CONCATENATE("A",MATCH(TRUE,$B$17:$B$498<>"",0)+16)):$A30), INDIRECT(CONCATENATE("A",MATCH(TRUE,$B$17:$B$498<>"",0)+16)):$A30,$A30), IF(L30<SUM(INDIRECT(CONCATENATE("B",MATCH(TRUE,$B$17:$B$498<>"",0)+16)):$B30),-0.5,0.5)),"") -> 21.15% | O30: =IFERROR(VLOOKUP(A30,PPF_NAV[],3)/VLOOKUP(A30,PPF_NAV[],2),"") -> 9.57 | P30: =IFERROR(IF(OR(P29=1,(_xlfn.NUMBERVALUE(K29)*VLOOKUP(A30,PPF_NAV[],2,0)+SUM(B30,G30))>=1000000),1,0),"") -> 1 | Q30: 2127397.26 | T30: =INDEX(A:A,17+INT((ROW()-17)/2),1) -> 2018-02-28 | U30: $110.03 | V30: $111.04 | W30: $111.04
A31: =IF('PPF NAV'!A17="","",'PPF NAV'!A17) -> 2018-10-31 | B31: =IFERROR(1/(1/'PPF NAV'!O17),"") ->  | D31: =IF(A31="","",_xlfn.NUMBERVALUE(VLOOKUP(A31,'PPF NAV'!A:C,IF(AND('PPF NAV'!$P$1="Ordinary unit",P31=0),2,3),0))) -> $115.12319027 | E31: $122.33748931 | F31: $122.33748931 | G31: =IFERROR(1/(1/ROUND(MIN(-(MIN(_xlfn.NUMBERVALUE(VLOOKUP(A31,'PPF NAV'!A:C,IF(AND('PPF NAV'!$P$1="Ordinary unit",P30=0),2,3),0)),E31)-F31)*(20%-IF(OR(P30=1,'PPF NAV'!$P$1="Elite Unit"),4%)-IF(A31>=DATE(2021,4,30),2%))*K30,0),2)),"") ->  | H31: =IFERROR(1/(1/ROUND(G31/_xlfn.NUMBERVALUE(VLOOKUP(A31,'PPF NAV'!A:C,IF(AND('PPF NAV'!$P$1="Ordinary unit",P30=0),2,3),0)),8)),"") ->  | I31: =IFERROR(VLOOKUP(A31,'PPF NAV'!A:R,IF(OR(P31=1,'PPF NAV'!$P$1="Elite Unit"),18,17)),"") -> $122.33748931 | J31: $122.33748931 | K31: 10,064.37020991 | L31: $1,158,642.41 | M31: -5.44% | N31: =IFERROR(XIRR( IF(1-FREQUENCY(9^9,INDIRECT(CONCATENATE("A",MATCH(TRUE,$B$17:$B$498<>"",0)+16)):$A31), IF(INDIRECT(CONCATENATE("B",MATCH(TRUE,$B$17:$B$498<>"",0)+16)):$B31="",0,INDIRECT(CONCATENATE("B",MATCH(TRUE,$B$17:$B$498<>"",0)+16)):$B31),-L31), IF(1-FREQUENCY(9^9,INDIRECT(CONCATENATE("A",MATCH(TRUE,$B$17:$B$498<>"",0)+16)):$A31), INDIRECT(CONCATENATE("A",MATCH(TRUE,$B$17:$B$498<>"",0)+16)):$A31,$A31), IF(L31<SUM(INDIRECT(CONCATENATE("B",MATCH(TRUE,$B$17:$B$498<>"",0)+16)):$B31),-0.5,0.5)),"") -> 8.54% | O31: =IFERROR(VLOOKUP(A31,PPF_NAV[],3)/VLOOKUP(A31,PPF_NAV[],2),"") -> 9.57 | P31: =IFERROR(IF(OR(P30=1,(_xlfn.NUMBERVALUE(K30)*VLOOKUP(A31,PPF_NAV[],2,0)+SUM(B31,G31))>=1000000),1,0),"") -> 1 | T31: =INDEX(A:A,17+INT((ROW()-17)/2),1) -> 2018-03-29 | U31: $106.38 | V31: $111.58 | W31: $111.58
A32: =IF('PPF NAV'!A18="","",'PPF NAV'!A18) -> 2018-11-30 | B32: =IFERROR(1/(1/'PPF NAV'!O18),"") ->  | D32: =IF(A32="","",_xlfn.NUMBERVALUE(VLOOKUP(A32,'PPF NAV'!A:C,IF(AND('PPF NAV'!$P$1="Ordinary unit",P32=0),2,3),0))) -> $128.99119023 | E32: $122.93297322 | F32: $122.93297322 | G32: =IFERROR(1/(1/ROUND(MIN(-(MIN(_xlfn.NUMBERVALUE(VLOOKUP(A32,'PPF NAV'!A:C,IF(AND('PPF NAV'!$P$1="Ordinary unit",P31=0),2,3),0)),E32)-F32)*(20%-IF(OR(P31=1,'PPF NAV'!$P$1="Elite Unit"),4%)-IF(A32>=DATE(2021,4,30),2%))*K31,0),2)),"") ->  | H32: =IFERROR(1/(1/ROUND(G32/_xlfn.NUMBERVALUE(VLOOKUP(A32,'PPF NAV'!A:C,IF(AND('PPF NAV'!$P$1="Ordinary unit",P31=0),2,3),0)),8)),"") ->  | I32: =IFERROR(VLOOKUP(A32,'PPF NAV'!A:R,IF(OR(P32=1,'PPF NAV'!$P$1="Elite Unit"),18,17)),"") -> $128.99119023 | J32: $128.99119023 | K32: 10,064.37020991 | L32: $1,298,215.09 | M32: 12.05% | N32: =IFERROR(XIRR( IF(1-FREQUENCY(9^9,INDIRECT(CONCATENATE("A",MATCH(TRUE,$B$17:$B$498<>"",0)+16)):$A32), IF(INDIRECT(CONCATENATE("B",MATCH(TRUE,$B$17:$B$498<>"",0)+16)):$B32="",0,INDIRECT(CONCATENATE("B",MATCH(TRUE,$B$17:$B$498<>"",0)+16)):$B32),-L32), IF(1-FREQUENCY(9^9,INDIRECT(CONCATENATE("A",MATCH(TRUE,$B$17:$B$498<>"",0)+16)):$A32), INDIRECT(CONCATENATE("A",MATCH(TRUE,$B$17:$B$498<>"",0)+16)):$A32,$A32), IF(L32<SUM(INDIRECT(CONCATENATE("B",MATCH(TRUE,$B$17:$B$498<>"",0)+16)):$B32),-0.5,0.5)),"") -> 25.35% | O32: =IFERROR(VLOOKUP(A32,PPF_NAV[],3)/VLOOKUP(A32,PPF_NAV[],2),"") -> 9.59 | P32: =IFERROR(IF(OR(P31=1,(_xlfn.NUMBERVALUE(K31)*VLOOKUP(A32,PPF_NAV[],2,0)+SUM(B32,G32))>=1000000),1,0),"") -> 1 | T32: =INDEX(A:A,17+INT((ROW()-17)/2),1) -> 2018-03-29 | U32: $106.38 | V32: $111.58 | W32: $111.58
A33: =IF('PPF NAV'!A19="","",'PPF NAV'!A19) -> 2018-12-31 | B33: =IFERROR(1/(1/'PPF NAV'!O19),"") ->  | D33: =IF(A33="","",_xlfn.NUMBERVALUE(VLOOKUP(A33,'PPF NAV'!A:C,IF(AND('PPF NAV'!$P$1="Ordinary unit",P33=0),2,3),0))) -> $114.81229890 | E33: $129.61906137 | F33: $129.61906137 | G33: =IFERROR(1/(1/ROUND(MIN(-(MIN(_xlfn.NUMBERVALUE(VLOOKUP(A33,'PPF NAV'!A:C,IF(AND('PPF NAV'!$P$1="Ordinary unit",P32=0),2,3),0)),E33)-F33)*(20%-IF(OR(P32=1,'PPF NAV'!$P$1="Elite Unit"),4%)-IF(A33>=DATE(2021,4,30),2%))*K32,0),2)),"") ->  | H33: =IFERROR(1/(1/ROUND(G33/_xlfn.NUMBERVALUE(VLOOKUP(A33,'PPF NAV'!A:C,IF(AND('PPF NAV'!$P$1="Ordinary unit",P32=0),2,3),0)),8)),"") ->  | I33: =IFERROR(VLOOKUP(A33,'PPF NAV'!A:R,IF(OR(P33=1,'PPF NAV'!$P$1="Elite Unit"),18,17)),"") -> $129.61906137 | J33: $129.61906137 | K33: 10,064.37020991 | L33: $1,155,513.48 | M33: -10.99% | N33: =IFERROR(XIRR( IF(1-FREQUENCY(9^9,INDIRECT(CONCATENATE("A",MATCH(TRUE,$B$17:$B$498<>"",0)+16)):$A33), IF(INDIRECT(CONCATENATE("B",MATCH(TRUE,$B$17:$B$498<>"",0)+16)):$B33="",0,INDIRECT(CONCATENATE("B",MATCH(TRUE,$B$17:$B$498<>"",0)+16)):$B33),-L33), IF(1-FREQUENCY(9^9,INDIRECT(CONCATENATE("A",MATCH(TRUE,$B$17:$B$498<>"",0)+16)):$A33), INDIRECT(CONCATENATE("A",MATCH(TRUE,$B$17:$B$498<>"",0)+16)):$A33,$A33), IF(L33<SUM(INDIRECT(CONCATENATE("B",MATCH(TRUE,$B$17:$B$498<>"",0)+16)):$B33),-0.5,0.5)),"") -> 6.36% | O33: =IFERROR(VLOOKUP(A33,PPF_NAV[],3)/VLOOKUP(A33,PPF_NAV[],2),"") -> 9.59 | P33: =IFERROR(IF(OR(P32=1,(_xlfn.NUMBERVALUE(K32)*VLOOKUP(A33,PPF_NAV[],2,0)+SUM(B33,G33))>=1000000),1,0),"") -> 1 | T33: =INDEX(A:A,17+INT((ROW()-17)/2),1) -> 2018-04-30 | U33: $101.45 | V33: $112.13 | W33: $112.13
A34: =IF('PPF NAV'!A20="","",'PPF NAV'!A20) -> 2019-01-31 | B34: =IFERROR(1/(1/'PPF NAV'!O20),"") -> $200,000.00 | C34: 1,707.23193741 | D34: =IF(A34="","",_xlfn.NUMBERVALUE(VLOOKUP(A34,'PPF NAV'!A:C,IF(AND('PPF NAV'!$P$1="Ordinary unit",P34=0),2,3),0))) -> $117.14869879 | E34: $130.24998871 | F34: $130.24998871 | G34: =IFERROR(1/(1/ROUND(MIN(-(MIN(_xlfn.NUMBERVALUE(VLOOKUP(A34,'PPF NAV'!A:C,IF(AND('PPF NAV'!$P$1="Ordinary unit",P33=0),2,3),0)),E34)-F34)*(20%-IF(OR(P33=1,'PPF NAV'!$P$1="Elite Unit"),4%)-IF(A34>=DATE(2021,4,30),2%))*K33,0),2)),"") ->  | H34: =IFERROR(1/(1/ROUND(G34/_xlfn.NUMBERVALUE(VLOOKUP(A34,'PPF NAV'!A:C,IF(AND('PPF NAV'!$P$1="Ordinary unit",P33=0),2,3),0)),8)),"") ->  | I34: =IFERROR(VLOOKUP(A34,'PPF NAV'!A:R,IF(OR(P34=1,'PPF NAV'!$P$1="Elite Unit"),18,17)),"") -> $130.24998871 | J34: $128.34991255 | K34: 11,771.60214732 | L34: $1,379,027.87 | M34: 2.03% | N34: =IFERROR(XIRR( IF(1-FREQUENCY(9^9,INDIRECT(CONCATENATE("A",MATCH(TRUE,$B$17:$B$498<>"",0)+16)):$A34), IF(INDIRECT(CONCATENATE("B",MATCH(TRUE,$B$17:$B$498<>"",0)+16)):$B34="",0,INDIRECT(CONCATENATE("B",MATCH(TRUE,$B$17:$B$498<>"",0)+16)):$B34),-L34), IF(1-FREQUENCY(9^9,INDIRECT(CONCATENATE("A",MATCH(TRUE,$B$17:$B$498<>"",0)+16)):$A34), INDIRECT(CONCATENATE("A",MATCH(TRUE,$B$17:$B$498<>"",0)+16)):$A34,$A34), IF(L34<SUM(INDIRECT(CONCATENATE("B",MATCH(TRUE,$B$17:$B$498<>"",0)+16)):$B34),-0.5,0.5)),"") -> 8.15% | O34: =IFERROR(VLOOKUP(A34,PPF_NAV[],3)/VLOOKUP(A34,PPF_NAV[],2),"") -> 9.59 | P34: =IFERROR(IF(OR(P33=1,(_xlfn.NUMBERVALUE(K33)*VLOOKUP(A34,PPF_NAV[],2,0)+SUM(B34,G34))>=1000000),1,0),"") -> 1 | Q34: 783561.6438 | T34: =INDEX(A:A,17+INT((ROW()-17)/2),1) -> 2018-04-30 | U34: $101.45 | V34: $112.13 | W34: $112.13
A35: =IF('PPF NAV'!A21="","",'PPF NAV'!A21) -> 2019-02-28 | B35: =IFERROR(1/(1/'PPF NAV'!O21),"") ->  | D35: =IF(A35="","",_xlfn.NUMBERVALUE(VLOOKUP(A35,'PPF NAV'!A:C,IF(AND('PPF NAV'!$P$1="Ordinary unit",P35=0),2,3),0))) -> $111.93391797 | E35: $130.88398711 | F35: $128.97466224 | G35: =IFERROR(1/(1/ROUND(MIN(-(MIN(_xlfn.NUMBERVALUE(VLOOKUP(A35,'PPF NAV'!A:C,IF(AND('PPF NAV'!$P$1="Ordinary unit",P34=0),2,3),0)),E35)-F35)*(20%-IF(OR(P34=1,'PPF NAV'!$P$1="Elite Unit"),4%)-IF(A35>=DATE(2021,4,30),2%))*K34,0),2)),"") ->  | H35: =IFERROR(1/(1/ROUND(G35/_xlfn.NUMBERVALUE(VLOOKUP(A35,'PPF NAV'!A:C,IF(AND('PPF NAV'!$P$1="Ordinary unit",P34=0),2,3),0)),8)),"") ->  | I35: =IFERROR(VLOOKUP(A35,'PPF NAV'!A:R,IF(OR(P35=1,'PPF NAV'!$P$1="Elite Unit"),18,17)),"") -> $130.88398711 | J35: $128.97466224 | K35: 11,771.60214732 | L35: $1,317,641.55 | M35: -4.45% | N35: =IFERROR(XIRR( IF(1-FREQUENCY(9^9,INDIRECT(CONCATENATE("A",MATCH(TRUE,$B$17:$B$498<>"",0)+16)):$A35), IF(INDIRECT(CONCATENATE("B",MATCH(TRUE,$B$17:$B$498<>"",0)+16)):$B35="",0,INDIRECT(CONCATENATE("B",MATCH(TRUE,$B$17:$B$498<>"",0)+16)):$B35),-L35), IF(1-FREQUENCY(9^9,INDIRECT(CONCATENATE("A",MATCH(TRUE,$B$17:$B$498<>"",0)+16)):$A35), INDIRECT(CONCATENATE("A",MATCH(TRUE,$B$17:$B$498<>"",0)+16)):$A35,$A35), IF(L35<SUM(INDIRECT(CONCATENATE("B",MATCH(TRUE,$B$17:$B$498<>"",0)+16)):$B35),-0.5,0.5)),"") -> 1.66% | O35: =IFERROR(VLOOKUP(A35,PPF_NAV[],3)/VLOOKUP(A35,PPF_NAV[],2),"") -> 9.59 | P35: =IFERROR(IF(OR(P34=1,(_xlfn.NUMBERVALUE(K34)*VLOOKUP(A35,PPF_NAV[],2,0)+SUM(B35,G35))>=1000000),1,0),"") -> 1 | T35: =INDEX(A:A,17+INT((ROW()-17)/2),1) -> 2018-05-31 | U35: $101.03 | V35: $112.67 | W35: $112.67
A36: =IF('PPF NAV'!A22="","",'PPF NAV'!A22) -> 2019-03-31 | B36: =IFERROR(1/(1/'PPF NAV'!O22),"") ->  | D36: =IF(A36="","",_xlfn.NUMBERVALUE(VLOOKUP(A36,'PPF NAV'!A:C,IF(AND('PPF NAV'!$P$1="Ordinary unit",P36=0),2,3),0))) -> $110.57325204 | E36: $131.52107154 | F36: $129.60245293 | G36: =IFERROR(1/(1/ROUND(MIN(-(MIN(_xlfn.NUMBERVALUE(VLOOKUP(A36,'PPF NAV'!A:C,IF(AND('PPF NAV'!$P$1="Ordinary unit",P35=0),2,3),0)),E36)-F36)*(20%-IF(OR(P35=1,'PPF NAV'!$P$1="Elite Unit"),4%)-IF(A36>=DATE(2021,4,30),2%))*K35,0),2)),"") ->  | H36: =IFERROR(1/(1/ROUND(G36/_xlfn.NUMBERVALUE(VLOOKUP(A36,'PPF NAV'!A:C,IF(AND('PPF NAV'!$P$1="Ordinary unit",P35=0),2,3),0)),8)),"") ->  | I36: =IFERROR(VLOOKUP(A36,'PPF NAV'!A:R,IF(OR(P36=1,'PPF NAV'!$P$1="Elite Unit"),18,17)),"") -> $131.52107154 | J36: $129.60245293 | K36: 11,771.60214732 | L36: $1,301,624.33 | M36: -1.22% | N36: =IFERROR(XIRR( IF(1-FREQUENCY(9^9,INDIRECT(CONCATENATE("A",MATCH(TRUE,$B$17:$B$498<>"",0)+16)):$A36), IF(INDIRECT(CONCATENATE("B",MATCH(TRUE,$B$17:$B$498<>"",0)+16)):$B36="",0,INDIRECT(CONCATENATE("B",MATCH(TRUE,$B$17:$B$498<>"",0)+16)):$B36),-L36), IF(1-FREQUENCY(9^9,INDIRECT(CONCATENATE("A",MATCH(TRUE,$B$17:$B$498<>"",0)+16)):$A36), INDIRECT(CONCATENATE("A",MATCH(TRUE,$B$17:$B$498<>"",0)+16)):$A36,$A36), IF(L36<SUM(INDIRECT(CONCATENATE("B",MATCH(TRUE,$B$17:$B$498<>"",0)+16)):$B36),-0.5,0.5)),"") -> 0.14% | O36: =IFERROR(VLOOKUP(A36,PPF_NAV[],3)/VLOOKUP(A36,PPF_NAV[],2),"") -> 9.59 | P36: =IFERROR(IF(OR(P35=1,(_xlfn.NUMBERVALUE(K35)*VLOOKUP(A36,PPF_NAV[],2,0)+SUM(B36,G36))>=1000000),1,0),"") -> 1 | T36: =INDEX(A:A,17+INT((ROW()-17)/2),1) -> 2018-05-31 | U36: $101.03 | V36: $112.67 | W36: $112.67
A37: =IF('PPF NAV'!A23="","",'PPF NAV'!A23) -> 2019-04-30 | B37: =IFERROR(1/(1/'PPF NAV'!O23),"") ->  | D37: =IF(A37="","",_xlfn.NUMBERVALUE(VLOOKUP(A37,'PPF NAV'!A:C,IF(AND('PPF NAV'!$P$1="Ordinary unit",P37=0),2,3),0))) -> $130.97575117 | E37: $132.16125700 | F37: $130.23329942 | G37: =IFERROR(1/(1/ROUND(MIN(-(MIN(_xlfn.NUMBERVALUE(VLOOKUP(A37,'PPF NAV'!A:C,IF(AND('PPF NAV'!$P$1="Ordinary unit",P36=0),2,3),0)),E37)-F37)*(20%-IF(OR(P36=1,'PPF NAV'!$P$1="Elite Unit"),4%)-IF(A37>=DATE(2021,4,30),2%))*K36,0),2)),"") -> $(1,398.38) | H37: =IFERROR(1/(1/ROUND(G37/_xlfn.NUMBERVALUE(VLOOKUP(A37,'PPF NAV'!A:C,IF(AND('PPF NAV'!$P$1="Ordinary unit",P36=0),2,3),0)),8)),"") -> -10.67663279 | I37: =IFERROR(VLOOKUP(A37,'PPF NAV'!A:R,IF(OR(P37=1,'PPF NAV'!$P$1="Elite Unit"),18,17)),"") -> $132.16125700 | J37: $130.97575117 | K37: 11,760.92551453 | L37: $1,540,396.05 | M37: 18.34% | N37: =IFERROR(XIRR( IF(1-FREQUENCY(9^9,INDIRECT(CONCATENATE("A",MATCH(TRUE,$B$17:$B$498<>"",0)+16)):$A37), IF(INDIRECT(CONCATENATE("B",MATCH(TRUE,$B$17:$B$498<>"",0)+16)):$B37="",0,INDIRECT(CONCATENATE("B",MATCH(TRUE,$B$17:$B$498<>"",0)+16)):$B37),-L37), IF(1-FREQUENCY(9^9,INDIRECT(CONCATENATE("A",MATCH(TRUE,$B$17:$B$498<>"",0)+16)):$A37), INDIRECT(CONCATENATE("A",MATCH(TRUE,$B$17:$B$498<>"",0)+16)):$A37,$A37), IF(L37<SUM(INDIRECT(CONCATENATE("B",MATCH(TRUE,$B$17:$B$498<>"",0)+16)):$B37),-0.5,0.5)),"") -> 18.28% | O37: =IFERROR(VLOOKUP(A37,PPF_NAV[],3)/VLOOKUP(A37,PPF_NAV[],2),"") -> 9.59 | P37: =IFERROR(IF(OR(P36=1,(_xlfn.NUMBERVALUE(K36)*VLOOKUP(A37,PPF_NAV[],2,0)+SUM(B37,G37))>=1000000),1,0),"") -> 1 | T37: =INDEX(A:A,17+INT((ROW()-17)/2),1) -> 2018-06-29 | U37: $94.78 | V37: $113.22 | W37: $113.22
A38: =IF('PPF NAV'!A24="","",'PPF NAV'!A24) -> 2019-05-31 | B38: =IFERROR(1/(1/'PPF NAV'!O24),"") ->  | D38: =IF(A38="","",_xlfn.NUMBERVALUE(VLOOKUP(A38,'PPF NAV'!A:C,IF(AND('PPF NAV'!$P$1="Ordinary unit",P38=0),2,3),0))) -> $108.68658169 | E38: $132.80455861 | F38: $131.61328226 | G38: =IFERROR(1/(1/ROUND(MIN(-(MIN(_xlfn.NUMBERVALUE(VLOOKUP(A38,'PPF NAV'!A:C,IF(AND('PPF NAV'!$P$1="Ordinary unit",P37=0),2,3),0)),E38)-F38)*(20%-IF(OR(P37=1,'PPF NAV'!$P$1="Elite Unit"),4%)-IF(A38>=DATE(2021,4,30),2%))*K37,0),2)),"") ->  | H38: =IFERROR(1/(1/ROUND(G38/_xlfn.NUMBERVALUE(VLOOKUP(A38,'PPF NAV'!A:C,IF(AND('PPF NAV'!$P$1="Ordinary unit",P37=0),2,3),0)),8)),"") ->  | I38: =IFERROR(VLOOKUP(A38,'PPF NAV'!A:R,IF(OR(P38=1,'PPF NAV'!$P$1="Elite Unit"),18,17)),"") -> $132.80455861 | J38: $131.61328226 | K38: 11,760.92551453 | L38: $1,278,254.79 | M38: -17.02% | N38: =IFERROR(XIRR( IF(1-FREQUENCY(9^9,INDIRECT(CONCATENATE("A",MATCH(TRUE,$B$17:$B$498<>"",0)+16)):$A38), IF(INDIRECT(CONCATENATE("B",MATCH(TRUE,$B$17:$B$498<>"",0)+16)):$B38="",0,INDIRECT(CONCATENATE("B",MATCH(TRUE,$B$17:$B$498<>"",0)+16)):$B38),-L38), IF(1-FREQUENCY(9^9,INDIRECT(CONCATENATE("A",MATCH(TRUE,$B$17:$B$498<>"",0)+16)):$A38), INDIRECT(CONCATENATE("A",MATCH(TRUE,$B$17:$B$498<>"",0)+16)):$A38,$A38), IF(L38<SUM(INDIRECT(CONCATENATE("B",MATCH(TRUE,$B$17:$B$498<>"",0)+16)):$B38),-0.5,0.5)),"") -> -1.57% | O38: =IFERROR(VLOOKUP(A38,PPF_NAV[],3)/VLOOKUP(A38,PPF_NAV[],2),"") -> 9.59 | P38: =IFERROR(IF(OR(P37=1,(_xlfn.NUMBERVALUE(K37)*VLOOKUP(A38,PPF_NAV[],2,0)+SUM(B38,G38))>=1000000),1,0),"") -> 1 | T38: =INDEX(A:A,17+INT((ROW()-17)/2),1) -> 2018-06-29 | U38: $94.78 | V38: $113.22 | W38: $113.22
A39: =IF('PPF NAV'!A25="","",'PPF NAV'!A25) -> 2019-06-30 | B39: =IFERROR(1/(1/'PPF NAV'!O25),"") ->  | D39: =IF(A39="","",_xlfn.NUMBERVALUE(VLOOKUP(A39,'PPF NAV'!A:C,IF(AND('PPF NAV'!$P$1="Ordinary unit",P39=0),2,3),0))) -> $128.43163607 | E39: $133.45099151 | F39: $132.25391657 | G39: =IFERROR(1/(1/ROUND(MIN(-(MIN(_xlfn.NUMBERVALUE(VLOOKUP(A39,'PPF NAV'!A:C,IF(AND('PPF NAV'!$P$1="Ordinary unit",P38=0),2,3),0)),E39)-F39)*(20%-IF(OR(P38=1,'PPF NAV'!$P$1="Elite Unit"),4%)-IF(A39>=DATE(2021,4,30),2%))*K38,0),2)),"") ->  | H39: =IFERROR(1/(1/ROUND(G39/_xlfn.NUMBERVALUE(VLOOKUP(A39,'PPF NAV'!A:C,IF(AND('PPF NAV'!$P$1="Ordinary unit",P38=0),2,3),0)),8)),"") ->  | I39: =IFERROR(VLOOKUP(A39,'PPF NAV'!A:R,IF(OR(P39=1,'PPF NAV'!$P$1="Elite Unit"),18,17)),"") -> $133.45099151 | J39: $132.25391657 | K39: 11,760.92551453 | L39: $1,510,474.91 | M39: 18.17% | N39: =IFERROR(XIRR( IF(1-FREQUENCY(9^9,INDIRECT(CONCATENATE("A",MATCH(TRUE,$B$17:$B$498<>"",0)+16)):$A39), IF(INDIRECT(CONCATENATE("B",MATCH(TRUE,$B$17:$B$498<>"",0)+16)):$B39="",0,INDIRECT(CONCATENATE("B",MATCH(TRUE,$B$17:$B$498<>"",0)+16)):$B39),-L39), IF(1-FREQUENCY(9^9,INDIRECT(CONCATENATE("A",MATCH(TRUE,$B$17:$B$498<>"",0)+16)):$A39), INDIRECT(CONCATENATE("A",MATCH(TRUE,$B$17:$B$498<>"",0)+16)):$A39,$A39), IF(L39<SUM(INDIRECT(CONCATENATE("B",MATCH(TRUE,$B$17:$B$498<>"",0)+16)):$B39),-0.5,0.5)),"") -> 13.66% | O39: =IFERROR(VLOOKUP(A39,PPF_NAV[],3)/VLOOKUP(A39,PPF_NAV[],2),"") -> 9.59 | P39: =IFERROR(IF(OR(P38=1,(_xlfn.NUMBERVALUE(K38)*VLOOKUP(A39,PPF_NAV[],2,0)+SUM(B39,G39))>=1000000),1,0),"") -> 1 | T39: =INDEX(A:A,17+INT((ROW()-17)/2),1) -> 2018-07-31 | U39: $107.97 | V39: $113.77 | W39: $113.77
A40: =IF('PPF NAV'!A26="","",'PPF NAV'!A26) -> 2019-07-31 | B40: =IFERROR(1/(1/'PPF NAV'!O26),"") ->  | D40: =IF(A40="","",_xlfn.NUMBERVALUE(VLOOKUP(A40,'PPF NAV'!A:C,IF(AND('PPF NAV'!$P$1="Ordinary unit",P40=0),2,3),0))) -> $117.68021457 | E40: $134.10057096 | F40: $132.89766919 | G40: =IFERROR(1/(1/ROUND(MIN(-(MIN(_xlfn.NUMBERVALUE(VLOOKUP(A40,'PPF NAV'!A:C,IF(AND('PPF NAV'!$P$1="Ordinary unit",P39=0),2,3),0)),E40)-F40)*(20%-IF(OR(P39=1,'PPF NAV'!$P$1="Elite Unit"),4%)-IF(A40>=DATE(2021,4,30),2%))*K39,0),2)),"") ->  | H40: =IFERROR(1/(1/ROUND(G40/_xlfn.NUMBERVALUE(VLOOKUP(A40,'PPF NAV'!A:C,IF(AND('PPF NAV'!$P$1="Ordinary unit",P39=0),2,3),0)),8)),"") ->  | I40: =IFERROR(VLOOKUP(A40,'PPF NAV'!A:R,IF(OR(P40=1,'PPF NAV'!$P$1="Elite Unit"),18,17)),"") -> $134.10057096 | J40: $132.89766919 | K40: 11,760.92551453 | L40: $1,384,028.24 | M40: -8.37% | N40: =IFERROR(XIRR( IF(1-FREQUENCY(9^9,INDIRECT(CONCATENATE("A",MATCH(TRUE,$B$17:$B$498<>"",0)+16)):$A40), IF(INDIRECT(CONCATENATE("B",MATCH(TRUE,$B$17:$B$498<>"",0)+16)):$B40="",0,INDIRECT(CONCATENATE("B",MATCH(TRUE,$B$17:$B$498<>"",0)+16)):$B40),-L40), IF(1-FREQUENCY(9^9,INDIRECT(CONCATENATE("A",MATCH(TRUE,$B$17:$B$498<>"",0)+16)):$A40), INDIRECT(CONCATENATE("A",MATCH(TRUE,$B$17:$B$498<>"",0)+16)):$A40,$A40), IF(L40<SUM(INDIRECT(CONCATENATE("B",MATCH(TRUE,$B$17:$B$498<>"",0)+16)):$B40),-0.5,0.5)),"") -> 5.16% | O40: =IFERROR(VLOOKUP(A40,PPF_NAV[],3)/VLOOKUP(A40,PPF_NAV[],2),"") -> 9.59 | P40: =IFERROR(IF(OR(P39=1,(_xlfn.NUMBERVALUE(K39)*VLOOKUP(A40,PPF_NAV[],2,0)+SUM(B40,G40))>=1000000),1,0),"") -> 1 | T40: =INDEX(A:A,17+INT((ROW()-17)/2),1) -> 2018-07-31 | U40: $107.97 | V40: $113.77 | W40: $113.77
A41: =IF('PPF NAV'!A27="","",'PPF NAV'!A27) -> 2019-08-31 | B41: =IFERROR(1/(1/'PPF NAV'!O27),"") ->  | D41: =IF(A41="","",_xlfn.NUMBERVALUE(VLOOKUP(A41,'PPF NAV'!A:C,IF(AND('PPF NAV'!$P$1="Ordinary unit",P41=0),2,3),0))) -> $115.53424743 | E41: $134.75331227 | F41: $133.54455532 | G41: =IFERROR(1/(1/ROUND(MIN(-(MIN(_xlfn.NUMBERVALUE(VLOOKUP(A41,'PPF NAV'!A:C,IF(AND('PPF NAV'!$P$1="Ordinary unit",P40=0),2,3),0)),E41)-F41)*(20%-IF(OR(P40=1,'PPF NAV'!$P$1="Elite Unit"),4%)-IF(A41>=DATE(2021,4,30),2%))*K40,0),2)),"") ->  | H41: =IFERROR(1/(1/ROUND(G41/_xlfn.NUMBERVALUE(VLOOKUP(A41,'PPF NAV'!A:C,IF(AND('PPF NAV'!$P$1="Ordinary unit",P40=0),2,3),0)),8)),"") ->  | I41: =IFERROR(VLOOKUP(A41,'PPF NAV'!A:R,IF(OR(P41=1,'PPF NAV'!$P$1="Elite Unit"),18,17)),"") -> $134.75331227 | J41: $133.54455532 | K41: 11,760.92551453 | L41: $1,358,789.68 | M41: -1.82% | N41: =IFERROR(XIRR( IF(1-FREQUENCY(9^9,INDIRECT(CONCATENATE("A",MATCH(TRUE,$B$17:$B$498<>"",0)+16)):$A41), IF(INDIRECT(CONCATENATE("B",MATCH(TRUE,$B$17:$B$498<>"",0)+16)):$B41="",0,INDIRECT(CONCATENATE("B",MATCH(TRUE,$B$17:$B$498<>"",0)+16)):$B41),-L41), IF(1-FREQUENCY(9^9,INDIRECT(CONCATENATE("A",MATCH(TRUE,$B$17:$B$498<>"",0)+16)):$A41), INDIRECT(CONCATENATE("A",MATCH(TRUE,$B$17:$B$498<>"",0)+16)):$A41,$A41), IF(L41<SUM(INDIRECT(CONCATENATE("B",MATCH(TRUE,$B$17:$B$498<>"",0)+16)):$B41),-0.5,0.5)),"") -> 3.39% | O41: =IFERROR(VLOOKUP(A41,PPF_NAV[],3)/VLOOKUP(A41,PPF_NAV[],2),"") -> 9.59 | P41: =IFERROR(IF(OR(P40=1,(_xlfn.NUMBERVALUE(K40)*VLOOKUP(A41,PPF_NAV[],2,0)+SUM(B41,G41))>=1000000),1,0),"") -> 1 | T41: =INDEX(A:A,17+INT((ROW()-17)/2),1) -> 2018-08-31 | U41: $117.50 | V41: $114.32 | W41: $114.32
A42: =IF('PPF NAV'!A28="","",'PPF NAV'!A28) -> 2019-09-30 | B42: =IFERROR(1/(1/'PPF NAV'!O28),"") ->  | D42: =IF(A42="","",_xlfn.NUMBERVALUE(VLOOKUP(A42,'PPF NAV'!A:C,IF(AND('PPF NAV'!$P$1="Ordinary unit",P42=0),2,3),0))) -> $123.75515986 | E42: $135.40923083 | F42: $134.19459020 | G42: =IFERROR(1/(1/ROUND(MIN(-(MIN(_xlfn.NUMBERVALUE(VLOOKUP(A42,'PPF NAV'!A:C,IF(AND('PPF NAV'!$P$1="Ordinary unit",P41=0),2,3),0)),E42)-F42)*(20%-IF(OR(P41=1,'PPF NAV'!$P$1="Elite Unit"),4%)-IF(A42>=DATE(2021,4,30),2%))*K41,0),2)),"") ->  | H42: =IFERROR(1/(1/ROUND(G42/_xlfn.NUMBERVALUE(VLOOKUP(A42,'PPF NAV'!A:C,IF(AND('PPF NAV'!$P$1="Ordinary unit",P41=0),2,3),0)),8)),"") ->  | I42: =IFERROR(VLOOKUP(A42,'PPF NAV'!A:R,IF(OR(P42=1,'PPF NAV'!$P$1="Elite Unit"),18,17)),"") -> $135.40923083 | J42: $134.19459020 | K42: 11,760.92551453 | L42: $1,455,475.22 | M42: 7.12% | N42: =IFERROR(XIRR( IF(1-FREQUENCY(9^9,INDIRECT(CONCATENATE("A",MATCH(TRUE,$B$17:$B$498<>"",0)+16)):$A42), IF(INDIRECT(CONCATENATE("B",MATCH(TRUE,$B$17:$B$498<>"",0)+16)):$B42="",0,INDIRECT(CONCATENATE("B",MATCH(TRUE,$B$17:$B$498<>"",0)+16)):$B42),-L42), IF(1-FREQUENCY(9^9,INDIRECT(CONCATENATE("A",MATCH(TRUE,$B$17:$B$498<>"",0)+16)):$A42), INDIRECT(CONCATENATE("A",MATCH(TRUE,$B$17:$B$498<>"",0)+16)):$A42,$A42), IF(L42<SUM(INDIRECT(CONCATENATE("B",MATCH(TRUE,$B$17:$B$498<>"",0)+16)):$B42),-0.5,0.5)),"") -> 8.30% | O42: =IFERROR(VLOOKUP(A42,PPF_NAV[],3)/VLOOKUP(A42,PPF_NAV[],2),"") -> 9.59 | P42: =IFERROR(IF(OR(P41=1,(_xlfn.NUMBERVALUE(K41)*VLOOKUP(A42,PPF_NAV[],2,0)+SUM(B42,G42))>=1000000),1,0),"") -> 1 | T42: =INDEX(A:A,17+INT((ROW()-17)/2),1) -> 2018-08-31 | U42: $117.50 | V42: $117.50 | W42: $117.50
A43: =IF('PPF NAV'!A29="","",'PPF NAV'!A29) -> 2019-10-31 | B43: =IFERROR(1/(1/'PPF NAV'!O29),"") ->  | D43: =IF(A43="","",_xlfn.NUMBERVALUE(VLOOKUP(A43,'PPF NAV'!A:C,IF(AND('PPF NAV'!$P$1="Ordinary unit",P43=0),2,3),0))) -> $134.54605165 | E43: $136.06834211 | F43: $134.84778915 | G43: =IFERROR(1/(1/ROUND(MIN(-(MIN(_xlfn.NUMBERVALUE(VLOOKUP(A43,'PPF NAV'!A:C,IF(AND('PPF NAV'!$P$1="Ordinary unit",P42=0),2,3),0)),E43)-F43)*(20%-IF(OR(P42=1,'PPF NAV'!$P$1="Elite Unit"),4%)-IF(A43>=DATE(2021,4,30),2%))*K42,0),2)),"") ->  | H43: =IFERROR(1/(1/ROUND(G43/_xlfn.NUMBERVALUE(VLOOKUP(A43,'PPF NAV'!A:C,IF(AND('PPF NAV'!$P$1="Ordinary unit",P42=0),2,3),0)),8)),"") ->  | I43: =IFERROR(VLOOKUP(A43,'PPF NAV'!A:R,IF(OR(P43=1,'PPF NAV'!$P$1="Elite Unit"),18,17)),"") -> $136.06834211 | J43: $134.84778915 | K43: 11,760.92551453 | L43: $1,582,386.09 | M43: 8.72% | N43: =IFERROR(XIRR( IF(1-FREQUENCY(9^9,INDIRECT(CONCATENATE("A",MATCH(TRUE,$B$17:$B$498<>"",0)+16)):$A43), IF(INDIRECT(CONCATENATE("B",MATCH(TRUE,$B$17:$B$498<>"",0)+16)):$B43="",0,INDIRECT(CONCATENATE("B",MATCH(TRUE,$B$17:$B$498<>"",0)+16)):$B43),-L43), IF(1-FREQUENCY(9^9,INDIRECT(CONCATENATE("A",MATCH(TRUE,$B$17:$B$498<>"",0)+16)):$A43), INDIRECT(CONCATENATE("A",MATCH(TRUE,$B$17:$B$498<>"",0)+16)):$A43,$A43), IF(L43<SUM(INDIRECT(CONCATENATE("B",MATCH(TRUE,$B$17:$B$498<>"",0)+16)):$B43),-0.5,0.5)),"") -> 13.91% | O43: =IFERROR(VLOOKUP(A43,PPF_NAV[],3)/VLOOKUP(A43,PPF_NAV[],2),"") -> 9.59 | P43: =IFERROR(IF(OR(P42=1,(_xlfn.NUMBERVALUE(K42)*VLOOKUP(A43,PPF_NAV[],2,0)+SUM(B43,G43))>=1000000),1,0),"") -> 1 | T43: =INDEX(A:A,17+INT((ROW()-17)/2),1) -> 2018-09-30 | U43: $121.74 | V43: $118.07 | W43: $118.07 | X43: $500,000
A44: =IF('PPF NAV'!A30="","",'PPF NAV'!A30) -> 2019-11-30 | B44: =IFERROR(1/(1/'PPF NAV'!O30),"") ->  | D44: =IF(A44="","",_xlfn.NUMBERVALUE(VLOOKUP(A44,'PPF NAV'!A:C,IF(AND('PPF NAV'!$P$1="Ordinary unit",P44=0),2,3),0))) -> $145.60638404 | E44: $136.73066164 | F44: $135.50416758 | G44: =IFERROR(1/(1/ROUND(MIN(-(MIN(_xlfn.NUMBERVALUE(VLOOKUP(A44,'PPF NAV'!A:C,IF(AND('PPF NAV'!$P$1="Ordinary unit",P43=0),2,3),0)),E44)-F44)*(20%-IF(OR(P43=1,'PPF NAV'!$P$1="Elite Unit"),4%)-IF(A44>=DATE(2021,4,30),2%))*K43,0),2)),"") -> $(2,307.95) | H44: =IFERROR(1/(1/ROUND(G44/_xlfn.NUMBERVALUE(VLOOKUP(A44,'PPF NAV'!A:C,IF(AND('PPF NAV'!$P$1="Ordinary unit",P43=0),2,3),0)),8)),"") -> -15.85060995 | I44: =IFERROR(VLOOKUP(A44,'PPF NAV'!A:R,IF(OR(P44=1,'PPF NAV'!$P$1="Elite Unit"),18,17)),"") -> $145.60638404 | J44: $145.60638404 | K44: 11,745.07490458 | L44: $1,710,157.89 | M44: 8.07% | N44: =IFERROR(XIRR( IF(1-FREQUENCY(9^9,INDIRECT(CONCATENATE("A",MATCH(TRUE,$B$17:$B$498<>"",0)+16)):$A44), IF(INDIRECT(CONCATENATE("B",MATCH(TRUE,$B$17:$B$498<>"",0)+16)):$B44="",0,INDIRECT(CONCATENATE("B",MATCH(TRUE,$B$17:$B$498<>"",0)+16)):$B44),-L44), IF(1-FREQUENCY(9^9,INDIRECT(CONCATENATE("A",MATCH(TRUE,$B$17:$B$498<>"",0)+16)):$A44), INDIRECT(CONCATENATE("A",MATCH(TRUE,$B$17:$B$498<>"",0)+16)):$A44,$A44), IF(L44<SUM(INDIRECT(CONCATENATE("B",MATCH(TRUE,$B$17:$B$498<>"",0)+16)):$B44),-0.5,0.5)),"") -> 18.73% | O44: =IFERROR(VLOOKUP(A44,PPF_NAV[],3)/VLOOKUP(A44,PPF_NAV[],2),"") -> 9.62 | P44: =IFERROR(IF(OR(P43=1,(_xlfn.NUMBERVALUE(K43)*VLOOKUP(A44,PPF_NAV[],2,0)+SUM(B44,G44))>=1000000),1,0),"") -> 1 | T44: =INDEX(A:A,17+INT((ROW()-17)/2),1) -> 2018-09-30 | U44: $121.74 | V44: $121.74 | W44: $121.74 | X44: $500,000
A45: =IF('PPF NAV'!A31="","",'PPF NAV'!A31) -> 2019-12-31 | B45: =IFERROR(1/(1/'PPF NAV'!O31),"") ->  | D45: =IF(A45="","",_xlfn.NUMBERVALUE(VLOOKUP(A45,'PPF NAV'!A:C,IF(AND('PPF NAV'!$P$1="Ordinary unit",P45=0),2,3),0))) -> $155.35405639 | E45: $146.31513048 | F45: $146.31513048 | G45: =IFERROR(1/(1/ROUND(MIN(-(MIN(_xlfn.NUMBERVALUE(VLOOKUP(A45,'PPF NAV'!A:C,IF(AND('PPF NAV'!$P$1="Ordinary unit",P44=0),2,3),0)),E45)-F45)*(20%-IF(OR(P44=1,'PPF NAV'!$P$1="Elite Unit"),4%)-IF(A45>=DATE(2021,4,30),2%))*K44,0),2)),"") ->  | H45: =IFERROR(1/(1/ROUND(G45/_xlfn.NUMBERVALUE(VLOOKUP(A45,'PPF NAV'!A:C,IF(AND('PPF NAV'!$P$1="Ordinary unit",P44=0),2,3),0)),8)),"") ->  | I45: =IFERROR(VLOOKUP(A45,'PPF NAV'!A:R,IF(OR(P45=1,'PPF NAV'!$P$1="Elite Unit"),18,17)),"") -> $155.35405639 | J45: $155.35405639 | K45: 11,745.07490458 | L45: $1,824,645.03 | M45: 6.69% | N45: =IFERROR(XIRR( IF(1-FREQUENCY(9^9,INDIRECT(CONCATENATE("A",MATCH(TRUE,$B$17:$B$498<>"",0)+16)):$A45), IF(INDIRECT(CONCATENATE("B",MATCH(TRUE,$B$17:$B$498<>"",0)+16)):$B45="",0,INDIRECT(CONCATENATE("B",MATCH(TRUE,$B$17:$B$498<>"",0)+16)):$B45),-L45), IF(1-FREQUENCY(9^9,INDIRECT(CONCATENATE("A",MATCH(TRUE,$B$17:$B$498<>"",0)+16)):$A45), INDIRECT(CONCATENATE("A",MATCH(TRUE,$B$17:$B$498<>"",0)+16)):$A45,$A45), IF(L45<SUM(INDIRECT(CONCATENATE("B",MATCH(TRUE,$B$17:$B$498<>"",0)+16)):$B45),-0.5,0.5)),"") -> 22.26% | O45: =IFERROR(VLOOKUP(A45,PPF_NAV[],3)/VLOOKUP(A45,PPF_NAV[],2),"") -> 9.64 | P45: =IFERROR(IF(OR(P44=1,(_xlfn.NUMBERVALUE(K44)*VLOOKUP(A45,PPF_NAV[],2,0)+SUM(B45,G45))>=1000000),1,0),"") -> 1 | T45: =INDEX(A:A,17+INT((ROW()-17)/2),1) -> 2018-10-31 | U45: $115.12 | V45: $122.34 | W45: $122.34
A46: =IF('PPF NAV'!A32="","",'PPF NAV'!A32) -> 2020-01-31 | B46: =IFERROR(1/(1/'PPF NAV'!O32),"") ->  | D46: =IF(A46="","",_xlfn.NUMBERVALUE(VLOOKUP(A46,'PPF NAV'!A:C,IF(AND('PPF NAV'!$P$1="Ordinary unit",P46=0),2,3),0))) -> $151.17774801 | E46: $156.11025012 | F46: $156.11025012 | G46: =IFERROR(1/(1/ROUND(MIN(-(MIN(_xlfn.NUMBERVALUE(VLOOKUP(A46,'PPF NAV'!A:C,IF(AND('PPF NAV'!$P$1="Ordinary unit",P45=0),2,3),0)),E46)-F46)*(20%-IF(OR(P45=1,'PPF NAV'!$P$1="Elite Unit"),4%)-IF(A46>=DATE(2021,4,30),2%))*K45,0),2)),"") ->  | H46: =IFERROR(1/(1/ROUND(G46/_xlfn.NUMBERVALUE(VLOOKUP(A46,'PPF NAV'!A:C,IF(AND('PPF NAV'!$P$1="Ordinary unit",P45=0),2,3),0)),8)),"") ->  | I46: =IFERROR(VLOOKUP(A46,'PPF NAV'!A:R,IF(OR(P46=1,'PPF NAV'!$P$1="Elite Unit"),18,17)),"") -> $156.11025012 | J46: $156.11025012 | K46: 11,745.07490458 | L46: $1,775,593.97 | M46: -2.69% | N46: =IFERROR(XIRR( IF(1-FREQUENCY(9^9,INDIRECT(CONCATENATE("A",MATCH(TRUE,$B$17:$B$498<>"",0)+16)):$A46), IF(INDIRECT(CONCATENATE("B",MATCH(TRUE,$B$17:$B$498<>"",0)+16)):$B46="",0,INDIRECT(CONCATENATE("B",MATCH(TRUE,$B$17:$B$498<>"",0)+16)):$B46),-L46), IF(1-FREQUENCY(9^9,INDIRECT(CONCATENATE("A",MATCH(TRUE,$B$17:$B$498<>"",0)+16)):$A46), INDIRECT(CONCATENATE("A",MATCH(TRUE,$B$17:$B$498<>"",0)+16)):$A46,$A46), IF(L46<SUM(INDIRECT(CONCATENATE("B",MATCH(TRUE,$B$17:$B$498<>"",0)+16)):$B46),-0.5,0.5)),"") -> 19.28% | O46: =IFERROR(VLOOKUP(A46,PPF_NAV[],3)/VLOOKUP(A46,PPF_NAV[],2),"") -> 9.64 | P46: =IFERROR(IF(OR(P45=1,(_xlfn.NUMBERVALUE(K45)*VLOOKUP(A46,PPF_NAV[],2,0)+SUM(B46,G46))>=1000000),1,0),"") -> 1 | T46: =INDEX(A:A,17+INT((ROW()-17)/2),1) -> 2018-10-31 | U46: $115.12 | V46: $122.34 | W46: $122.34
A47: =IF('PPF NAV'!A33="","",'PPF NAV'!A33) -> 2020-02-29 | B47: =IFERROR(1/(1/'PPF NAV'!O33),"") ->  | D47: =IF(A47="","",_xlfn.NUMBERVALUE(VLOOKUP(A47,'PPF NAV'!A:C,IF(AND('PPF NAV'!$P$1="Ordinary unit",P47=0),2,3),0))) -> $112.11072306 | E47: $156.87012465 | F47: $156.87012465 | G47: =IFERROR(1/(1/ROUND(MIN(-(MIN(_xlfn.NUMBERVALUE(VLOOKUP(A47,'PPF NAV'!A:C,IF(AND('PPF NAV'!$P$1="Ordinary unit",P46=0),2,3),0)),E47)-F47)*(20%-IF(OR(P46=1,'PPF NAV'!$P$1="Elite Unit"),4%)-IF(A47>=DATE(2021,4,30),2%))*K46,0),2)),"") ->  | H47: =IFERROR(1/(1/ROUND(G47/_xlfn.NUMBERVALUE(VLOOKUP(A47,'PPF NAV'!A:C,IF(AND('PPF NAV'!$P$1="Ordinary unit",P46=0),2,3),0)),8)),"") ->  | I47: =IFERROR(VLOOKUP(A47,'PPF NAV'!A:R,IF(OR(P47=1,'PPF NAV'!$P$1="Elite Unit"),18,17)),"") -> $156.87012465 | J47: $156.87012465 | K47: 11,745.07490458 | L47: $1,316,748.84 | M47: -25.84% | N47: =IFERROR(XIRR( IF(1-FREQUENCY(9^9,INDIRECT(CONCATENATE("A",MATCH(TRUE,$B$17:$B$498<>"",0)+16)):$A47), IF(INDIRECT(CONCATENATE("B",MATCH(TRUE,$B$17:$B$498<>"",0)+16)):$B47="",0,INDIRECT(CONCATENATE("B",MATCH(TRUE,$B$17:$B$498<>"",0)+16)):$B47),-L47), IF(1-FREQUENCY(9^9,INDIRECT(CONCATENATE("A",MATCH(TRUE,$B$17:$B$498<>"",0)+16)):$A47), INDIRECT(CONCATENATE("A",MATCH(TRUE,$B$17:$B$498<>"",0)+16)):$A47,$A47), IF(L47<SUM(INDIRECT(CONCATENATE("B",MATCH(TRUE,$B$17:$B$498<>"",0)+16)):$B47),-0.5,0.5)),"") -> 0.71% | O47: =IFERROR(VLOOKUP(A47,PPF_NAV[],3)/VLOOKUP(A47,PPF_NAV[],2),"") -> 9.64 | P47: =IFERROR(IF(OR(P46=1,(_xlfn.NUMBERVALUE(K46)*VLOOKUP(A47,PPF_NAV[],2,0)+SUM(B47,G47))>=1000000),1,0),"") -> 1 | T47: =INDEX(A:A,17+INT((ROW()-17)/2),1) -> 2018-11-30 | U47: $128.99 | V47: $122.93 | W47: $122.93
A48: =IF('PPF NAV'!A34="","",'PPF NAV'!A34) -> 2020-03-31 | B48: =IFERROR(1/(1/'PPF NAV'!O34),"") ->  | D48: =IF(A48="","",_xlfn.NUMBERVALUE(VLOOKUP(A48,'PPF NAV'!A:C,IF(AND('PPF NAV'!$P$1="Ordinary unit",P48=0),2,3),0))) -> $60.27821342 | E48: $157.63369792 | F48: $157.63369792 | G48: =IFERROR(1/(1/ROUND(MIN(-(MIN(_xlfn.NUMBERVALUE(VLOOKUP(A48,'PPF NAV'!A:C,IF(AND('PPF NAV'!$P$1="Ordinary unit",P47=0),2,3),0)),E48)-F48)*(20%-IF(OR(P47=1,'PPF NAV'!$P$1="Elite Unit"),4%)-IF(A48>=DATE(2021,4,30),2%))*K47,0),2)),"") ->  | H48: =IFERROR(1/(1/ROUND(G48/_xlfn.NUMBERVALUE(VLOOKUP(A48,'PPF NAV'!A:C,IF(AND('PPF NAV'!$P$1="Ordinary unit",P47=0),2,3),0)),8)),"") ->  | I48: =IFERROR(VLOOKUP(A48,'PPF NAV'!A:R,IF(OR(P48=1,'PPF NAV'!$P$1="Elite Unit"),18,17)),"") -> $157.63369792 | J48: $157.63369792 | K48: 11,745.07490458 | L48: $707,972.13 | M48: -46.23% | N48: =IFERROR(XIRR( IF(1-FREQUENCY(9^9,INDIRECT(CONCATENATE("A",MATCH(TRUE,$B$17:$B$498<>"",0)+16)):$A48), IF(INDIRECT(CONCATENATE("B",MATCH(TRUE,$B$17:$B$498<>"",0)+16)):$B48="",0,INDIRECT(CONCATENATE("B",MATCH(TRUE,$B$17:$B$498<>"",0)+16)):$B48),-L48), IF(1-FREQUENCY(9^9,INDIRECT(CONCATENATE("A",MATCH(TRUE,$B$17:$B$498<>"",0)+16)):$A48), INDIRECT(CONCATENATE("A",MATCH(TRUE,$B$17:$B$498<>"",0)+16)):$A48,$A48), IF(L48<SUM(INDIRECT(CONCATENATE("B",MATCH(TRUE,$B$17:$B$498<>"",0)+16)):$B48),-0.5,0.5)),"") -> -27.92% | O48: =IFERROR(VLOOKUP(A48,PPF_NAV[],3)/VLOOKUP(A48,PPF_NAV[],2),"") -> 9.64 | P48: =IFERROR(IF(OR(P47=1,(_xlfn.NUMBERVALUE(K47)*VLOOKUP(A48,PPF_NAV[],2,0)+SUM(B48,G48))>=1000000),1,0),"") -> 1 | T48: =INDEX(A:A,17+INT((ROW()-17)/2),1) -> 2018-11-30 | U48: $128.99 | V48: $128.99 | W48: $128.99
A49: =IF('PPF NAV'!A35="","",'PPF NAV'!A35) -> 2020-04-30 | B49: =IFERROR(1/(1/'PPF NAV'!O35),"") ->  | D49: =IF(A49="","",_xlfn.NUMBERVALUE(VLOOKUP(A49,'PPF NAV'!A:C,IF(AND('PPF NAV'!$P$1="Ordinary unit",P49=0),2,3),0))) -> $65.19791497 | E49: $158.40098791 | F49: $158.40098791 | G49: =IFERROR(1/(1/ROUND(MIN(-(MIN(_xlfn.NUMBERVALUE(VLOOKUP(A49,'PPF NAV'!A:C,IF(AND('PPF NAV'!$P$1="Ordinary unit",P48=0),2,3),0)),E49)-F49)*(20%-IF(OR(P48=1,'PPF NAV'!$P$1="Elite Unit"),4%)-IF(A49>=DATE(2021,4,30),2%))*K48,0),2)),"") ->  | H49: =IFERROR(1/(1/ROUND(G49/_xlfn.NUMBERVALUE(VLOOKUP(A49,'PPF NAV'!A:C,IF(AND('PPF NAV'!$P$1="Ordinary unit",P48=0),2,3),0)),8)),"") ->  | I49: =IFERROR(VLOOKUP(A49,'PPF NAV'!A:R,IF(OR(P49=1,'PPF NAV'!$P$1="Elite Unit"),18,17)),"") -> $158.40098791 | J49: $158.40098791 | K49: 11,745.07490458 | L49: $765,754.39 | M49: 8.16% | N49: =IFERROR(XIRR( IF(1-FREQUENCY(9^9,INDIRECT(CONCATENATE("A",MATCH(TRUE,$B$17:$B$498<>"",0)+16)):$A49), IF(INDIRECT(CONCATENATE("B",MATCH(TRUE,$B$17:$B$498<>"",0)+16)):$B49="",0,INDIRECT(CONCATENATE("B",MATCH(TRUE,$B$17:$B$498<>"",0)+16)):$B49),-L49), IF(1-FREQUENCY(9^9,INDIRECT(CONCATENATE("A",MATCH(TRUE,$B$17:$B$498<>"",0)+16)):$A49), INDIRECT(CONCATENATE("A",MATCH(TRUE,$B$17:$B$498<>"",0)+16)):$A49,$A49), IF(L49<SUM(INDIRECT(CONCATENATE("B",MATCH(TRUE,$B$17:$B$498<>"",0)+16)):$B49),-0.5,0.5)),"") -> -23.81% | O49: =IFERROR(VLOOKUP(A49,PPF_NAV[],3)/VLOOKUP(A49,PPF_NAV[],2),"") -> 9.64 | P49: =IFERROR(IF(OR(P48=1,(_xlfn.NUMBERVALUE(K48)*VLOOKUP(A49,PPF_NAV[],2,0)+SUM(B49,G49))>=1000000),1,0),"") -> 1 | T49: =INDEX(A:A,17+INT((ROW()-17)/2),1) -> 2018-12-31 | U49: $114.81 | V49: $129.62 | W49: $129.62
A50: =IF('PPF NAV'!A36="","",'PPF NAV'!A36) -> 2020-05-31 | B50: =IFERROR(1/(1/'PPF NAV'!O36),"") ->  | D50: =IF(A50="","",_xlfn.NUMBERVALUE(VLOOKUP(A50,'PPF NAV'!A:C,IF(AND('PPF NAV'!$P$1="Ordinary unit",P50=0),2,3),0))) -> $60.99707783 | E50: $159.17201273 | F50: $159.17201273 | G50: =IFERROR(1/(1/ROUND(MIN(-(MIN(_xlfn.NUMBERVALUE(VLOOKUP(A50,'PPF NAV'!A:C,IF(AND('PPF NAV'!$P$1="Ordinary unit",P49=0),2,3),0)),E50)-F50)*(20%-IF(OR(P49=1,'PPF NAV'!$P$1="Elite Unit"),4%)-IF(A50>=DATE(2021,4,30),2%))*K49,0),2)),"") ->  | H50: =IFERROR(1/(1/ROUND(G50/_xlfn.NUMBERVALUE(VLOOKUP(A50,'PPF NAV'!A:C,IF(AND('PPF NAV'!$P$1="Ordinary unit",P49=0),2,3),0)),8)),"") ->  | I50: =IFERROR(VLOOKUP(A50,'PPF NAV'!A:R,IF(OR(P50=1,'PPF NAV'!$P$1="Elite Unit"),18,17)),"") -> $159.17201273 | J50: $159.17201273 | K50: 11,745.07490458 | L50: $716,415.25 | M50: -6.44% | N50: =IFERROR(XIRR( IF(1-FREQUENCY(9^9,INDIRECT(CONCATENATE("A",MATCH(TRUE,$B$17:$B$498<>"",0)+16)):$A50), IF(INDIRECT(CONCATENATE("B",MATCH(TRUE,$B$17:$B$498<>"",0)+16)):$B50="",0,INDIRECT(CONCATENATE("B",MATCH(TRUE,$B$17:$B$498<>"",0)+16)):$B50),-L50), IF(1-FREQUENCY(9^9,INDIRECT(CONCATENATE("A",MATCH(TRUE,$B$17:$B$498<>"",0)+16)):$A50), INDIRECT(CONCATENATE("A",MATCH(TRUE,$B$17:$B$498<>"",0)+16)):$A50,$A50), IF(L50<SUM(INDIRECT(CONCATENATE("B",MATCH(TRUE,$B$17:$B$498<>"",0)+16)):$B50),-0.5,0.5)),"") -> -25.46% | O50: =IFERROR(VLOOKUP(A50,PPF_NAV[],3)/VLOOKUP(A50,PPF_NAV[],2),"") -> 9.64 | P50: =IFERROR(IF(OR(P49=1,(_xlfn.NUMBERVALUE(K49)*VLOOKUP(A50,PPF_NAV[],2,0)+SUM(B50,G50))>=1000000),1,0),"") -> 1 | T50: =INDEX(A:A,17+INT((ROW()-17)/2),1) -> 2018-12-31 | U50: $114.81 | V50: $129.62 | W50: $129.62
A51: =IF('PPF NAV'!A37="","",'PPF NAV'!A37) -> 2020-06-30 | B51: =IFERROR(1/(1/'PPF NAV'!O37),"") ->  | D51: =IF(A51="","",_xlfn.NUMBERVALUE(VLOOKUP(A51,'PPF NAV'!A:C,IF(AND('PPF NAV'!$P$1="Ordinary unit",P51=0),2,3),0))) -> $57.39140142 | E51: $159.94679055 | F51: $159.94679055 | G51: =IFERROR(1/(1/ROUND(MIN(-(MIN(_xlfn.NUMBERVALUE(VLOOKUP(A51,'PPF NAV'!A:C,IF(AND('PPF NAV'!$P$1="Ordinary unit",P50=0),2,3),0)),E51)-F51)*(20%-IF(OR(P50=1,'PPF NAV'!$P$1="Elite Unit"),4%)-IF(A51>=DATE(2021,4,30),2%))*K50,0),2)),"") ->  | H51: =IFERROR(1/(1/ROUND(G51/_xlfn.NUMBERVALUE(VLOOKUP(A51,'PPF NAV'!A:C,IF(AND('PPF NAV'!$P$1="Ordinary unit",P50=0),2,3),0)),8)),"") ->  | I51: =IFERROR(VLOOKUP(A51,'PPF NAV'!A:R,IF(OR(P51=1,'PPF NAV'!$P$1="Elite Unit"),18,17)),"") -> $159.94679055 | J51: $159.94679055 | K51: 11,745.07490458 | L51: $674,066.31 | M51: -5.91% | N51: =IFERROR(XIRR( IF(1-FREQUENCY(9^9,INDIRECT(CONCATENATE("A",MATCH(TRUE,$B$17:$B$498<>"",0)+16)):$A51), IF(INDIRECT(CONCATENATE("B",MATCH(TRUE,$B$17:$B$498<>"",0)+16)):$B51="",0,INDIRECT(CONCATENATE("B",MATCH(TRUE,$B$17:$B$498<>"",0)+16)):$B51),-L51), IF(1-FREQUENCY(9^9,INDIRECT(CONCATENATE("A",MATCH(TRUE,$B$17:$B$498<>"",0)+16)):$A51), INDIRECT(CONCATENATE("A",MATCH(TRUE,$B$17:$B$498<>"",0)+16)):$A51,$A51), IF(L51<SUM(INDIRECT(CONCATENATE("B",MATCH(TRUE,$B$17:$B$498<>"",0)+16)):$B51),-0.5,0.5)),"") -> -26.77% | O51: =IFERROR(VLOOKUP(A51,PPF_NAV[],3)/VLOOKUP(A51,PPF_NAV[],2),"") -> 9.64 | P51: =IFERROR(IF(OR(P50=1,(_xlfn.NUMBERVALUE(K50)*VLOOKUP(A51,PPF_NAV[],2,0)+SUM(B51,G51))>=1000000),1,0),"") -> 1 | T51: =INDEX(A:A,17+INT((ROW()-17)/2),1) -> 2019-01-31 | U51: $117.15 | V51: $130.25 | W51: $130.25 | X51: $200,000
A52: =IF('PPF NAV'!A38="","",'PPF NAV'!A38) -> 2020-07-31 | B52: =IFERROR(1/(1/'PPF NAV'!O38),"") ->  | D52: =IF(A52="","",_xlfn.NUMBERVALUE(VLOOKUP(A52,'PPF NAV'!A:C,IF(AND('PPF NAV'!$P$1="Ordinary unit",P52=0),2,3),0))) -> $68.86087486 | E52: $160.72533964 | F52: $160.72533964 | G52: =IFERROR(1/(1/ROUND(MIN(-(MIN(_xlfn.NUMBERVALUE(VLOOKUP(A52,'PPF NAV'!A:C,IF(AND('PPF NAV'!$P$1="Ordinary unit",P51=0),2,3),0)),E52)-F52)*(20%-IF(OR(P51=1,'PPF NAV'!$P$1="Elite Unit"),4%)-IF(A52>=DATE(2021,4,30),2%))*K51,0),2)),"") ->  | H52: =IFERROR(1/(1/ROUND(G52/_xlfn.NUMBERVALUE(VLOOKUP(A52,'PPF NAV'!A:C,IF(AND('PPF NAV'!$P$1="Ordinary unit",P51=0),2,3),0)),8)),"") ->  | I52: =IFERROR(VLOOKUP(A52,'PPF NAV'!A:R,IF(OR(P52=1,'PPF NAV'!$P$1="Elite Unit"),18,17)),"") -> $160.72533964 | J52: $160.72533964 | K52: 11,745.07490458 | L52: $808,776.13 | M52: 19.98% | N52: =IFERROR(XIRR( IF(1-FREQUENCY(9^9,INDIRECT(CONCATENATE("A",MATCH(TRUE,$B$17:$B$498<>"",0)+16)):$A52), IF(INDIRECT(CONCATENATE("B",MATCH(TRUE,$B$17:$B$498<>"",0)+16)):$B52="",0,INDIRECT(CONCATENATE("B",MATCH(TRUE,$B$17:$B$498<>"",0)+16)):$B52),-L52), IF(1-FREQUENCY(9^9,INDIRECT(CONCATENATE("A",MATCH(TRUE,$B$17:$B$498<>"",0)+16)):$A52), INDIRECT(CONCATENATE("A",MATCH(TRUE,$B$17:$B$498<>"",0)+16)):$A52,$A52), IF(L52<SUM(INDIRECT(CONCATENATE("B",MATCH(TRUE,$B$17:$B$498<>"",0)+16)):$B52),-0.5,0.5)),"") -> -19.35% | O52: =IFERROR(VLOOKUP(A52,PPF_NAV[],3)/VLOOKUP(A52,PPF_NAV[],2),"") -> 9.64 | P52: =IFERROR(IF(OR(P51=1,(_xlfn.NUMBERVALUE(K51)*VLOOKUP(A52,PPF_NAV[],2,0)+SUM(B52,G52))>=1000000),1,0),"") -> 1 | T52: =INDEX(A:A,17+INT((ROW()-17)/2),1) -> 2019-01-31 | U52: $117.15 | V52: $130.25 | W52: $128.35 | X52: $200,000
A53: =IF('PPF NAV'!A39="","",'PPF NAV'!A39) -> 2020-08-31 | B53: =IFERROR(1/(1/'PPF NAV'!O39),"") ->  | D53: =IF(A53="","",_xlfn.NUMBERVALUE(VLOOKUP(A53,'PPF NAV'!A:C,IF(AND('PPF NAV'!$P$1="Ordinary unit",P53=0),2,3),0))) -> $81.31428746 | E53: $161.50767836 | F53: $161.50767836 | G53: =IFERROR(1/(1/ROUND(MIN(-(MIN(_xlfn.NUMBERVALUE(VLOOKUP(A53,'PPF NAV'!A:C,IF(AND('PPF NAV'!$P$1="Ordinary unit",P52=0),2,3),0)),E53)-F53)*(20%-IF(OR(P52=1,'PPF NAV'!$P$1="Elite Unit"),4%)-IF(A53>=DATE(2021,4,30),2%))*K52,0),2)),"") ->  | H53: =IFERROR(1/(1/ROUND(G53/_xlfn.NUMBERVALUE(VLOOKUP(A53,'PPF NAV'!A:C,IF(AND('PPF NAV'!$P$1="Ordinary unit",P52=0),2,3),0)),8)),"") ->  | I53: =IFERROR(VLOOKUP(A53,'PPF NAV'!A:R,IF(OR(P53=1,'PPF NAV'!$P$1="Elite Unit"),18,17)),"") -> $161.50767836 | J53: $161.50767836 | K53: 11,745.07490458 | L53: $955,042.40 | M53: 18.08% | N53: =IFERROR(XIRR( IF(1-FREQUENCY(9^9,INDIRECT(CONCATENATE("A",MATCH(TRUE,$B$17:$B$498<>"",0)+16)):$A53), IF(INDIRECT(CONCATENATE("B",MATCH(TRUE,$B$17:$B$498<>"",0)+16)):$B53="",0,INDIRECT(CONCATENATE("B",MATCH(TRUE,$B$17:$B$498<>"",0)+16)):$B53),-L53), IF(1-FREQUENCY(9^9,INDIRECT(CONCATENATE("A",MATCH(TRUE,$B$17:$B$498<>"",0)+16)):$A53), INDIRECT(CONCATENATE("A",MATCH(TRUE,$B$17:$B$498<>"",0)+16)):$A53,$A53), IF(L53<SUM(INDIRECT(CONCATENATE("B",MATCH(TRUE,$B$17:$B$498<>"",0)+16)):$B53),-0.5,0.5)),"") -> -12.52% | O53: =IFERROR(VLOOKUP(A53,PPF_NAV[],3)/VLOOKUP(A53,PPF_NAV[],2),"") -> 9.64 | P53: =IFERROR(IF(OR(P52=1,(_xlfn.NUMBERVALUE(K52)*VLOOKUP(A53,PPF_NAV[],2,0)+SUM(B53,G53))>=1000000),1,0),"") -> 1 | T53: =INDEX(A:A,17+INT((ROW()-17)/2),1) -> 2019-02-28 | U53: $111.93 | V53: $130.88 | W53: $128.97
A54: =IF('PPF NAV'!A40="","",'PPF NAV'!A40) -> 2020-09-30 | B54: =IFERROR(1/(1/'PPF NAV'!O40),"") ->  | D54: =IF(A54="","",_xlfn.NUMBERVALUE(VLOOKUP(A54,'PPF NAV'!A:C,IF(AND('PPF NAV'!$P$1="Ordinary unit",P54=0),2,3),0))) -> $78.20951311 | E54: $162.29382515 | F54: $162.29382515 | G54: =IFERROR(1/(1/ROUND(MIN(-(MIN(_xlfn.NUMBERVALUE(VLOOKUP(A54,'PPF NAV'!A:C,IF(AND('PPF NAV'!$P$1="Ordinary unit",P53=0),2,3),0)),E54)-F54)*(20%-IF(OR(P53=1,'PPF NAV'!$P$1="Elite Unit"),4%)-IF(A54>=DATE(2021,4,30),2%))*K53,0),2)),"") ->  | H54: =IFERROR(1/(1/ROUND(G54/_xlfn.NUMBERVALUE(VLOOKUP(A54,'PPF NAV'!A:C,IF(AND('PPF NAV'!$P$1="Ordinary unit",P53=0),2,3),0)),8)),"") ->  | I54: =IFERROR(VLOOKUP(A54,'PPF NAV'!A:R,IF(OR(P54=1,'PPF NAV'!$P$1="Elite Unit"),18,17)),"") -> $162.29382515 | J54: $162.29382515 | K54: 11,745.07490458 | L54: $918,576.59 | M54: -3.82% | N54: =IFERROR(XIRR( IF(1-FREQUENCY(9^9,INDIRECT(CONCATENATE("A",MATCH(TRUE,$B$17:$B$498<>"",0)+16)):$A54), IF(INDIRECT(CONCATENATE("B",MATCH(TRUE,$B$17:$B$498<>"",0)+16)):$B54="",0,INDIRECT(CONCATENATE("B",MATCH(TRUE,$B$17:$B$498<>"",0)+16)):$B54),-L54), IF(1-FREQUENCY(9^9,INDIRECT(CONCATENATE("A",MATCH(TRUE,$B$17:$B$498<>"",0)+16)):$A54), INDIRECT(CONCATENATE("A",MATCH(TRUE,$B$17:$B$498<>"",0)+16)):$A54,$A54), IF(L54<SUM(INDIRECT(CONCATENATE("B",MATCH(TRUE,$B$17:$B$498<>"",0)+16)):$B54),-0.5,0.5)),"") -> -13.55% | O54: =IFERROR(VLOOKUP(A54,PPF_NAV[],3)/VLOOKUP(A54,PPF_NAV[],2),"") -> 9.64 | P54: =IFERROR(IF(OR(P53=1,(_xlfn.NUMBERVALUE(K53)*VLOOKUP(A54,PPF_NAV[],2,0)+SUM(B54,G54))>=1000000),1,0),"") -> 1 | T54: =INDEX(A:A,17+INT((ROW()-17)/2),1) -> 2019-02-28 | U54: $111.93 | V54: $130.88 | W54: $128.97
A55: =IF('PPF NAV'!A41="","",'PPF NAV'!A41) -> 2020-10-31 | B55: =IFERROR(1/(1/'PPF NAV'!O41),"") ->  | D55: =IF(A55="","",_xlfn.NUMBERVALUE(VLOOKUP(A55,'PPF NAV'!A:C,IF(AND('PPF NAV'!$P$1="Ordinary unit",P55=0),2,3),0))) -> $75.94188777 | E55: $163.08379855 | F55: $163.08379855 | G55: =IFERROR(1/(1/ROUND(MIN(-(MIN(_xlfn.NUMBERVALUE(VLOOKUP(A55,'PPF NAV'!A:C,IF(AND('PPF NAV'!$P$1="Ordinary unit",P54=0),2,3),0)),E55)-F55)*(20%-IF(OR(P54=1,'PPF NAV'!$P$1="Elite Unit"),4%)-IF(A55>=DATE(2021,4,30),2%))*K54,0),2)),"") ->  | H55: =IFERROR(1/(1/ROUND(G55/_xlfn.NUMBERVALUE(VLOOKUP(A55,'PPF NAV'!A:C,IF(AND('PPF NAV'!$P$1="Ordinary unit",P54=0),2,3),0)),8)),"") ->  | I55: =IFERROR(VLOOKUP(A55,'PPF NAV'!A:R,IF(OR(P55=1,'PPF NAV'!$P$1="Elite Unit"),18,17)),"") -> $163.08379855 | J55: $163.08379855 | K55: 11,745.07490458 | L55: $891,943.16 | M55: -2.90% | N55: =IFERROR(XIRR( IF(1-FREQUENCY(9^9,INDIRECT(CONCATENATE("A",MATCH(TRUE,$B$17:$B$498<>"",0)+16)):$A55), IF(INDIRECT(CONCATENATE("B",MATCH(TRUE,$B$17:$B$498<>"",0)+16)):$B55="",0,INDIRECT(CONCATENATE("B",MATCH(TRUE,$B$17:$B$498<>"",0)+16)):$B55),-L55), IF(1-FREQUENCY(9^9,INDIRECT(CONCATENATE("A",MATCH(TRUE,$B$17:$B$498<>"",0)+16)):$A55), INDIRECT(CONCATENATE("A",MATCH(TRUE,$B$17:$B$498<>"",0)+16)):$A55,$A55), IF(L55<SUM(INDIRECT(CONCATENATE("B",MATCH(TRUE,$B$17:$B$498<>"",0)+16)):$B55),-0.5,0.5)),"") -> -14.15% | O55: =IFERROR(VLOOKUP(A55,PPF_NAV[],3)/VLOOKUP(A55,PPF_NAV[],2),"") -> 9.64 | P55: =IFERROR(IF(OR(P54=1,(_xlfn.NUMBERVALUE(K54)*VLOOKUP(A55,PPF_NAV[],2,0)+SUM(B55,G55))>=1000000),1,0),"") -> 1 | T55: =INDEX(A:A,17+INT((ROW()-17)/2),1) -> 2019-03-31 | U55: $110.57 | V55: $131.52 | W55: $129.60
A56: =IF('PPF NAV'!A42="","",'PPF NAV'!A42) -> 2020-11-30 | B56: =IFERROR(1/(1/'PPF NAV'!O42),"") ->  | D56: =IF(A56="","",_xlfn.NUMBERVALUE(VLOOKUP(A56,'PPF NAV'!A:C,IF(AND('PPF NAV'!$P$1="Ordinary unit",P56=0),2,3),0))) -> $88.77609992 | E56: $163.87761719 | F56: $163.87761719 | G56: =IFERROR(1/(1/ROUND(MIN(-(MIN(_xlfn.NUMBERVALUE(VLOOKUP(A56,'PPF NAV'!A:C,IF(AND('PPF NAV'!$P$1="Ordinary unit",P55=0),2,3),0)),E56)-F56)*(20%-IF(OR(P55=1,'PPF NAV'!$P$1="Elite Unit"),4%)-IF(A56>=DATE(2021,4,30),2%))*K55,0),2)),"") ->  | H56: =IFERROR(1/(1/ROUND(G56/_xlfn.NUMBERVALUE(VLOOKUP(A56,'PPF NAV'!A:C,IF(AND('PPF NAV'!$P$1="Ordinary unit",P55=0),2,3),0)),8)),"") ->  | I56: =IFERROR(VLOOKUP(A56,'PPF NAV'!A:R,IF(OR(P56=1,'PPF NAV'!$P$1="Elite Unit"),18,17)),"") -> $163.87761719 | J56: $163.87761719 | K56: 11,745.07490458 | L56: $1,042,681.94 | M56: 16.90% | N56: =IFERROR(XIRR( IF(1-FREQUENCY(9^9,INDIRECT(CONCATENATE("A",MATCH(TRUE,$B$17:$B$498<>"",0)+16)):$A56), IF(INDIRECT(CONCATENATE("B",MATCH(TRUE,$B$17:$B$498<>"",0)+16)):$B56="",0,INDIRECT(CONCATENATE("B",MATCH(TRUE,$B$17:$B$498<>"",0)+16)):$B56),-L56), IF(1-FREQUENCY(9^9,INDIRECT(CONCATENATE("A",MATCH(TRUE,$B$17:$B$498<>"",0)+16)):$A56), INDIRECT(CONCATENATE("A",MATCH(TRUE,$B$17:$B$498<>"",0)+16)):$A56,$A56), IF(L56<SUM(INDIRECT(CONCATENATE("B",MATCH(TRUE,$B$17:$B$498<>"",0)+16)):$B56),-0.5,0.5)),"") -> -8.25% | O56: =IFERROR(VLOOKUP(A56,PPF_NAV[],3)/VLOOKUP(A56,PPF_NAV[],2),"") -> 9.64 | P56: =IFERROR(IF(OR(P55=1,(_xlfn.NUMBERVALUE(K55)*VLOOKUP(A56,PPF_NAV[],2,0)+SUM(B56,G56))>=1000000),1,0),"") -> 1 | T56: =INDEX(A:A,17+INT((ROW()-17)/2),1) -> 2019-03-31 | U56: $110.57 | V56: $131.52 | W56: $129.60
A57: =IF('PPF NAV'!A43="","",'PPF NAV'!A43) -> 2020-12-31 | B57: =IFERROR(1/(1/'PPF NAV'!O43),"") ->  | D57: =IF(A57="","",_xlfn.NUMBERVALUE(VLOOKUP(A57,'PPF NAV'!A:C,IF(AND('PPF NAV'!$P$1="Ordinary unit",P57=0),2,3),0))) -> $93.61623088 | E57: $164.67529977 | F57: $164.67529977 | G57: =IFERROR(1/(1/ROUND(MIN(-(MIN(_xlfn.NUMBERVALUE(VLOOKUP(A57,'PPF NAV'!A:C,IF(AND('PPF NAV'!$P$1="Ordinary unit",P56=0),2,3),0)),E57)-F57)*(20%-IF(OR(P56=1,'PPF NAV'!$P$1="Elite Unit"),4%)-IF(A57>=DATE(2021,4,30),2%))*K56,0),2)),"") ->  | H57: =IFERROR(1/(1/ROUND(G57/_xlfn.NUMBERVALUE(VLOOKUP(A57,'PPF NAV'!A:C,IF(AND('PPF NAV'!$P$1="Ordinary unit",P56=0),2,3),0)),8)),"") ->  | I57: =IFERROR(VLOOKUP(A57,'PPF NAV'!A:R,IF(OR(P57=1,'PPF NAV'!$P$1="Elite Unit"),18,17)),"") -> $164.67529977 | J57: $164.67529977 | K57: 11,745.07490458 | L57: $1,099,529.64 | M57: 5.45% | N57: =IFERROR(XIRR( IF(1-FREQUENCY(9^9,INDIRECT(CONCATENATE("A",MATCH(TRUE,$B$17:$B$498<>"",0)+16)):$A57), IF(INDIRECT(CONCATENATE("B",MATCH(TRUE,$B$17:$B$498<>"",0)+16)):$B57="",0,INDIRECT(CONCATENATE("B",MATCH(TRUE,$B$17:$B$498<>"",0)+16)):$B57),-L57), IF(1-FREQUENCY(9^9,INDIRECT(CONCATENATE("A",MATCH(TRUE,$B$17:$B$498<>"",0)+16)):$A57), INDIRECT(CONCATENATE("A",MATCH(TRUE,$B$17:$B$498<>"",0)+16)):$A57,$A57), IF(L57<SUM(INDIRECT(CONCATENATE("B",MATCH(TRUE,$B$17:$B$498<>"",0)+16)):$B57),-0.5,0.5)),"") -> -6.13% | O57: =IFERROR(VLOOKUP(A57,PPF_NAV[],3)/VLOOKUP(A57,PPF_NAV[],2),"") -> 9.64 | P57: =IFERROR(IF(OR(P56=1,(_xlfn.NUMBERVALUE(K56)*VLOOKUP(A57,PPF_NAV[],2,0)+SUM(B57,G57))>=1000000),1,0),"") -> 1 | T57: =INDEX(A:A,17+INT((ROW()-17)/2),1) -> 2019-04-30 | U57: $130.98 | V57: $132.16 | W57: $130.23
A58: =IF('PPF NAV'!A44="","",'PPF NAV'!A44) -> 2021-01-31 | B58: =IFERROR(1/(1/'PPF NAV'!O44),"") ->  | D58: =IF(A58="","",_xlfn.NUMBERVALUE(VLOOKUP(A58,'PPF NAV'!A:C,IF(AND('PPF NAV'!$P$1="Ordinary unit",P58=0),2,3),0))) -> $94.57833346 | E58: $165.47686512 | F58: $165.47686512 | G58: =IFERROR(1/(1/ROUND(MIN(-(MIN(_xlfn.NUMBERVALUE(VLOOKUP(A58,'PPF NAV'!A:C,IF(AND('PPF NAV'!$P$1="Ordinary unit",P57=0),2,3),0)),E58)-F58)*(20%-IF(OR(P57=1,'PPF NAV'!$P$1="Elite Unit"),4%)-IF(A58>=DATE(2021,4,30),2%))*K57,0),2)),"") ->  | H58: =IFERROR(1/(1/ROUND(G58/_xlfn.NUMBERVALUE(VLOOKUP(A58,'PPF NAV'!A:C,IF(AND('PPF NAV'!$P$1="Ordinary unit",P57=0),2,3),0)),8)),"") ->  | I58: =IFERROR(VLOOKUP(A58,'PPF NAV'!A:R,IF(OR(P58=1,'PPF NAV'!$P$1="Elite Unit"),18,17)),"") -> $165.47686512 | J58: $165.47686512 | K58: 11,745.07490458 | L58: $1,110,829.61 | M58: 1.03% | N58: =IFERROR(XIRR( IF(1-FREQUENCY(9^9,INDIRECT(CONCATENATE("A",MATCH(TRUE,$B$17:$B$498<>"",0)+16)):$A58), IF(INDIRECT(CONCATENATE("B",MATCH(TRUE,$B$17:$B$498<>"",0)+16)):$B58="",0,INDIRECT(CONCATENATE("B",MATCH(TRUE,$B$17:$B$498<>"",0)+16)):$B58),-L58), IF(1-FREQUENCY(9^9,INDIRECT(CONCATENATE("A",MATCH(TRUE,$B$17:$B$498<>"",0)+16)):$A58), INDIRECT(CONCATENATE("A",MATCH(TRUE,$B$17:$B$498<>"",0)+16)):$A58,$A58), IF(L58<SUM(INDIRECT(CONCATENATE("B",MATCH(TRUE,$B$17:$B$498<>"",0)+16)):$B58),-0.5,0.5)),"") -> -5.59% | O58: =IFERROR(VLOOKUP(A58,PPF_NAV[],3)/VLOOKUP(A58,PPF_NAV[],2),"") -> 9.64 | P58: =IFERROR(IF(OR(P57=1,(_xlfn.NUMBERVALUE(K57)*VLOOKUP(A58,PPF_NAV[],2,0)+SUM(B58,G58))>=1000000),1,0),"") -> 1 | T58: =INDEX(A:A,17+INT((ROW()-17)/2),1) -> 2019-04-30 | U58: $130.98 | V58: $132.16 | W58: $130.98
A59: =IF('PPF NAV'!A45="","",'PPF NAV'!A45) -> 2021-02-28 | B59: =IFERROR(1/(1/'PPF NAV'!O45),"") ->  | D59: =IF(A59="","",_xlfn.NUMBERVALUE(VLOOKUP(A59,'PPF NAV'!A:C,IF(AND('PPF NAV'!$P$1="Ordinary unit",P59=0),2,3),0))) -> $99.16041500 | E59: $166.28233213 | F59: $166.28233213 | G59: =IFERROR(1/(1/ROUND(MIN(-(MIN(_xlfn.NUMBERVALUE(VLOOKUP(A59,'PPF NAV'!A:C,IF(AND('PPF NAV'!$P$1="Ordinary unit",P58=0),2,3),0)),E59)-F59)*(20%-IF(OR(P58=1,'PPF NAV'!$P$1="Elite Unit"),4%)-IF(A59>=DATE(2021,4,30),2%))*K58,0),2)),"") ->  | H59: =IFERROR(1/(1/ROUND(G59/_xlfn.NUMBERVALUE(VLOOKUP(A59,'PPF NAV'!A:C,IF(AND('PPF NAV'!$P$1="Ordinary unit",P58=0),2,3),0)),8)),"") ->  | I59: =IFERROR(VLOOKUP(A59,'PPF NAV'!A:R,IF(OR(P59=1,'PPF NAV'!$P$1="Elite Unit"),18,17)),"") -> $166.28233213 | J59: $166.28233213 | K59: 11,745.07490458 | L59: $1,164,646.50 | M59: 4.84% | N59: =IFERROR(XIRR( IF(1-FREQUENCY(9^9,INDIRECT(CONCATENATE("A",MATCH(TRUE,$B$17:$B$498<>"",0)+16)):$A59), IF(INDIRECT(CONCATENATE("B",MATCH(TRUE,$B$17:$B$498<>"",0)+16)):$B59="",0,INDIRECT(CONCATENATE("B",MATCH(TRUE,$B$17:$B$498<>"",0)+16)):$B59),-L59), IF(1-FREQUENCY(9^9,INDIRECT(CONCATENATE("A",MATCH(TRUE,$B$17:$B$498<>"",0)+16)):$A59), INDIRECT(CONCATENATE("A",MATCH(TRUE,$B$17:$B$498<>"",0)+16)):$A59,$A59), IF(L59<SUM(INDIRECT(CONCATENATE("B",MATCH(TRUE,$B$17:$B$498<>"",0)+16)):$B59),-0.5,0.5)),"") -> -3.83% | O59: =IFERROR(VLOOKUP(A59,PPF_NAV[],3)/VLOOKUP(A59,PPF_NAV[],2),"") -> 9.64 | P59: =IFERROR(IF(OR(P58=1,(_xlfn.NUMBERVALUE(K58)*VLOOKUP(A59,PPF_NAV[],2,0)+SUM(B59,G59))>=1000000),1,0),"") -> 1 | T59: =INDEX(A:A,17+INT((ROW()-17)/2),1) -> 2019-05-31 | U59: $108.69 | V59: $132.80 | W59: $131.61
A60: =IF('PPF NAV'!A46="","",'PPF NAV'!A46) -> 2021-03-31 | B60: =IFERROR(1/(1/'PPF NAV'!O46),"") ->  | D60: =IF(A60="","",_xlfn.NUMBERVALUE(VLOOKUP(A60,'PPF NAV'!A:C,IF(AND('PPF NAV'!$P$1="Ordinary unit",P60=0),2,3),0))) -> $110.75280278 | E60: $167.09171979 | F60: $167.09171979 | G60: =IFERROR(1/(1/ROUND(MIN(-(MIN(_xlfn.NUMBERVALUE(VLOOKUP(A60,'PPF NAV'!A:C,IF(AND('PPF NAV'!$P$1="Ordinary unit",P59=0),2,3),0)),E60)-F60)*(20%-IF(OR(P59=1,'PPF NAV'!$P$1="Elite Unit"),4%)-IF(A60>=DATE(2021,4,30),2%))*K59,0),2)),"") ->  | H60: =IFERROR(1/(1/ROUND(G60/_xlfn.NUMBERVALUE(VLOOKUP(A60,'PPF NAV'!A:C,IF(AND('PPF NAV'!$P$1="Ordinary unit",P59=0),2,3),0)),8)),"") ->  | I60: =IFERROR(VLOOKUP(A60,'PPF NAV'!A:R,IF(OR(P60=1,'PPF NAV'!$P$1="Elite Unit"),18,17)),"") -> $167.09171979 | J60: $167.09171979 | K60: 11,745.07490458 | L60: $1,300,799.96 | M60: 11.69% | N60: =IFERROR(XIRR( IF(1-FREQUENCY(9^9,INDIRECT(CONCATENATE("A",MATCH(TRUE,$B$17:$B$498<>"",0)+16)):$A60), IF(INDIRECT(CONCATENATE("B",MATCH(TRUE,$B$17:$B$498<>"",0)+16)):$B60="",0,INDIRECT(CONCATENATE("B",MATCH(TRUE,$B$17:$B$498<>"",0)+16)):$B60),-L60), IF(1-FREQUENCY(9^9,INDIRECT(CONCATENATE("A",MATCH(TRUE,$B$17:$B$498<>"",0)+16)):$A60), INDIRECT(CONCATENATE("A",MATCH(TRUE,$B$17:$B$498<>"",0)+16)):$A60,$A60), IF(L60<SUM(INDIRECT(CONCATENATE("B",MATCH(TRUE,$B$17:$B$498<>"",0)+16)):$B60),-0.5,0.5)),"") -> 0.02% | O60: =IFERROR(VLOOKUP(A60,PPF_NAV[],3)/VLOOKUP(A60,PPF_NAV[],2),"") -> 9.64 | P60: =IFERROR(IF(OR(P59=1,(_xlfn.NUMBERVALUE(K59)*VLOOKUP(A60,PPF_NAV[],2,0)+SUM(B60,G60))>=1000000),1,0),"") -> 1 | T60: =INDEX(A:A,17+INT((ROW()-17)/2),1) -> 2019-05-31 | U60: $108.69 | V60: $132.80 | W60: $131.61
A61: =IF('PPF NAV'!A47="","",'PPF NAV'!A47) -> 2021-04-30 | B61: =IFERROR(1/(1/'PPF NAV'!O47),"") ->  | D61: =IF(A61="","",_xlfn.NUMBERVALUE(VLOOKUP(A61,'PPF NAV'!A:C,IF(AND('PPF NAV'!$P$1="Ordinary unit",P61=0),2,3),0))) -> $117.21238154 | E61: $167.90504719 | F61: $167.90504719 | G61: =IFERROR(1/(1/ROUND(MIN(-(MIN(_xlfn.NUMBERVALUE(VLOOKUP(A61,'PPF NAV'!A:C,IF(AND('PPF NAV'!$P$1="Ordinary unit",P60=0),2,3),0)),E61)-F61)*(20%-IF(OR(P60=1,'PPF NAV'!$P$1="Elite Unit"),4%)-IF(A61>=DATE(2021,4,30),2%))*K60,0),2)),"") ->  | H61: =IFERROR(1/(1/ROUND(G61/_xlfn.NUMBERVALUE(VLOOKUP(A61,'PPF NAV'!A:C,IF(AND('PPF NAV'!$P$1="Ordinary unit",P60=0),2,3),0)),8)),"") ->  | I61: =IFERROR(VLOOKUP(A61,'PPF NAV'!A:R,IF(OR(P61=1,'PPF NAV'!$P$1="Elite Unit"),18,17)),"") -> $167.90504719 | J61: $167.90504719 | K61: 11,745.07490458 | L61: $1,376,668.20 | M61: 5.83% | N61: =IFERROR(XIRR( IF(1-FREQUENCY(9^9,INDIRECT(CONCATENATE("A",MATCH(TRUE,$B$17:$B$498<>"",0)+16)):$A61), IF(INDIRECT(CONCATENATE("B",MATCH(TRUE,$B$17:$B$498<>"",0)+16)):$B61="",0,INDIRECT(CONCATENATE("B",MATCH(TRUE,$B$17:$B$498<>"",0)+16)):$B61),-L61), IF(1-FREQUENCY(9^9,INDIRECT(CONCATENATE("A",MATCH(TRUE,$B$17:$B$498<>"",0)+16)):$A61), INDIRECT(CONCATENATE("A",MATCH(TRUE,$B$17:$B$498<>"",0)+16)):$A61,$A61), IF(L61<SUM(INDIRECT(CONCATENATE("B",MATCH(TRUE,$B$17:$B$498<>"",0)+16)):$B61),-0.5,0.5)),"") -> 1.93% | O61: =IFERROR(VLOOKUP(A61,PPF_NAV[],3)/VLOOKUP(A61,PPF_NAV[],2),"") -> 9.64 | P61: =IFERROR(IF(OR(P60=1,(_xlfn.NUMBERVALUE(K60)*VLOOKUP(A61,PPF_NAV[],2,0)+SUM(B61,G61))>=1000000),1,0),"") -> 1 | T61: =INDEX(A:A,17+INT((ROW()-17)/2),1) -> 2019-06-30 | U61: $128.43 | V61: $133.45 | W61: $132.25
A62: =IF('PPF NAV'!A48="","",'PPF NAV'!A48) -> 2021-05-31 | B62: =IFERROR(1/(1/'PPF NAV'!O48),"") ->  | D62: =IF(A62="","",_xlfn.NUMBERVALUE(VLOOKUP(A62,'PPF NAV'!A:C,IF(AND('PPF NAV'!$P$1="Ordinary unit",P62=0),2,3),0))) -> $120.49214918 | E62: $168.72233349 | F62: $168.72233349 | G62: =IFERROR(1/(1/ROUND(MIN(-(MIN(_xlfn.NUMBERVALUE(VLOOKUP(A62,'PPF NAV'!A:C,IF(AND('PPF NAV'!$P$1="Ordinary unit",P61=0),2,3),0)),E62)-F62)*(20%-IF(OR(P61=1,'PPF NAV'!$P$1="Elite Unit"),4%)-IF(A62>=DATE(2021,4,30),2%))*K61,0),2)),"") ->  | H62: =IFERROR(1/(1/ROUND(G62/_xlfn.NUMBERVALUE(VLOOKUP(A62,'PPF NAV'!A:C,IF(AND('PPF NAV'!$P$1="Ordinary unit",P61=0),2,3),0)),8)),"") ->  | I62: =IFERROR(VLOOKUP(A62,'PPF NAV'!A:R,IF(OR(P62=1,'PPF NAV'!$P$1="Elite Unit"),18,17)),"") -> $168.72233349 | J62: $168.72233349 | K62: 11,745.07490458 | L62: $1,415,189.32 | M62: 2.80% | N62: =IFERROR(XIRR( IF(1-FREQUENCY(9^9,INDIRECT(CONCATENATE("A",MATCH(TRUE,$B$17:$B$498<>"",0)+16)):$A62), IF(INDIRECT(CONCATENATE("B",MATCH(TRUE,$B$17:$B$498<>"",0)+16)):$B62="",0,INDIRECT(CONCATENATE("B",MATCH(TRUE,$B$17:$B$498<>"",0)+16)):$B62),-L62), IF(1-FREQUENCY(9^9,INDIRECT(CONCATENATE("A",MATCH(TRUE,$B$17:$B$498<>"",0)+16)):$A62), INDIRECT(CONCATENATE("A",MATCH(TRUE,$B$17:$B$498<>"",0)+16)):$A62,$A62), IF(L62<SUM(INDIRECT(CONCATENATE("B",MATCH(TRUE,$B$17:$B$498<>"",0)+16)):$B62),-0.5,0.5)),"") -> 2.80% | O62: =IFERROR(VLOOKUP(A62,PPF_NAV[],3)/VLOOKUP(A62,PPF_NAV[],2),"") -> 9.64 | P62: =IFERROR(IF(OR(P61=1,(_xlfn.NUMBERVALUE(K61)*VLOOKUP(A62,PPF_NAV[],2,0)+SUM(B62,G62))>=1000000),1,0),"") -> 1 | T62: =INDEX(A:A,17+INT((ROW()-17)/2),1) -> 2019-06-30 | U62: $128.43 | V62: $133.45 | W62: $132.25
A63: =IF('PPF NAV'!A49="","",'PPF NAV'!A49) -> 2021-06-30 | B63: =IFERROR(1/(1/'PPF NAV'!O49),"") ->  | D63: =IF(A63="","",_xlfn.NUMBERVALUE(VLOOKUP(A63,'PPF NAV'!A:C,IF(AND('PPF NAV'!$P$1="Ordinary unit",P63=0),2,3),0))) -> $119.62077980 | E63: $169.54359798 | F63: $169.54359798 | G63: =IFERROR(1/(1/ROUND(MIN(-(MIN(_xlfn.NUMBERVALUE(VLOOKUP(A63,'PPF NAV'!A:C,IF(AND('PPF NAV'!$P$1="Ordinary unit",P62=0),2,3),0)),E63)-F63)*(20%-IF(OR(P62=1,'PPF NAV'!$P$1="Elite Unit"),4%)-IF(A63>=DATE(2021,4,30),2%))*K62,0),2)),"") ->  | H63: =IFERROR(1/(1/ROUND(G63/_xlfn.NUMBERVALUE(VLOOKUP(A63,'PPF NAV'!A:C,IF(AND('PPF NAV'!$P$1="Ordinary unit",P62=0),2,3),0)),8)),"") ->  | I63: =IFERROR(VLOOKUP(A63,'PPF NAV'!A:R,IF(OR(P63=1,'PPF NAV'!$P$1="Elite Unit"),18,17)),"") -> $169.54359798 | J63: $169.54359798 | K63: 11,745.07490458 | L63: $1,404,955.02 | M63: -0.72% | N63: =IFERROR(XIRR( IF(1-FREQUENCY(9^9,INDIRECT(CONCATENATE("A",MATCH(TRUE,$B$17:$B$498<>"",0)+16)):$A63), IF(INDIRECT(CONCATENATE("B",MATCH(TRUE,$B$17:$B$498<>"",0)+16)):$B63="",0,INDIRECT(CONCATENATE("B",MATCH(TRUE,$B$17:$B$498<>"",0)+16)):$B63),-L63), IF(1-FREQUENCY(9^9,INDIRECT(CONCATENATE("A",MATCH(TRUE,$B$17:$B$498<>"",0)+16)):$A63), INDIRECT(CONCATENATE("A",MATCH(TRUE,$B$17:$B$498<>"",0)+16)):$A63,$A63), IF(L63<SUM(INDIRECT(CONCATENATE("B",MATCH(TRUE,$B$17:$B$498<>"",0)+16)):$B63),-0.5,0.5)),"") -> 2.49% | O63: =IFERROR(VLOOKUP(A63,PPF_NAV[],3)/VLOOKUP(A63,PPF_NAV[],2),"") -> 9.64 | P63: =IFERROR(IF(OR(P62=1,(_xlfn.NUMBERVALUE(K62)*VLOOKUP(A63,PPF_NAV[],2,0)+SUM(B63,G63))>=1000000),1,0),"") -> 1 | T63: =INDEX(A:A,17+INT((ROW()-17)/2),1) -> 2019-07-31 | U63: $117.68 | V63: $134.10 | W63: $132.90
A64: =IF('PPF NAV'!A50="","",'PPF NAV'!A50) -> 2021-07-31 | B64: =IFERROR(1/(1/'PPF NAV'!O50),"") ->  | D64: =IF(A64="","",_xlfn.NUMBERVALUE(VLOOKUP(A64,'PPF NAV'!A:C,IF(AND('PPF NAV'!$P$1="Ordinary unit",P64=0),2,3),0))) -> $126.48441719 | E64: $170.36886002 | F64: $170.36886002 | G64: =IFERROR(1/(1/ROUND(MIN(-(MIN(_xlfn.NUMBERVALUE(VLOOKUP(A64,'PPF NAV'!A:C,IF(AND('PPF NAV'!$P$1="Ordinary unit",P63=0),2,3),0)),E64)-F64)*(20%-IF(OR(P63=1,'PPF NAV'!$P$1="Elite Unit"),4%)-IF(A64>=DATE(2021,4,30),2%))*K63,0),2)),"") ->  | H64: =IFERROR(1/(1/ROUND(G64/_xlfn.NUMBERVALUE(VLOOKUP(A64,'PPF NAV'!A:C,IF(AND('PPF NAV'!$P$1="Ordinary unit",P63=0),2,3),0)),8)),"") ->  | I64: =IFERROR(VLOOKUP(A64,'PPF NAV'!A:R,IF(OR(P64=1,'PPF NAV'!$P$1="Elite Unit"),18,17)),"") -> $170.36886002 | J64: $170.36886002 | K64: 11,745.07490458 | L64: $1,485,568.95 | M64: 5.74% | N64: =IFERROR(XIRR( IF(1-FREQUENCY(9^9,INDIRECT(CONCATENATE("A",MATCH(TRUE,$B$17:$B$498<>"",0)+16)):$A64), IF(INDIRECT(CONCATENATE("B",MATCH(TRUE,$B$17:$B$498<>"",0)+16)):$B64="",0,INDIRECT(CONCATENATE("B",MATCH(TRUE,$B$17:$B$498<>"",0)+16)):$B64),-L64), IF(1-FREQUENCY(9^9,INDIRECT(CONCATENATE("A",MATCH(TRUE,$B$17:$B$498<>"",0)+16)):$A64), INDIRECT(CONCATENATE("A",MATCH(TRUE,$B$17:$B$498<>"",0)+16)):$A64,$A64), IF(L64<SUM(INDIRECT(CONCATENATE("B",MATCH(TRUE,$B$17:$B$498<>"",0)+16)):$B64),-0.5,0.5)),"") -> 4.20% | O64: =IFERROR(VLOOKUP(A64,PPF_NAV[],3)/VLOOKUP(A64,PPF_NAV[],2),"") -> 9.64 | P64: =IFERROR(IF(OR(P63=1,(_xlfn.NUMBERVALUE(K63)*VLOOKUP(A64,PPF_NAV[],2,0)+SUM(B64,G64))>=1000000),1,0),"") -> 1 | T64: =INDEX(A:A,17+INT((ROW()-17)/2),1) -> 2019-07-31 | U64: $117.68 | V64: $134.10 | W64: $132.90
A65: =IF('PPF NAV'!A51="","",'PPF NAV'!A51) -> 2021-08-31 | B65: =IFERROR(1/(1/'PPF NAV'!O51),"") ->  | D65: =IF(A65="","",_xlfn.NUMBERVALUE(VLOOKUP(A65,'PPF NAV'!A:C,IF(AND('PPF NAV'!$P$1="Ordinary unit",P65=0),2,3),0))) -> $126.17541258 | E65: $171.19813906 | F65: $171.19813906 | G65: =IFERROR(1/(1/ROUND(MIN(-(MIN(_xlfn.NUMBERVALUE(VLOOKUP(A65,'PPF NAV'!A:C,IF(AND('PPF NAV'!$P$1="Ordinary unit",P64=0),2,3),0)),E65)-F65)*(20%-IF(OR(P64=1,'PPF NAV'!$P$1="Elite Unit"),4%)-IF(A65>=DATE(2021,4,30),2%))*K64,0),2)),"") ->  | H65: =IFERROR(1/(1/ROUND(G65/_xlfn.NUMBERVALUE(VLOOKUP(A65,'PPF NAV'!A:C,IF(AND('PPF NAV'!$P$1="Ordinary unit",P64=0),2,3),0)),8)),"") ->  | I65: =IFERROR(VLOOKUP(A65,'PPF NAV'!A:R,IF(OR(P65=1,'PPF NAV'!$P$1="Elite Unit"),18,17)),"") -> $171.19813906 | J65: $171.19813906 | K65: 11,745.07490458 | L65: $1,481,939.67 | M65: -0.24% | N65: =IFERROR(XIRR( IF(1-FREQUENCY(9^9,INDIRECT(CONCATENATE("A",MATCH(TRUE,$B$17:$B$498<>"",0)+16)):$A65), IF(INDIRECT(CONCATENATE("B",MATCH(TRUE,$B$17:$B$498<>"",0)+16)):$B65="",0,INDIRECT(CONCATENATE("B",MATCH(TRUE,$B$17:$B$498<>"",0)+16)):$B65),-L65), IF(1-FREQUENCY(9^9,INDIRECT(CONCATENATE("A",MATCH(TRUE,$B$17:$B$498<>"",0)+16)):$A65), INDIRECT(CONCATENATE("A",MATCH(TRUE,$B$17:$B$498<>"",0)+16)):$A65,$A65), IF(L65<SUM(INDIRECT(CONCATENATE("B",MATCH(TRUE,$B$17:$B$498<>"",0)+16)):$B65),-0.5,0.5)),"") -> 4.01% | O65: =IFERROR(VLOOKUP(A65,PPF_NAV[],3)/VLOOKUP(A65,PPF_NAV[],2),"") -> 9.64 | P65: =IFERROR(IF(OR(P64=1,(_xlfn.NUMBERVALUE(K64)*VLOOKUP(A65,PPF_NAV[],2,0)+SUM(B65,G65))>=1000000),1,0),"") -> 1 | T65: =INDEX(A:A,17+INT((ROW()-17)/2),1) -> 2019-08-31 | U65: $115.53 | V65: $134.75 | W65: $133.54
A66: =IF('PPF NAV'!A52="","",'PPF NAV'!A52) -> 2021-09-30 | B66: =IFERROR(1/(1/'PPF NAV'!O52),"") ->  | D66: =IF(A66="","",_xlfn.NUMBERVALUE(VLOOKUP(A66,'PPF NAV'!A:C,IF(AND('PPF NAV'!$P$1="Ordinary unit",P66=0),2,3),0))) -> $127.69693330 | E66: $172.03145466 | F66: $172.03145466 | G66: =IFERROR(1/(1/ROUND(MIN(-(MIN(_xlfn.NUMBERVALUE(VLOOKUP(A66,'PPF NAV'!A:C,IF(AND('PPF NAV'!$P$1="Ordinary unit",P65=0),2,3),0)),E66)-F66)*(20%-IF(OR(P65=1,'PPF NAV'!$P$1="Elite Unit"),4%)-IF(A66>=DATE(2021,4,30),2%))*K65,0),2)),"") ->  | H66: =IFERROR(1/(1/ROUND(G66/_xlfn.NUMBERVALUE(VLOOKUP(A66,'PPF NAV'!A:C,IF(AND('PPF NAV'!$P$1="Ordinary unit",P65=0),2,3),0)),8)),"") ->  | I66: =IFERROR(VLOOKUP(A66,'PPF NAV'!A:R,IF(OR(P66=1,'PPF NAV'!$P$1="Elite Unit"),18,17)),"") -> $172.03145466 | J66: $172.03145466 | K66: 11,745.07490458 | L66: $1,499,810.05 | M66: 1.21% | N66: =IFERROR(XIRR( IF(1-FREQUENCY(9^9,INDIRECT(CONCATENATE("A",MATCH(TRUE,$B$17:$B$498<>"",0)+16)):$A66), IF(INDIRECT(CONCATENATE("B",MATCH(TRUE,$B$17:$B$498<>"",0)+16)):$B66="",0,INDIRECT(CONCATENATE("B",MATCH(TRUE,$B$17:$B$498<>"",0)+16)):$B66),-L66), IF(1-FREQUENCY(9^9,INDIRECT(CONCATENATE("A",MATCH(TRUE,$B$17:$B$498<>"",0)+16)):$A66), INDIRECT(CONCATENATE("A",MATCH(TRUE,$B$17:$B$498<>"",0)+16)):$A66,$A66), IF(L66<SUM(INDIRECT(CONCATENATE("B",MATCH(TRUE,$B$17:$B$498<>"",0)+16)):$B66),-0.5,0.5)),"") -> 4.28% | O66: =IFERROR(VLOOKUP(A66,PPF_NAV[],3)/VLOOKUP(A66,PPF_NAV[],2),"") -> 9.64 | P66: =IFERROR(IF(OR(P65=1,(_xlfn.NUMBERVALUE(K65)*VLOOKUP(A66,PPF_NAV[],2,0)+SUM(B66,G66))>=1000000),1,0),"") -> 1 | T66: =INDEX(A:A,17+INT((ROW()-17)/2),1) -> 2019-08-31 | U66: $115.53 | V66: $134.75 | W66: $133.54
A67: =IF('PPF NAV'!A53="","",'PPF NAV'!A53) -> 2021-10-31 | B67: =IFERROR(1/(1/'PPF NAV'!O53),"") ->  | D67: =IF(A67="","",_xlfn.NUMBERVALUE(VLOOKUP(A67,'PPF NAV'!A:C,IF(AND('PPF NAV'!$P$1="Ordinary unit",P67=0),2,3),0))) -> $128.41714730 | E67: $172.86882646 | F67: $172.86882646 | G67: =IFERROR(1/(1/ROUND(MIN(-(MIN(_xlfn.NUMBERVALUE(VLOOKUP(A67,'PPF NAV'!A:C,IF(AND('PPF NAV'!$P$1="Ordinary unit",P66=0),2,3),0)),E67)-F67)*(20%-IF(OR(P66=1,'PPF NAV'!$P$1="Elite Unit"),4%)-IF(A67>=DATE(2021,4,30),2%))*K66,0),2)),"") ->  | H67: =IFERROR(1/(1/ROUND(G67/_xlfn.NUMBERVALUE(VLOOKUP(A67,'PPF NAV'!A:C,IF(AND('PPF NAV'!$P$1="Ordinary unit",P66=0),2,3),0)),8)),"") ->  | I67: =IFERROR(VLOOKUP(A67,'PPF NAV'!A:R,IF(OR(P67=1,'PPF NAV'!$P$1="Elite Unit"),18,17)),"") -> $172.86882646 | J67: $172.86882646 | K67: 11,745.07490458 | L67: $1,508,269.01 | M67: 0.56% | N67: =IFERROR(XIRR( IF(1-FREQUENCY(9^9,INDIRECT(CONCATENATE("A",MATCH(TRUE,$B$17:$B$498<>"",0)+16)):$A67), IF(INDIRECT(CONCATENATE("B",MATCH(TRUE,$B$17:$B$498<>"",0)+16)):$B67="",0,INDIRECT(CONCATENATE("B",MATCH(TRUE,$B$17:$B$498<>"",0)+16)):$B67),-L67), IF(1-FREQUENCY(9^9,INDIRECT(CONCATENATE("A",MATCH(TRUE,$B$17:$B$498<>"",0)+16)):$A67), INDIRECT(CONCATENATE("A",MATCH(TRUE,$B$17:$B$498<>"",0)+16)):$A67,$A67), IF(L67<SUM(INDIRECT(CONCATENATE("B",MATCH(TRUE,$B$17:$B$498<>"",0)+16)):$B67),-0.5,0.5)),"") -> 4.34% | O67: =IFERROR(VLOOKUP(A67,PPF_NAV[],3)/VLOOKUP(A67,PPF_NAV[],2),"") -> 9.64 | P67: =IFERROR(IF(OR(P66=1,(_xlfn.NUMBERVALUE(K66)*VLOOKUP(A67,PPF_NAV[],2,0)+SUM(B67,G67))>=1000000),1,0),"") -> 1 | T67: =INDEX(A:A,17+INT((ROW()-17)/2),1) -> 2019-09-30 | U67: $123.76 | V67: $135.41 | W67: $134.19
A68: =IF('PPF NAV'!A54="","",'PPF NAV'!A54) -> 2021-11-30 | B68: =IFERROR(1/(1/'PPF NAV'!O54),"") ->  | D68: =IF(A68="","",_xlfn.NUMBERVALUE(VLOOKUP(A68,'PPF NAV'!A:C,IF(AND('PPF NAV'!$P$1="Ordinary unit",P68=0),2,3),0))) -> $126.22621778 | E68: $173.71027422 | F68: $173.71027422 | G68: =IFERROR(1/(1/ROUND(MIN(-(MIN(_xlfn.NUMBERVALUE(VLOOKUP(A68,'PPF NAV'!A:C,IF(AND('PPF NAV'!$P$1="Ordinary unit",P67=0),2,3),0)),E68)-F68)*(20%-IF(OR(P67=1,'PPF NAV'!$P$1="Elite Unit"),4%)-IF(A68>=DATE(2021,4,30),2%))*K67,0),2)),"") ->  | H68: =IFERROR(1/(1/ROUND(G68/_xlfn.NUMBERVALUE(VLOOKUP(A68,'PPF NAV'!A:C,IF(AND('PPF NAV'!$P$1="Ordinary unit",P67=0),2,3),0)),8)),"") ->  | I68: =IFERROR(VLOOKUP(A68,'PPF NAV'!A:R,IF(OR(P68=1,'PPF NAV'!$P$1="Elite Unit"),18,17)),"") -> $173.71027422 | J68: $173.71027422 | K68: 11,745.07490458 | L68: $1,482,536.38 | M68: -1.71% | N68: =IFERROR(XIRR( IF(1-FREQUENCY(9^9,INDIRECT(CONCATENATE("A",MATCH(TRUE,$B$17:$B$498<>"",0)+16)):$A68), IF(INDIRECT(CONCATENATE("B",MATCH(TRUE,$B$17:$B$498<>"",0)+16)):$B68="",0,INDIRECT(CONCATENATE("B",MATCH(TRUE,$B$17:$B$498<>"",0)+16)):$B68),-L68), IF(1-FREQUENCY(9^9,INDIRECT(CONCATENATE("A",MATCH(TRUE,$B$17:$B$498<>"",0)+16)):$A68), INDIRECT(CONCATENATE("A",MATCH(TRUE,$B$17:$B$498<>"",0)+16)):$A68,$A68), IF(L68<SUM(INDIRECT(CONCATENATE("B",MATCH(TRUE,$B$17:$B$498<>"",0)+16)):$B68),-0.5,0.5)),"") -> 3.74% | O68: =IFERROR(VLOOKUP(A68,PPF_NAV[],3)/VLOOKUP(A68,PPF_NAV[],2),"") -> 9.64 | P68: =IFERROR(IF(OR(P67=1,(_xlfn.NUMBERVALUE(K67)*VLOOKUP(A68,PPF_NAV[],2,0)+SUM(B68,G68))>=1000000),1,0),"") -> 1 | T68: =INDEX(A:A,17+INT((ROW()-17)/2),1) -> 2019-09-30 | U68: $123.76 | V68: $135.41 | W68: $134.19
A69: =IF('PPF NAV'!A55="","",'PPF NAV'!A55) -> 2021-12-31 | B69: =IFERROR(1/(1/'PPF NAV'!O55),"") ->  | D69: =IF(A69="","",_xlfn.NUMBERVALUE(VLOOKUP(A69,'PPF NAV'!A:C,IF(AND('PPF NAV'!$P$1="Ordinary unit",P69=0),2,3),0))) -> $133.28314641 | E69: $174.55581776 | F69: $174.55581776 | G69: =IFERROR(1/(1/ROUND(MIN(-(MIN(_xlfn.NUMBERVALUE(VLOOKUP(A69,'PPF NAV'!A:C,IF(AND('PPF NAV'!$P$1="Ordinary unit",P68=0),2,3),0)),E69)-F69)*(20%-IF(OR(P68=1,'PPF NAV'!$P$1="Elite Unit"),4%)-IF(A69>=DATE(2021,4,30),2%))*K68,0),2)),"") ->  | H69: =IFERROR(1/(1/ROUND(G69/_xlfn.NUMBERVALUE(VLOOKUP(A69,'PPF NAV'!A:C,IF(AND('PPF NAV'!$P$1="Ordinary unit",P68=0),2,3),0)),8)),"") ->  | I69: =IFERROR(VLOOKUP(A69,'PPF NAV'!A:R,IF(OR(P69=1,'PPF NAV'!$P$1="Elite Unit"),18,17)),"") -> $174.55581776 | J69: $174.55581776 | K69: 11,745.07490458 | L69: $1,565,420.54 | M69: 5.59% | N69: =IFERROR(XIRR( IF(1-FREQUENCY(9^9,INDIRECT(CONCATENATE("A",MATCH(TRUE,$B$17:$B$498<>"",0)+16)):$A69), IF(INDIRECT(CONCATENATE("B",MATCH(TRUE,$B$17:$B$498<>"",0)+16)):$B69="",0,INDIRECT(CONCATENATE("B",MATCH(TRUE,$B$17:$B$498<>"",0)+16)):$B69),-L69), IF(1-FREQUENCY(9^9,INDIRECT(CONCATENATE("A",MATCH(TRUE,$B$17:$B$498<>"",0)+16)):$A69), INDIRECT(CONCATENATE("A",MATCH(TRUE,$B$17:$B$498<>"",0)+16)):$A69,$A69), IF(L69<SUM(INDIRECT(CONCATENATE("B",MATCH(TRUE,$B$17:$B$498<>"",0)+16)):$B69),-0.5,0.5)),"") -> 5.20% | O69: =IFERROR(VLOOKUP(A69,PPF_NAV[],3)/VLOOKUP(A69,PPF_NAV[],2),"") -> 9.64 | P69: =IFERROR(IF(OR(P68=1,(_xlfn.NUMBERVALUE(K68)*VLOOKUP(A69,PPF_NAV[],2,0)+SUM(B69,G69))>=1000000),1,0),"") -> 1 | T69: =INDEX(A:A,17+INT((ROW()-17)/2),1) -> 2019-10-31 | U69: $134.55 | V69: $136.07 | W69: $134.85
A70: =IF('PPF NAV'!A56="","",'PPF NAV'!A56) -> 2022-01-31 | B70: =IFERROR(1/(1/'PPF NAV'!O56),"") ->  | D70: =IF(A70="","",_xlfn.NUMBERVALUE(VLOOKUP(A70,'PPF NAV'!A:C,IF(AND('PPF NAV'!$P$1="Ordinary unit",P70=0),2,3),0))) -> $124.99569154 | E70: $175.40547703 | F70: $175.40547703 | G70: =IFERROR(1/(1/ROUND(MIN(-(MIN(_xlfn.NUMBERVALUE(VLOOKUP(A70,'PPF NAV'!A:C,IF(AND('PPF NAV'!$P$1="Ordinary unit",P69=0),2,3),0)),E70)-F70)*(20%-IF(OR(P69=1,'PPF NAV'!$P$1="Elite Unit"),4%)-IF(A70>=DATE(2021,4,30),2%))*K69,0),2)),"") ->  | H70: =IFERROR(1/(1/ROUND(G70/_xlfn.NUMBERVALUE(VLOOKUP(A70,'PPF NAV'!A:C,IF(AND('PPF NAV'!$P$1="Ordinary unit",P69=0),2,3),0)),8)),"") ->  | I70: =IFERROR(VLOOKUP(A70,'PPF NAV'!A:R,IF(OR(P70=1,'PPF NAV'!$P$1="Elite Unit"),18,17)),"") -> $175.40547703 | J70: $175.40547703 | K70: 11,745.07490458 | L70: $1,468,083.76 | M70: -6.22% | N70: =IFERROR(XIRR( IF(1-FREQUENCY(9^9,INDIRECT(CONCATENATE("A",MATCH(TRUE,$B$17:$B$498<>"",0)+16)):$A70), IF(INDIRECT(CONCATENATE("B",MATCH(TRUE,$B$17:$B$498<>"",0)+16)):$B70="",0,INDIRECT(CONCATENATE("B",MATCH(TRUE,$B$17:$B$498<>"",0)+16)):$B70),-L70), IF(1-FREQUENCY(9^9,INDIRECT(CONCATENATE("A",MATCH(TRUE,$B$17:$B$498<>"",0)+16)):$A70), INDIRECT(CONCATENATE("A",MATCH(TRUE,$B$17:$B$498<>"",0)+16)):$A70,$A70), IF(L70<SUM(INDIRECT(CONCATENATE("B",MATCH(TRUE,$B$17:$B$498<>"",0)+16)):$B70),-0.5,0.5)),"") -> 3.30% | O70: =IFERROR(VLOOKUP(A70,PPF_NAV[],3)/VLOOKUP(A70,PPF_NAV[],2),"") -> 9.64 | P70: =IFERROR(IF(OR(P69=1,(_xlfn.NUMBERVALUE(K69)*VLOOKUP(A70,PPF_NAV[],2,0)+SUM(B70,G70))>=1000000),1,0),"") -> 1 | T70: =INDEX(A:A,17+INT((ROW()-17)/2),1) -> 2019-10-31 | U70: $134.55 | V70: $136.07 | W70: $134.85
A71: =IF('PPF NAV'!A57="","",'PPF NAV'!A57) -> 2022-02-28 | B71: =IFERROR(1/(1/'PPF NAV'!O57),"") ->  | D71: =IF(A71="","",_xlfn.NUMBERVALUE(VLOOKUP(A71,'PPF NAV'!A:C,IF(AND('PPF NAV'!$P$1="Ordinary unit",P71=0),2,3),0))) -> $119.65254318 | E71: $176.25927206 | F71: $176.25927206 | G71: =IFERROR(1/(1/ROUND(MIN(-(MIN(_xlfn.NUMBERVALUE(VLOOKUP(A71,'PPF NAV'!A:C,IF(AND('PPF NAV'!$P$1="Ordinary unit",P70=0),2,3),0)),E71)-F71)*(20%-IF(OR(P70=1,'PPF NAV'!$P$1="Elite Unit"),4%)-IF(A71>=DATE(2021,4,30),2%))*K70,0),2)),"") ->  | H71: =IFERROR(1/(1/ROUND(G71/_xlfn.NUMBERVALUE(VLOOKUP(A71,'PPF NAV'!A:C,IF(AND('PPF NAV'!$P$1="Ordinary unit",P70=0),2,3),0)),8)),"") ->  | I71: =IFERROR(VLOOKUP(A71,'PPF NAV'!A:R,IF(OR(P71=1,'PPF NAV'!$P$1="Elite Unit"),18,17)),"") -> $176.25927206 | J71: $176.25927206 | K71: 11,745.07490458 | L71: $1,405,328.08 | M71: -4.27% | N71: =IFERROR(XIRR( IF(1-FREQUENCY(9^9,INDIRECT(CONCATENATE("A",MATCH(TRUE,$B$17:$B$498<>"",0)+16)):$A71), IF(INDIRECT(CONCATENATE("B",MATCH(TRUE,$B$17:$B$498<>"",0)+16)):$B71="",0,INDIRECT(CONCATENATE("B",MATCH(TRUE,$B$17:$B$498<>"",0)+16)):$B71),-L71), IF(1-FREQUENCY(9^9,INDIRECT(CONCATENATE("A",MATCH(TRUE,$B$17:$B$498<>"",0)+16)):$A71), INDIRECT(CONCATENATE("A",MATCH(TRUE,$B$17:$B$498<>"",0)+16)):$A71,$A71), IF(L71<SUM(INDIRECT(CONCATENATE("B",MATCH(TRUE,$B$17:$B$498<>"",0)+16)):$B71),-0.5,0.5)),"") -> 2.06% | O71: =IFERROR(VLOOKUP(A71,PPF_NAV[],3)/VLOOKUP(A71,PPF_NAV[],2),"") -> 9.64 | P71: =IFERROR(IF(OR(P70=1,(_xlfn.NUMBERVALUE(K70)*VLOOKUP(A71,PPF_NAV[],2,0)+SUM(B71,G71))>=1000000),1,0),"") -> 1 | T71: =INDEX(A:A,17+INT((ROW()-17)/2),1) -> 2019-11-30 | U71: $145.61 | V71: $136.73 | W71: $135.50
A72: =IF('PPF NAV'!A58="","",'PPF NAV'!A58) -> 2022-03-31 | B72: =IFERROR(1/(1/'PPF NAV'!O58),"") ->  | D72: =IF(A72="","",_xlfn.NUMBERVALUE(VLOOKUP(A72,'PPF NAV'!A:C,IF(AND('PPF NAV'!$P$1="Ordinary unit",P72=0),2,3),0))) -> $120.69823676 | E72: $177.11722298 | F72: $177.11722298 | G72: =IFERROR(1/(1/ROUND(MIN(-(MIN(_xlfn.NUMBERVALUE(VLOOKUP(A72,'PPF NAV'!A:C,IF(AND('PPF NAV'!$P$1="Ordinary unit",P71=0),2,3),0)),E72)-F72)*(20%-IF(OR(P71=1,'PPF NAV'!$P$1="Elite Unit"),4%)-IF(A72>=DATE(2021,4,30),2%))*K71,0),2)),"") ->  | H72: =IFERROR(1/(1/ROUND(G72/_xlfn.NUMBERVALUE(VLOOKUP(A72,'PPF NAV'!A:C,IF(AND('PPF NAV'!$P$1="Ordinary unit",P71=0),2,3),0)),8)),"") ->  | I72: =IFERROR(VLOOKUP(A72,'PPF NAV'!A:R,IF(OR(P72=1,'PPF NAV'!$P$1="Elite Unit"),18,17)),"") -> $177.11722298 | J72: $177.11722298 | K72: 11,745.07490458 | L72: $1,417,609.83 | M72: 0.87% | N72: =IFERROR(XIRR( IF(1-FREQUENCY(9^9,INDIRECT(CONCATENATE("A",MATCH(TRUE,$B$17:$B$498<>"",0)+16)):$A72), IF(INDIRECT(CONCATENATE("B",MATCH(TRUE,$B$17:$B$498<>"",0)+16)):$B72="",0,INDIRECT(CONCATENATE("B",MATCH(TRUE,$B$17:$B$498<>"",0)+16)):$B72),-L72), IF(1-FREQUENCY(9^9,INDIRECT(CONCATENATE("A",MATCH(TRUE,$B$17:$B$498<>"",0)+16)):$A72), INDIRECT(CONCATENATE("A",MATCH(TRUE,$B$17:$B$498<>"",0)+16)):$A72,$A72), IF(L72<SUM(INDIRECT(CONCATENATE("B",MATCH(TRUE,$B$17:$B$498<>"",0)+16)):$B72),-0.5,0.5)),"") -> 2.24% | O72: =IFERROR(VLOOKUP(A72,PPF_NAV[],3)/VLOOKUP(A72,PPF_NAV[],2),"") -> 9.64 | P72: =IFERROR(IF(OR(P71=1,(_xlfn.NUMBERVALUE(K71)*VLOOKUP(A72,PPF_NAV[],2,0)+SUM(B72,G72))>=1000000),1,0),"") -> 1 | T72: =INDEX(A:A,17+INT((ROW()-17)/2),1) -> 2019-11-30 | U72: $145.61 | V72: $145.61 | W72: $145.61
A73: =IF('PPF NAV'!A59="","",'PPF NAV'!A59) -> 2022-04-30 | B73: =IFERROR(1/(1/'PPF NAV'!O59),"") ->  | D73: =IF(A73="","",_xlfn.NUMBERVALUE(VLOOKUP(A73,'PPF NAV'!A:C,IF(AND('PPF NAV'!$P$1="Ordinary unit",P73=0),2,3),0))) -> $109.21187825 | E73: $177.97935002 | F73: $177.97935002 | G73: =IFERROR(1/(1/ROUND(MIN(-(MIN(_xlfn.NUMBERVALUE(VLOOKUP(A73,'PPF NAV'!A:C,IF(AND('PPF NAV'!$P$1="Ordinary unit",P72=0),2,3),0)),E73)-F73)*(20%-IF(OR(P72=1,'PPF NAV'!$P$1="Elite Unit"),4%)-IF(A73>=DATE(2021,4,30),2%))*K72,0),2)),"") ->  | H73: =IFERROR(1/(1/ROUND(G73/_xlfn.NUMBERVALUE(VLOOKUP(A73,'PPF NAV'!A:C,IF(AND('PPF NAV'!$P$1="Ordinary unit",P72=0),2,3),0)),8)),"") ->  | I73: =IFERROR(VLOOKUP(A73,'PPF NAV'!A:R,IF(OR(P73=1,'PPF NAV'!$P$1="Elite Unit"),18,17)),"") -> $177.97935002 | J73: $177.97935002 | K73: 11,745.07490458 | L73: $1,282,701.69 | M73: -9.52% | N73: =IFERROR(XIRR( IF(1-FREQUENCY(9^9,INDIRECT(CONCATENATE("A",MATCH(TRUE,$B$17:$B$498<>"",0)+16)):$A73), IF(INDIRECT(CONCATENATE("B",MATCH(TRUE,$B$17:$B$498<>"",0)+16)):$B73="",0,INDIRECT(CONCATENATE("B",MATCH(TRUE,$B$17:$B$498<>"",0)+16)):$B73),-L73), IF(1-FREQUENCY(9^9,INDIRECT(CONCATENATE("A",MATCH(TRUE,$B$17:$B$498<>"",0)+16)):$A73), INDIRECT(CONCATENATE("A",MATCH(TRUE,$B$17:$B$498<>"",0)+16)):$A73,$A73), IF(L73<SUM(INDIRECT(CONCATENATE("B",MATCH(TRUE,$B$17:$B$498<>"",0)+16)):$B73),-0.5,0.5)),"") -> -0.34% | O73: =IFERROR(VLOOKUP(A73,PPF_NAV[],3)/VLOOKUP(A73,PPF_NAV[],2),"") -> 9.64 | P73: =IFERROR(IF(OR(P72=1,(_xlfn.NUMBERVALUE(K72)*VLOOKUP(A73,PPF_NAV[],2,0)+SUM(B73,G73))>=1000000),1,0),"") -> 1 | T73: =INDEX(A:A,17+INT((ROW()-17)/2),1) -> 2019-12-31 | U73: $155.35 | V73: $146.32 | W73: $146.32
A74: =IF('PPF NAV'!A60="","",'PPF NAV'!A60) -> 2022-05-31 | B74: =IFERROR(1/(1/'PPF NAV'!O60),"") ->  | D74: =IF(A74="","",_xlfn.NUMBERVALUE(VLOOKUP(A74,'PPF NAV'!A:C,IF(AND('PPF NAV'!$P$1="Ordinary unit",P74=0),2,3),0))) -> $114.21524316 | E74: $178.84567350 | F74: $178.84567350 | G74: =IFERROR(1/(1/ROUND(MIN(-(MIN(_xlfn.NUMBERVALUE(VLOOKUP(A74,'PPF NAV'!A:C,IF(AND('PPF NAV'!$P$1="Ordinary unit",P73=0),2,3),0)),E74)-F74)*(20%-IF(OR(P73=1,'PPF NAV'!$P$1="Elite Unit"),4%)-IF(A74>=DATE(2021,4,30),2%))*K73,0),2)),"") ->  | H74: =IFERROR(1/(1/ROUND(G74/_xlfn.NUMBERVALUE(VLOOKUP(A74,'PPF NAV'!A:C,IF(AND('PPF NAV'!$P$1="Ordinary unit",P73=0),2,3),0)),8)),"") ->  | I74: =IFERROR(VLOOKUP(A74,'PPF NAV'!A:R,IF(OR(P74=1,'PPF NAV'!$P$1="Elite Unit"),18,17)),"") -> $178.84567350 | J74: $178.84567350 | K74: 11,745.07490458 | L74: $1,341,466.59 | M74: 4.58% | N74: =IFERROR(XIRR( IF(1-FREQUENCY(9^9,INDIRECT(CONCATENATE("A",MATCH(TRUE,$B$17:$B$498<>"",0)+16)):$A74), IF(INDIRECT(CONCATENATE("B",MATCH(TRUE,$B$17:$B$498<>"",0)+16)):$B74="",0,INDIRECT(CONCATENATE("B",MATCH(TRUE,$B$17:$B$498<>"",0)+16)):$B74),-L74), IF(1-FREQUENCY(9^9,INDIRECT(CONCATENATE("A",MATCH(TRUE,$B$17:$B$498<>"",0)+16)):$A74), INDIRECT(CONCATENATE("A",MATCH(TRUE,$B$17:$B$498<>"",0)+16)):$A74,$A74), IF(L74<SUM(INDIRECT(CONCATENATE("B",MATCH(TRUE,$B$17:$B$498<>"",0)+16)):$B74),-0.5,0.5)),"") -> 0.77% | O74: =IFERROR(VLOOKUP(A74,PPF_NAV[],3)/VLOOKUP(A74,PPF_NAV[],2),"") -> 9.64 | P74: =IFERROR(IF(OR(P73=1,(_xlfn.NUMBERVALUE(K73)*VLOOKUP(A74,PPF_NAV[],2,0)+SUM(B74,G74))>=1000000),1,0),"") -> 1 | T74: =INDEX(A:A,17+INT((ROW()-17)/2),1) -> 2019-12-31 | U74: $155.35 | V74: $155.35 | W74: $155.35
A75: =IF('PPF NAV'!A61="","",'PPF NAV'!A61) -> 2022-06-30 | B75: =IFERROR(1/(1/'PPF NAV'!O61),"") ->  | D75: =IF(A75="","",_xlfn.NUMBERVALUE(VLOOKUP(A75,'PPF NAV'!A:C,IF(AND('PPF NAV'!$P$1="Ordinary unit",P75=0),2,3),0))) -> $111.16293508 | E75: $179.71621386 | F75: $179.71621386 | G75: =IFERROR(1/(1/ROUND(MIN(-(MIN(_xlfn.NUMBERVALUE(VLOOKUP(A75,'PPF NAV'!A:C,IF(AND('PPF NAV'!$P$1="Ordinary unit",P74=0),2,3),0)),E75)-F75)*(20%-IF(OR(P74=1,'PPF NAV'!$P$1="Elite Unit"),4%)-IF(A75>=DATE(2021,4,30),2%))*K74,0),2)),"") ->  | H75: =IFERROR(1/(1/ROUND(G75/_xlfn.NUMBERVALUE(VLOOKUP(A75,'PPF NAV'!A:C,IF(AND('PPF NAV'!$P$1="Ordinary unit",P74=0),2,3),0)),8)),"") ->  | I75: =IFERROR(VLOOKUP(A75,'PPF NAV'!A:R,IF(OR(P75=1,'PPF NAV'!$P$1="Elite Unit"),18,17)),"") -> $179.71621386 | J75: $179.71621386 | K75: 11,745.07490458 | L75: $1,305,617.00 | M75: -2.67% | N75: =IFERROR(XIRR( IF(1-FREQUENCY(9^9,INDIRECT(CONCATENATE("A",MATCH(TRUE,$B$17:$B$498<>"",0)+16)):$A75), IF(INDIRECT(CONCATENATE("B",MATCH(TRUE,$B$17:$B$498<>"",0)+16)):$B75="",0,INDIRECT(CONCATENATE("B",MATCH(TRUE,$B$17:$B$498<>"",0)+16)):$B75),-L75), IF(1-FREQUENCY(9^9,INDIRECT(CONCATENATE("A",MATCH(TRUE,$B$17:$B$498<>"",0)+16)):$A75), INDIRECT(CONCATENATE("A",MATCH(TRUE,$B$17:$B$498<>"",0)+16)):$A75,$A75), IF(L75<SUM(INDIRECT(CONCATENATE("B",MATCH(TRUE,$B$17:$B$498<>"",0)+16)):$B75),-0.5,0.5)),"") -> 0.10% | O75: =IFERROR(VLOOKUP(A75,PPF_NAV[],3)/VLOOKUP(A75,PPF_NAV[],2),"") -> 9.64 | P75: =IFERROR(IF(OR(P74=1,(_xlfn.NUMBERVALUE(K74)*VLOOKUP(A75,PPF_NAV[],2,0)+SUM(B75,G75))>=1000000),1,0),"") -> 1 | T75: =INDEX(A:A,17+INT((ROW()-17)/2),1) -> 2020-01-31 | U75: $151.18 | V75: $156.11 | W75: $156.11
A76: =IF('PPF NAV'!A62="","",'PPF NAV'!A62) -> 2022-07-31 | B76: =IFERROR(1/(1/'PPF NAV'!O62),"") ->  | D76: =IF(A76="","",_xlfn.NUMBERVALUE(VLOOKUP(A76,'PPF NAV'!A:C,IF(AND('PPF NAV'!$P$1="Ordinary unit",P76=0),2,3),0))) -> $122.27067791 | E76: $180.59099162 | F76: $180.59099162 | G76: =IFERROR(1/(1/ROUND(MIN(-(MIN(_xlfn.NUMBERVALUE(VLOOKUP(A76,'PPF NAV'!A:C,IF(AND('PPF NAV'!$P$1="Ordinary unit",P75=0),2,3),0)),E76)-F76)*(20%-IF(OR(P75=1,'PPF NAV'!$P$1="Elite Unit"),4%)-IF(A76>=DATE(2021,4,30),2%))*K75,0),2)),"") ->  | H76: =IFERROR(1/(1/ROUND(G76/_xlfn.NUMBERVALUE(VLOOKUP(A76,'PPF NAV'!A:C,IF(AND('PPF NAV'!$P$1="Ordinary unit",P75=0),2,3),0)),8)),"") ->  | I76: =IFERROR(VLOOKUP(A76,'PPF NAV'!A:R,IF(OR(P76=1,'PPF NAV'!$P$1="Elite Unit"),18,17)),"") -> $180.59099162 | J76: $180.59099162 | K76: 11,745.07490458 | L76: $1,436,078.27 | M76: 9.99% | N76: =IFERROR(XIRR( IF(1-FREQUENCY(9^9,INDIRECT(CONCATENATE("A",MATCH(TRUE,$B$17:$B$498<>"",0)+16)):$A76), IF(INDIRECT(CONCATENATE("B",MATCH(TRUE,$B$17:$B$498<>"",0)+16)):$B76="",0,INDIRECT(CONCATENATE("B",MATCH(TRUE,$B$17:$B$498<>"",0)+16)):$B76),-L76), IF(1-FREQUENCY(9^9,INDIRECT(CONCATENATE("A",MATCH(TRUE,$B$17:$B$498<>"",0)+16)):$A76), INDIRECT(CONCATENATE("A",MATCH(TRUE,$B$17:$B$498<>"",0)+16)):$A76,$A76), IF(L76<SUM(INDIRECT(CONCATENATE("B",MATCH(TRUE,$B$17:$B$498<>"",0)+16)):$B76),-0.5,0.5)),"") -> 2.37% | O76: =IFERROR(VLOOKUP(A76,PPF_NAV[],3)/VLOOKUP(A76,PPF_NAV[],2),"") -> 9.64 | P76: =IFERROR(IF(OR(P75=1,(_xlfn.NUMBERVALUE(K75)*VLOOKUP(A76,PPF_NAV[],2,0)+SUM(B76,G76))>=1000000),1,0),"") -> 1 | T76: =INDEX(A:A,17+INT((ROW()-17)/2),1) -> 2020-01-31 | U76: $151.18 | V76: $156.11 | W76: $156.11
A77: =IF('PPF NAV'!A63="","",'PPF NAV'!A63) -> 2022-08-31 | B77: =IFERROR(1/(1/'PPF NAV'!O63),"") ->  | D77: =IF(A77="","",_xlfn.NUMBERVALUE(VLOOKUP(A77,'PPF NAV'!A:C,IF(AND('PPF NAV'!$P$1="Ordinary unit",P77=0),2,3),0))) -> $118.87603434 | E77: $181.47002740 | F77: $181.47002740 | G77: =IFERROR(1/(1/ROUND(MIN(-(MIN(_xlfn.NUMBERVALUE(VLOOKUP(A77,'PPF NAV'!A:C,IF(AND('PPF NAV'!$P$1="Ordinary unit",P76=0),2,3),0)),E77)-F77)*(20%-IF(OR(P76=1,'PPF NAV'!$P$1="Elite Unit"),4%)-IF(A77>=DATE(2021,4,30),2%))*K76,0),2)),"") ->  | H77: =IFERROR(1/(1/ROUND(G77/_xlfn.NUMBERVALUE(VLOOKUP(A77,'PPF NAV'!A:C,IF(AND('PPF NAV'!$P$1="Ordinary unit",P76=0),2,3),0)),8)),"") ->  | I77: =IFERROR(VLOOKUP(A77,'PPF NAV'!A:R,IF(OR(P77=1,'PPF NAV'!$P$1="Elite Unit"),18,17)),"") -> $181.47002740 | J77: $181.47002740 | K77: 11,745.07490458 | L77: $1,396,207.93 | M77: -2.78% | N77: =IFERROR(XIRR( IF(1-FREQUENCY(9^9,INDIRECT(CONCATENATE("A",MATCH(TRUE,$B$17:$B$498<>"",0)+16)):$A77), IF(INDIRECT(CONCATENATE("B",MATCH(TRUE,$B$17:$B$498<>"",0)+16)):$B77="",0,INDIRECT(CONCATENATE("B",MATCH(TRUE,$B$17:$B$498<>"",0)+16)):$B77),-L77), IF(1-FREQUENCY(9^9,INDIRECT(CONCATENATE("A",MATCH(TRUE,$B$17:$B$498<>"",0)+16)):$A77), INDIRECT(CONCATENATE("A",MATCH(TRUE,$B$17:$B$498<>"",0)+16)):$A77,$A77), IF(L77<SUM(INDIRECT(CONCATENATE("B",MATCH(TRUE,$B$17:$B$498<>"",0)+16)):$B77),-0.5,0.5)),"") -> 1.66% | O77: =IFERROR(VLOOKUP(A77,PPF_NAV[],3)/VLOOKUP(A77,PPF_NAV[],2),"") -> 9.64 | P77: =IFERROR(IF(OR(P76=1,(_xlfn.NUMBERVALUE(K76)*VLOOKUP(A77,PPF_NAV[],2,0)+SUM(B77,G77))>=1000000),1,0),"") -> 1 | T77: =INDEX(A:A,17+INT((ROW()-17)/2),1) -> 2020-02-29 | U77: $112.11 | V77: $156.87 | W77: $156.87
A78: =IF('PPF NAV'!A64="","",'PPF NAV'!A64) -> 2022-09-30 | B78: =IFERROR(1/(1/'PPF NAV'!O64),"") ->  | D78: =IF(A78="","",_xlfn.NUMBERVALUE(VLOOKUP(A78,'PPF NAV'!A:C,IF(AND('PPF NAV'!$P$1="Ordinary unit",P78=0),2,3),0))) -> $110.90560971 | E78: $182.35334194 | F78: $182.35334194 | G78: =IFERROR(1/(1/ROUND(MIN(-(MIN(_xlfn.NUMBERVALUE(VLOOKUP(A78,'PPF NAV'!A:C,IF(AND('PPF NAV'!$P$1="Ordinary unit",P77=0),2,3),0)),E78)-F78)*(20%-IF(OR(P77=1,'PPF NAV'!$P$1="Elite Unit"),4%)-IF(A78>=DATE(2021,4,30),2%))*K77,0),2)),"") ->  | H78: =IFERROR(1/(1/ROUND(G78/_xlfn.NUMBERVALUE(VLOOKUP(A78,'PPF NAV'!A:C,IF(AND('PPF NAV'!$P$1="Ordinary unit",P77=0),2,3),0)),8)),"") ->  | I78: =IFERROR(VLOOKUP(A78,'PPF NAV'!A:R,IF(OR(P78=1,'PPF NAV'!$P$1="Elite Unit"),18,17)),"") -> $182.35334194 | J78: $182.35334194 | K78: 11,745.07490458 | L78: $1,302,594.69 | M78: -6.70% | N78: =IFERROR(XIRR( IF(1-FREQUENCY(9^9,INDIRECT(CONCATENATE("A",MATCH(TRUE,$B$17:$B$498<>"",0)+16)):$A78), IF(INDIRECT(CONCATENATE("B",MATCH(TRUE,$B$17:$B$498<>"",0)+16)):$B78="",0,INDIRECT(CONCATENATE("B",MATCH(TRUE,$B$17:$B$498<>"",0)+16)):$B78),-L78), IF(1-FREQUENCY(9^9,INDIRECT(CONCATENATE("A",MATCH(TRUE,$B$17:$B$498<>"",0)+16)):$A78), INDIRECT(CONCATENATE("A",MATCH(TRUE,$B$17:$B$498<>"",0)+16)):$A78,$A78), IF(L78<SUM(INDIRECT(CONCATENATE("B",MATCH(TRUE,$B$17:$B$498<>"",0)+16)):$B78),-0.5,0.5)),"") -> 0.05% | O78: =IFERROR(VLOOKUP(A78,PPF_NAV[],3)/VLOOKUP(A78,PPF_NAV[],2),"") -> 9.64 | P78: =IFERROR(IF(OR(P77=1,(_xlfn.NUMBERVALUE(K77)*VLOOKUP(A78,PPF_NAV[],2,0)+SUM(B78,G78))>=1000000),1,0),"") -> 1 | T78: =INDEX(A:A,17+INT((ROW()-17)/2),1) -> 2020-02-29 | U78: $112.11 | V78: $156.87 | W78: $156.87
A79: =IF('PPF NAV'!A65="","",'PPF NAV'!A65) -> 2022-10-31 | B79: =IFERROR(1/(1/'PPF NAV'!O65),"") ->  | D79: =IF(A79="","",_xlfn.NUMBERVALUE(VLOOKUP(A79,'PPF NAV'!A:C,IF(AND('PPF NAV'!$P$1="Ordinary unit",P79=0),2,3),0))) -> $120.42814525 | E79: $183.24095605 | F79: $183.24095605 | G79: =IFERROR(1/(1/ROUND(MIN(-(MIN(_xlfn.NUMBERVALUE(VLOOKUP(A79,'PPF NAV'!A:C,IF(AND('PPF NAV'!$P$1="Ordinary unit",P78=0),2,3),0)),E79)-F79)*(20%-IF(OR(P78=1,'PPF NAV'!$P$1="Elite Unit"),4%)-IF(A79>=DATE(2021,4,30),2%))*K78,0),2)),"") ->  | H79: =IFERROR(1/(1/ROUND(G79/_xlfn.NUMBERVALUE(VLOOKUP(A79,'PPF NAV'!A:C,IF(AND('PPF NAV'!$P$1="Ordinary unit",P78=0),2,3),0)),8)),"") ->  | I79: =IFERROR(VLOOKUP(A79,'PPF NAV'!A:R,IF(OR(P79=1,'PPF NAV'!$P$1="Elite Unit"),18,17)),"") -> $183.24095605 | J79: $183.24095605 | K79: 11,745.07490458 | L79: $1,414,437.59 | M79: 8.59% | N79: =IFERROR(XIRR( IF(1-FREQUENCY(9^9,INDIRECT(CONCATENATE("A",MATCH(TRUE,$B$17:$B$498<>"",0)+16)):$A79), IF(INDIRECT(CONCATENATE("B",MATCH(TRUE,$B$17:$B$498<>"",0)+16)):$B79="",0,INDIRECT(CONCATENATE("B",MATCH(TRUE,$B$17:$B$498<>"",0)+16)):$B79),-L79), IF(1-FREQUENCY(9^9,INDIRECT(CONCATENATE("A",MATCH(TRUE,$B$17:$B$498<>"",0)+16)):$A79), INDIRECT(CONCATENATE("A",MATCH(TRUE,$B$17:$B$498<>"",0)+16)):$A79,$A79), IF(L79<SUM(INDIRECT(CONCATENATE("B",MATCH(TRUE,$B$17:$B$498<>"",0)+16)):$B79),-0.5,0.5)),"") -> 1.89% | O79: =IFERROR(VLOOKUP(A79,PPF_NAV[],3)/VLOOKUP(A79,PPF_NAV[],2),"") -> 9.64 | P79: =IFERROR(IF(OR(P78=1,(_xlfn.NUMBERVALUE(K78)*VLOOKUP(A79,PPF_NAV[],2,0)+SUM(B79,G79))>=1000000),1,0),"") -> 1 | T79: =INDEX(A:A,17+INT((ROW()-17)/2),1) -> 2020-03-31 | U79: $60.28 | V79: $157.63 | W79: $157.63
A80: =IF('PPF NAV'!A66="","",'PPF NAV'!A66) -> 2022-11-30 | B80: =IFERROR(1/(1/'PPF NAV'!O66),"") ->  | D80: =IF(A80="","",_xlfn.NUMBERVALUE(VLOOKUP(A80,'PPF NAV'!A:C,IF(AND('PPF NAV'!$P$1="Ordinary unit",P80=0),2,3),0))) -> $128.52041140 | E80: $184.13289067 | F80: $184.13289067 | G80: =IFERROR(1/(1/ROUND(MIN(-(MIN(_xlfn.NUMBERVALUE(VLOOKUP(A80,'PPF NAV'!A:C,IF(AND('PPF NAV'!$P$1="Ordinary unit",P79=0),2,3),0)),E80)-F80)*(20%-IF(OR(P79=1,'PPF NAV'!$P$1="Elite Unit"),4%)-IF(A80>=DATE(2021,4,30),2%))*K79,0),2)),"") ->  | H80: =IFERROR(1/(1/ROUND(G80/_xlfn.NUMBERVALUE(VLOOKUP(A80,'PPF NAV'!A:C,IF(AND('PPF NAV'!$P$1="Ordinary unit",P79=0),2,3),0)),8)),"") ->  | I80: =IFERROR(VLOOKUP(A80,'PPF NAV'!A:R,IF(OR(P80=1,'PPF NAV'!$P$1="Elite Unit"),18,17)),"") -> $184.13289067 | J80: $184.13289067 | K80: 11,745.07490458 | L80: $1,509,481.86 | M80: 6.72% | N80: =IFERROR(XIRR( IF(1-FREQUENCY(9^9,INDIRECT(CONCATENATE("A",MATCH(TRUE,$B$17:$B$498<>"",0)+16)):$A80), IF(INDIRECT(CONCATENATE("B",MATCH(TRUE,$B$17:$B$498<>"",0)+16)):$B80="",0,INDIRECT(CONCATENATE("B",MATCH(TRUE,$B$17:$B$498<>"",0)+16)):$B80),-L80), IF(1-FREQUENCY(9^9,INDIRECT(CONCATENATE("A",MATCH(TRUE,$B$17:$B$498<>"",0)+16)):$A80), INDIRECT(CONCATENATE("A",MATCH(TRUE,$B$17:$B$498<>"",0)+16)):$A80,$A80), IF(L80<SUM(INDIRECT(CONCATENATE("B",MATCH(TRUE,$B$17:$B$498<>"",0)+16)):$B80),-0.5,0.5)),"") -> 3.32% | O80: =IFERROR(VLOOKUP(A80,PPF_NAV[],3)/VLOOKUP(A80,PPF_NAV[],2),"") -> 9.64 | P80: =IFERROR(IF(OR(P79=1,(_xlfn.NUMBERVALUE(K79)*VLOOKUP(A80,PPF_NAV[],2,0)+SUM(B80,G80))>=1000000),1,0),"") -> 1 | T80: =INDEX(A:A,17+INT((ROW()-17)/2),1) -> 2020-03-31 | U80: $60.28 | V80: $157.63 | W80: $157.63
A81: =IF('PPF NAV'!A67="","",'PPF NAV'!A67) -> 2022-12-31 | B81: =IFERROR(1/(1/'PPF NAV'!O67),"") ->  | D81: =IF(A81="","",_xlfn.NUMBERVALUE(VLOOKUP(A81,'PPF NAV'!A:C,IF(AND('PPF NAV'!$P$1="Ordinary unit",P81=0),2,3),0))) -> $121.70482278 | E81: $185.02916683 | F81: $185.02916683 | G81: =IFERROR(1/(1/ROUND(MIN(-(MIN(_xlfn.NUMBERVALUE(VLOOKUP(A81,'PPF NAV'!A:C,IF(AND('PPF NAV'!$P$1="Ordinary unit",P80=0),2,3),0)),E81)-F81)*(20%-IF(OR(P80=1,'PPF NAV'!$P$1="Elite Unit"),4%)-IF(A81>=DATE(2021,4,30),2%))*K80,0),2)),"") ->  | H81: =IFERROR(1/(1/ROUND(G81/_xlfn.NUMBERVALUE(VLOOKUP(A81,'PPF NAV'!A:C,IF(AND('PPF NAV'!$P$1="Ordinary unit",P80=0),2,3),0)),8)),"") ->  | I81: =IFERROR(VLOOKUP(A81,'PPF NAV'!A:R,IF(OR(P81=1,'PPF NAV'!$P$1="Elite Unit"),18,17)),"") -> $185.02916683 | J81: $185.02916683 | K81: 11,745.07490458 | L81: $1,429,432.26 | M81: -5.30% | N81: =IFERROR(XIRR( IF(1-FREQUENCY(9^9,INDIRECT(CONCATENATE("A",MATCH(TRUE,$B$17:$B$498<>"",0)+16)):$A81), IF(INDIRECT(CONCATENATE("B",MATCH(TRUE,$B$17:$B$498<>"",0)+16)):$B81="",0,INDIRECT(CONCATENATE("B",MATCH(TRUE,$B$17:$B$498<>"",0)+16)):$B81),-L81), IF(1-FREQUENCY(9^9,INDIRECT(CONCATENATE("A",MATCH(TRUE,$B$17:$B$498<>"",0)+16)):$A81), INDIRECT(CONCATENATE("A",MATCH(TRUE,$B$17:$B$498<>"",0)+16)):$A81,$A81), IF(L81<SUM(INDIRECT(CONCATENATE("B",MATCH(TRUE,$B$17:$B$498<>"",0)+16)):$B81),-0.5,0.5)),"") -> 2.06% | O81: =IFERROR(VLOOKUP(A81,PPF_NAV[],3)/VLOOKUP(A81,PPF_NAV[],2),"") -> 9.64 | P81: =IFERROR(IF(OR(P80=1,(_xlfn.NUMBERVALUE(K80)*VLOOKUP(A81,PPF_NAV[],2,0)+SUM(B81,G81))>=1000000),1,0),"") -> 1 | T81: =INDEX(A:A,17+INT((ROW()-17)/2),1) -> 2020-04-30 | U81: =IFERROR(ROUND(VLOOKUP(T81,A:D,4,0)*IF(AND($N$11="Yes",MAX(P:P)-MIN(P:P),VLOOKUP(T81,A:P,16)=0),VLOOKUP(T81,A:O,15,1),1),2),"") -> $65.20 | V81: $158.40 | W81: $158.40
A82: =IF('PPF NAV'!A68="","",'PPF NAV'!A68) ->  | B82: =IFERROR(1/(1/'PPF NAV'!O68),"") ->  | D82: =IF(A82="","",_xlfn.NUMBERVALUE(VLOOKUP(A82,'PPF NAV'!A:C,IF(AND('PPF NAV'!$P$1="Ordinary unit",P82=0),2,3),0))) ->  | E82: $185.92980565 | F82: $185.92980565 | G82: =IFERROR(1/(1/ROUND(MIN(-(MIN(_xlfn.NUMBERVALUE(VLOOKUP(A82,'PPF NAV'!A:C,IF(AND('PPF NAV'!$P$1="Ordinary unit",P81=0),2,3),0)),E82)-F82)*(20%-IF(OR(P81=1,'PPF NAV'!$P$1="Elite Unit"),4%)-IF(A82>=DATE(2021,4,30),2%))*K81,0),2)),"") ->  | H82: =IFERROR(1/(1/ROUND(G82/_xlfn.NUMBERVALUE(VLOOKUP(A82,'PPF NAV'!A:C,IF(AND('PPF NAV'!$P$1="Ordinary unit",P81=0),2,3),0)),8)),"") ->  | I82: =IFERROR(VLOOKUP(A82,'PPF NAV'!A:R,IF(OR(P82=1,'PPF NAV'!$P$1="Elite Unit"),18,17)),"") ->  | N82: =IFERROR(XIRR( IF(1-FREQUENCY(9^9,INDIRECT(CONCATENATE("A",MATCH(TRUE,$B$17:$B$498<>"",0)+16)):$A82), IF(INDIRECT(CONCATENATE("B",MATCH(TRUE,$B$17:$B$498<>"",0)+16)):$B82="",0,INDIRECT(CONCATENATE("B",MATCH(TRUE,$B$17:$B$498<>"",0)+16)):$B82),-L82), IF(1-FREQUENCY(9^9,INDIRECT(CONCATENATE("A",MATCH(TRUE,$B$17:$B$498<>"",0)+16)):$A82), INDIRECT(CONCATENATE("A",MATCH(TRUE,$B$17:$B$498<>"",0)+16)):$A82,$A82), IF(L82<SUM(INDIRECT(CONCATENATE("B",MATCH(TRUE,$B$17:$B$498<>"",0)+16)):$B82),-0.5,0.5)),"") ->  | O82: =IFERROR(VLOOKUP(A82,PPF_NAV[],3)/VLOOKUP(A82,PPF_NAV[],2),"") ->  | P82: =IFERROR(IF(OR(P81=1,(_xlfn.NUMBERVALUE(K81)*VLOOKUP(A82,PPF_NAV[],2,0)+SUM(B82,G82))>=1000000),1,0),"") ->  | Q82: =IFERROR(($C$7-A82)/365*B82,"") ->  | T82: =INDEX(A:A,17+INT((ROW()-17)/2),1) -> 2020-04-30 | U82: $65.20 | V82: =IFERROR(IF(T82>T81,V81*1.06^(1/12),VLOOKUP(T82,A:I,9,0)*IF(AND($N$11="Yes",MAX(P:P)-MIN(P:P),VLOOKUP(T82,A:P,16)=0),VLOOKUP(T82,A:O,15),1)),"") -> $158.40 | W82: =IFERROR(IF(T82>T81,W81*1.06^(1/12),VLOOKUP(T82,A:J,10,0)*IF(AND($N$11="Yes",MAX(P:P)-MIN(P:P),VLOOKUP(T82,A:P,16)=0),VLOOKUP(T82,A:O,15),1)),"") -> $158.40 | X82: =IFERROR(VLOOKUP(T82,A:B,2,0),"") -> 
A83: =IF('PPF NAV'!A69="","",'PPF NAV'!A69) ->  | B83: =IFERROR(1/(1/'PPF NAV'!O69),"") ->  | D83: =IF(A83="","",_xlfn.NUMBERVALUE(VLOOKUP(A83,'PPF NAV'!A:C,IF(AND('PPF NAV'!$P$1="Ordinary unit",P83=0),2,3),0))) ->  | G83: =IFERROR(1/(1/ROUND(MIN(-(MIN(_xlfn.NUMBERVALUE(VLOOKUP(A83,'PPF NAV'!A:C,IF(AND('PPF NAV'!$P$1="Ordinary unit",P82=0),2,3),0)),E83)-F83)*(20%-IF(OR(P82=1,'PPF NAV'!$P$1="Elite Unit"),4%)-IF(A83>=DATE(2021,4,30),2%))*K82,0),2)),"") ->  | H83: =IFERROR(1/(1/ROUND(G83/_xlfn.NUMBERVALUE(VLOOKUP(A83,'PPF NAV'!A:C,IF(AND('PPF NAV'!$P$1="Ordinary unit",P82=0),2,3),0)),8)),"") ->  | I83: =IFERROR(VLOOKUP(A83,'PPF NAV'!A:R,IF(OR(P83=1,'PPF NAV'!$P$1="Elite Unit"),18,17)),"") ->  | N83: =IFERROR(XIRR( IF(1-FREQUENCY(9^9,INDIRECT(CONCATENATE("A",MATCH(TRUE,$B$17:$B$498<>"",0)+16)):$A83), IF(INDIRECT(CONCATENATE("B",MATCH(TRUE,$B$17:$B$498<>"",0)+16)):$B83="",0,INDIRECT(CONCATENATE("B",MATCH(TRUE,$B$17:$B$498<>"",0)+16)):$B83),-L83), IF(1-FREQUENCY(9^9,INDIRECT(CONCATENATE("A",MATCH(TRUE,$B$17:$B$498<>"",0)+16)):$A83), INDIRECT(CONCATENATE("A",MATCH(TRUE,$B$17:$B$498<>"",0)+16)):$A83,$A83), IF(L83<SUM(INDIRECT(CONCATENATE("B",MATCH(TRUE,$B$17:$B$498<>"",0)+16)):$B83),-0.5,0.5)),"") ->  | O83: =IFERROR(VLOOKUP(A83,PPF_NAV[],3)/VLOOKUP(A83,PPF_NAV[],2),"") ->  | P83: =IFERROR(IF(OR(P82=1,(_xlfn.NUMBERVALUE(K82)*VLOOKUP(A83,PPF_NAV[],2,0)+SUM(B83,G83))>=1000000),1,0),"") ->  | T83: =INDEX(A:A,17+INT((ROW()-17)/2),1) -> 2020-05-31 | U83: $61.00 | V83: $159.17 | W83: $159.17
A84: =IF('PPF NAV'!A70="","",'PPF NAV'!A70) ->  | B84: =IFERROR(1/(1/'PPF NAV'!O70),"") ->  | D84: =IF(A84="","",_xlfn.NUMBERVALUE(VLOOKUP(A84,'PPF NAV'!A:C,IF(AND('PPF NAV'!$P$1="Ordinary unit",P84=0),2,3),0))) ->  | G84: =IFERROR(1/(1/ROUND(MIN(-(MIN(_xlfn.NUMBERVALUE(VLOOKUP(A84,'PPF NAV'!A:C,IF(AND('PPF NAV'!$P$1="Ordinary unit",P83=0),2,3),0)),E84)-F84)*(20%-IF(OR(P83=1,'PPF NAV'!$P$1="Elite Unit"),4%)-IF(A84>=DATE(2021,4,30),2%))*K83,0),2)),"") ->  | H84: =IFERROR(1/(1/ROUND(G84/_xlfn.NUMBERVALUE(VLOOKUP(A84,'PPF NAV'!A:C,IF(AND('PPF NAV'!$P$1="Ordinary unit",P83=0),2,3),0)),8)),"") ->  | I84: =IFERROR(VLOOKUP(A84,'PPF NAV'!A:R,IF(OR(P84=1,'PPF NAV'!$P$1="Elite Unit"),18,17)),"") ->  | M84: =IFERROR((L84-SUM(B84))/L83-1,"") ->  | N84: =IFERROR(XIRR( IF(1-FREQUENCY(9^9,INDIRECT(CONCATENATE("A",MATCH(TRUE,$B$17:$B$498<>"",0)+16)):$A84), IF(INDIRECT(CONCATENATE("B",MATCH(TRUE,$B$17:$B$498<>"",0)+16)):$B84="",0,INDIRECT(CONCATENATE("B",MATCH(TRUE,$B$17:$B$498<>"",0)+16)):$B84),-L84), IF(1-FREQUENCY(9^9,INDIRECT(CONCATENATE("A",MATCH(TRUE,$B$17:$B$498<>"",0)+16)):$A84), INDIRECT(CONCATENATE("A",MATCH(TRUE,$B$17:$B$498<>"",0)+16)):$A84,$A84), IF(L84<SUM(INDIRECT(CONCATENATE("B",MATCH(TRUE,$B$17:$B$498<>"",0)+16)):$B84),-0.5,0.5)),"") ->  | O84: =IFERROR(VLOOKUP(A84,PPF_NAV[],3)/VLOOKUP(A84,PPF_NAV[],2),"") ->  | P84: =IFERROR(IF(OR(P83=1,(_xlfn.NUMBERVALUE(K83)*VLOOKUP(A84,PPF_NAV[],2,0)+SUM(B84,G84))>=1000000),1,0),"") ->  | T84: =INDEX(A:A,17+INT((ROW()-17)/2),1) -> 2020-05-31 | U84: $61.00 | V84: $159.17 | W84: $159.17
A85: =IF('PPF NAV'!A71="","",'PPF NAV'!A71) ->  | B85: =IFERROR(1/(1/'PPF NAV'!O71),"") ->  | D85: =IF(A85="","",_xlfn.NUMBERVALUE(VLOOKUP(A85,'PPF NAV'!A:C,IF(AND('PPF NAV'!$P$1="Ordinary unit",P85=0),2,3),0))) ->  | G85: =IFERROR(1/(1/ROUND(MIN(-(MIN(_xlfn.NUMBERVALUE(VLOOKUP(A85,'PPF NAV'!A:C,IF(AND('PPF NAV'!$P$1="Ordinary unit",P84=0),2,3),0)),E85)-F85)*(20%-IF(OR(P84=1,'PPF NAV'!$P$1="Elite Unit"),4%)-IF(A85>=DATE(2021,4,30),2%))*K84,0),2)),"") ->  | H85: =IFERROR(1/(1/ROUND(G85/_xlfn.NUMBERVALUE(VLOOKUP(A85,'PPF NAV'!A:C,IF(AND('PPF NAV'!$P$1="Ordinary unit",P84=0),2,3),0)),8)),"") ->  | I85: =IFERROR(VLOOKUP(A85,'PPF NAV'!A:R,IF(OR(P85=1,'PPF NAV'!$P$1="Elite Unit"),18,17)),"") ->  | N85: =IFERROR(XIRR( IF(1-FREQUENCY(9^9,INDIRECT(CONCATENATE("A",MATCH(TRUE,$B$17:$B$498<>"",0)+16)):$A85), IF(INDIRECT(CONCATENATE("B",MATCH(TRUE,$B$17:$B$498<>"",0)+16)):$B85="",0,INDIRECT(CONCATENATE("B",MATCH(TRUE,$B$17:$B$498<>"",0)+16)):$B85),-L85), IF(1-FREQUENCY(9^9,INDIRECT(CONCATENATE("A",MATCH(TRUE,$B$17:$B$498<>"",0)+16)):$A85), INDIRECT(CONCATENATE("A",MATCH(TRUE,$B$17:$B$498<>"",0)+16)):$A85,$A85), IF(L85<SUM(INDIRECT(CONCATENATE("B",MATCH(TRUE,$B$17:$B$498<>"",0)+16)):$B85),-0.5,0.5)),"") ->  | O85: =IFERROR(VLOOKUP(A85,PPF_NAV[],3)/VLOOKUP(A85,PPF_NAV[],2),"") ->  | P85: =IFERROR(IF(OR(P84=1,(_xlfn.NUMBERVALUE(K84)*VLOOKUP(A85,PPF_NAV[],2,0)+SUM(B85,G85))>=1000000),1,0),"") ->  | T85: =INDEX(A:A,17+INT((ROW()-17)/2),1) -> 2020-06-30 | U85: $57.39 | V85: $159.95 | W85: $159.95
A86: =IF('PPF NAV'!A72="","",'PPF NAV'!A72) ->  | B86: =IFERROR(1/(1/'PPF NAV'!O72),"") ->  | D86: =IF(A86="","",_xlfn.NUMBERVALUE(VLOOKUP(A86,'PPF NAV'!A:C,IF(AND('PPF NAV'!$P$1="Ordinary unit",P86=0),2,3),0))) ->  | G86: =IFERROR(1/(1/ROUND(MIN(-(MIN(_xlfn.NUMBERVALUE(VLOOKUP(A86,'PPF NAV'!A:C,IF(AND('PPF NAV'!$P$1="Ordinary unit",P85=0),2,3),0)),E86)-F86)*(20%-IF(OR(P85=1,'PPF NAV'!$P$1="Elite Unit"),4%)-IF(A86>=DATE(2021,4,30),2%))*K85,0),2)),"") ->  | H86: =IFERROR(1/(1/ROUND(G86/_xlfn.NUMBERVALUE(VLOOKUP(A86,'PPF NAV'!A:C,IF(AND('PPF NAV'!$P$1="Ordinary unit",P85=0),2,3),0)),8)),"") ->  | I86: =IFERROR(VLOOKUP(A86,'PPF NAV'!A:R,IF(OR(P86=1,'PPF NAV'!$P$1="Elite Unit"),18,17)),"") ->  | N86: =IFERROR(XIRR( IF(1-FREQUENCY(9^9,INDIRECT(CONCATENATE("A",MATCH(TRUE,$B$17:$B$498<>"",0)+16)):$A86), IF(INDIRECT(CONCATENATE("B",MATCH(TRUE,$B$17:$B$498<>"",0)+16)):$B86="",0,INDIRECT(CONCATENATE("B",MATCH(TRUE,$B$17:$B$498<>"",0)+16)):$B86),-L86), IF(1-FREQUENCY(9^9,INDIRECT(CONCATENATE("A",MATCH(TRUE,$B$17:$B$498<>"",0)+16)):$A86), INDIRECT(CONCATENATE("A",MATCH(TRUE,$B$17:$B$498<>"",0)+16)):$A86,$A86), IF(L86<SUM(INDIRECT(CONCATENATE("B",MATCH(TRUE,$B$17:$B$498<>"",0)+16)):$B86),-0.5,0.5)),"") ->  | O86: =IFERROR(VLOOKUP(A86,PPF_NAV[],3)/VLOOKUP(A86,PPF_NAV[],2),"") ->  | P86: =IFERROR(IF(OR(P85=1,(_xlfn.NUMBERVALUE(K85)*VLOOKUP(A86,PPF_NAV[],2,0)+SUM(B86,G86))>=1000000),1,0),"") ->  | T86: =INDEX(A:A,17+INT((ROW()-17)/2),1) -> 2020-06-30 | U86: $57.39 | V86: $159.95 | W86: $159.95
A87: =IF('PPF NAV'!A73="","",'PPF NAV'!A73) ->  | B87: =IFERROR(1/(1/'PPF NAV'!O73),"") ->  | D87: =IF(A87="","",_xlfn.NUMBERVALUE(VLOOKUP(A87,'PPF NAV'!A:C,IF(AND('PPF NAV'!$P$1="Ordinary unit",P87=0),2,3),0))) ->  | G87: =IFERROR(1/(1/ROUND(MIN(-(MIN(_xlfn.NUMBERVALUE(VLOOKUP(A87,'PPF NAV'!A:C,IF(AND('PPF NAV'!$P$1="Ordinary unit",P86=0),2,3),0)),E87)-F87)*(20%-IF(OR(P86=1,'PPF NAV'!$P$1="Elite Unit"),4%)-IF(A87>=DATE(2021,4,30),2%))*K86,0),2)),"") ->  | H87: =IFERROR(1/(1/ROUND(G87/_xlfn.NUMBERVALUE(VLOOKUP(A87,'PPF NAV'!A:C,IF(AND('PPF NAV'!$P$1="Ordinary unit",P86=0),2,3),0)),8)),"") ->  | I87: =IFERROR(VLOOKUP(A87,'PPF NAV'!A:R,IF(OR(P87=1,'PPF NAV'!$P$1="Elite Unit"),18,17)),"") ->  | N87: =IFERROR(XIRR( IF(1-FREQUENCY(9^9,INDIRECT(CONCATENATE("A",MATCH(TRUE,$B$17:$B$498<>"",0)+16)):$A87), IF(INDIRECT(CONCATENATE("B",MATCH(TRUE,$B$17:$B$498<>"",0)+16)):$B87="",0,INDIRECT(CONCATENATE("B",MATCH(TRUE,$B$17:$B$498<>"",0)+16)):$B87),-L87), IF(1-FREQUENCY(9^9,INDIRECT(CONCATENATE("A",MATCH(TRUE,$B$17:$B$498<>"",0)+16)):$A87), INDIRECT(CONCATENATE("A",MATCH(TRUE,$B$17:$B$498<>"",0)+16)):$A87,$A87), IF(L87<SUM(INDIRECT(CONCATENATE("B",MATCH(TRUE,$B$17:$B$498<>"",0)+16)):$B87),-0.5,0.5)),"") ->  | O87: =IFERROR(VLOOKUP(A87,PPF_NAV[],3)/VLOOKUP(A87,PPF_NAV[],2),"") ->  | P87: =IFERROR(IF(OR(P86=1,(_xlfn.NUMBERVALUE(K86)*VLOOKUP(A87,PPF_NAV[],2,0)+SUM(B87,G87))>=1000000),1,0),"") ->  | T87: =INDEX(A:A,17+INT((ROW()-17)/2),1) -> 2020-07-31 | U87: $68.86 | V87: $160.73 | W87: $160.73
A88: =IF('PPF NAV'!A74="","",'PPF NAV'!A74) ->  | B88: =IFERROR(1/(1/'PPF NAV'!O74),"") ->  | D88: =IF(A88="","",_xlfn.NUMBERVALUE(VLOOKUP(A88,'PPF NAV'!A:C,IF(AND('PPF NAV'!$P$1="Ordinary unit",P88=0),2,3),0))) ->  | G88: =IFERROR(1/(1/ROUND(MIN(-(MIN(_xlfn.NUMBERVALUE(VLOOKUP(A88,'PPF NAV'!A:C,IF(AND('PPF NAV'!$P$1="Ordinary unit",P87=0),2,3),0)),E88)-F88)*(20%-IF(OR(P87=1,'PPF NAV'!$P$1="Elite Unit"),4%)-IF(A88>=DATE(2021,4,30),2%))*K87,0),2)),"") ->  | H88: =IFERROR(1/(1/ROUND(G88/_xlfn.NUMBERVALUE(VLOOKUP(A88,'PPF NAV'!A:C,IF(AND('PPF NAV'!$P$1="Ordinary unit",P87=0),2,3),0)),8)),"") ->  | I88: =IFERROR(VLOOKUP(A88,'PPF NAV'!A:R,IF(OR(P88=1,'PPF NAV'!$P$1="Elite Unit"),18,17)),"") ->  | N88: =IFERROR(XIRR( IF(1-FREQUENCY(9^9,INDIRECT(CONCATENATE("A",MATCH(TRUE,$B$17:$B$498<>"",0)+16)):$A88), IF(INDIRECT(CONCATENATE("B",MATCH(TRUE,$B$17:$B$498<>"",0)+16)):$B88="",0,INDIRECT(CONCATENATE("B",MATCH(TRUE,$B$17:$B$498<>"",0)+16)):$B88),-L88), IF(1-FREQUENCY(9^9,INDIRECT(CONCATENATE("A",MATCH(TRUE,$B$17:$B$498<>"",0)+16)):$A88), INDIRECT(CONCATENATE("A",MATCH(TRUE,$B$17:$B$498<>"",0)+16)):$A88,$A88), IF(L88<SUM(INDIRECT(CONCATENATE("B",MATCH(TRUE,$B$17:$B$498<>"",0)+16)):$B88),-0.5,0.5)),"") ->  | O88: =IFERROR(VLOOKUP(A88,PPF_NAV[],3)/VLOOKUP(A88,PPF_NAV[],2),"") ->  | P88: =IFERROR(IF(OR(P87=1,(_xlfn.NUMBERVALUE(K87)*VLOOKUP(A88,PPF_NAV[],2,0)+SUM(B88,G88))>=1000000),1,0),"") ->  | T88: =INDEX(A:A,17+INT((ROW()-17)/2),1) -> 2020-07-31 | U88: $68.86 | V88: $160.73 | W88: $160.73
A89: =IF('PPF NAV'!A75="","",'PPF NAV'!A75) ->  | B89: =IFERROR(1/(1/'PPF NAV'!O75),"") ->  | D89: =IF(A89="","",_xlfn.NUMBERVALUE(VLOOKUP(A89,'PPF NAV'!A:C,IF(AND('PPF NAV'!$P$1="Ordinary unit",P89=0),2,3),0))) ->  | G89: =IFERROR(1/(1/ROUND(MIN(-(MIN(_xlfn.NUMBERVALUE(VLOOKUP(A89,'PPF NAV'!A:C,IF(AND('PPF NAV'!$P$1="Ordinary unit",P88=0),2,3),0)),E89)-F89)*(20%-IF(OR(P88=1,'PPF NAV'!$P$1="Elite Unit"),4%)-IF(A89>=DATE(2021,4,30),2%))*K88,0),2)),"") ->  | H89: =IFERROR(1/(1/ROUND(G89/_xlfn.NUMBERVALUE(VLOOKUP(A89,'PPF NAV'!A:C,IF(AND('PPF NAV'!$P$1="Ordinary unit",P88=0),2,3),0)),8)),"") ->  | I89: =IFERROR(VLOOKUP(A89,'PPF NAV'!A:R,IF(OR(P89=1,'PPF NAV'!$P$1="Elite Unit"),18,17)),"") ->  | N89: =IFERROR(XIRR( IF(1-FREQUENCY(9^9,INDIRECT(CONCATENATE("A",MATCH(TRUE,$B$17:$B$498<>"",0)+16)):$A89), IF(INDIRECT(CONCATENATE("B",MATCH(TRUE,$B$17:$B$498<>"",0)+16)):$B89="",0,INDIRECT(CONCATENATE("B",MATCH(TRUE,$B$17:$B$498<>"",0)+16)):$B89),-L89), IF(1-FREQUENCY(9^9,INDIRECT(CONCATENATE("A",MATCH(TRUE,$B$17:$B$498<>"",0)+16)):$A89), INDIRECT(CONCATENATE("A",MATCH(TRUE,$B$17:$B$498<>"",0)+16)):$A89,$A89), IF(L89<SUM(INDIRECT(CONCATENATE("B",MATCH(TRUE,$B$17:$B$498<>"",0)+16)):$B89),-0.5,0.5)),"") ->  | O89: =IFERROR(VLOOKUP(A89,PPF_NAV[],3)/VLOOKUP(A89,PPF_NAV[],2),"") ->  | P89: =IFERROR(IF(OR(P88=1,(_xlfn.NUMBERVALUE(K88)*VLOOKUP(A89,PPF_NAV[],2,0)+SUM(B89,G89))>=1000000),1,0),"") ->  | T89: =INDEX(A:A,17+INT((ROW()-17)/2),1) -> 2020-08-31 | U89: $81.31 | V89: $161.51 | W89: $161.51
A90: =IF('PPF NAV'!A76="","",'PPF NAV'!A76) ->  | B90: =IFERROR(1/(1/'PPF NAV'!O76),"") ->  | D90: =IF(A90="","",_xlfn.NUMBERVALUE(VLOOKUP(A90,'PPF NAV'!A:C,IF(AND('PPF NAV'!$P$1="Ordinary unit",P90=0),2,3),0))) ->  | G90: =IFERROR(1/(1/ROUND(MIN(-(MIN(_xlfn.NUMBERVALUE(VLOOKUP(A90,'PPF NAV'!A:C,IF(AND('PPF NAV'!$P$1="Ordinary unit",P89=0),2,3),0)),E90)-F90)*(20%-IF(OR(P89=1,'PPF NAV'!$P$1="Elite Unit"),4%)-IF(A90>=DATE(2021,4,30),2%))*K89,0),2)),"") ->  | H90: =IFERROR(1/(1/ROUND(G90/_xlfn.NUMBERVALUE(VLOOKUP(A90,'PPF NAV'!A:C,IF(AND('PPF NAV'!$P$1="Ordinary unit",P89=0),2,3),0)),8)),"") ->  | I90: =IFERROR(VLOOKUP(A90,'PPF NAV'!A:R,IF(OR(P90=1,'PPF NAV'!$P$1="Elite Unit"),18,17)),"") ->  | N90: =IFERROR(XIRR( IF(1-FREQUENCY(9^9,INDIRECT(CONCATENATE("A",MATCH(TRUE,$B$17:$B$498<>"",0)+16)):$A90), IF(INDIRECT(CONCATENATE("B",MATCH(TRUE,$B$17:$B$498<>"",0)+16)):$B90="",0,INDIRECT(CONCATENATE("B",MATCH(TRUE,$B$17:$B$498<>"",0)+16)):$B90),-L90), IF(1-FREQUENCY(9^9,INDIRECT(CONCATENATE("A",MATCH(TRUE,$B$17:$B$498<>"",0)+16)):$A90), INDIRECT(CONCATENATE("A",MATCH(TRUE,$B$17:$B$498<>"",0)+16)):$A90,$A90), IF(L90<SUM(INDIRECT(CONCATENATE("B",MATCH(TRUE,$B$17:$B$498<>"",0)+16)):$B90),-0.5,0.5)),"") ->  | O90: =IFERROR(VLOOKUP(A90,PPF_NAV[],3)/VLOOKUP(A90,PPF_NAV[],2),"") ->  | P90: =IFERROR(IF(OR(P89=1,(_xlfn.NUMBERVALUE(K89)*VLOOKUP(A90,PPF_NAV[],2,0)+SUM(B90,G90))>=1000000),1,0),"") ->  | T90: =INDEX(A:A,17+INT((ROW()-17)/2),1) -> 2020-08-31 | U90: $81.31 | V90: $161.51 | W90: $161.51
A91: =IF('PPF NAV'!A77="","",'PPF NAV'!A77) ->  | B91: =IFERROR(1/(1/'PPF NAV'!O77),"") ->  | D91: =IF(A91="","",_xlfn.NUMBERVALUE(VLOOKUP(A91,'PPF NAV'!A:C,IF(AND('PPF NAV'!$P$1="Ordinary unit",P91=0),2,3),0))) ->  | G91: =IFERROR(1/(1/ROUND(MIN(-(MIN(_xlfn.NUMBERVALUE(VLOOKUP(A91,'PPF NAV'!A:C,IF(AND('PPF NAV'!$P$1="Ordinary unit",P90=0),2,3),0)),E91)-F91)*(20%-IF(OR(P90=1,'PPF NAV'!$P$1="Elite Unit"),4%)-IF(A91>=DATE(2021,4,30),2%))*K90,0),2)),"") ->  | H91: =IFERROR(1/(1/ROUND(G91/_xlfn.NUMBERVALUE(VLOOKUP(A91,'PPF NAV'!A:C,IF(AND('PPF NAV'!$P$1="Ordinary unit",P90=0),2,3),0)),8)),"") ->  | I91: =IFERROR(VLOOKUP(A91,'PPF NAV'!A:R,IF(OR(P91=1,'PPF NAV'!$P$1="Elite Unit"),18,17)),"") ->  | N91: =IFERROR(XIRR( IF(1-FREQUENCY(9^9,INDIRECT(CONCATENATE("A",MATCH(TRUE,$B$17:$B$498<>"",0)+16)):$A91), IF(INDIRECT(CONCATENATE("B",MATCH(TRUE,$B$17:$B$498<>"",0)+16)):$B91="",0,INDIRECT(CONCATENATE("B",MATCH(TRUE,$B$17:$B$498<>"",0)+16)):$B91),-L91), IF(1-FREQUENCY(9^9,INDIRECT(CONCATENATE("A",MATCH(TRUE,$B$17:$B$498<>"",0)+16)):$A91), INDIRECT(CONCATENATE("A",MATCH(TRUE,$B$17:$B$498<>"",0)+16)):$A91,$A91), IF(L91<SUM(INDIRECT(CONCATENATE("B",MATCH(TRUE,$B$17:$B$498<>"",0)+16)):$B91),-0.5,0.5)),"") ->  | O91: =IFERROR(VLOOKUP(A91,PPF_NAV[],3)/VLOOKUP(A91,PPF_NAV[],2),"") ->  | P91: =IFERROR(IF(OR(P90=1,(_xlfn.NUMBERVALUE(K90)*VLOOKUP(A91,PPF_NAV[],2,0)+SUM(B91,G91))>=1000000),1,0),"") ->  | T91: =INDEX(A:A,17+INT((ROW()-17)/2),1) -> 2020-09-30 | U91: $78.21 | V91: $162.29 | W91: $162.29
A92: =IF('PPF NAV'!A78="","",'PPF NAV'!A78) ->  | B92: =IFERROR(1/(1/'PPF NAV'!O78),"") ->  | C92: =IFERROR(ROUND(B92/D92,8),"") ->  | D92: =IF(A92="","",_xlfn.NUMBERVALUE(VLOOKUP(A92,'PPF NAV'!A:C,IF(AND('PPF NAV'!$P$1="Ordinary unit",P92=0),2,3),0))) ->  | E92: =IFERROR(1/(1/(I91*1.06^(1/12))),"") ->  | F92: =IFERROR(1/(1/(J91*1.06^(1/12))),"") ->  | G92: =IFERROR(1/(1/ROUND(MIN(-(MIN(_xlfn.NUMBERVALUE(VLOOKUP(A92,'PPF NAV'!A:C,IF(AND('PPF NAV'!$P$1="Ordinary unit",P91=0),2,3),0)),E92)-F92)*(20%-IF(OR(P91=1,'PPF NAV'!$P$1="Elite Unit"),4%)-IF(A92>=DATE(2021,4,30),2%))*K91,0),2)),"") ->  | H92: =IFERROR(1/(1/ROUND(G92/_xlfn.NUMBERVALUE(VLOOKUP(A92,'PPF NAV'!A:C,IF(AND('PPF NAV'!$P$1="Ordinary unit",P91=0),2,3),0)),8)),"") ->  | I92: =IFERROR(VLOOKUP(A92,'PPF NAV'!A:R,IF(OR(P92=1,'PPF NAV'!$P$1="Elite Unit"),18,17)),"") ->  | J92: =IFERROR((MAX(D92,SUM(F92)*IF(P92<>P91,O92,1))*SUM(K91)/IF(P92<>P91,O92,1)+SUM(B92))/(SUM(C92)+SUM(K91)/IF(P92<>P91,O92,1)),"") ->  | K92: =IFERROR(1/(1/((SUM(K91)+SUM(H92))/IF(P91<>P92,O92,1)+SUM(C92))),"") ->  | L92: =IFERROR(K92*$D92,"") ->  | N92: =IFERROR(XIRR( IF(1-FREQUENCY(9^9,INDIRECT(CONCATENATE("A",MATCH(TRUE,$B$17:$B$498<>"",0)+16)):$A92), IF(INDIRECT(CONCATENATE("B",MATCH(TRUE,$B$17:$B$498<>"",0)+16)):$B92="",0,INDIRECT(CONCATENATE("B",MATCH(TRUE,$B$17:$B$498<>"",0)+16)):$B92),-L92), IF(1-FREQUENCY(9^9,INDIRECT(CONCATENATE("A",MATCH(TRUE,$B$17:$B$498<>"",0)+16)):$A92), INDIRECT(CONCATENATE("A",MATCH(TRUE,$B$17:$B$498<>"",0)+16)):$A92,$A92), IF(L92<SUM(INDIRECT(CONCATENATE("B",MATCH(TRUE,$B$17:$B$498<>"",0)+16)):$B92),-0.5,0.5)),"") ->  | O92: =IFERROR(VLOOKUP(A92,PPF_NAV[],3)/VLOOKUP(A92,PPF_NAV[],2),"") ->  | P92: =IFERROR(IF(OR(P91=1,(_xlfn.NUMBERVALUE(K91)*VLOOKUP(A92,PPF_NAV[],2,0)+SUM(B92,G92))>=1000000),1,0),"") ->  | T92: =INDEX(A:A,17+INT((ROW()-17)/2),1) -> 2020-09-30 | U92: $78.21 | V92: $162.29 | W92: $162.29
A93: =IF('PPF NAV'!A79="","",'PPF NAV'!A79) ->  | B93: =IFERROR(1/(1/'PPF NAV'!O79),"") ->  | D93: =IF(A93="","",_xlfn.NUMBERVALUE(VLOOKUP(A93,'PPF NAV'!A:C,IF(AND('PPF NAV'!$P$1="Ordinary unit",P93=0),2,3),0))) ->  | G93: =IFERROR(1/(1/ROUND(MIN(-(MIN(_xlfn.NUMBERVALUE(VLOOKUP(A93,'PPF NAV'!A:C,IF(AND('PPF NAV'!$P$1="Ordinary unit",P92=0),2,3),0)),E93)-F93)*(20%-IF(OR(P92=1,'PPF NAV'!$P$1="Elite Unit"),4%)-IF(A93>=DATE(2021,4,30),2%))*K92,0),2)),"") ->  | H93: =IFERROR(1/(1/ROUND(G93/_xlfn.NUMBERVALUE(VLOOKUP(A93,'PPF NAV'!A:C,IF(AND('PPF NAV'!$P$1="Ordinary unit",P92=0),2,3),0)),8)),"") ->  | I93: =IFERROR(VLOOKUP(A93,'PPF NAV'!A:R,IF(OR(P93=1,'PPF NAV'!$P$1="Elite Unit"),18,17)),"") ->  | N93: =IFERROR(XIRR( IF(1-FREQUENCY(9^9,INDIRECT(CONCATENATE("A",MATCH(TRUE,$B$17:$B$498<>"",0)+16)):$A93), IF(INDIRECT(CONCATENATE("B",MATCH(TRUE,$B$17:$B$498<>"",0)+16)):$B93="",0,INDIRECT(CONCATENATE("B",MATCH(TRUE,$B$17:$B$498<>"",0)+16)):$B93),-L93), IF(1-FREQUENCY(9^9,INDIRECT(CONCATENATE("A",MATCH(TRUE,$B$17:$B$498<>"",0)+16)):$A93), INDIRECT(CONCATENATE("A",MATCH(TRUE,$B$17:$B$498<>"",0)+16)):$A93,$A93), IF(L93<SUM(INDIRECT(CONCATENATE("B",MATCH(TRUE,$B$17:$B$498<>"",0)+16)):$B93),-0.5,0.5)),"") ->  | O93: =IFERROR(VLOOKUP(A93,PPF_NAV[],3)/VLOOKUP(A93,PPF_NAV[],2),"") ->  | P93: =IFERROR(IF(OR(P92=1,(_xlfn.NUMBERVALUE(K92)*VLOOKUP(A93,PPF_NAV[],2,0)+SUM(B93,G93))>=1000000),1,0),"") ->  | T93: =INDEX(A:A,17+INT((ROW()-17)/2),1) -> 2020-10-31 | U93: $75.94 | V93: $163.08 | W93: $163.08
A94: =IF('PPF NAV'!A80="","",'PPF NAV'!A80) ->  | B94: =IFERROR(1/(1/'PPF NAV'!O80),"") ->  | D94: =IF(A94="","",_xlfn.NUMBERVALUE(VLOOKUP(A94,'PPF NAV'!A:C,IF(AND('PPF NAV'!$P$1="Ordinary unit",P94=0),2,3),0))) ->  | G94: =IFERROR(1/(1/ROUND(MIN(-(MIN(_xlfn.NUMBERVALUE(VLOOKUP(A94,'PPF NAV'!A:C,IF(AND('PPF NAV'!$P$1="Ordinary unit",P93=0),2,3),0)),E94)-F94)*(20%-IF(OR(P93=1,'PPF NAV'!$P$1="Elite Unit"),4%)-IF(A94>=DATE(2021,4,30),2%))*K93,0),2)),"") ->  | H94: =IFERROR(1/(1/ROUND(G94/_xlfn.NUMBERVALUE(VLOOKUP(A94,'PPF NAV'!A:C,IF(AND('PPF NAV'!$P$1="Ordinary unit",P93=0),2,3),0)),8)),"") ->  | I94: =IFERROR(VLOOKUP(A94,'PPF NAV'!A:R,IF(OR(P94=1,'PPF NAV'!$P$1="Elite Unit"),18,17)),"") ->  | N94: =IFERROR(XIRR( IF(1-FREQUENCY(9^9,INDIRECT(CONCATENATE("A",MATCH(TRUE,$B$17:$B$498<>"",0)+16)):$A94), IF(INDIRECT(CONCATENATE("B",MATCH(TRUE,$B$17:$B$498<>"",0)+16)):$B94="",0,INDIRECT(CONCATENATE("B",MATCH(TRUE,$B$17:$B$498<>"",0)+16)):$B94),-L94), IF(1-FREQUENCY(9^9,INDIRECT(CONCATENATE("A",MATCH(TRUE,$B$17:$B$498<>"",0)+16)):$A94), INDIRECT(CONCATENATE("A",MATCH(TRUE,$B$17:$B$498<>"",0)+16)):$A94,$A94), IF(L94<SUM(INDIRECT(CONCATENATE("B",MATCH(TRUE,$B$17:$B$498<>"",0)+16)):$B94),-0.5,0.5)),"") ->  | O94: =IFERROR(VLOOKUP(A94,PPF_NAV[],3)/VLOOKUP(A94,PPF_NAV[],2),"") ->  | P94: =IFERROR(IF(OR(P93=1,(_xlfn.NUMBERVALUE(K93)*VLOOKUP(A94,PPF_NAV[],2,0)+SUM(B94,G94))>=1000000),1,0),"") ->  | T94: =INDEX(A:A,17+INT((ROW()-17)/2),1) -> 2020-10-31 | U94: $75.94 | V94: $163.08 | W94: $163.08
A95: =IF('PPF NAV'!A81="","",'PPF NAV'!A81) ->  | B95: =IFERROR(1/(1/'PPF NAV'!O81),"") ->  | D95: =IF(A95="","",_xlfn.NUMBERVALUE(VLOOKUP(A95,'PPF NAV'!A:C,IF(AND('PPF NAV'!$P$1="Ordinary unit",P95=0),2,3),0))) ->  | G95: =IFERROR(1/(1/ROUND(MIN(-(MIN(_xlfn.NUMBERVALUE(VLOOKUP(A95,'PPF NAV'!A:C,IF(AND('PPF NAV'!$P$1="Ordinary unit",P94=0),2,3),0)),E95)-F95)*(20%-IF(OR(P94=1,'PPF NAV'!$P$1="Elite Unit"),4%)-IF(A95>=DATE(2021,4,30),2%))*K94,0),2)),"") ->  | H95: =IFERROR(1/(1/ROUND(G95/_xlfn.NUMBERVALUE(VLOOKUP(A95,'PPF NAV'!A:C,IF(AND('PPF NAV'!$P$1="Ordinary unit",P94=0),2,3),0)),8)),"") ->  | I95: =IFERROR(VLOOKUP(A95,'PPF NAV'!A:R,IF(OR(P95=1,'PPF NAV'!$P$1="Elite Unit"),18,17)),"") ->  | N95: =IFERROR(XIRR( IF(1-FREQUENCY(9^9,INDIRECT(CONCATENATE("A",MATCH(TRUE,$B$17:$B$498<>"",0)+16)):$A95), IF(INDIRECT(CONCATENATE("B",MATCH(TRUE,$B$17:$B$498<>"",0)+16)):$B95="",0,INDIRECT(CONCATENATE("B",MATCH(TRUE,$B$17:$B$498<>"",0)+16)):$B95),-L95), IF(1-FREQUENCY(9^9,INDIRECT(CONCATENATE("A",MATCH(TRUE,$B$17:$B$498<>"",0)+16)):$A95), INDIRECT(CONCATENATE("A",MATCH(TRUE,$B$17:$B$498<>"",0)+16)):$A95,$A95), IF(L95<SUM(INDIRECT(CONCATENATE("B",MATCH(TRUE,$B$17:$B$498<>"",0)+16)):$B95),-0.5,0.5)),"") ->  | O95: =IFERROR(VLOOKUP(A95,PPF_NAV[],3)/VLOOKUP(A95,PPF_NAV[],2),"") ->  | P95: =IFERROR(IF(OR(P94=1,(_xlfn.NUMBERVALUE(K94)*VLOOKUP(A95,PPF_NAV[],2,0)+SUM(B95,G95))>=1000000),1,0),"") ->  | T95: =INDEX(A:A,17+INT((ROW()-17)/2),1) -> 2020-11-30 | U95: $88.78 | V95: $163.88 | W95: $163.88
A96: =IF('PPF NAV'!A82="","",'PPF NAV'!A82) ->  | B96: =IFERROR(1/(1/'PPF NAV'!O82),"") ->  | D96: =IF(A96="","",_xlfn.NUMBERVALUE(VLOOKUP(A96,'PPF NAV'!A:C,IF(AND('PPF NAV'!$P$1="Ordinary unit",P96=0),2,3),0))) ->  | G96: =IFERROR(1/(1/ROUND(MIN(-(MIN(_xlfn.NUMBERVALUE(VLOOKUP(A96,'PPF NAV'!A:C,IF(AND('PPF NAV'!$P$1="Ordinary unit",P95=0),2,3),0)),E96)-F96)*(20%-IF(OR(P95=1,'PPF NAV'!$P$1="Elite Unit"),4%)-IF(A96>=DATE(2021,4,30),2%))*K95,0),2)),"") ->  | H96: =IFERROR(1/(1/ROUND(G96/_xlfn.NUMBERVALUE(VLOOKUP(A96,'PPF NAV'!A:C,IF(AND('PPF NAV'!$P$1="Ordinary unit",P95=0),2,3),0)),8)),"") ->  | I96: =IFERROR(VLOOKUP(A96,'PPF NAV'!A:R,IF(OR(P96=1,'PPF NAV'!$P$1="Elite Unit"),18,17)),"") ->  | N96: =IFERROR(XIRR( IF(1-FREQUENCY(9^9,INDIRECT(CONCATENATE("A",MATCH(TRUE,$B$17:$B$498<>"",0)+16)):$A96), IF(INDIRECT(CONCATENATE("B",MATCH(TRUE,$B$17:$B$498<>"",0)+16)):$B96="",0,INDIRECT(CONCATENATE("B",MATCH(TRUE,$B$17:$B$498<>"",0)+16)):$B96),-L96), IF(1-FREQUENCY(9^9,INDIRECT(CONCATENATE("A",MATCH(TRUE,$B$17:$B$498<>"",0)+16)):$A96), INDIRECT(CONCATENATE("A",MATCH(TRUE,$B$17:$B$498<>"",0)+16)):$A96,$A96), IF(L96<SUM(INDIRECT(CONCATENATE("B",MATCH(TRUE,$B$17:$B$498<>"",0)+16)):$B96),-0.5,0.5)),"") ->  | O96: =IFERROR(VLOOKUP(A96,PPF_NAV[],3)/VLOOKUP(A96,PPF_NAV[],2),"") ->  | P96: =IFERROR(IF(OR(P95=1,(_xlfn.NUMBERVALUE(K95)*VLOOKUP(A96,PPF_NAV[],2,0)+SUM(B96,G96))>=1000000),1,0),"") ->  | T96: =INDEX(A:A,17+INT((ROW()-17)/2),1) -> 2020-11-30 | U96: $88.78 | V96: $163.88 | W96: $163.88
A97: =IF('PPF NAV'!A83="","",'PPF NAV'!A83) ->  | B97: =IFERROR(1/(1/'PPF NAV'!O83),"") ->  | D97: =IF(A97="","",_xlfn.NUMBERVALUE(VLOOKUP(A97,'PPF NAV'!A:C,IF(AND('PPF NAV'!$P$1="Ordinary unit",P97=0),2,3),0))) ->  | G97: =IFERROR(1/(1/ROUND(MIN(-(MIN(_xlfn.NUMBERVALUE(VLOOKUP(A97,'PPF NAV'!A:C,IF(AND('PPF NAV'!$P$1="Ordinary unit",P96=0),2,3),0)),E97)-F97)*(20%-IF(OR(P96=1,'PPF NAV'!$P$1="Elite Unit"),4%)-IF(A97>=DATE(2021,4,30),2%))*K96,0),2)),"") ->  | H97: =IFERROR(1/(1/ROUND(G97/_xlfn.NUMBERVALUE(VLOOKUP(A97,'PPF NAV'!A:C,IF(AND('PPF NAV'!$P$1="Ordinary unit",P96=0),2,3),0)),8)),"") ->  | I97: =IFERROR(VLOOKUP(A97,'PPF NAV'!A:R,IF(OR(P97=1,'PPF NAV'!$P$1="Elite Unit"),18,17)),"") ->  | N97: =IFERROR(XIRR( IF(1-FREQUENCY(9^9,INDIRECT(CONCATENATE("A",MATCH(TRUE,$B$17:$B$498<>"",0)+16)):$A97), IF(INDIRECT(CONCATENATE("B",MATCH(TRUE,$B$17:$B$498<>"",0)+16)):$B97="",0,INDIRECT(CONCATENATE("B",MATCH(TRUE,$B$17:$B$498<>"",0)+16)):$B97),-L97), IF(1-FREQUENCY(9^9,INDIRECT(CONCATENATE("A",MATCH(TRUE,$B$17:$B$498<>"",0)+16)):$A97), INDIRECT(CONCATENATE("A",MATCH(TRUE,$B$17:$B$498<>"",0)+16)):$A97,$A97), IF(L97<SUM(INDIRECT(CONCATENATE("B",MATCH(TRUE,$B$17:$B$498<>"",0)+16)):$B97),-0.5,0.5)),"") ->  | O97: =IFERROR(VLOOKUP(A97,PPF_NAV[],3)/VLOOKUP(A97,PPF_NAV[],2),"") ->  | P97: =IFERROR(IF(OR(P96=1,(_xlfn.NUMBERVALUE(K96)*VLOOKUP(A97,PPF_NAV[],2,0)+SUM(B97,G97))>=1000000),1,0),"") ->  | T97: =INDEX(A:A,17+INT((ROW()-17)/2),1) -> 2020-12-31 | U97: $93.62 | V97: $164.68 | W97: $164.68
A98: =IF('PPF NAV'!A84="","",'PPF NAV'!A84) ->  | B98: =IFERROR(1/(1/'PPF NAV'!O84),"") ->  | D98: =IF(A98="","",_xlfn.NUMBERVALUE(VLOOKUP(A98,'PPF NAV'!A:C,IF(AND('PPF NAV'!$P$1="Ordinary unit",P98=0),2,3),0))) ->  | G98: =IFERROR(1/(1/ROUND(MIN(-(MIN(_xlfn.NUMBERVALUE(VLOOKUP(A98,'PPF NAV'!A:C,IF(AND('PPF NAV'!$P$1="Ordinary unit",P97=0),2,3),0)),E98)-F98)*(20%-IF(OR(P97=1,'PPF NAV'!$P$1="Elite Unit"),4%)-IF(A98>=DATE(2021,4,30),2%))*K97,0),2)),"") ->  | H98: =IFERROR(1/(1/ROUND(G98/_xlfn.NUMBERVALUE(VLOOKUP(A98,'PPF NAV'!A:C,IF(AND('PPF NAV'!$P$1="Ordinary unit",P97=0),2,3),0)),8)),"") ->  | I98: =IFERROR(VLOOKUP(A98,'PPF NAV'!A:R,IF(OR(P98=1,'PPF NAV'!$P$1="Elite Unit"),18,17)),"") ->  | N98: =IFERROR(XIRR( IF(1-FREQUENCY(9^9,INDIRECT(CONCATENATE("A",MATCH(TRUE,$B$17:$B$498<>"",0)+16)):$A98), IF(INDIRECT(CONCATENATE("B",MATCH(TRUE,$B$17:$B$498<>"",0)+16)):$B98="",0,INDIRECT(CONCATENATE("B",MATCH(TRUE,$B$17:$B$498<>"",0)+16)):$B98),-L98), IF(1-FREQUENCY(9^9,INDIRECT(CONCATENATE("A",MATCH(TRUE,$B$17:$B$498<>"",0)+16)):$A98), INDIRECT(CONCATENATE("A",MATCH(TRUE,$B$17:$B$498<>"",0)+16)):$A98,$A98), IF(L98<SUM(INDIRECT(CONCATENATE("B",MATCH(TRUE,$B$17:$B$498<>"",0)+16)):$B98),-0.5,0.5)),"") ->  | O98: =IFERROR(VLOOKUP(A98,PPF_NAV[],3)/VLOOKUP(A98,PPF_NAV[],2),"") ->  | P98: =IFERROR(IF(OR(P97=1,(_xlfn.NUMBERVALUE(K97)*VLOOKUP(A98,PPF_NAV[],2,0)+SUM(B98,G98))>=1000000),1,0),"") ->  | T98: =INDEX(A:A,17+INT((ROW()-17)/2),1) -> 2020-12-31 | U98: $93.62 | V98: $164.68 | W98: $164.68
A99: =IF('PPF NAV'!A85="","",'PPF NAV'!A85) ->  | B99: =IFERROR(1/(1/'PPF NAV'!O85),"") ->  | D99: =IF(A99="","",_xlfn.NUMBERVALUE(VLOOKUP(A99,'PPF NAV'!A:C,IF(AND('PPF NAV'!$P$1="Ordinary unit",P99=0),2,3),0))) ->  | G99: =IFERROR(1/(1/ROUND(MIN(-(MIN(_xlfn.NUMBERVALUE(VLOOKUP(A99,'PPF NAV'!A:C,IF(AND('PPF NAV'!$P$1="Ordinary unit",P98=0),2,3),0)),E99)-F99)*(20%-IF(OR(P98=1,'PPF NAV'!$P$1="Elite Unit"),4%)-IF(A99>=DATE(2021,4,30),2%))*K98,0),2)),"") ->  | H99: =IFERROR(1/(1/ROUND(G99/_xlfn.NUMBERVALUE(VLOOKUP(A99,'PPF NAV'!A:C,IF(AND('PPF NAV'!$P$1="Ordinary unit",P98=0),2,3),0)),8)),"") ->  | I99: =IFERROR(VLOOKUP(A99,'PPF NAV'!A:R,IF(OR(P99=1,'PPF NAV'!$P$1="Elite Unit"),18,17)),"") ->  | N99: =IFERROR(XIRR( IF(1-FREQUENCY(9^9,INDIRECT(CONCATENATE("A",MATCH(TRUE,$B$17:$B$498<>"",0)+16)):$A99), IF(INDIRECT(CONCATENATE("B",MATCH(TRUE,$B$17:$B$498<>"",0)+16)):$B99="",0,INDIRECT(CONCATENATE("B",MATCH(TRUE,$B$17:$B$498<>"",0)+16)):$B99),-L99), IF(1-FREQUENCY(9^9,INDIRECT(CONCATENATE("A",MATCH(TRUE,$B$17:$B$498<>"",0)+16)):$A99), INDIRECT(CONCATENATE("A",MATCH(TRUE,$B$17:$B$498<>"",0)+16)):$A99,$A99), IF(L99<SUM(INDIRECT(CONCATENATE("B",MATCH(TRUE,$B$17:$B$498<>"",0)+16)):$B99),-0.5,0.5)),"") ->  | O99: =IFERROR(VLOOKUP(A99,PPF_NAV[],3)/VLOOKUP(A99,PPF_NAV[],2),"") ->  | P99: =IFERROR(IF(OR(P98=1,(_xlfn.NUMBERVALUE(K98)*VLOOKUP(A99,PPF_NAV[],2,0)+SUM(B99,G99))>=1000000),1,0),"") ->  | T99: =INDEX(A:A,17+INT((ROW()-17)/2),1) -> 2021-01-31 | U99: $94.58 | V99: $165.48 | W99: $165.48
A100: =IF('PPF NAV'!A86="","",'PPF NAV'!A86) ->  | B100: =IFERROR(1/(1/'PPF NAV'!O86),"") ->  | D100: =IF(A100="","",_xlfn.NUMBERVALUE(VLOOKUP(A100,'PPF NAV'!A:C,IF(AND('PPF NAV'!$P$1="Ordinary unit",P100=0),2,3),0))) ->  | G100: =IFERROR(1/(1/ROUND(MIN(-(MIN(_xlfn.NUMBERVALUE(VLOOKUP(A100,'PPF NAV'!A:C,IF(AND('PPF NAV'!$P$1="Ordinary unit",P99=0),2,3),0)),E100)-F100)*(20%-IF(OR(P99=1,'PPF NAV'!$P$1="Elite Unit"),4%)-IF(A100>=DATE(2021,4,30),2%))*K99,0),2)),"") ->  | H100: =IFERROR(1/(1/ROUND(G100/_xlfn.NUMBERVALUE(VLOOKUP(A100,'PPF NAV'!A:C,IF(AND('PPF NAV'!$P$1="Ordinary unit",P99=0),2,3),0)),8)),"") ->  | I100: =IFERROR(VLOOKUP(A100,'PPF NAV'!A:R,IF(OR(P100=1,'PPF NAV'!$P$1="Elite Unit"),18,17)),"") ->  | N100: =IFERROR(XIRR( IF(1-FREQUENCY(9^9,INDIRECT(CONCATENATE("A",MATCH(TRUE,$B$17:$B$498<>"",0)+16)):$A100), IF(INDIRECT(CONCATENATE("B",MATCH(TRUE,$B$17:$B$498<>"",0)+16)):$B100="",0,INDIRECT(CONCATENATE("B",MATCH(TRUE,$B$17:$B$498<>"",0)+16)):$B100),-L100), IF(1-FREQUENCY(9^9,INDIRECT(CONCATENATE("A",MATCH(TRUE,$B$17:$B$498<>"",0)+16)):$A100), INDIRECT(CONCATENATE("A",MATCH(TRUE,$B$17:$B$498<>"",0)+16)):$A100,$A100), IF(L100<SUM(INDIRECT(CONCATENATE("B",MATCH(TRUE,$B$17:$B$498<>"",0)+16)):$B100),-0.5,0.5)),"") ->  | O100: =IFERROR(VLOOKUP(A100,PPF_NAV[],3)/VLOOKUP(A100,PPF_NAV[],2),"") ->  | P100: =IFERROR(IF(OR(P99=1,(_xlfn.NUMBERVALUE(K99)*VLOOKUP(A100,PPF_NAV[],2,0)+SUM(B100,G100))>=1000000),1,0),"") ->  | T100: =INDEX(A:A,17+INT((ROW()-17)/2),1) -> 2021-01-31 | U100: $94.58 | V100: $165.48 | W100: $165.48
A101: =IF('PPF NAV'!A87="","",'PPF NAV'!A87) ->  | B101: =IFERROR(1/(1/'PPF NAV'!O87),"") ->  | D101: =IF(A101="","",_xlfn.NUMBERVALUE(VLOOKUP(A101,'PPF NAV'!A:C,IF(AND('PPF NAV'!$P$1="Ordinary unit",P101=0),2,3),0))) ->  | G101: =IFERROR(1/(1/ROUND(MIN(-(MIN(_xlfn.NUMBERVALUE(VLOOKUP(A101,'PPF NAV'!A:C,IF(AND('PPF NAV'!$P$1="Ordinary unit",P100=0),2,3),0)),E101)-F101)*(20%-IF(OR(P100=1,'PPF NAV'!$P$1="Elite Unit"),4%)-IF(A101>=DATE(2021,4,30),2%))*K100,0),2)),"") ->  | H101: =IFERROR(1/(1/ROUND(G101/_xlfn.NUMBERVALUE(VLOOKUP(A101,'PPF NAV'!A:C,IF(AND('PPF NAV'!$P$1="Ordinary unit",P100=0),2,3),0)),8)),"") ->  | I101: =IFERROR(VLOOKUP(A101,'PPF NAV'!A:R,IF(OR(P101=1,'PPF NAV'!$P$1="Elite Unit"),18,17)),"") ->  | N101: =IFERROR(XIRR( IF(1-FREQUENCY(9^9,INDIRECT(CONCATENATE("A",MATCH(TRUE,$B$17:$B$498<>"",0)+16)):$A101), IF(INDIRECT(CONCATENATE("B",MATCH(TRUE,$B$17:$B$498<>"",0)+16)):$B101="",0,INDIRECT(CONCATENATE("B",MATCH(TRUE,$B$17:$B$498<>"",0)+16)):$B101),-L101), IF(1-FREQUENCY(9^9,INDIRECT(CONCATENATE("A",MATCH(TRUE,$B$17:$B$498<>"",0)+16)):$A101), INDIRECT(CONCATENATE("A",MATCH(TRUE,$B$17:$B$498<>"",0)+16)):$A101,$A101), IF(L101<SUM(INDIRECT(CONCATENATE("B",MATCH(TRUE,$B$17:$B$498<>"",0)+16)):$B101),-0.5,0.5)),"") ->  | O101: =IFERROR(VLOOKUP(A101,PPF_NAV[],3)/VLOOKUP(A101,PPF_NAV[],2),"") ->  | P101: =IFERROR(IF(OR(P100=1,(_xlfn.NUMBERVALUE(K100)*VLOOKUP(A101,PPF_NAV[],2,0)+SUM(B101,G101))>=1000000),1,0),"") ->  | T101: =INDEX(A:A,17+INT((ROW()-17)/2),1) -> 2021-02-28 | U101: $99.16 | V101: $166.28 | W101: $166.28
A102: =IF('PPF NAV'!A88="","",'PPF NAV'!A88) ->  | B102: =IFERROR(1/(1/'PPF NAV'!O88),"") ->  | D102: =IF(A102="","",_xlfn.NUMBERVALUE(VLOOKUP(A102,'PPF NAV'!A:C,IF(AND('PPF NAV'!$P$1="Ordinary unit",P102=0),2,3),0))) ->  | G102: =IFERROR(1/(1/ROUND(MIN(-(MIN(_xlfn.NUMBERVALUE(VLOOKUP(A102,'PPF NAV'!A:C,IF(AND('PPF NAV'!$P$1="Ordinary unit",P101=0),2,3),0)),E102)-F102)*(20%-IF(OR(P101=1,'PPF NAV'!$P$1="Elite Unit"),4%)-IF(A102>=DATE(2021,4,30),2%))*K101,0),2)),"") ->  | H102: =IFERROR(1/(1/ROUND(G102/_xlfn.NUMBERVALUE(VLOOKUP(A102,'PPF NAV'!A:C,IF(AND('PPF NAV'!$P$1="Ordinary unit",P101=0),2,3),0)),8)),"") ->  | I102: =IFERROR(VLOOKUP(A102,'PPF NAV'!A:R,IF(OR(P102=1,'PPF NAV'!$P$1="Elite Unit"),18,17)),"") ->  | N102: =IFERROR(XIRR( IF(1-FREQUENCY(9^9,INDIRECT(CONCATENATE("A",MATCH(TRUE,$B$17:$B$498<>"",0)+16)):$A102), IF(INDIRECT(CONCATENATE("B",MATCH(TRUE,$B$17:$B$498<>"",0)+16)):$B102="",0,INDIRECT(CONCATENATE("B",MATCH(TRUE,$B$17:$B$498<>"",0)+16)):$B102),-L102), IF(1-FREQUENCY(9^9,INDIRECT(CONCATENATE("A",MATCH(TRUE,$B$17:$B$498<>"",0)+16)):$A102), INDIRECT(CONCATENATE("A",MATCH(TRUE,$B$17:$B$498<>"",0)+16)):$A102,$A102), IF(L102<SUM(INDIRECT(CONCATENATE("B",MATCH(TRUE,$B$17:$B$498<>"",0)+16)):$B102),-0.5,0.5)),"") ->  | O102: =IFERROR(VLOOKUP(A102,PPF_NAV[],3)/VLOOKUP(A102,PPF_NAV[],2),"") ->  | P102: =IFERROR(IF(OR(P101=1,(_xlfn.NUMBERVALUE(K101)*VLOOKUP(A102,PPF_NAV[],2,0)+SUM(B102,G102))>=1000000),1,0),"") ->  | T102: =INDEX(A:A,17+INT((ROW()-17)/2),1) -> 2021-02-28 | U102: $99.16 | V102: $166.28 | W102: $166.28
A103: =IF('PPF NAV'!A89="","",'PPF NAV'!A89) ->  | B103: =IFERROR(1/(1/'PPF NAV'!O89),"") ->  | D103: =IF(A103="","",_xlfn.NUMBERVALUE(VLOOKUP(A103,'PPF NAV'!A:C,IF(AND('PPF NAV'!$P$1="Ordinary unit",P103=0),2,3),0))) ->  | G103: =IFERROR(1/(1/ROUND(MIN(-(MIN(_xlfn.NUMBERVALUE(VLOOKUP(A103,'PPF NAV'!A:C,IF(AND('PPF NAV'!$P$1="Ordinary unit",P102=0),2,3),0)),E103)-F103)*(20%-IF(OR(P102=1,'PPF NAV'!$P$1="Elite Unit"),4%)-IF(A103>=DATE(2021,4,30),2%))*K102,0),2)),"") ->  | H103: =IFERROR(1/(1/ROUND(G103/_xlfn.NUMBERVALUE(VLOOKUP(A103,'PPF NAV'!A:C,IF(AND('PPF NAV'!$P$1="Ordinary unit",P102=0),2,3),0)),8)),"") ->  | I103: =IFERROR(VLOOKUP(A103,'PPF NAV'!A:R,IF(OR(P103=1,'PPF NAV'!$P$1="Elite Unit"),18,17)),"") ->  | N103: =IFERROR(XIRR( IF(1-FREQUENCY(9^9,INDIRECT(CONCATENATE("A",MATCH(TRUE,$B$17:$B$498<>"",0)+16)):$A103), IF(INDIRECT(CONCATENATE("B",MATCH(TRUE,$B$17:$B$498<>"",0)+16)):$B103="",0,INDIRECT(CONCATENATE("B",MATCH(TRUE,$B$17:$B$498<>"",0)+16)):$B103),-L103), IF(1-FREQUENCY(9^9,INDIRECT(CONCATENATE("A",MATCH(TRUE,$B$17:$B$498<>"",0)+16)):$A103), INDIRECT(CONCATENATE("A",MATCH(TRUE,$B$17:$B$498<>"",0)+16)):$A103,$A103), IF(L103<SUM(INDIRECT(CONCATENATE("B",MATCH(TRUE,$B$17:$B$498<>"",0)+16)):$B103),-0.5,0.5)),"") ->  | O103: =IFERROR(VLOOKUP(A103,PPF_NAV[],3)/VLOOKUP(A103,PPF_NAV[],2),"") ->  | P103: =IFERROR(IF(OR(P102=1,(_xlfn.NUMBERVALUE(K102)*VLOOKUP(A103,PPF_NAV[],2,0)+SUM(B103,G103))>=1000000),1,0),"") ->  | T103: =INDEX(A:A,17+INT((ROW()-17)/2),1) -> 2021-03-31 | U103: $110.75 | V103: $167.09 | W103: $167.09
A104: =IF('PPF NAV'!A90="","",'PPF NAV'!A90) ->  | B104: =IFERROR(1/(1/'PPF NAV'!O90),"") ->  | D104: =IF(A104="","",_xlfn.NUMBERVALUE(VLOOKUP(A104,'PPF NAV'!A:C,IF(AND('PPF NAV'!$P$1="Ordinary unit",P104=0),2,3),0))) ->  | G104: =IFERROR(1/(1/ROUND(MIN(-(MIN(_xlfn.NUMBERVALUE(VLOOKUP(A104,'PPF NAV'!A:C,IF(AND('PPF NAV'!$P$1="Ordinary unit",P103=0),2,3),0)),E104)-F104)*(20%-IF(OR(P103=1,'PPF NAV'!$P$1="Elite Unit"),4%)-IF(A104>=DATE(2021,4,30),2%))*K103,0),2)),"") ->  | H104: =IFERROR(1/(1/ROUND(G104/_xlfn.NUMBERVALUE(VLOOKUP(A104,'PPF NAV'!A:C,IF(AND('PPF NAV'!$P$1="Ordinary unit",P103=0),2,3),0)),8)),"") ->  | I104: =IFERROR(VLOOKUP(A104,'PPF NAV'!A:R,IF(OR(P104=1,'PPF NAV'!$P$1="Elite Unit"),18,17)),"") ->  | N104: =IFERROR(XIRR( IF(1-FREQUENCY(9^9,INDIRECT(CONCATENATE("A",MATCH(TRUE,$B$17:$B$498<>"",0)+16)):$A104), IF(INDIRECT(CONCATENATE("B",MATCH(TRUE,$B$17:$B$498<>"",0)+16)):$B104="",0,INDIRECT(CONCATENATE("B",MATCH(TRUE,$B$17:$B$498<>"",0)+16)):$B104),-L104), IF(1-FREQUENCY(9^9,INDIRECT(CONCATENATE("A",MATCH(TRUE,$B$17:$B$498<>"",0)+16)):$A104), INDIRECT(CONCATENATE("A",MATCH(TRUE,$B$17:$B$498<>"",0)+16)):$A104,$A104), IF(L104<SUM(INDIRECT(CONCATENATE("B",MATCH(TRUE,$B$17:$B$498<>"",0)+16)):$B104),-0.5,0.5)),"") ->  | O104: =IFERROR(VLOOKUP(A104,PPF_NAV[],3)/VLOOKUP(A104,PPF_NAV[],2),"") ->  | P104: =IFERROR(IF(OR(P103=1,(_xlfn.NUMBERVALUE(K103)*VLOOKUP(A104,PPF_NAV[],2,0)+SUM(B104,G104))>=1000000),1,0),"") ->  | T104: =INDEX(A:A,17+INT((ROW()-17)/2),1) -> 2021-03-31 | U104: $110.75 | V104: $167.09 | W104: $167.09
A105: =IF('PPF NAV'!A91="","",'PPF NAV'!A91) ->  | B105: =IFERROR(1/(1/'PPF NAV'!O91),"") ->  | D105: =IF(A105="","",_xlfn.NUMBERVALUE(VLOOKUP(A105,'PPF NAV'!A:C,IF(AND('PPF NAV'!$P$1="Ordinary unit",P105=0),2,3),0))) ->  | G105: =IFERROR(1/(1/ROUND(MIN(-(MIN(_xlfn.NUMBERVALUE(VLOOKUP(A105,'PPF NAV'!A:C,IF(AND('PPF NAV'!$P$1="Ordinary unit",P104=0),2,3),0)),E105)-F105)*(20%-IF(OR(P104=1,'PPF NAV'!$P$1="Elite Unit"),4%)-IF(A105>=DATE(2021,4,30),2%))*K104,0),2)),"") ->  | H105: =IFERROR(1/(1/ROUND(G105/_xlfn.NUMBERVALUE(VLOOKUP(A105,'PPF NAV'!A:C,IF(AND('PPF NAV'!$P$1="Ordinary unit",P104=0),2,3),0)),8)),"") ->  | I105: =IFERROR(VLOOKUP(A105,'PPF NAV'!A:R,IF(OR(P105=1,'PPF NAV'!$P$1="Elite Unit"),18,17)),"") ->  | N105: =IFERROR(XIRR( IF(1-FREQUENCY(9^9,INDIRECT(CONCATENATE("A",MATCH(TRUE,$B$17:$B$498<>"",0)+16)):$A105), IF(INDIRECT(CONCATENATE("B",MATCH(TRUE,$B$17:$B$498<>"",0)+16)):$B105="",0,INDIRECT(CONCATENATE("B",MATCH(TRUE,$B$17:$B$498<>"",0)+16)):$B105),-L105), IF(1-FREQUENCY(9^9,INDIRECT(CONCATENATE("A",MATCH(TRUE,$B$17:$B$498<>"",0)+16)):$A105), INDIRECT(CONCATENATE("A",MATCH(TRUE,$B$17:$B$498<>"",0)+16)):$A105,$A105), IF(L105<SUM(INDIRECT(CONCATENATE("B",MATCH(TRUE,$B$17:$B$498<>"",0)+16)):$B105),-0.5,0.5)),"") ->  | O105: =IFERROR(VLOOKUP(A105,PPF_NAV[],3)/VLOOKUP(A105,PPF_NAV[],2),"") ->  | P105: =IFERROR(IF(OR(P104=1,(_xlfn.NUMBERVALUE(K104)*VLOOKUP(A105,PPF_NAV[],2,0)+SUM(B105,G105))>=1000000),1,0),"") ->  | T105: =INDEX(A:A,17+INT((ROW()-17)/2),1) -> 2021-04-30 | U105: $117.21 | V105: $167.91 | W105: $167.91
A106: =IF('PPF NAV'!A92="","",'PPF NAV'!A92) ->  | B106: =IFERROR(1/(1/'PPF NAV'!O92),"") ->  | D106: =IF(A106="","",_xlfn.NUMBERVALUE(VLOOKUP(A106,'PPF NAV'!A:C,IF(AND('PPF NAV'!$P$1="Ordinary unit",P106=0),2,3),0))) ->  | G106: =IFERROR(1/(1/ROUND(MIN(-(MIN(_xlfn.NUMBERVALUE(VLOOKUP(A106,'PPF NAV'!A:C,IF(AND('PPF NAV'!$P$1="Ordinary unit",P105=0),2,3),0)),E106)-F106)*(20%-IF(OR(P105=1,'PPF NAV'!$P$1="Elite Unit"),4%)-IF(A106>=DATE(2021,4,30),2%))*K105,0),2)),"") ->  | H106: =IFERROR(1/(1/ROUND(G106/_xlfn.NUMBERVALUE(VLOOKUP(A106,'PPF NAV'!A:C,IF(AND('PPF NAV'!$P$1="Ordinary unit",P105=0),2,3),0)),8)),"") ->  | I106: =IFERROR(VLOOKUP(A106,'PPF NAV'!A:R,IF(OR(P106=1,'PPF NAV'!$P$1="Elite Unit"),18,17)),"") ->  | N106: =IFERROR(XIRR( IF(1-FREQUENCY(9^9,INDIRECT(CONCATENATE("A",MATCH(TRUE,$B$17:$B$498<>"",0)+16)):$A106), IF(INDIRECT(CONCATENATE("B",MATCH(TRUE,$B$17:$B$498<>"",0)+16)):$B106="",0,INDIRECT(CONCATENATE("B",MATCH(TRUE,$B$17:$B$498<>"",0)+16)):$B106),-L106), IF(1-FREQUENCY(9^9,INDIRECT(CONCATENATE("A",MATCH(TRUE,$B$17:$B$498<>"",0)+16)):$A106), INDIRECT(CONCATENATE("A",MATCH(TRUE,$B$17:$B$498<>"",0)+16)):$A106,$A106), IF(L106<SUM(INDIRECT(CONCATENATE("B",MATCH(TRUE,$B$17:$B$498<>"",0)+16)):$B106),-0.5,0.5)),"") ->  | O106: =IFERROR(VLOOKUP(A106,PPF_NAV[],3)/VLOOKUP(A106,PPF_NAV[],2),"") ->  | P106: =IFERROR(IF(OR(P105=1,(_xlfn.NUMBERVALUE(K105)*VLOOKUP(A106,PPF_NAV[],2,0)+SUM(B106,G106))>=1000000),1,0),"") ->  | T106: =INDEX(A:A,17+INT((ROW()-17)/2),1) -> 2021-04-30 | U106: $117.21 | V106: $167.91 | W106: $167.91
A107: =IF('PPF NAV'!A93="","",'PPF NAV'!A93) ->  | B107: =IFERROR(1/(1/'PPF NAV'!O93),"") ->  | D107: =IF(A107="","",_xlfn.NUMBERVALUE(VLOOKUP(A107,'PPF NAV'!A:C,IF(AND('PPF NAV'!$P$1="Ordinary unit",P107=0),2,3),0))) ->  | G107: =IFERROR(1/(1/ROUND(MIN(-(MIN(_xlfn.NUMBERVALUE(VLOOKUP(A107,'PPF NAV'!A:C,IF(AND('PPF NAV'!$P$1="Ordinary unit",P106=0),2,3),0)),E107)-F107)*(20%-IF(OR(P106=1,'PPF NAV'!$P$1="Elite Unit"),4%)-IF(A107>=DATE(2021,4,30),2%))*K106,0),2)),"") ->  | H107: =IFERROR(1/(1/ROUND(G107/_xlfn.NUMBERVALUE(VLOOKUP(A107,'PPF NAV'!A:C,IF(AND('PPF NAV'!$P$1="Ordinary unit",P106=0),2,3),0)),8)),"") ->  | I107: =IFERROR(VLOOKUP(A107,'PPF NAV'!A:R,IF(OR(P107=1,'PPF NAV'!$P$1="Elite Unit"),18,17)),"") ->  | N107: =IFERROR(XIRR( IF(1-FREQUENCY(9^9,INDIRECT(CONCATENATE("A",MATCH(TRUE,$B$17:$B$498<>"",0)+16)):$A107), IF(INDIRECT(CONCATENATE("B",MATCH(TRUE,$B$17:$B$498<>"",0)+16)):$B107="",0,INDIRECT(CONCATENATE("B",MATCH(TRUE,$B$17:$B$498<>"",0)+16)):$B107),-L107), IF(1-FREQUENCY(9^9,INDIRECT(CONCATENATE("A",MATCH(TRUE,$B$17:$B$498<>"",0)+16)):$A107), INDIRECT(CONCATENATE("A",MATCH(TRUE,$B$17:$B$498<>"",0)+16)):$A107,$A107), IF(L107<SUM(INDIRECT(CONCATENATE("B",MATCH(TRUE,$B$17:$B$498<>"",0)+16)):$B107),-0.5,0.5)),"") ->  | O107: =IFERROR(VLOOKUP(A107,PPF_NAV[],3)/VLOOKUP(A107,PPF_NAV[],2),"") ->  | P107: =IFERROR(IF(OR(P106=1,(_xlfn.NUMBERVALUE(K106)*VLOOKUP(A107,PPF_NAV[],2,0)+SUM(B107,G107))>=1000000),1,0),"") ->  | T107: =INDEX(A:A,17+INT((ROW()-17)/2),1) -> 2021-05-31 | U107: $120.49 | V107: $168.72 | W107: $168.72
A108: =IF('PPF NAV'!A94="","",'PPF NAV'!A94) ->  | B108: =IFERROR(1/(1/'PPF NAV'!O94),"") ->  | D108: =IF(A108="","",_xlfn.NUMBERVALUE(VLOOKUP(A108,'PPF NAV'!A:C,IF(AND('PPF NAV'!$P$1="Ordinary unit",P108=0),2,3),0))) ->  | G108: =IFERROR(1/(1/ROUND(MIN(-(MIN(_xlfn.NUMBERVALUE(VLOOKUP(A108,'PPF NAV'!A:C,IF(AND('PPF NAV'!$P$1="Ordinary unit",P107=0),2,3),0)),E108)-F108)*(20%-IF(OR(P107=1,'PPF NAV'!$P$1="Elite Unit"),4%)-IF(A108>=DATE(2021,4,30),2%))*K107,0),2)),"") ->  | H108: =IFERROR(1/(1/ROUND(G108/_xlfn.NUMBERVALUE(VLOOKUP(A108,'PPF NAV'!A:C,IF(AND('PPF NAV'!$P$1="Ordinary unit",P107=0),2,3),0)),8)),"") ->  | I108: =IFERROR(VLOOKUP(A108,'PPF NAV'!A:R,IF(OR(P108=1,'PPF NAV'!$P$1="Elite Unit"),18,17)),"") ->  | N108: =IFERROR(XIRR( IF(1-FREQUENCY(9^9,INDIRECT(CONCATENATE("A",MATCH(TRUE,$B$17:$B$498<>"",0)+16)):$A108), IF(INDIRECT(CONCATENATE("B",MATCH(TRUE,$B$17:$B$498<>"",0)+16)):$B108="",0,INDIRECT(CONCATENATE("B",MATCH(TRUE,$B$17:$B$498<>"",0)+16)):$B108),-L108), IF(1-FREQUENCY(9^9,INDIRECT(CONCATENATE("A",MATCH(TRUE,$B$17:$B$498<>"",0)+16)):$A108), INDIRECT(CONCATENATE("A",MATCH(TRUE,$B$17:$B$498<>"",0)+16)):$A108,$A108), IF(L108<SUM(INDIRECT(CONCATENATE("B",MATCH(TRUE,$B$17:$B$498<>"",0)+16)):$B108),-0.5,0.5)),"") ->  | O108: =IFERROR(VLOOKUP(A108,PPF_NAV[],3)/VLOOKUP(A108,PPF_NAV[],2),"") ->  | P108: =IFERROR(IF(OR(P107=1,(_xlfn.NUMBERVALUE(K107)*VLOOKUP(A108,PPF_NAV[],2,0)+SUM(B108,G108))>=1000000),1,0),"") ->  | T108: =INDEX(A:A,17+INT((ROW()-17)/2),1) -> 2021-05-31 | U108: $120.49 | V108: $168.72 | W108: $168.72
A109: =IF('PPF NAV'!A95="","",'PPF NAV'!A95) ->  | B109: =IFERROR(1/(1/'PPF NAV'!O95),"") ->  | D109: =IF(A109="","",_xlfn.NUMBERVALUE(VLOOKUP(A109,'PPF NAV'!A:C,IF(AND('PPF NAV'!$P$1="Ordinary unit",P109=0),2,3),0))) ->  | G109: =IFERROR(1/(1/ROUND(MIN(-(MIN(_xlfn.NUMBERVALUE(VLOOKUP(A109,'PPF NAV'!A:C,IF(AND('PPF NAV'!$P$1="Ordinary unit",P108=0),2,3),0)),E109)-F109)*(20%-IF(OR(P108=1,'PPF NAV'!$P$1="Elite Unit"),4%)-IF(A109>=DATE(2021,4,30),2%))*K108,0),2)),"") ->  | H109: =IFERROR(1/(1/ROUND(G109/_xlfn.NUMBERVALUE(VLOOKUP(A109,'PPF NAV'!A:C,IF(AND('PPF NAV'!$P$1="Ordinary unit",P108=0),2,3),0)),8)),"") ->  | I109: =IFERROR(VLOOKUP(A109,'PPF NAV'!A:R,IF(OR(P109=1,'PPF NAV'!$P$1="Elite Unit"),18,17)),"") ->  | N109: =IFERROR(XIRR( IF(1-FREQUENCY(9^9,INDIRECT(CONCATENATE("A",MATCH(TRUE,$B$17:$B$498<>"",0)+16)):$A109), IF(INDIRECT(CONCATENATE("B",MATCH(TRUE,$B$17:$B$498<>"",0)+16)):$B109="",0,INDIRECT(CONCATENATE("B",MATCH(TRUE,$B$17:$B$498<>"",0)+16)):$B109),-L109), IF(1-FREQUENCY(9^9,INDIRECT(CONCATENATE("A",MATCH(TRUE,$B$17:$B$498<>"",0)+16)):$A109), INDIRECT(CONCATENATE("A",MATCH(TRUE,$B$17:$B$498<>"",0)+16)):$A109,$A109), IF(L109<SUM(INDIRECT(CONCATENATE("B",MATCH(TRUE,$B$17:$B$498<>"",0)+16)):$B109),-0.5,0.5)),"") ->  | O109: =IFERROR(VLOOKUP(A109,PPF_NAV[],3)/VLOOKUP(A109,PPF_NAV[],2),"") ->  | P109: =IFERROR(IF(OR(P108=1,(_xlfn.NUMBERVALUE(K108)*VLOOKUP(A109,PPF_NAV[],2,0)+SUM(B109,G109))>=1000000),1,0),"") ->  | T109: =INDEX(A:A,17+INT((ROW()-17)/2),1) -> 2021-06-30 | U109: $119.62 | V109: $169.54 | W109: $169.54
A110: =IF('PPF NAV'!A96="","",'PPF NAV'!A96) ->  | B110: =IFERROR(1/(1/'PPF NAV'!O96),"") ->  | D110: =IF(A110="","",_xlfn.NUMBERVALUE(VLOOKUP(A110,'PPF NAV'!A:C,IF(AND('PPF NAV'!$P$1="Ordinary unit",P110=0),2,3),0))) ->  | G110: =IFERROR(1/(1/ROUND(MIN(-(MIN(_xlfn.NUMBERVALUE(VLOOKUP(A110,'PPF NAV'!A:C,IF(AND('PPF NAV'!$P$1="Ordinary unit",P109=0),2,3),0)),E110)-F110)*(20%-IF(OR(P109=1,'PPF NAV'!$P$1="Elite Unit"),4%)-IF(A110>=DATE(2021,4,30),2%))*K109,0),2)),"") ->  | H110: =IFERROR(1/(1/ROUND(G110/_xlfn.NUMBERVALUE(VLOOKUP(A110,'PPF NAV'!A:C,IF(AND('PPF NAV'!$P$1="Ordinary unit",P109=0),2,3),0)),8)),"") ->  | I110: =IFERROR(VLOOKUP(A110,'PPF NAV'!A:R,IF(OR(P110=1,'PPF NAV'!$P$1="Elite Unit"),18,17)),"") ->  | N110: =IFERROR(XIRR( IF(1-FREQUENCY(9^9,INDIRECT(CONCATENATE("A",MATCH(TRUE,$B$17:$B$498<>"",0)+16)):$A110), IF(INDIRECT(CONCATENATE("B",MATCH(TRUE,$B$17:$B$498<>"",0)+16)):$B110="",0,INDIRECT(CONCATENATE("B",MATCH(TRUE,$B$17:$B$498<>"",0)+16)):$B110),-L110), IF(1-FREQUENCY(9^9,INDIRECT(CONCATENATE("A",MATCH(TRUE,$B$17:$B$498<>"",0)+16)):$A110), INDIRECT(CONCATENATE("A",MATCH(TRUE,$B$17:$B$498<>"",0)+16)):$A110,$A110), IF(L110<SUM(INDIRECT(CONCATENATE("B",MATCH(TRUE,$B$17:$B$498<>"",0)+16)):$B110),-0.5,0.5)),"") ->  | O110: =IFERROR(VLOOKUP(A110,PPF_NAV[],3)/VLOOKUP(A110,PPF_NAV[],2),"") ->  | P110: =IFERROR(IF(OR(P109=1,(_xlfn.NUMBERVALUE(K109)*VLOOKUP(A110,PPF_NAV[],2,0)+SUM(B110,G110))>=1000000),1,0),"") ->  | T110: =INDEX(A:A,17+INT((ROW()-17)/2),1) -> 2021-06-30 | U110: $119.62 | V110: $169.54 | W110: $169.54
A111: =IF('PPF NAV'!A97="","",'PPF NAV'!A97) ->  | B111: =IFERROR(1/(1/'PPF NAV'!O97),"") ->  | D111: =IF(A111="","",_xlfn.NUMBERVALUE(VLOOKUP(A111,'PPF NAV'!A:C,IF(AND('PPF NAV'!$P$1="Ordinary unit",P111=0),2,3),0))) ->  | G111: =IFERROR(1/(1/ROUND(MIN(-(MIN(_xlfn.NUMBERVALUE(VLOOKUP(A111,'PPF NAV'!A:C,IF(AND('PPF NAV'!$P$1="Ordinary unit",P110=0),2,3),0)),E111)-F111)*(20%-IF(OR(P110=1,'PPF NAV'!$P$1="Elite Unit"),4%)-IF(A111>=DATE(2021,4,30),2%))*K110,0),2)),"") ->  | H111: =IFERROR(1/(1/ROUND(G111/_xlfn.NUMBERVALUE(VLOOKUP(A111,'PPF NAV'!A:C,IF(AND('PPF NAV'!$P$1="Ordinary unit",P110=0),2,3),0)),8)),"") ->  | I111: =IFERROR(VLOOKUP(A111,'PPF NAV'!A:R,IF(OR(P111=1,'PPF NAV'!$P$1="Elite Unit"),18,17)),"") ->  | N111: =IFERROR(XIRR( IF(1-FREQUENCY(9^9,INDIRECT(CONCATENATE("A",MATCH(TRUE,$B$17:$B$498<>"",0)+16)):$A111), IF(INDIRECT(CONCATENATE("B",MATCH(TRUE,$B$17:$B$498<>"",0)+16)):$B111="",0,INDIRECT(CONCATENATE("B",MATCH(TRUE,$B$17:$B$498<>"",0)+16)):$B111),-L111), IF(1-FREQUENCY(9^9,INDIRECT(CONCATENATE("A",MATCH(TRUE,$B$17:$B$498<>"",0)+16)):$A111), INDIRECT(CONCATENATE("A",MATCH(TRUE,$B$17:$B$498<>"",0)+16)):$A111,$A111), IF(L111<SUM(INDIRECT(CONCATENATE("B",MATCH(TRUE,$B$17:$B$498<>"",0)+16)):$B111),-0.5,0.5)),"") ->  | O111: =IFERROR(VLOOKUP(A111,PPF_NAV[],3)/VLOOKUP(A111,PPF_NAV[],2),"") ->  | P111: =IFERROR(IF(OR(P110=1,(_xlfn.NUMBERVALUE(K110)*VLOOKUP(A111,PPF_NAV[],2,0)+SUM(B111,G111))>=1000000),1,0),"") ->  | T111: =INDEX(A:A,17+INT((ROW()-17)/2),1) -> 2021-07-31 | U111: $126.48 | V111: $170.37 | W111: $170.37
A112: =IF('PPF NAV'!A98="","",'PPF NAV'!A98) ->  | B112: =IFERROR(1/(1/'PPF NAV'!O98),"") ->  | D112: =IF(A112="","",_xlfn.NUMBERVALUE(VLOOKUP(A112,'PPF NAV'!A:C,IF(AND('PPF NAV'!$P$1="Ordinary unit",P112=0),2,3),0))) ->  | G112: =IFERROR(1/(1/ROUND(MIN(-(MIN(_xlfn.NUMBERVALUE(VLOOKUP(A112,'PPF NAV'!A:C,IF(AND('PPF NAV'!$P$1="Ordinary unit",P111=0),2,3),0)),E112)-F112)*(20%-IF(OR(P111=1,'PPF NAV'!$P$1="Elite Unit"),4%)-IF(A112>=DATE(2021,4,30),2%))*K111,0),2)),"") ->  | H112: =IFERROR(1/(1/ROUND(G112/_xlfn.NUMBERVALUE(VLOOKUP(A112,'PPF NAV'!A:C,IF(AND('PPF NAV'!$P$1="Ordinary unit",P111=0),2,3),0)),8)),"") ->  | I112: =IFERROR(VLOOKUP(A112,'PPF NAV'!A:R,IF(OR(P112=1,'PPF NAV'!$P$1="Elite Unit"),18,17)),"") ->  | N112: =IFERROR(XIRR( IF(1-FREQUENCY(9^9,INDIRECT(CONCATENATE("A",MATCH(TRUE,$B$17:$B$498<>"",0)+16)):$A112), IF(INDIRECT(CONCATENATE("B",MATCH(TRUE,$B$17:$B$498<>"",0)+16)):$B112="",0,INDIRECT(CONCATENATE("B",MATCH(TRUE,$B$17:$B$498<>"",0)+16)):$B112),-L112), IF(1-FREQUENCY(9^9,INDIRECT(CONCATENATE("A",MATCH(TRUE,$B$17:$B$498<>"",0)+16)):$A112), INDIRECT(CONCATENATE("A",MATCH(TRUE,$B$17:$B$498<>"",0)+16)):$A112,$A112), IF(L112<SUM(INDIRECT(CONCATENATE("B",MATCH(TRUE,$B$17:$B$498<>"",0)+16)):$B112),-0.5,0.5)),"") ->  | O112: =IFERROR(VLOOKUP(A112,PPF_NAV[],3)/VLOOKUP(A112,PPF_NAV[],2),"") ->  | P112: =IFERROR(IF(OR(P111=1,(_xlfn.NUMBERVALUE(K111)*VLOOKUP(A112,PPF_NAV[],2,0)+SUM(B112,G112))>=1000000),1,0),"") ->  | T112: =INDEX(A:A,17+INT((ROW()-17)/2),1) -> 2021-07-31 | U112: $126.48 | V112: $170.37 | W112: $170.37
A113: =IF('PPF NAV'!A99="","",'PPF NAV'!A99) ->  | B113: =IFERROR(1/(1/'PPF NAV'!O99),"") ->  | D113: =IF(A113="","",_xlfn.NUMBERVALUE(VLOOKUP(A113,'PPF NAV'!A:C,IF(AND('PPF NAV'!$P$1="Ordinary unit",P113=0),2,3),0))) ->  | G113: =IFERROR(1/(1/ROUND(MIN(-(MIN(_xlfn.NUMBERVALUE(VLOOKUP(A113,'PPF NAV'!A:C,IF(AND('PPF NAV'!$P$1="Ordinary unit",P112=0),2,3),0)),E113)-F113)*(20%-IF(OR(P112=1,'PPF NAV'!$P$1="Elite Unit"),4%)-IF(A113>=DATE(2021,4,30),2%))*K112,0),2)),"") ->  | H113: =IFERROR(1/(1/ROUND(G113/_xlfn.NUMBERVALUE(VLOOKUP(A113,'PPF NAV'!A:C,IF(AND('PPF NAV'!$P$1="Ordinary unit",P112=0),2,3),0)),8)),"") ->  | I113: =IFERROR(VLOOKUP(A113,'PPF NAV'!A:R,IF(OR(P113=1,'PPF NAV'!$P$1="Elite Unit"),18,17)),"") ->  | N113: =IFERROR(XIRR( IF(1-FREQUENCY(9^9,INDIRECT(CONCATENATE("A",MATCH(TRUE,$B$17:$B$498<>"",0)+16)):$A113), IF(INDIRECT(CONCATENATE("B",MATCH(TRUE,$B$17:$B$498<>"",0)+16)):$B113="",0,INDIRECT(CONCATENATE("B",MATCH(TRUE,$B$17:$B$498<>"",0)+16)):$B113),-L113), IF(1-FREQUENCY(9^9,INDIRECT(CONCATENATE("A",MATCH(TRUE,$B$17:$B$498<>"",0)+16)):$A113), INDIRECT(CONCATENATE("A",MATCH(TRUE,$B$17:$B$498<>"",0)+16)):$A113,$A113), IF(L113<SUM(INDIRECT(CONCATENATE("B",MATCH(TRUE,$B$17:$B$498<>"",0)+16)):$B113),-0.5,0.5)),"") ->  | O113: =IFERROR(VLOOKUP(A113,PPF_NAV[],3)/VLOOKUP(A113,PPF_NAV[],2),"") ->  | P113: =IFERROR(IF(OR(P112=1,(_xlfn.NUMBERVALUE(K112)*VLOOKUP(A113,PPF_NAV[],2,0)+SUM(B113,G113))>=1000000),1,0),"") ->  | T113: =INDEX(A:A,17+INT((ROW()-17)/2),1) -> 2021-08-31 | U113: $126.18 | V113: $171.20 | W113: $171.20
A114: =IF('PPF NAV'!A100="","",'PPF NAV'!A100) ->  | B114: =IFERROR(1/(1/'PPF NAV'!O100),"") ->  | D114: =IF(A114="","",_xlfn.NUMBERVALUE(VLOOKUP(A114,'PPF NAV'!A:C,IF(AND('PPF NAV'!$P$1="Ordinary unit",P114=0),2,3),0))) ->  | G114: =IFERROR(1/(1/ROUND(MIN(-(MIN(_xlfn.NUMBERVALUE(VLOOKUP(A114,'PPF NAV'!A:C,IF(AND('PPF NAV'!$P$1="Ordinary unit",P113=0),2,3),0)),E114)-F114)*(20%-IF(OR(P113=1,'PPF NAV'!$P$1="Elite Unit"),4%)-IF(A114>=DATE(2021,4,30),2%))*K113,0),2)),"") ->  | H114: =IFERROR(1/(1/ROUND(G114/_xlfn.NUMBERVALUE(VLOOKUP(A114,'PPF NAV'!A:C,IF(AND('PPF NAV'!$P$1="Ordinary unit",P113=0),2,3),0)),8)),"") ->  | I114: =IFERROR(VLOOKUP(A114,'PPF NAV'!A:R,IF(OR(P114=1,'PPF NAV'!$P$1="Elite Unit"),18,17)),"") ->  | N114: =IFERROR(XIRR( IF(1-FREQUENCY(9^9,INDIRECT(CONCATENATE("A",MATCH(TRUE,$B$17:$B$498<>"",0)+16)):$A114), IF(INDIRECT(CONCATENATE("B",MATCH(TRUE,$B$17:$B$498<>"",0)+16)):$B114="",0,INDIRECT(CONCATENATE("B",MATCH(TRUE,$B$17:$B$498<>"",0)+16)):$B114),-L114), IF(1-FREQUENCY(9^9,INDIRECT(CONCATENATE("A",MATCH(TRUE,$B$17:$B$498<>"",0)+16)):$A114), INDIRECT(CONCATENATE("A",MATCH(TRUE,$B$17:$B$498<>"",0)+16)):$A114,$A114), IF(L114<SUM(INDIRECT(CONCATENATE("B",MATCH(TRUE,$B$17:$B$498<>"",0)+16)):$B114),-0.5,0.5)),"") ->  | O114: =IFERROR(VLOOKUP(A114,PPF_NAV[],3)/VLOOKUP(A114,PPF_NAV[],2),"") ->  | P114: =IFERROR(IF(OR(P113=1,(_xlfn.NUMBERVALUE(K113)*VLOOKUP(A114,PPF_NAV[],2,0)+SUM(B114,G114))>=1000000),1,0),"") ->  | T114: =INDEX(A:A,17+INT((ROW()-17)/2),1) -> 2021-08-31 | U114: $126.18 | V114: $171.20 | W114: $171.20
A115: =IF('PPF NAV'!A101="","",'PPF NAV'!A101) ->  | B115: =IFERROR(1/(1/'PPF NAV'!O101),"") ->  | D115: =IF(A115="","",_xlfn.NUMBERVALUE(VLOOKUP(A115,'PPF NAV'!A:C,IF(AND('PPF NAV'!$P$1="Ordinary unit",P115=0),2,3),0))) ->  | G115: =IFERROR(1/(1/ROUND(MIN(-(MIN(_xlfn.NUMBERVALUE(VLOOKUP(A115,'PPF NAV'!A:C,IF(AND('PPF NAV'!$P$1="Ordinary unit",P114=0),2,3),0)),E115)-F115)*(20%-IF(OR(P114=1,'PPF NAV'!$P$1="Elite Unit"),4%)-IF(A115>=DATE(2021,4,30),2%))*K114,0),2)),"") ->  | H115: =IFERROR(1/(1/ROUND(G115/_xlfn.NUMBERVALUE(VLOOKUP(A115,'PPF NAV'!A:C,IF(AND('PPF NAV'!$P$1="Ordinary unit",P114=0),2,3),0)),8)),"") ->  | I115: =IFERROR(VLOOKUP(A115,'PPF NAV'!A:R,IF(OR(P115=1,'PPF NAV'!$P$1="Elite Unit"),18,17)),"") ->  | N115: =IFERROR(XIRR( IF(1-FREQUENCY(9^9,INDIRECT(CONCATENATE("A",MATCH(TRUE,$B$17:$B$498<>"",0)+16)):$A115), IF(INDIRECT(CONCATENATE("B",MATCH(TRUE,$B$17:$B$498<>"",0)+16)):$B115="",0,INDIRECT(CONCATENATE("B",MATCH(TRUE,$B$17:$B$498<>"",0)+16)):$B115),-L115), IF(1-FREQUENCY(9^9,INDIRECT(CONCATENATE("A",MATCH(TRUE,$B$17:$B$498<>"",0)+16)):$A115), INDIRECT(CONCATENATE("A",MATCH(TRUE,$B$17:$B$498<>"",0)+16)):$A115,$A115), IF(L115<SUM(INDIRECT(CONCATENATE("B",MATCH(TRUE,$B$17:$B$498<>"",0)+16)):$B115),-0.5,0.5)),"") ->  | O115: =IFERROR(VLOOKUP(A115,PPF_NAV[],3)/VLOOKUP(A115,PPF_NAV[],2),"") ->  | P115: =IFERROR(IF(OR(P114=1,(_xlfn.NUMBERVALUE(K114)*VLOOKUP(A115,PPF_NAV[],2,0)+SUM(B115,G115))>=1000000),1,0),"") ->  | T115: =INDEX(A:A,17+INT((ROW()-17)/2),1) -> 2021-09-30 | U115: $127.70 | V115: $172.03 | W115: $172.03
A116: =IF('PPF NAV'!A102="","",'PPF NAV'!A102) ->  | B116: =IFERROR(1/(1/'PPF NAV'!O102),"") ->  | D116: =IF(A116="","",_xlfn.NUMBERVALUE(VLOOKUP(A116,'PPF NAV'!A:C,IF(AND('PPF NAV'!$P$1="Ordinary unit",P116=0),2,3),0))) ->  | G116: =IFERROR(1/(1/ROUND(MIN(-(MIN(_xlfn.NUMBERVALUE(VLOOKUP(A116,'PPF NAV'!A:C,IF(AND('PPF NAV'!$P$1="Ordinary unit",P115=0),2,3),0)),E116)-F116)*(20%-IF(OR(P115=1,'PPF NAV'!$P$1="Elite Unit"),4%)-IF(A116>=DATE(2021,4,30),2%))*K115,0),2)),"") ->  | H116: =IFERROR(1/(1/ROUND(G116/_xlfn.NUMBERVALUE(VLOOKUP(A116,'PPF NAV'!A:C,IF(AND('PPF NAV'!$P$1="Ordinary unit",P115=0),2,3),0)),8)),"") ->  | I116: =IFERROR(VLOOKUP(A116,'PPF NAV'!A:R,IF(OR(P116=1,'PPF NAV'!$P$1="Elite Unit"),18,17)),"") ->  | N116: =IFERROR(XIRR( IF(1-FREQUENCY(9^9,INDIRECT(CONCATENATE("A",MATCH(TRUE,$B$17:$B$498<>"",0)+16)):$A116), IF(INDIRECT(CONCATENATE("B",MATCH(TRUE,$B$17:$B$498<>"",0)+16)):$B116="",0,INDIRECT(CONCATENATE("B",MATCH(TRUE,$B$17:$B$498<>"",0)+16)):$B116),-L116), IF(1-FREQUENCY(9^9,INDIRECT(CONCATENATE("A",MATCH(TRUE,$B$17:$B$498<>"",0)+16)):$A116), INDIRECT(CONCATENATE("A",MATCH(TRUE,$B$17:$B$498<>"",0)+16)):$A116,$A116), IF(L116<SUM(INDIRECT(CONCATENATE("B",MATCH(TRUE,$B$17:$B$498<>"",0)+16)):$B116),-0.5,0.5)),"") ->  | O116: =IFERROR(VLOOKUP(A116,PPF_NAV[],3)/VLOOKUP(A116,PPF_NAV[],2),"") ->  | P116: =IFERROR(IF(OR(P115=1,(_xlfn.NUMBERVALUE(K115)*VLOOKUP(A116,PPF_NAV[],2,0)+SUM(B116,G116))>=1000000),1,0),"") ->  | T116: =INDEX(A:A,17+INT((ROW()-17)/2),1) -> 2021-09-30 | U116: $127.70 | V116: $172.03 | W116: $172.03
A117: =IF('PPF NAV'!A103="","",'PPF NAV'!A103) ->  | B117: =IFERROR(1/(1/'PPF NAV'!O103),"") ->  | D117: =IF(A117="","",_xlfn.NUMBERVALUE(VLOOKUP(A117,'PPF NAV'!A:C,IF(AND('PPF NAV'!$P$1="Ordinary unit",P117=0),2,3),0))) ->  | G117: =IFERROR(1/(1/ROUND(MIN(-(MIN(_xlfn.NUMBERVALUE(VLOOKUP(A117,'PPF NAV'!A:C,IF(AND('PPF NAV'!$P$1="Ordinary unit",P116=0),2,3),0)),E117)-F117)*(20%-IF(OR(P116=1,'PPF NAV'!$P$1="Elite Unit"),4%)-IF(A117>=DATE(2021,4,30),2%))*K116,0),2)),"") ->  | H117: =IFERROR(1/(1/ROUND(G117/_xlfn.NUMBERVALUE(VLOOKUP(A117,'PPF NAV'!A:C,IF(AND('PPF NAV'!$P$1="Ordinary unit",P116=0),2,3),0)),8)),"") ->  | I117: =IFERROR(VLOOKUP(A117,'PPF NAV'!A:R,IF(OR(P117=1,'PPF NAV'!$P$1="Elite Unit"),18,17)),"") ->  | N117: =IFERROR(XIRR( IF(1-FREQUENCY(9^9,INDIRECT(CONCATENATE("A",MATCH(TRUE,$B$17:$B$498<>"",0)+16)):$A117), IF(INDIRECT(CONCATENATE("B",MATCH(TRUE,$B$17:$B$498<>"",0)+16)):$B117="",0,INDIRECT(CONCATENATE("B",MATCH(TRUE,$B$17:$B$498<>"",0)+16)):$B117),-L117), IF(1-FREQUENCY(9^9,INDIRECT(CONCATENATE("A",MATCH(TRUE,$B$17:$B$498<>"",0)+16)):$A117), INDIRECT(CONCATENATE("A",MATCH(TRUE,$B$17:$B$498<>"",0)+16)):$A117,$A117), IF(L117<SUM(INDIRECT(CONCATENATE("B",MATCH(TRUE,$B$17:$B$498<>"",0)+16)):$B117),-0.5,0.5)),"") ->  | O117: =IFERROR(VLOOKUP(A117,PPF_NAV[],3)/VLOOKUP(A117,PPF_NAV[],2),"") ->  | P117: =IFERROR(IF(OR(P116=1,(_xlfn.NUMBERVALUE(K116)*VLOOKUP(A117,PPF_NAV[],2,0)+SUM(B117,G117))>=1000000),1,0),"") ->  | T117: =INDEX(A:A,17+INT((ROW()-17)/2),1) -> 2021-10-31 | U117: $128.42 | V117: $172.87 | W117: $172.87
A118: =IF('PPF NAV'!A104="","",'PPF NAV'!A104) ->  | B118: =IFERROR(1/(1/'PPF NAV'!O104),"") ->  | D118: =IF(A118="","",_xlfn.NUMBERVALUE(VLOOKUP(A118,'PPF NAV'!A:C,IF(AND('PPF NAV'!$P$1="Ordinary unit",P118=0),2,3),0))) ->  | G118: =IFERROR(1/(1/ROUND(MIN(-(MIN(_xlfn.NUMBERVALUE(VLOOKUP(A118,'PPF NAV'!A:C,IF(AND('PPF NAV'!$P$1="Ordinary unit",P117=0),2,3),0)),E118)-F118)*(20%-IF(OR(P117=1,'PPF NAV'!$P$1="Elite Unit"),4%)-IF(A118>=DATE(2021,4,30),2%))*K117,0),2)),"") ->  | H118: =IFERROR(1/(1/ROUND(G118/_xlfn.NUMBERVALUE(VLOOKUP(A118,'PPF NAV'!A:C,IF(AND('PPF NAV'!$P$1="Ordinary unit",P117=0),2,3),0)),8)),"") ->  | I118: =IFERROR(VLOOKUP(A118,'PPF NAV'!A:R,IF(OR(P118=1,'PPF NAV'!$P$1="Elite Unit"),18,17)),"") ->  | N118: =IFERROR(XIRR( IF(1-FREQUENCY(9^9,INDIRECT(CONCATENATE("A",MATCH(TRUE,$B$17:$B$498<>"",0)+16)):$A118), IF(INDIRECT(CONCATENATE("B",MATCH(TRUE,$B$17:$B$498<>"",0)+16)):$B118="",0,INDIRECT(CONCATENATE("B",MATCH(TRUE,$B$17:$B$498<>"",0)+16)):$B118),-L118), IF(1-FREQUENCY(9^9,INDIRECT(CONCATENATE("A",MATCH(TRUE,$B$17:$B$498<>"",0)+16)):$A118), INDIRECT(CONCATENATE("A",MATCH(TRUE,$B$17:$B$498<>"",0)+16)):$A118,$A118), IF(L118<SUM(INDIRECT(CONCATENATE("B",MATCH(TRUE,$B$17:$B$498<>"",0)+16)):$B118),-0.5,0.5)),"") ->  | O118: =IFERROR(VLOOKUP(A118,PPF_NAV[],3)/VLOOKUP(A118,PPF_NAV[],2),"") ->  | P118: =IFERROR(IF(OR(P117=1,(_xlfn.NUMBERVALUE(K117)*VLOOKUP(A118,PPF_NAV[],2,0)+SUM(B118,G118))>=1000000),1,0),"") ->  | T118: =INDEX(A:A,17+INT((ROW()-17)/2),1) -> 2021-10-31 | U118: $128.42 | V118: $172.87 | W118: $172.87
A119: =IF('PPF NAV'!A105="","",'PPF NAV'!A105) ->  | B119: =IFERROR(1/(1/'PPF NAV'!O105),"") ->  | D119: =IF(A119="","",_xlfn.NUMBERVALUE(VLOOKUP(A119,'PPF NAV'!A:C,IF(AND('PPF NAV'!$P$1="Ordinary unit",P119=0),2,3),0))) ->  | G119: =IFERROR(1/(1/ROUND(MIN(-(MIN(_xlfn.NUMBERVALUE(VLOOKUP(A119,'PPF NAV'!A:C,IF(AND('PPF NAV'!$P$1="Ordinary unit",P118=0),2,3),0)),E119)-F119)*(20%-IF(OR(P118=1,'PPF NAV'!$P$1="Elite Unit"),4%)-IF(A119>=DATE(2021,4,30),2%))*K118,0),2)),"") ->  | H119: =IFERROR(1/(1/ROUND(G119/_xlfn.NUMBERVALUE(VLOOKUP(A119,'PPF NAV'!A:C,IF(AND('PPF NAV'!$P$1="Ordinary unit",P118=0),2,3),0)),8)),"") ->  | I119: =IFERROR(VLOOKUP(A119,'PPF NAV'!A:R,IF(OR(P119=1,'PPF NAV'!$P$1="Elite Unit"),18,17)),"") ->  | N119: =IFERROR(XIRR( IF(1-FREQUENCY(9^9,INDIRECT(CONCATENATE("A",MATCH(TRUE,$B$17:$B$498<>"",0)+16)):$A119), IF(INDIRECT(CONCATENATE("B",MATCH(TRUE,$B$17:$B$498<>"",0)+16)):$B119="",0,INDIRECT(CONCATENATE("B",MATCH(TRUE,$B$17:$B$498<>"",0)+16)):$B119),-L119), IF(1-FREQUENCY(9^9,INDIRECT(CONCATENATE("A",MATCH(TRUE,$B$17:$B$498<>"",0)+16)):$A119), INDIRECT(CONCATENATE("A",MATCH(TRUE,$B$17:$B$498<>"",0)+16)):$A119,$A119), IF(L119<SUM(INDIRECT(CONCATENATE("B",MATCH(TRUE,$B$17:$B$498<>"",0)+16)):$B119),-0.5,0.5)),"") ->  | O119: =IFERROR(VLOOKUP(A119,PPF_NAV[],3)/VLOOKUP(A119,PPF_NAV[],2),"") ->  | P119: =IFERROR(IF(OR(P118=1,(_xlfn.NUMBERVALUE(K118)*VLOOKUP(A119,PPF_NAV[],2,0)+SUM(B119,G119))>=1000000),1,0),"") ->  | T119: =INDEX(A:A,17+INT((ROW()-17)/2),1) -> 2021-11-30 | U119: $126.23 | V119: $173.71 | W119: $173.71
A120: =IF('PPF NAV'!A106="","",'PPF NAV'!A106) ->  | B120: =IFERROR(1/(1/'PPF NAV'!O106),"") ->  | D120: =IF(A120="","",_xlfn.NUMBERVALUE(VLOOKUP(A120,'PPF NAV'!A:C,IF(AND('PPF NAV'!$P$1="Ordinary unit",P120=0),2,3),0))) ->  | G120: =IFERROR(1/(1/ROUND(MIN(-(MIN(_xlfn.NUMBERVALUE(VLOOKUP(A120,'PPF NAV'!A:C,IF(AND('PPF NAV'!$P$1="Ordinary unit",P119=0),2,3),0)),E120)-F120)*(20%-IF(OR(P119=1,'PPF NAV'!$P$1="Elite Unit"),4%)-IF(A120>=DATE(2021,4,30),2%))*K119,0),2)),"") ->  | H120: =IFERROR(1/(1/ROUND(G120/_xlfn.NUMBERVALUE(VLOOKUP(A120,'PPF NAV'!A:C,IF(AND('PPF NAV'!$P$1="Ordinary unit",P119=0),2,3),0)),8)),"") ->  | I120: =IFERROR(VLOOKUP(A120,'PPF NAV'!A:R,IF(OR(P120=1,'PPF NAV'!$P$1="Elite Unit"),18,17)),"") ->  | N120: =IFERROR(XIRR( IF(1-FREQUENCY(9^9,INDIRECT(CONCATENATE("A",MATCH(TRUE,$B$17:$B$498<>"",0)+16)):$A120), IF(INDIRECT(CONCATENATE("B",MATCH(TRUE,$B$17:$B$498<>"",0)+16)):$B120="",0,INDIRECT(CONCATENATE("B",MATCH(TRUE,$B$17:$B$498<>"",0)+16)):$B120),-L120), IF(1-FREQUENCY(9^9,INDIRECT(CONCATENATE("A",MATCH(TRUE,$B$17:$B$498<>"",0)+16)):$A120), INDIRECT(CONCATENATE("A",MATCH(TRUE,$B$17:$B$498<>"",0)+16)):$A120,$A120), IF(L120<SUM(INDIRECT(CONCATENATE("B",MATCH(TRUE,$B$17:$B$498<>"",0)+16)):$B120),-0.5,0.5)),"") ->  | O120: =IFERROR(VLOOKUP(A120,PPF_NAV[],3)/VLOOKUP(A120,PPF_NAV[],2),"") ->  | P120: =IFERROR(IF(OR(P119=1,(_xlfn.NUMBERVALUE(K119)*VLOOKUP(A120,PPF_NAV[],2,0)+SUM(B120,G120))>=1000000),1,0),"") ->  | T120: =INDEX(A:A,17+INT((ROW()-17)/2),1) -> 2021-11-30 | U120: $126.23 | V120: $173.71 | W120: $173.71
A121: =IF('PPF NAV'!A107="","",'PPF NAV'!A107) ->  | B121: =IFERROR(1/(1/'PPF NAV'!O107),"") ->  | D121: =IF(A121="","",_xlfn.NUMBERVALUE(VLOOKUP(A121,'PPF NAV'!A:C,IF(AND('PPF NAV'!$P$1="Ordinary unit",P121=0),2,3),0))) ->  | G121: =IFERROR(1/(1/ROUND(MIN(-(MIN(_xlfn.NUMBERVALUE(VLOOKUP(A121,'PPF NAV'!A:C,IF(AND('PPF NAV'!$P$1="Ordinary unit",P120=0),2,3),0)),E121)-F121)*(20%-IF(OR(P120=1,'PPF NAV'!$P$1="Elite Unit"),4%)-IF(A121>=DATE(2021,4,30),2%))*K120,0),2)),"") ->  | H121: =IFERROR(1/(1/ROUND(G121/_xlfn.NUMBERVALUE(VLOOKUP(A121,'PPF NAV'!A:C,IF(AND('PPF NAV'!$P$1="Ordinary unit",P120=0),2,3),0)),8)),"") ->  | I121: =IFERROR(VLOOKUP(A121,'PPF NAV'!A:R,IF(OR(P121=1,'PPF NAV'!$P$1="Elite Unit"),18,17)),"") ->  | N121: =IFERROR(XIRR( IF(1-FREQUENCY(9^9,INDIRECT(CONCATENATE("A",MATCH(TRUE,$B$17:$B$498<>"",0)+16)):$A121), IF(INDIRECT(CONCATENATE("B",MATCH(TRUE,$B$17:$B$498<>"",0)+16)):$B121="",0,INDIRECT(CONCATENATE("B",MATCH(TRUE,$B$17:$B$498<>"",0)+16)):$B121),-L121), IF(1-FREQUENCY(9^9,INDIRECT(CONCATENATE("A",MATCH(TRUE,$B$17:$B$498<>"",0)+16)):$A121), INDIRECT(CONCATENATE("A",MATCH(TRUE,$B$17:$B$498<>"",0)+16)):$A121,$A121), IF(L121<SUM(INDIRECT(CONCATENATE("B",MATCH(TRUE,$B$17:$B$498<>"",0)+16)):$B121),-0.5,0.5)),"") ->  | O121: =IFERROR(VLOOKUP(A121,PPF_NAV[],3)/VLOOKUP(A121,PPF_NAV[],2),"") ->  | P121: =IFERROR(IF(OR(P120=1,(_xlfn.NUMBERVALUE(K120)*VLOOKUP(A121,PPF_NAV[],2,0)+SUM(B121,G121))>=1000000),1,0),"") ->  | T121: =INDEX(A:A,17+INT((ROW()-17)/2),1) -> 2021-12-31 | U121: $133.28 | V121: $174.56 | W121: $174.56
A122: =IF('PPF NAV'!A108="","",'PPF NAV'!A108) ->  | B122: =IFERROR(1/(1/'PPF NAV'!O108),"") ->  | D122: =IF(A122="","",_xlfn.NUMBERVALUE(VLOOKUP(A122,'PPF NAV'!A:C,IF(AND('PPF NAV'!$P$1="Ordinary unit",P122=0),2,3),0))) ->  | G122: =IFERROR(1/(1/ROUND(MIN(-(MIN(_xlfn.NUMBERVALUE(VLOOKUP(A122,'PPF NAV'!A:C,IF(AND('PPF NAV'!$P$1="Ordinary unit",P121=0),2,3),0)),E122)-F122)*(20%-IF(OR(P121=1,'PPF NAV'!$P$1="Elite Unit"),4%)-IF(A122>=DATE(2021,4,30),2%))*K121,0),2)),"") ->  | H122: =IFERROR(1/(1/ROUND(G122/_xlfn.NUMBERVALUE(VLOOKUP(A122,'PPF NAV'!A:C,IF(AND('PPF NAV'!$P$1="Ordinary unit",P121=0),2,3),0)),8)),"") ->  | I122: =IFERROR(VLOOKUP(A122,'PPF NAV'!A:R,IF(OR(P122=1,'PPF NAV'!$P$1="Elite Unit"),18,17)),"") ->  | N122: =IFERROR(XIRR( IF(1-FREQUENCY(9^9,INDIRECT(CONCATENATE("A",MATCH(TRUE,$B$17:$B$498<>"",0)+16)):$A122), IF(INDIRECT(CONCATENATE("B",MATCH(TRUE,$B$17:$B$498<>"",0)+16)):$B122="",0,INDIRECT(CONCATENATE("B",MATCH(TRUE,$B$17:$B$498<>"",0)+16)):$B122),-L122), IF(1-FREQUENCY(9^9,INDIRECT(CONCATENATE("A",MATCH(TRUE,$B$17:$B$498<>"",0)+16)):$A122), INDIRECT(CONCATENATE("A",MATCH(TRUE,$B$17:$B$498<>"",0)+16)):$A122,$A122), IF(L122<SUM(INDIRECT(CONCATENATE("B",MATCH(TRUE,$B$17:$B$498<>"",0)+16)):$B122),-0.5,0.5)),"") ->  | O122: =IFERROR(VLOOKUP(A122,PPF_NAV[],3)/VLOOKUP(A122,PPF_NAV[],2),"") ->  | P122: =IFERROR(IF(OR(P121=1,(_xlfn.NUMBERVALUE(K121)*VLOOKUP(A122,PPF_NAV[],2,0)+SUM(B122,G122))>=1000000),1,0),"") ->  | T122: =INDEX(A:A,17+INT((ROW()-17)/2),1) -> 2021-12-31 | U122: $133.28 | V122: $174.56 | W122: $174.56
A123: =IF('PPF NAV'!A109="","",'PPF NAV'!A109) ->  | B123: =IFERROR(1/(1/'PPF NAV'!O109),"") ->  | D123: =IF(A123="","",_xlfn.NUMBERVALUE(VLOOKUP(A123,'PPF NAV'!A:C,IF(AND('PPF NAV'!$P$1="Ordinary unit",P123=0),2,3),0))) ->  | G123: =IFERROR(1/(1/ROUND(MIN(-(MIN(_xlfn.NUMBERVALUE(VLOOKUP(A123,'PPF NAV'!A:C,IF(AND('PPF NAV'!$P$1="Ordinary unit",P122=0),2,3),0)),E123)-F123)*(20%-IF(OR(P122=1,'PPF NAV'!$P$1="Elite Unit"),4%)-IF(A123>=DATE(2021,4,30),2%))*K122,0),2)),"") ->  | H123: =IFERROR(1/(1/ROUND(G123/_xlfn.NUMBERVALUE(VLOOKUP(A123,'PPF NAV'!A:C,IF(AND('PPF NAV'!$P$1="Ordinary unit",P122=0),2,3),0)),8)),"") ->  | I123: =IFERROR(VLOOKUP(A123,'PPF NAV'!A:R,IF(OR(P123=1,'PPF NAV'!$P$1="Elite Unit"),18,17)),"") ->  | N123: =IFERROR(XIRR( IF(1-FREQUENCY(9^9,INDIRECT(CONCATENATE("A",MATCH(TRUE,$B$17:$B$498<>"",0)+16)):$A123), IF(INDIRECT(CONCATENATE("B",MATCH(TRUE,$B$17:$B$498<>"",0)+16)):$B123="",0,INDIRECT(CONCATENATE("B",MATCH(TRUE,$B$17:$B$498<>"",0)+16)):$B123),-L123), IF(1-FREQUENCY(9^9,INDIRECT(CONCATENATE("A",MATCH(TRUE,$B$17:$B$498<>"",0)+16)):$A123), INDIRECT(CONCATENATE("A",MATCH(TRUE,$B$17:$B$498<>"",0)+16)):$A123,$A123), IF(L123<SUM(INDIRECT(CONCATENATE("B",MATCH(TRUE,$B$17:$B$498<>"",0)+16)):$B123),-0.5,0.5)),"") ->  | O123: =IFERROR(VLOOKUP(A123,PPF_NAV[],3)/VLOOKUP(A123,PPF_NAV[],2),"") ->  | P123: =IFERROR(IF(OR(P122=1,(_xlfn.NUMBERVALUE(K122)*VLOOKUP(A123,PPF_NAV[],2,0)+SUM(B123,G123))>=1000000),1,0),"") ->  | T123: =INDEX(A:A,17+INT((ROW()-17)/2),1) -> 2022-01-31 | U123: $125.00 | V123: $175.41 | W123: $175.41
A124: =IF('PPF NAV'!A110="","",'PPF NAV'!A110) ->  | B124: =IFERROR(1/(1/'PPF NAV'!O110),"") ->  | D124: =IF(A124="","",_xlfn.NUMBERVALUE(VLOOKUP(A124,'PPF NAV'!A:C,IF(AND('PPF NAV'!$P$1="Ordinary unit",P124=0),2,3),0))) ->  | G124: =IFERROR(1/(1/ROUND(MIN(-(MIN(_xlfn.NUMBERVALUE(VLOOKUP(A124,'PPF NAV'!A:C,IF(AND('PPF NAV'!$P$1="Ordinary unit",P123=0),2,3),0)),E124)-F124)*(20%-IF(OR(P123=1,'PPF NAV'!$P$1="Elite Unit"),4%)-IF(A124>=DATE(2021,4,30),2%))*K123,0),2)),"") ->  | H124: =IFERROR(1/(1/ROUND(G124/_xlfn.NUMBERVALUE(VLOOKUP(A124,'PPF NAV'!A:C,IF(AND('PPF NAV'!$P$1="Ordinary unit",P123=0),2,3),0)),8)),"") ->  | I124: =IFERROR(VLOOKUP(A124,'PPF NAV'!A:R,IF(OR(P124=1,'PPF NAV'!$P$1="Elite Unit"),18,17)),"") ->  | N124: =IFERROR(XIRR( IF(1-FREQUENCY(9^9,INDIRECT(CONCATENATE("A",MATCH(TRUE,$B$17:$B$498<>"",0)+16)):$A124), IF(INDIRECT(CONCATENATE("B",MATCH(TRUE,$B$17:$B$498<>"",0)+16)):$B124="",0,INDIRECT(CONCATENATE("B",MATCH(TRUE,$B$17:$B$498<>"",0)+16)):$B124),-L124), IF(1-FREQUENCY(9^9,INDIRECT(CONCATENATE("A",MATCH(TRUE,$B$17:$B$498<>"",0)+16)):$A124), INDIRECT(CONCATENATE("A",MATCH(TRUE,$B$17:$B$498<>"",0)+16)):$A124,$A124), IF(L124<SUM(INDIRECT(CONCATENATE("B",MATCH(TRUE,$B$17:$B$498<>"",0)+16)):$B124),-0.5,0.5)),"") ->  | O124: =IFERROR(VLOOKUP(A124,PPF_NAV[],3)/VLOOKUP(A124,PPF_NAV[],2),"") ->  | P124: =IFERROR(IF(OR(P123=1,(_xlfn.NUMBERVALUE(K123)*VLOOKUP(A124,PPF_NAV[],2,0)+SUM(B124,G124))>=1000000),1,0),"") ->  | T124: =INDEX(A:A,17+INT((ROW()-17)/2),1) -> 2022-01-31 | U124: $125.00 | V124: $175.41 | W124: $175.41
A125: =IF('PPF NAV'!A111="","",'PPF NAV'!A111) ->  | B125: =IFERROR(1/(1/'PPF NAV'!O111),"") ->  | D125: =IF(A125="","",_xlfn.NUMBERVALUE(VLOOKUP(A125,'PPF NAV'!A:C,IF(AND('PPF NAV'!$P$1="Ordinary unit",P125=0),2,3),0))) ->  | G125: =IFERROR(1/(1/ROUND(MIN(-(MIN(_xlfn.NUMBERVALUE(VLOOKUP(A125,'PPF NAV'!A:C,IF(AND('PPF NAV'!$P$1="Ordinary unit",P124=0),2,3),0)),E125)-F125)*(20%-IF(OR(P124=1,'PPF NAV'!$P$1="Elite Unit"),4%)-IF(A125>=DATE(2021,4,30),2%))*K124,0),2)),"") ->  | H125: =IFERROR(1/(1/ROUND(G125/_xlfn.NUMBERVALUE(VLOOKUP(A125,'PPF NAV'!A:C,IF(AND('PPF NAV'!$P$1="Ordinary unit",P124=0),2,3),0)),8)),"") ->  | I125: =IFERROR(VLOOKUP(A125,'PPF NAV'!A:R,IF(OR(P125=1,'PPF NAV'!$P$1="Elite Unit"),18,17)),"") ->  | N125: =IFERROR(XIRR( IF(1-FREQUENCY(9^9,INDIRECT(CONCATENATE("A",MATCH(TRUE,$B$17:$B$498<>"",0)+16)):$A125), IF(INDIRECT(CONCATENATE("B",MATCH(TRUE,$B$17:$B$498<>"",0)+16)):$B125="",0,INDIRECT(CONCATENATE("B",MATCH(TRUE,$B$17:$B$498<>"",0)+16)):$B125),-L125), IF(1-FREQUENCY(9^9,INDIRECT(CONCATENATE("A",MATCH(TRUE,$B$17:$B$498<>"",0)+16)):$A125), INDIRECT(CONCATENATE("A",MATCH(TRUE,$B$17:$B$498<>"",0)+16)):$A125,$A125), IF(L125<SUM(INDIRECT(CONCATENATE("B",MATCH(TRUE,$B$17:$B$498<>"",0)+16)):$B125),-0.5,0.5)),"") ->  | O125: =IFERROR(VLOOKUP(A125,PPF_NAV[],3)/VLOOKUP(A125,PPF_NAV[],2),"") ->  | P125: =IFERROR(IF(OR(P124=1,(_xlfn.NUMBERVALUE(K124)*VLOOKUP(A125,PPF_NAV[],2,0)+SUM(B125,G125))>=1000000),1,0),"") ->  | T125: =INDEX(A:A,17+INT((ROW()-17)/2),1) -> 2022-02-28 | U125: $119.65 | V125: $176.26 | W125: $176.26
A126: =IF('PPF NAV'!A112="","",'PPF NAV'!A112) ->  | B126: =IFERROR(1/(1/'PPF NAV'!O112),"") ->  | D126: =IF(A126="","",_xlfn.NUMBERVALUE(VLOOKUP(A126,'PPF NAV'!A:C,IF(AND('PPF NAV'!$P$1="Ordinary unit",P126=0),2,3),0))) ->  | G126: =IFERROR(1/(1/ROUND(MIN(-(MIN(_xlfn.NUMBERVALUE(VLOOKUP(A126,'PPF NAV'!A:C,IF(AND('PPF NAV'!$P$1="Ordinary unit",P125=0),2,3),0)),E126)-F126)*(20%-IF(OR(P125=1,'PPF NAV'!$P$1="Elite Unit"),4%)-IF(A126>=DATE(2021,4,30),2%))*K125,0),2)),"") ->  | H126: =IFERROR(1/(1/ROUND(G126/_xlfn.NUMBERVALUE(VLOOKUP(A126,'PPF NAV'!A:C,IF(AND('PPF NAV'!$P$1="Ordinary unit",P125=0),2,3),0)),8)),"") ->  | I126: =IFERROR(VLOOKUP(A126,'PPF NAV'!A:R,IF(OR(P126=1,'PPF NAV'!$P$1="Elite Unit"),18,17)),"") ->  | N126: =IFERROR(XIRR( IF(1-FREQUENCY(9^9,INDIRECT(CONCATENATE("A",MATCH(TRUE,$B$17:$B$498<>"",0)+16)):$A126), IF(INDIRECT(CONCATENATE("B",MATCH(TRUE,$B$17:$B$498<>"",0)+16)):$B126="",0,INDIRECT(CONCATENATE("B",MATCH(TRUE,$B$17:$B$498<>"",0)+16)):$B126),-L126), IF(1-FREQUENCY(9^9,INDIRECT(CONCATENATE("A",MATCH(TRUE,$B$17:$B$498<>"",0)+16)):$A126), INDIRECT(CONCATENATE("A",MATCH(TRUE,$B$17:$B$498<>"",0)+16)):$A126,$A126), IF(L126<SUM(INDIRECT(CONCATENATE("B",MATCH(TRUE,$B$17:$B$498<>"",0)+16)):$B126),-0.5,0.5)),"") ->  | O126: =IFERROR(VLOOKUP(A126,PPF_NAV[],3)/VLOOKUP(A126,PPF_NAV[],2),"") ->  | P126: =IFERROR(IF(OR(P125=1,(_xlfn.NUMBERVALUE(K125)*VLOOKUP(A126,PPF_NAV[],2,0)+SUM(B126,G126))>=1000000),1,0),"") ->  | T126: =INDEX(A:A,17+INT((ROW()-17)/2),1) -> 2022-02-28 | U126: $119.65 | V126: $176.26 | W126: $176.26
A127: =IF('PPF NAV'!A113="","",'PPF NAV'!A113) ->  | B127: =IFERROR(1/(1/'PPF NAV'!O113),"") ->  | D127: =IF(A127="","",_xlfn.NUMBERVALUE(VLOOKUP(A127,'PPF NAV'!A:C,IF(AND('PPF NAV'!$P$1="Ordinary unit",P127=0),2,3),0))) ->  | G127: =IFERROR(1/(1/ROUND(MIN(-(MIN(_xlfn.NUMBERVALUE(VLOOKUP(A127,'PPF NAV'!A:C,IF(AND('PPF NAV'!$P$1="Ordinary unit",P126=0),2,3),0)),E127)-F127)*(20%-IF(OR(P126=1,'PPF NAV'!$P$1="Elite Unit"),4%)-IF(A127>=DATE(2021,4,30),2%))*K126,0),2)),"") ->  | H127: =IFERROR(1/(1/ROUND(G127/_xlfn.NUMBERVALUE(VLOOKUP(A127,'PPF NAV'!A:C,IF(AND('PPF NAV'!$P$1="Ordinary unit",P126=0),2,3),0)),8)),"") ->  | I127: =IFERROR(VLOOKUP(A127,'PPF NAV'!A:R,IF(OR(P127=1,'PPF NAV'!$P$1="Elite Unit"),18,17)),"") ->  | N127: =IFERROR(XIRR( IF(1-FREQUENCY(9^9,INDIRECT(CONCATENATE("A",MATCH(TRUE,$B$17:$B$498<>"",0)+16)):$A127), IF(INDIRECT(CONCATENATE("B",MATCH(TRUE,$B$17:$B$498<>"",0)+16)):$B127="",0,INDIRECT(CONCATENATE("B",MATCH(TRUE,$B$17:$B$498<>"",0)+16)):$B127),-L127), IF(1-FREQUENCY(9^9,INDIRECT(CONCATENATE("A",MATCH(TRUE,$B$17:$B$498<>"",0)+16)):$A127), INDIRECT(CONCATENATE("A",MATCH(TRUE,$B$17:$B$498<>"",0)+16)):$A127,$A127), IF(L127<SUM(INDIRECT(CONCATENATE("B",MATCH(TRUE,$B$17:$B$498<>"",0)+16)):$B127),-0.5,0.5)),"") ->  | O127: =IFERROR(VLOOKUP(A127,PPF_NAV[],3)/VLOOKUP(A127,PPF_NAV[],2),"") ->  | P127: =IFERROR(IF(OR(P126=1,(_xlfn.NUMBERVALUE(K126)*VLOOKUP(A127,PPF_NAV[],2,0)+SUM(B127,G127))>=1000000),1,0),"") ->  | T127: =INDEX(A:A,17+INT((ROW()-17)/2),1) -> 2022-03-31 | U127: $120.70 | V127: $177.12 | W127: $177.12
A128: =IF('PPF NAV'!A114="","",'PPF NAV'!A114) ->  | B128: =IFERROR(1/(1/'PPF NAV'!O114),"") ->  | D128: =IF(A128="","",_xlfn.NUMBERVALUE(VLOOKUP(A128,'PPF NAV'!A:C,IF(AND('PPF NAV'!$P$1="Ordinary unit",P128=0),2,3),0))) ->  | G128: =IFERROR(1/(1/ROUND(MIN(-(MIN(_xlfn.NUMBERVALUE(VLOOKUP(A128,'PPF NAV'!A:C,IF(AND('PPF NAV'!$P$1="Ordinary unit",P127=0),2,3),0)),E128)-F128)*(20%-IF(OR(P127=1,'PPF NAV'!$P$1="Elite Unit"),4%)-IF(A128>=DATE(2021,4,30),2%))*K127,0),2)),"") ->  | H128: =IFERROR(1/(1/ROUND(G128/_xlfn.NUMBERVALUE(VLOOKUP(A128,'PPF NAV'!A:C,IF(AND('PPF NAV'!$P$1="Ordinary unit",P127=0),2,3),0)),8)),"") ->  | I128: =IFERROR(VLOOKUP(A128,'PPF NAV'!A:R,IF(OR(P128=1,'PPF NAV'!$P$1="Elite Unit"),18,17)),"") ->  | N128: =IFERROR(XIRR( IF(1-FREQUENCY(9^9,INDIRECT(CONCATENATE("A",MATCH(TRUE,$B$17:$B$498<>"",0)+16)):$A128), IF(INDIRECT(CONCATENATE("B",MATCH(TRUE,$B$17:$B$498<>"",0)+16)):$B128="",0,INDIRECT(CONCATENATE("B",MATCH(TRUE,$B$17:$B$498<>"",0)+16)):$B128),-L128), IF(1-FREQUENCY(9^9,INDIRECT(CONCATENATE("A",MATCH(TRUE,$B$17:$B$498<>"",0)+16)):$A128), INDIRECT(CONCATENATE("A",MATCH(TRUE,$B$17:$B$498<>"",0)+16)):$A128,$A128), IF(L128<SUM(INDIRECT(CONCATENATE("B",MATCH(TRUE,$B$17:$B$498<>"",0)+16)):$B128),-0.5,0.5)),"") ->  | O128: =IFERROR(VLOOKUP(A128,PPF_NAV[],3)/VLOOKUP(A128,PPF_NAV[],2),"") ->  | P128: =IFERROR(IF(OR(P127=1,(_xlfn.NUMBERVALUE(K127)*VLOOKUP(A128,PPF_NAV[],2,0)+SUM(B128,G128))>=1000000),1,0),"") ->  | T128: =INDEX(A:A,17+INT((ROW()-17)/2),1) -> 2022-03-31 | U128: $120.70 | V128: $177.12 | W128: $177.12
A129: =IF('PPF NAV'!A115="","",'PPF NAV'!A115) ->  | B129: =IFERROR(1/(1/'PPF NAV'!O115),"") ->  | D129: =IF(A129="","",_xlfn.NUMBERVALUE(VLOOKUP(A129,'PPF NAV'!A:C,IF(AND('PPF NAV'!$P$1="Ordinary unit",P129=0),2,3),0))) ->  | G129: =IFERROR(1/(1/ROUND(MIN(-(MIN(_xlfn.NUMBERVALUE(VLOOKUP(A129,'PPF NAV'!A:C,IF(AND('PPF NAV'!$P$1="Ordinary unit",P128=0),2,3),0)),E129)-F129)*(20%-IF(OR(P128=1,'PPF NAV'!$P$1="Elite Unit"),4%)-IF(A129>=DATE(2021,4,30),2%))*K128,0),2)),"") ->  | H129: =IFERROR(1/(1/ROUND(G129/_xlfn.NUMBERVALUE(VLOOKUP(A129,'PPF NAV'!A:C,IF(AND('PPF NAV'!$P$1="Ordinary unit",P128=0),2,3),0)),8)),"") ->  | I129: =IFERROR(VLOOKUP(A129,'PPF NAV'!A:R,IF(OR(P129=1,'PPF NAV'!$P$1="Elite Unit"),18,17)),"") ->  | N129: =IFERROR(XIRR( IF(1-FREQUENCY(9^9,INDIRECT(CONCATENATE("A",MATCH(TRUE,$B$17:$B$498<>"",0)+16)):$A129), IF(INDIRECT(CONCATENATE("B",MATCH(TRUE,$B$17:$B$498<>"",0)+16)):$B129="",0,INDIRECT(CONCATENATE("B",MATCH(TRUE,$B$17:$B$498<>"",0)+16)):$B129),-L129), IF(1-FREQUENCY(9^9,INDIRECT(CONCATENATE("A",MATCH(TRUE,$B$17:$B$498<>"",0)+16)):$A129), INDIRECT(CONCATENATE("A",MATCH(TRUE,$B$17:$B$498<>"",0)+16)):$A129,$A129), IF(L129<SUM(INDIRECT(CONCATENATE("B",MATCH(TRUE,$B$17:$B$498<>"",0)+16)):$B129),-0.5,0.5)),"") ->  | O129: =IFERROR(VLOOKUP(A129,PPF_NAV[],3)/VLOOKUP(A129,PPF_NAV[],2),"") ->  | P129: =IFERROR(IF(OR(P128=1,(_xlfn.NUMBERVALUE(K128)*VLOOKUP(A129,PPF_NAV[],2,0)+SUM(B129,G129))>=1000000),1,0),"") ->  | T129: =INDEX(A:A,17+INT((ROW()-17)/2),1) -> 2022-04-30 | U129: $109.21 | V129: $177.98 | W129: $177.98
A130: =IF('PPF NAV'!A116="","",'PPF NAV'!A116) ->  | B130: =IFERROR(1/(1/'PPF NAV'!O116),"") ->  | D130: =IF(A130="","",_xlfn.NUMBERVALUE(VLOOKUP(A130,'PPF NAV'!A:C,IF(AND('PPF NAV'!$P$1="Ordinary unit",P130=0),2,3),0))) ->  | G130: =IFERROR(1/(1/ROUND(MIN(-(MIN(_xlfn.NUMBERVALUE(VLOOKUP(A130,'PPF NAV'!A:C,IF(AND('PPF NAV'!$P$1="Ordinary unit",P129=0),2,3),0)),E130)-F130)*(20%-IF(OR(P129=1,'PPF NAV'!$P$1="Elite Unit"),4%)-IF(A130>=DATE(2021,4,30),2%))*K129,0),2)),"") ->  | H130: =IFERROR(1/(1/ROUND(G130/_xlfn.NUMBERVALUE(VLOOKUP(A130,'PPF NAV'!A:C,IF(AND('PPF NAV'!$P$1="Ordinary unit",P129=0),2,3),0)),8)),"") ->  | I130: =IFERROR(VLOOKUP(A130,'PPF NAV'!A:R,IF(OR(P130=1,'PPF NAV'!$P$1="Elite Unit"),18,17)),"") ->  | N130: =IFERROR(XIRR( IF(1-FREQUENCY(9^9,INDIRECT(CONCATENATE("A",MATCH(TRUE,$B$17:$B$498<>"",0)+16)):$A130), IF(INDIRECT(CONCATENATE("B",MATCH(TRUE,$B$17:$B$498<>"",0)+16)):$B130="",0,INDIRECT(CONCATENATE("B",MATCH(TRUE,$B$17:$B$498<>"",0)+16)):$B130),-L130), IF(1-FREQUENCY(9^9,INDIRECT(CONCATENATE("A",MATCH(TRUE,$B$17:$B$498<>"",0)+16)):$A130), INDIRECT(CONCATENATE("A",MATCH(TRUE,$B$17:$B$498<>"",0)+16)):$A130,$A130), IF(L130<SUM(INDIRECT(CONCATENATE("B",MATCH(TRUE,$B$17:$B$498<>"",0)+16)):$B130),-0.5,0.5)),"") ->  | O130: =IFERROR(VLOOKUP(A130,PPF_NAV[],3)/VLOOKUP(A130,PPF_NAV[],2),"") ->  | P130: =IFERROR(IF(OR(P129=1,(_xlfn.NUMBERVALUE(K129)*VLOOKUP(A130,PPF_NAV[],2,0)+SUM(B130,G130))>=1000000),1,0),"") ->  | T130: =INDEX(A:A,17+INT((ROW()-17)/2),1) -> 2022-04-30 | U130: $109.21 | V130: $177.98 | W130: $177.98
A131: =IF('PPF NAV'!A117="","",'PPF NAV'!A117) ->  | B131: =IFERROR(1/(1/'PPF NAV'!O117),"") ->  | D131: =IF(A131="","",_xlfn.NUMBERVALUE(VLOOKUP(A131,'PPF NAV'!A:C,IF(AND('PPF NAV'!$P$1="Ordinary unit",P131=0),2,3),0))) ->  | G131: =IFERROR(1/(1/ROUND(MIN(-(MIN(_xlfn.NUMBERVALUE(VLOOKUP(A131,'PPF NAV'!A:C,IF(AND('PPF NAV'!$P$1="Ordinary unit",P130=0),2,3),0)),E131)-F131)*(20%-IF(OR(P130=1,'PPF NAV'!$P$1="Elite Unit"),4%)-IF(A131>=DATE(2021,4,30),2%))*K130,0),2)),"") ->  | H131: =IFERROR(1/(1/ROUND(G131/_xlfn.NUMBERVALUE(VLOOKUP(A131,'PPF NAV'!A:C,IF(AND('PPF NAV'!$P$1="Ordinary unit",P130=0),2,3),0)),8)),"") ->  | I131: =IFERROR(VLOOKUP(A131,'PPF NAV'!A:R,IF(OR(P131=1,'PPF NAV'!$P$1="Elite Unit"),18,17)),"") ->  | N131: =IFERROR(XIRR( IF(1-FREQUENCY(9^9,INDIRECT(CONCATENATE("A",MATCH(TRUE,$B$17:$B$498<>"",0)+16)):$A131), IF(INDIRECT(CONCATENATE("B",MATCH(TRUE,$B$17:$B$498<>"",0)+16)):$B131="",0,INDIRECT(CONCATENATE("B",MATCH(TRUE,$B$17:$B$498<>"",0)+16)):$B131),-L131), IF(1-FREQUENCY(9^9,INDIRECT(CONCATENATE("A",MATCH(TRUE,$B$17:$B$498<>"",0)+16)):$A131), INDIRECT(CONCATENATE("A",MATCH(TRUE,$B$17:$B$498<>"",0)+16)):$A131,$A131), IF(L131<SUM(INDIRECT(CONCATENATE("B",MATCH(TRUE,$B$17:$B$498<>"",0)+16)):$B131),-0.5,0.5)),"") ->  | O131: =IFERROR(VLOOKUP(A131,PPF_NAV[],3)/VLOOKUP(A131,PPF_NAV[],2),"") ->  | P131: =IFERROR(IF(OR(P130=1,(_xlfn.NUMBERVALUE(K130)*VLOOKUP(A131,PPF_NAV[],2,0)+SUM(B131,G131))>=1000000),1,0),"") ->  | T131: =INDEX(A:A,17+INT((ROW()-17)/2),1) -> 2022-05-31 | U131: $114.22 | V131: $178.85 | W131: $178.85
A132: =IF('PPF NAV'!A118="","",'PPF NAV'!A118) ->  | B132: =IFERROR(1/(1/'PPF NAV'!O118),"") ->  | D132: =IF(A132="","",_xlfn.NUMBERVALUE(VLOOKUP(A132,'PPF NAV'!A:C,IF(AND('PPF NAV'!$P$1="Ordinary unit",P132=0),2,3),0))) ->  | G132: =IFERROR(1/(1/ROUND(MIN(-(MIN(_xlfn.NUMBERVALUE(VLOOKUP(A132,'PPF NAV'!A:C,IF(AND('PPF NAV'!$P$1="Ordinary unit",P131=0),2,3),0)),E132)-F132)*(20%-IF(OR(P131=1,'PPF NAV'!$P$1="Elite Unit"),4%)-IF(A132>=DATE(2021,4,30),2%))*K131,0),2)),"") ->  | H132: =IFERROR(1/(1/ROUND(G132/_xlfn.NUMBERVALUE(VLOOKUP(A132,'PPF NAV'!A:C,IF(AND('PPF NAV'!$P$1="Ordinary unit",P131=0),2,3),0)),8)),"") ->  | I132: =IFERROR(VLOOKUP(A132,'PPF NAV'!A:R,IF(OR(P132=1,'PPF NAV'!$P$1="Elite Unit"),18,17)),"") ->  | N132: =IFERROR(XIRR( IF(1-FREQUENCY(9^9,INDIRECT(CONCATENATE("A",MATCH(TRUE,$B$17:$B$498<>"",0)+16)):$A132), IF(INDIRECT(CONCATENATE("B",MATCH(TRUE,$B$17:$B$498<>"",0)+16)):$B132="",0,INDIRECT(CONCATENATE("B",MATCH(TRUE,$B$17:$B$498<>"",0)+16)):$B132),-L132), IF(1-FREQUENCY(9^9,INDIRECT(CONCATENATE("A",MATCH(TRUE,$B$17:$B$498<>"",0)+16)):$A132), INDIRECT(CONCATENATE("A",MATCH(TRUE,$B$17:$B$498<>"",0)+16)):$A132,$A132), IF(L132<SUM(INDIRECT(CONCATENATE("B",MATCH(TRUE,$B$17:$B$498<>"",0)+16)):$B132),-0.5,0.5)),"") ->  | O132: =IFERROR(VLOOKUP(A132,PPF_NAV[],3)/VLOOKUP(A132,PPF_NAV[],2),"") ->  | P132: =IFERROR(IF(OR(P131=1,(_xlfn.NUMBERVALUE(K131)*VLOOKUP(A132,PPF_NAV[],2,0)+SUM(B132,G132))>=1000000),1,0),"") ->  | T132: =INDEX(A:A,17+INT((ROW()-17)/2),1) -> 2022-05-31 | U132: $114.22 | V132: $178.85 | W132: $178.85
A133: =IF('PPF NAV'!A119="","",'PPF NAV'!A119) ->  | B133: =IFERROR(1/(1/'PPF NAV'!O119),"") ->  | D133: =IF(A133="","",_xlfn.NUMBERVALUE(VLOOKUP(A133,'PPF NAV'!A:C,IF(AND('PPF NAV'!$P$1="Ordinary unit",P133=0),2,3),0))) ->  | G133: =IFERROR(1/(1/ROUND(MIN(-(MIN(_xlfn.NUMBERVALUE(VLOOKUP(A133,'PPF NAV'!A:C,IF(AND('PPF NAV'!$P$1="Ordinary unit",P132=0),2,3),0)),E133)-F133)*(20%-IF(OR(P132=1,'PPF NAV'!$P$1="Elite Unit"),4%)-IF(A133>=DATE(2021,4,30),2%))*K132,0),2)),"") ->  | H133: =IFERROR(1/(1/ROUND(G133/_xlfn.NUMBERVALUE(VLOOKUP(A133,'PPF NAV'!A:C,IF(AND('PPF NAV'!$P$1="Ordinary unit",P132=0),2,3),0)),8)),"") ->  | I133: =IFERROR(VLOOKUP(A133,'PPF NAV'!A:R,IF(OR(P133=1,'PPF NAV'!$P$1="Elite Unit"),18,17)),"") ->  | N133: =IFERROR(XIRR( IF(1-FREQUENCY(9^9,INDIRECT(CONCATENATE("A",MATCH(TRUE,$B$17:$B$498<>"",0)+16)):$A133), IF(INDIRECT(CONCATENATE("B",MATCH(TRUE,$B$17:$B$498<>"",0)+16)):$B133="",0,INDIRECT(CONCATENATE("B",MATCH(TRUE,$B$17:$B$498<>"",0)+16)):$B133),-L133), IF(1-FREQUENCY(9^9,INDIRECT(CONCATENATE("A",MATCH(TRUE,$B$17:$B$498<>"",0)+16)):$A133), INDIRECT(CONCATENATE("A",MATCH(TRUE,$B$17:$B$498<>"",0)+16)):$A133,$A133), IF(L133<SUM(INDIRECT(CONCATENATE("B",MATCH(TRUE,$B$17:$B$498<>"",0)+16)):$B133),-0.5,0.5)),"") ->  | O133: =IFERROR(VLOOKUP(A133,PPF_NAV[],3)/VLOOKUP(A133,PPF_NAV[],2),"") ->  | P133: =IFERROR(IF(OR(P132=1,(_xlfn.NUMBERVALUE(K132)*VLOOKUP(A133,PPF_NAV[],2,0)+SUM(B133,G133))>=1000000),1,0),"") ->  | T133: =INDEX(A:A,17+INT((ROW()-17)/2),1) -> 2022-06-30 | U133: $111.16 | V133: $179.72 | W133: $179.72
A134: =IF('PPF NAV'!A120="","",'PPF NAV'!A120) ->  | B134: =IFERROR(1/(1/'PPF NAV'!O120),"") ->  | D134: =IF(A134="","",_xlfn.NUMBERVALUE(VLOOKUP(A134,'PPF NAV'!A:C,IF(AND('PPF NAV'!$P$1="Ordinary unit",P134=0),2,3),0))) ->  | G134: =IFERROR(1/(1/ROUND(MIN(-(MIN(_xlfn.NUMBERVALUE(VLOOKUP(A134,'PPF NAV'!A:C,IF(AND('PPF NAV'!$P$1="Ordinary unit",P133=0),2,3),0)),E134)-F134)*(20%-IF(OR(P133=1,'PPF NAV'!$P$1="Elite Unit"),4%)-IF(A134>=DATE(2021,4,30),2%))*K133,0),2)),"") ->  | H134: =IFERROR(1/(1/ROUND(G134/_xlfn.NUMBERVALUE(VLOOKUP(A134,'PPF NAV'!A:C,IF(AND('PPF NAV'!$P$1="Ordinary unit",P133=0),2,3),0)),8)),"") ->  | I134: =IFERROR(VLOOKUP(A134,'PPF NAV'!A:R,IF(OR(P134=1,'PPF NAV'!$P$1="Elite Unit"),18,17)),"") ->  | N134: =IFERROR(XIRR( IF(1-FREQUENCY(9^9,INDIRECT(CONCATENATE("A",MATCH(TRUE,$B$17:$B$498<>"",0)+16)):$A134), IF(INDIRECT(CONCATENATE("B",MATCH(TRUE,$B$17:$B$498<>"",0)+16)):$B134="",0,INDIRECT(CONCATENATE("B",MATCH(TRUE,$B$17:$B$498<>"",0)+16)):$B134),-L134), IF(1-FREQUENCY(9^9,INDIRECT(CONCATENATE("A",MATCH(TRUE,$B$17:$B$498<>"",0)+16)):$A134), INDIRECT(CONCATENATE("A",MATCH(TRUE,$B$17:$B$498<>"",0)+16)):$A134,$A134), IF(L134<SUM(INDIRECT(CONCATENATE("B",MATCH(TRUE,$B$17:$B$498<>"",0)+16)):$B134),-0.5,0.5)),"") ->  | O134: =IFERROR(VLOOKUP(A134,PPF_NAV[],3)/VLOOKUP(A134,PPF_NAV[],2),"") ->  | P134: =IFERROR(IF(OR(P133=1,(_xlfn.NUMBERVALUE(K133)*VLOOKUP(A134,PPF_NAV[],2,0)+SUM(B134,G134))>=1000000),1,0),"") ->  | T134: =INDEX(A:A,17+INT((ROW()-17)/2),1) -> 2022-06-30 | U134: $111.16 | V134: $179.72 | W134: $179.72
A135: =IF('PPF NAV'!A121="","",'PPF NAV'!A121) ->  | B135: =IFERROR(1/(1/'PPF NAV'!O121),"") ->  | D135: =IF(A135="","",_xlfn.NUMBERVALUE(VLOOKUP(A135,'PPF NAV'!A:C,IF(AND('PPF NAV'!$P$1="Ordinary unit",P135=0),2,3),0))) ->  | G135: =IFERROR(1/(1/ROUND(MIN(-(MIN(_xlfn.NUMBERVALUE(VLOOKUP(A135,'PPF NAV'!A:C,IF(AND('PPF NAV'!$P$1="Ordinary unit",P134=0),2,3),0)),E135)-F135)*(20%-IF(OR(P134=1,'PPF NAV'!$P$1="Elite Unit"),4%)-IF(A135>=DATE(2021,4,30),2%))*K134,0),2)),"") ->  | H135: =IFERROR(1/(1/ROUND(G135/_xlfn.NUMBERVALUE(VLOOKUP(A135,'PPF NAV'!A:C,IF(AND('PPF NAV'!$P$1="Ordinary unit",P134=0),2,3),0)),8)),"") ->  | I135: =IFERROR(VLOOKUP(A135,'PPF NAV'!A:R,IF(OR(P135=1,'PPF NAV'!$P$1="Elite Unit"),18,17)),"") ->  | N135: =IFERROR(XIRR( IF(1-FREQUENCY(9^9,INDIRECT(CONCATENATE("A",MATCH(TRUE,$B$17:$B$498<>"",0)+16)):$A135), IF(INDIRECT(CONCATENATE("B",MATCH(TRUE,$B$17:$B$498<>"",0)+16)):$B135="",0,INDIRECT(CONCATENATE("B",MATCH(TRUE,$B$17:$B$498<>"",0)+16)):$B135),-L135), IF(1-FREQUENCY(9^9,INDIRECT(CONCATENATE("A",MATCH(TRUE,$B$17:$B$498<>"",0)+16)):$A135), INDIRECT(CONCATENATE("A",MATCH(TRUE,$B$17:$B$498<>"",0)+16)):$A135,$A135), IF(L135<SUM(INDIRECT(CONCATENATE("B",MATCH(TRUE,$B$17:$B$498<>"",0)+16)):$B135),-0.5,0.5)),"") ->  | O135: =IFERROR(VLOOKUP(A135,PPF_NAV[],3)/VLOOKUP(A135,PPF_NAV[],2),"") ->  | P135: =IFERROR(IF(OR(P134=1,(_xlfn.NUMBERVALUE(K134)*VLOOKUP(A135,PPF_NAV[],2,0)+SUM(B135,G135))>=1000000),1,0),"") ->  | T135: =INDEX(A:A,17+INT((ROW()-17)/2),1) -> 2022-07-31 | U135: $122.27 | V135: $180.59 | W135: $180.59
A136: =IF('PPF NAV'!A122="","",'PPF NAV'!A122) ->  | B136: =IFERROR(1/(1/'PPF NAV'!O122),"") ->  | D136: =IF(A136="","",_xlfn.NUMBERVALUE(VLOOKUP(A136,'PPF NAV'!A:C,IF(AND('PPF NAV'!$P$1="Ordinary unit",P136=0),2,3),0))) ->  | G136: =IFERROR(1/(1/ROUND(MIN(-(MIN(_xlfn.NUMBERVALUE(VLOOKUP(A136,'PPF NAV'!A:C,IF(AND('PPF NAV'!$P$1="Ordinary unit",P135=0),2,3),0)),E136)-F136)*(20%-IF(OR(P135=1,'PPF NAV'!$P$1="Elite Unit"),4%)-IF(A136>=DATE(2021,4,30),2%))*K135,0),2)),"") ->  | H136: =IFERROR(1/(1/ROUND(G136/_xlfn.NUMBERVALUE(VLOOKUP(A136,'PPF NAV'!A:C,IF(AND('PPF NAV'!$P$1="Ordinary unit",P135=0),2,3),0)),8)),"") ->  | I136: =IFERROR(VLOOKUP(A136,'PPF NAV'!A:R,IF(OR(P136=1,'PPF NAV'!$P$1="Elite Unit"),18,17)),"") ->  | N136: =IFERROR(XIRR( IF(1-FREQUENCY(9^9,INDIRECT(CONCATENATE("A",MATCH(TRUE,$B$17:$B$498<>"",0)+16)):$A136), IF(INDIRECT(CONCATENATE("B",MATCH(TRUE,$B$17:$B$498<>"",0)+16)):$B136="",0,INDIRECT(CONCATENATE("B",MATCH(TRUE,$B$17:$B$498<>"",0)+16)):$B136),-L136), IF(1-FREQUENCY(9^9,INDIRECT(CONCATENATE("A",MATCH(TRUE,$B$17:$B$498<>"",0)+16)):$A136), INDIRECT(CONCATENATE("A",MATCH(TRUE,$B$17:$B$498<>"",0)+16)):$A136,$A136), IF(L136<SUM(INDIRECT(CONCATENATE("B",MATCH(TRUE,$B$17:$B$498<>"",0)+16)):$B136),-0.5,0.5)),"") ->  | O136: =IFERROR(VLOOKUP(A136,PPF_NAV[],3)/VLOOKUP(A136,PPF_NAV[],2),"") ->  | P136: =IFERROR(IF(OR(P135=1,(_xlfn.NUMBERVALUE(K135)*VLOOKUP(A136,PPF_NAV[],2,0)+SUM(B136,G136))>=1000000),1,0),"") ->  | T136: =INDEX(A:A,17+INT((ROW()-17)/2),1) -> 2022-07-31 | U136: $122.27 | V136: $180.59 | W136: $180.59
A137: =IF('PPF NAV'!A123="","",'PPF NAV'!A123) ->  | B137: =IFERROR(1/(1/'PPF NAV'!O123),"") ->  | D137: =IF(A137="","",_xlfn.NUMBERVALUE(VLOOKUP(A137,'PPF NAV'!A:C,IF(AND('PPF NAV'!$P$1="Ordinary unit",P137=0),2,3),0))) ->  | G137: =IFERROR(1/(1/ROUND(MIN(-(MIN(_xlfn.NUMBERVALUE(VLOOKUP(A137,'PPF NAV'!A:C,IF(AND('PPF NAV'!$P$1="Ordinary unit",P136=0),2,3),0)),E137)-F137)*(20%-IF(OR(P136=1,'PPF NAV'!$P$1="Elite Unit"),4%)-IF(A137>=DATE(2021,4,30),2%))*K136,0),2)),"") ->  | H137: =IFERROR(1/(1/ROUND(G137/_xlfn.NUMBERVALUE(VLOOKUP(A137,'PPF NAV'!A:C,IF(AND('PPF NAV'!$P$1="Ordinary unit",P136=0),2,3),0)),8)),"") ->  | I137: =IFERROR(VLOOKUP(A137,'PPF NAV'!A:R,IF(OR(P137=1,'PPF NAV'!$P$1="Elite Unit"),18,17)),"") ->  | N137: =IFERROR(XIRR( IF(1-FREQUENCY(9^9,INDIRECT(CONCATENATE("A",MATCH(TRUE,$B$17:$B$498<>"",0)+16)):$A137), IF(INDIRECT(CONCATENATE("B",MATCH(TRUE,$B$17:$B$498<>"",0)+16)):$B137="",0,INDIRECT(CONCATENATE("B",MATCH(TRUE,$B$17:$B$498<>"",0)+16)):$B137),-L137), IF(1-FREQUENCY(9^9,INDIRECT(CONCATENATE("A",MATCH(TRUE,$B$17:$B$498<>"",0)+16)):$A137), INDIRECT(CONCATENATE("A",MATCH(TRUE,$B$17:$B$498<>"",0)+16)):$A137,$A137), IF(L137<SUM(INDIRECT(CONCATENATE("B",MATCH(TRUE,$B$17:$B$498<>"",0)+16)):$B137),-0.5,0.5)),"") ->  | O137: =IFERROR(VLOOKUP(A137,PPF_NAV[],3)/VLOOKUP(A137,PPF_NAV[],2),"") ->  | P137: =IFERROR(IF(OR(P136=1,(_xlfn.NUMBERVALUE(K136)*VLOOKUP(A137,PPF_NAV[],2,0)+SUM(B137,G137))>=1000000),1,0),"") ->  | T137: =INDEX(A:A,17+INT((ROW()-17)/2),1) -> 2022-08-31 | U137: $118.88 | V137: $181.47 | W137: $181.47
A138: =IF('PPF NAV'!A124="","",'PPF NAV'!A124) ->  | B138: =IFERROR(1/(1/'PPF NAV'!O124),"") ->  | D138: =IF(A138="","",_xlfn.NUMBERVALUE(VLOOKUP(A138,'PPF NAV'!A:C,IF(AND('PPF NAV'!$P$1="Ordinary unit",P138=0),2,3),0))) ->  | G138: =IFERROR(1/(1/ROUND(MIN(-(MIN(_xlfn.NUMBERVALUE(VLOOKUP(A138,'PPF NAV'!A:C,IF(AND('PPF NAV'!$P$1="Ordinary unit",P137=0),2,3),0)),E138)-F138)*(20%-IF(OR(P137=1,'PPF NAV'!$P$1="Elite Unit"),4%)-IF(A138>=DATE(2021,4,30),2%))*K137,0),2)),"") ->  | H138: =IFERROR(1/(1/ROUND(G138/_xlfn.NUMBERVALUE(VLOOKUP(A138,'PPF NAV'!A:C,IF(AND('PPF NAV'!$P$1="Ordinary unit",P137=0),2,3),0)),8)),"") ->  | I138: =IFERROR(VLOOKUP(A138,'PPF NAV'!A:R,IF(OR(P138=1,'PPF NAV'!$P$1="Elite Unit"),18,17)),"") ->  | N138: =IFERROR(XIRR( IF(1-FREQUENCY(9^9,INDIRECT(CONCATENATE("A",MATCH(TRUE,$B$17:$B$498<>"",0)+16)):$A138), IF(INDIRECT(CONCATENATE("B",MATCH(TRUE,$B$17:$B$498<>"",0)+16)):$B138="",0,INDIRECT(CONCATENATE("B",MATCH(TRUE,$B$17:$B$498<>"",0)+16)):$B138),-L138), IF(1-FREQUENCY(9^9,INDIRECT(CONCATENATE("A",MATCH(TRUE,$B$17:$B$498<>"",0)+16)):$A138), INDIRECT(CONCATENATE("A",MATCH(TRUE,$B$17:$B$498<>"",0)+16)):$A138,$A138), IF(L138<SUM(INDIRECT(CONCATENATE("B",MATCH(TRUE,$B$17:$B$498<>"",0)+16)):$B138),-0.5,0.5)),"") ->  | O138: =IFERROR(VLOOKUP(A138,PPF_NAV[],3)/VLOOKUP(A138,PPF_NAV[],2),"") ->  | P138: =IFERROR(IF(OR(P137=1,(_xlfn.NUMBERVALUE(K137)*VLOOKUP(A138,PPF_NAV[],2,0)+SUM(B138,G138))>=1000000),1,0),"") ->  | T138: =INDEX(A:A,17+INT((ROW()-17)/2),1) -> 2022-08-31 | U138: $118.88 | V138: $181.47 | W138: $181.47
A139: =IF('PPF NAV'!A125="","",'PPF NAV'!A125) ->  | B139: =IFERROR(1/(1/'PPF NAV'!O125),"") ->  | D139: =IF(A139="","",_xlfn.NUMBERVALUE(VLOOKUP(A139,'PPF NAV'!A:C,IF(AND('PPF NAV'!$P$1="Ordinary unit",P139=0),2,3),0))) ->  | G139: =IFERROR(1/(1/ROUND(MIN(-(MIN(_xlfn.NUMBERVALUE(VLOOKUP(A139,'PPF NAV'!A:C,IF(AND('PPF NAV'!$P$1="Ordinary unit",P138=0),2,3),0)),E139)-F139)*(20%-IF(OR(P138=1,'PPF NAV'!$P$1="Elite Unit"),4%)-IF(A139>=DATE(2021,4,30),2%))*K138,0),2)),"") ->  | H139: =IFERROR(1/(1/ROUND(G139/_xlfn.NUMBERVALUE(VLOOKUP(A139,'PPF NAV'!A:C,IF(AND('PPF NAV'!$P$1="Ordinary unit",P138=0),2,3),0)),8)),"") ->  | I139: =IFERROR(VLOOKUP(A139,'PPF NAV'!A:R,IF(OR(P139=1,'PPF NAV'!$P$1="Elite Unit"),18,17)),"") ->  | N139: =IFERROR(XIRR( IF(1-FREQUENCY(9^9,INDIRECT(CONCATENATE("A",MATCH(TRUE,$B$17:$B$498<>"",0)+16)):$A139), IF(INDIRECT(CONCATENATE("B",MATCH(TRUE,$B$17:$B$498<>"",0)+16)):$B139="",0,INDIRECT(CONCATENATE("B",MATCH(TRUE,$B$17:$B$498<>"",0)+16)):$B139),-L139), IF(1-FREQUENCY(9^9,INDIRECT(CONCATENATE("A",MATCH(TRUE,$B$17:$B$498<>"",0)+16)):$A139), INDIRECT(CONCATENATE("A",MATCH(TRUE,$B$17:$B$498<>"",0)+16)):$A139,$A139), IF(L139<SUM(INDIRECT(CONCATENATE("B",MATCH(TRUE,$B$17:$B$498<>"",0)+16)):$B139),-0.5,0.5)),"") ->  | O139: =IFERROR(VLOOKUP(A139,PPF_NAV[],3)/VLOOKUP(A139,PPF_NAV[],2),"") ->  | P139: =IFERROR(IF(OR(P138=1,(_xlfn.NUMBERVALUE(K138)*VLOOKUP(A139,PPF_NAV[],2,0)+SUM(B139,G139))>=1000000),1,0),"") ->  | T139: =INDEX(A:A,17+INT((ROW()-17)/2),1) -> 2022-09-30 | U139: $110.91 | V139: $182.35 | W139: $182.35
A140: =IF('PPF NAV'!A126="","",'PPF NAV'!A126) ->  | B140: =IFERROR(1/(1/'PPF NAV'!O126),"") ->  | D140: =IF(A140="","",_xlfn.NUMBERVALUE(VLOOKUP(A140,'PPF NAV'!A:C,IF(AND('PPF NAV'!$P$1="Ordinary unit",P140=0),2,3),0))) ->  | G140: =IFERROR(1/(1/ROUND(MIN(-(MIN(_xlfn.NUMBERVALUE(VLOOKUP(A140,'PPF NAV'!A:C,IF(AND('PPF NAV'!$P$1="Ordinary unit",P139=0),2,3),0)),E140)-F140)*(20%-IF(OR(P139=1,'PPF NAV'!$P$1="Elite Unit"),4%)-IF(A140>=DATE(2021,4,30),2%))*K139,0),2)),"") ->  | H140: =IFERROR(1/(1/ROUND(G140/_xlfn.NUMBERVALUE(VLOOKUP(A140,'PPF NAV'!A:C,IF(AND('PPF NAV'!$P$1="Ordinary unit",P139=0),2,3),0)),8)),"") ->  | I140: =IFERROR(VLOOKUP(A140,'PPF NAV'!A:R,IF(OR(P140=1,'PPF NAV'!$P$1="Elite Unit"),18,17)),"") ->  | N140: =IFERROR(XIRR( IF(1-FREQUENCY(9^9,INDIRECT(CONCATENATE("A",MATCH(TRUE,$B$17:$B$498<>"",0)+16)):$A140), IF(INDIRECT(CONCATENATE("B",MATCH(TRUE,$B$17:$B$498<>"",0)+16)):$B140="",0,INDIRECT(CONCATENATE("B",MATCH(TRUE,$B$17:$B$498<>"",0)+16)):$B140),-L140), IF(1-FREQUENCY(9^9,INDIRECT(CONCATENATE("A",MATCH(TRUE,$B$17:$B$498<>"",0)+16)):$A140), INDIRECT(CONCATENATE("A",MATCH(TRUE,$B$17:$B$498<>"",0)+16)):$A140,$A140), IF(L140<SUM(INDIRECT(CONCATENATE("B",MATCH(TRUE,$B$17:$B$498<>"",0)+16)):$B140),-0.5,0.5)),"") ->  | O140: =IFERROR(VLOOKUP(A140,PPF_NAV[],3)/VLOOKUP(A140,PPF_NAV[],2),"") ->  | P140: =IFERROR(IF(OR(P139=1,(_xlfn.NUMBERVALUE(K139)*VLOOKUP(A140,PPF_NAV[],2,0)+SUM(B140,G140))>=1000000),1,0),"") ->  | T140: =INDEX(A:A,17+INT((ROW()-17)/2),1) -> 2022-09-30 | U140: $110.91 | V140: $182.35 | W140: $182.35
A141: =IF('PPF NAV'!A127="","",'PPF NAV'!A127) ->  | B141: =IFERROR(1/(1/'PPF NAV'!O127),"") ->  | D141: =IF(A141="","",_xlfn.NUMBERVALUE(VLOOKUP(A141,'PPF NAV'!A:C,IF(AND('PPF NAV'!$P$1="Ordinary unit",P141=0),2,3),0))) ->  | G141: =IFERROR(1/(1/ROUND(MIN(-(MIN(_xlfn.NUMBERVALUE(VLOOKUP(A141,'PPF NAV'!A:C,IF(AND('PPF NAV'!$P$1="Ordinary unit",P140=0),2,3),0)),E141)-F141)*(20%-IF(OR(P140=1,'PPF NAV'!$P$1="Elite Unit"),4%)-IF(A141>=DATE(2021,4,30),2%))*K140,0),2)),"") ->  | H141: =IFERROR(1/(1/ROUND(G141/_xlfn.NUMBERVALUE(VLOOKUP(A141,'PPF NAV'!A:C,IF(AND('PPF NAV'!$P$1="Ordinary unit",P140=0),2,3),0)),8)),"") ->  | I141: =IFERROR(VLOOKUP(A141,'PPF NAV'!A:R,IF(OR(P141=1,'PPF NAV'!$P$1="Elite Unit"),18,17)),"") ->  | N141: =IFERROR(XIRR( IF(1-FREQUENCY(9^9,INDIRECT(CONCATENATE("A",MATCH(TRUE,$B$17:$B$498<>"",0)+16)):$A141), IF(INDIRECT(CONCATENATE("B",MATCH(TRUE,$B$17:$B$498<>"",0)+16)):$B141="",0,INDIRECT(CONCATENATE("B",MATCH(TRUE,$B$17:$B$498<>"",0)+16)):$B141),-L141), IF(1-FREQUENCY(9^9,INDIRECT(CONCATENATE("A",MATCH(TRUE,$B$17:$B$498<>"",0)+16)):$A141), INDIRECT(CONCATENATE("A",MATCH(TRUE,$B$17:$B$498<>"",0)+16)):$A141,$A141), IF(L141<SUM(INDIRECT(CONCATENATE("B",MATCH(TRUE,$B$17:$B$498<>"",0)+16)):$B141),-0.5,0.5)),"") ->  | O141: =IFERROR(VLOOKUP(A141,PPF_NAV[],3)/VLOOKUP(A141,PPF_NAV[],2),"") ->  | P141: =IFERROR(IF(OR(P140=1,(_xlfn.NUMBERVALUE(K140)*VLOOKUP(A141,PPF_NAV[],2,0)+SUM(B141,G141))>=1000000),1,0),"") ->  | T141: =INDEX(A:A,17+INT((ROW()-17)/2),1) -> 2022-10-31 | U141: $120.43 | V141: $183.24 | W141: $183.24
A142: =IF('PPF NAV'!A128="","",'PPF NAV'!A128) ->  | B142: =IFERROR(1/(1/'PPF NAV'!O128),"") ->  | D142: =IF(A142="","",_xlfn.NUMBERVALUE(VLOOKUP(A142,'PPF NAV'!A:C,IF(AND('PPF NAV'!$P$1="Ordinary unit",P142=0),2,3),0))) ->  | G142: =IFERROR(1/(1/ROUND(MIN(-(MIN(_xlfn.NUMBERVALUE(VLOOKUP(A142,'PPF NAV'!A:C,IF(AND('PPF NAV'!$P$1="Ordinary unit",P141=0),2,3),0)),E142)-F142)*(20%-IF(OR(P141=1,'PPF NAV'!$P$1="Elite Unit"),4%)-IF(A142>=DATE(2021,4,30),2%))*K141,0),2)),"") ->  | H142: =IFERROR(1/(1/ROUND(G142/_xlfn.NUMBERVALUE(VLOOKUP(A142,'PPF NAV'!A:C,IF(AND('PPF NAV'!$P$1="Ordinary unit",P141=0),2,3),0)),8)),"") ->  | I142: =IFERROR(VLOOKUP(A142,'PPF NAV'!A:R,IF(OR(P142=1,'PPF NAV'!$P$1="Elite Unit"),18,17)),"") ->  | N142: =IFERROR(XIRR( IF(1-FREQUENCY(9^9,INDIRECT(CONCATENATE("A",MATCH(TRUE,$B$17:$B$498<>"",0)+16)):$A142), IF(INDIRECT(CONCATENATE("B",MATCH(TRUE,$B$17:$B$498<>"",0)+16)):$B142="",0,INDIRECT(CONCATENATE("B",MATCH(TRUE,$B$17:$B$498<>"",0)+16)):$B142),-L142), IF(1-FREQUENCY(9^9,INDIRECT(CONCATENATE("A",MATCH(TRUE,$B$17:$B$498<>"",0)+16)):$A142), INDIRECT(CONCATENATE("A",MATCH(TRUE,$B$17:$B$498<>"",0)+16)):$A142,$A142), IF(L142<SUM(INDIRECT(CONCATENATE("B",MATCH(TRUE,$B$17:$B$498<>"",0)+16)):$B142),-0.5,0.5)),"") ->  | O142: =IFERROR(VLOOKUP(A142,PPF_NAV[],3)/VLOOKUP(A142,PPF_NAV[],2),"") ->  | P142: =IFERROR(IF(OR(P141=1,(_xlfn.NUMBERVALUE(K141)*VLOOKUP(A142,PPF_NAV[],2,0)+SUM(B142,G142))>=1000000),1,0),"") ->  | T142: =INDEX(A:A,17+INT((ROW()-17)/2),1) -> 2022-10-31 | U142: $120.43 | V142: $183.24 | W142: $183.24
A143: =IF('PPF NAV'!A129="","",'PPF NAV'!A129) ->  | B143: =IFERROR(1/(1/'PPF NAV'!O129),"") ->  | D143: =IF(A143="","",_xlfn.NUMBERVALUE(VLOOKUP(A143,'PPF NAV'!A:C,IF(AND('PPF NAV'!$P$1="Ordinary unit",P143=0),2,3),0))) ->  | G143: =IFERROR(1/(1/ROUND(MIN(-(MIN(_xlfn.NUMBERVALUE(VLOOKUP(A143,'PPF NAV'!A:C,IF(AND('PPF NAV'!$P$1="Ordinary unit",P142=0),2,3),0)),E143)-F143)*(20%-IF(OR(P142=1,'PPF NAV'!$P$1="Elite Unit"),4%)-IF(A143>=DATE(2021,4,30),2%))*K142,0),2)),"") ->  | H143: =IFERROR(1/(1/ROUND(G143/_xlfn.NUMBERVALUE(VLOOKUP(A143,'PPF NAV'!A:C,IF(AND('PPF NAV'!$P$1="Ordinary unit",P142=0),2,3),0)),8)),"") ->  | I143: =IFERROR(VLOOKUP(A143,'PPF NAV'!A:R,IF(OR(P143=1,'PPF NAV'!$P$1="Elite Unit"),18,17)),"") ->  | N143: =IFERROR(XIRR( IF(1-FREQUENCY(9^9,INDIRECT(CONCATENATE("A",MATCH(TRUE,$B$17:$B$498<>"",0)+16)):$A143), IF(INDIRECT(CONCATENATE("B",MATCH(TRUE,$B$17:$B$498<>"",0)+16)):$B143="",0,INDIRECT(CONCATENATE("B",MATCH(TRUE,$B$17:$B$498<>"",0)+16)):$B143),-L143), IF(1-FREQUENCY(9^9,INDIRECT(CONCATENATE("A",MATCH(TRUE,$B$17:$B$498<>"",0)+16)):$A143), INDIRECT(CONCATENATE("A",MATCH(TRUE,$B$17:$B$498<>"",0)+16)):$A143,$A143), IF(L143<SUM(INDIRECT(CONCATENATE("B",MATCH(TRUE,$B$17:$B$498<>"",0)+16)):$B143),-0.5,0.5)),"") ->  | O143: =IFERROR(VLOOKUP(A143,PPF_NAV[],3)/VLOOKUP(A143,PPF_NAV[],2),"") ->  | P143: =IFERROR(IF(OR(P142=1,(_xlfn.NUMBERVALUE(K142)*VLOOKUP(A143,PPF_NAV[],2,0)+SUM(B143,G143))>=1000000),1,0),"") ->  | T143: =INDEX(A:A,17+INT((ROW()-17)/2),1) -> 2022-11-30 | U143: $128.52 | V143: $184.13 | W143: $184.13
A144: =IF('PPF NAV'!A130="","",'PPF NAV'!A130) ->  | B144: =IFERROR(1/(1/'PPF NAV'!O130),"") ->  | D144: =IF(A144="","",_xlfn.NUMBERVALUE(VLOOKUP(A144,'PPF NAV'!A:C,IF(AND('PPF NAV'!$P$1="Ordinary unit",P144=0),2,3),0))) ->  | G144: =IFERROR(1/(1/ROUND(MIN(-(MIN(_xlfn.NUMBERVALUE(VLOOKUP(A144,'PPF NAV'!A:C,IF(AND('PPF NAV'!$P$1="Ordinary unit",P143=0),2,3),0)),E144)-F144)*(20%-IF(OR(P143=1,'PPF NAV'!$P$1="Elite Unit"),4%)-IF(A144>=DATE(2021,4,30),2%))*K143,0),2)),"") ->  | H144: =IFERROR(1/(1/ROUND(G144/_xlfn.NUMBERVALUE(VLOOKUP(A144,'PPF NAV'!A:C,IF(AND('PPF NAV'!$P$1="Ordinary unit",P143=0),2,3),0)),8)),"") ->  | I144: =IFERROR(VLOOKUP(A144,'PPF NAV'!A:R,IF(OR(P144=1,'PPF NAV'!$P$1="Elite Unit"),18,17)),"") ->  | N144: =IFERROR(XIRR( IF(1-FREQUENCY(9^9,INDIRECT(CONCATENATE("A",MATCH(TRUE,$B$17:$B$498<>"",0)+16)):$A144), IF(INDIRECT(CONCATENATE("B",MATCH(TRUE,$B$17:$B$498<>"",0)+16)):$B144="",0,INDIRECT(CONCATENATE("B",MATCH(TRUE,$B$17:$B$498<>"",0)+16)):$B144),-L144), IF(1-FREQUENCY(9^9,INDIRECT(CONCATENATE("A",MATCH(TRUE,$B$17:$B$498<>"",0)+16)):$A144), INDIRECT(CONCATENATE("A",MATCH(TRUE,$B$17:$B$498<>"",0)+16)):$A144,$A144), IF(L144<SUM(INDIRECT(CONCATENATE("B",MATCH(TRUE,$B$17:$B$498<>"",0)+16)):$B144),-0.5,0.5)),"") ->  | O144: =IFERROR(VLOOKUP(A144,PPF_NAV[],3)/VLOOKUP(A144,PPF_NAV[],2),"") ->  | P144: =IFERROR(IF(OR(P143=1,(_xlfn.NUMBERVALUE(K143)*VLOOKUP(A144,PPF_NAV[],2,0)+SUM(B144,G144))>=1000000),1,0),"") ->  | T144: =INDEX(A:A,17+INT((ROW()-17)/2),1) -> 2022-11-30 | U144: $128.52 | V144: $184.13 | W144: $184.13
A145: =IF('PPF NAV'!A131="","",'PPF NAV'!A131) ->  | B145: =IFERROR(1/(1/'PPF NAV'!O131),"") ->  | D145: =IF(A145="","",_xlfn.NUMBERVALUE(VLOOKUP(A145,'PPF NAV'!A:C,IF(AND('PPF NAV'!$P$1="Ordinary unit",P145=0),2,3),0))) ->  | G145: =IFERROR(1/(1/ROUND(MIN(-(MIN(_xlfn.NUMBERVALUE(VLOOKUP(A145,'PPF NAV'!A:C,IF(AND('PPF NAV'!$P$1="Ordinary unit",P144=0),2,3),0)),E145)-F145)*(20%-IF(OR(P144=1,'PPF NAV'!$P$1="Elite Unit"),4%)-IF(A145>=DATE(2021,4,30),2%))*K144,0),2)),"") ->  | H145: =IFERROR(1/(1/ROUND(G145/_xlfn.NUMBERVALUE(VLOOKUP(A145,'PPF NAV'!A:C,IF(AND('PPF NAV'!$P$1="Ordinary unit",P144=0),2,3),0)),8)),"") ->  | I145: =IFERROR(VLOOKUP(A145,'PPF NAV'!A:R,IF(OR(P145=1,'PPF NAV'!$P$1="Elite Unit"),18,17)),"") ->  | N145: =IFERROR(XIRR( IF(1-FREQUENCY(9^9,INDIRECT(CONCATENATE("A",MATCH(TRUE,$B$17:$B$498<>"",0)+16)):$A145), IF(INDIRECT(CONCATENATE("B",MATCH(TRUE,$B$17:$B$498<>"",0)+16)):$B145="",0,INDIRECT(CONCATENATE("B",MATCH(TRUE,$B$17:$B$498<>"",0)+16)):$B145),-L145), IF(1-FREQUENCY(9^9,INDIRECT(CONCATENATE("A",MATCH(TRUE,$B$17:$B$498<>"",0)+16)):$A145), INDIRECT(CONCATENATE("A",MATCH(TRUE,$B$17:$B$498<>"",0)+16)):$A145,$A145), IF(L145<SUM(INDIRECT(CONCATENATE("B",MATCH(TRUE,$B$17:$B$498<>"",0)+16)):$B145),-0.5,0.5)),"") ->  | O145: =IFERROR(VLOOKUP(A145,PPF_NAV[],3)/VLOOKUP(A145,PPF_NAV[],2),"") ->  | P145: =IFERROR(IF(OR(P144=1,(_xlfn.NUMBERVALUE(K144)*VLOOKUP(A145,PPF_NAV[],2,0)+SUM(B145,G145))>=1000000),1,0),"") ->  | T145: =INDEX(A:A,17+INT((ROW()-17)/2),1) -> 2022-12-31 | U145: =IFERROR(ROUND(VLOOKUP(T145,A:D,4,0)*IF(AND($N$11="Yes",MAX(P:P)-MIN(P:P),VLOOKUP(T145,A:P,16)=0),VLOOKUP(T145,A:O,15,1),1),2),"") -> $121.70 | V145: $185.03 | W145: $185.03
A146: =IF('PPF NAV'!A132="","",'PPF NAV'!A132) ->  | B146: =IFERROR(1/(1/'PPF NAV'!O132),"") ->  | D146: =IF(A146="","",_xlfn.NUMBERVALUE(VLOOKUP(A146,'PPF NAV'!A:C,IF(AND('PPF NAV'!$P$1="Ordinary unit",P146=0),2,3),0))) ->  | G146: =IFERROR(1/(1/ROUND(MIN(-(MIN(_xlfn.NUMBERVALUE(VLOOKUP(A146,'PPF NAV'!A:C,IF(AND('PPF NAV'!$P$1="Ordinary unit",P145=0),2,3),0)),E146)-F146)*(20%-IF(OR(P145=1,'PPF NAV'!$P$1="Elite Unit"),4%)-IF(A146>=DATE(2021,4,30),2%))*K145,0),2)),"") ->  | H146: =IFERROR(1/(1/ROUND(G146/_xlfn.NUMBERVALUE(VLOOKUP(A146,'PPF NAV'!A:C,IF(AND('PPF NAV'!$P$1="Ordinary unit",P145=0),2,3),0)),8)),"") ->  | I146: =IFERROR(VLOOKUP(A146,'PPF NAV'!A:R,IF(OR(P146=1,'PPF NAV'!$P$1="Elite Unit"),18,17)),"") ->  | N146: =IFERROR(XIRR( IF(1-FREQUENCY(9^9,INDIRECT(CONCATENATE("A",MATCH(TRUE,$B$17:$B$498<>"",0)+16)):$A146), IF(INDIRECT(CONCATENATE("B",MATCH(TRUE,$B$17:$B$498<>"",0)+16)):$B146="",0,INDIRECT(CONCATENATE("B",MATCH(TRUE,$B$17:$B$498<>"",0)+16)):$B146),-L146), IF(1-FREQUENCY(9^9,INDIRECT(CONCATENATE("A",MATCH(TRUE,$B$17:$B$498<>"",0)+16)):$A146), INDIRECT(CONCATENATE("A",MATCH(TRUE,$B$17:$B$498<>"",0)+16)):$A146,$A146), IF(L146<SUM(INDIRECT(CONCATENATE("B",MATCH(TRUE,$B$17:$B$498<>"",0)+16)):$B146),-0.5,0.5)),"") ->  | O146: =IFERROR(VLOOKUP(A146,PPF_NAV[],3)/VLOOKUP(A146,PPF_NAV[],2),"") ->  | P146: =IFERROR(IF(OR(P145=1,(_xlfn.NUMBERVALUE(K145)*VLOOKUP(A146,PPF_NAV[],2,0)+SUM(B146,G146))>=1000000),1,0),"") ->  | Q146: =IFERROR(($C$7-A146)/365*B146,"") ->  | T146: =INDEX(A:A,17+INT((ROW()-17)/2),1) -> 2022-12-31 | U146: $121.70 | V146: =IFERROR(IF(T146>T145,V145*1.06^(1/12),VLOOKUP(T146,A:I,9,0)*IF(AND($N$11="Yes",MAX(P:P)-MIN(P:P),VLOOKUP(T146,A:P,16)=0),VLOOKUP(T146,A:O,15),1)),"") -> $185.03 | W146: =IFERROR(IF(T146>T145,W145*1.06^(1/12),VLOOKUP(T146,A:J,10,0)*IF(AND($N$11="Yes",MAX(P:P)-MIN(P:P),VLOOKUP(T146,A:P,16)=0),VLOOKUP(T146,A:O,15),1)),"") -> $185.03 | X146: =IFERROR(VLOOKUP(T146,A:B,2,0),"") -> 
A147: =IF('PPF NAV'!A133="","",'PPF NAV'!A133) ->  | B147: =IFERROR(1/(1/'PPF NAV'!O133),"") ->  | D147: =IF(A147="","",_xlfn.NUMBERVALUE(VLOOKUP(A147,'PPF NAV'!A:C,IF(AND('PPF NAV'!$P$1="Ordinary unit",P147=0),2,3),0))) ->  | G147: =IFERROR(1/(1/ROUND(MIN(-(MIN(_xlfn.NUMBERVALUE(VLOOKUP(A147,'PPF NAV'!A:C,IF(AND('PPF NAV'!$P$1="Ordinary unit",P146=0),2,3),0)),E147)-F147)*(20%-IF(OR(P146=1,'PPF NAV'!$P$1="Elite Unit"),4%)-IF(A147>=DATE(2021,4,30),2%))*K146,0),2)),"") ->  | H147: =IFERROR(1/(1/ROUND(G147/_xlfn.NUMBERVALUE(VLOOKUP(A147,'PPF NAV'!A:C,IF(AND('PPF NAV'!$P$1="Ordinary unit",P146=0),2,3),0)),8)),"") ->  | I147: =IFERROR(VLOOKUP(A147,'PPF NAV'!A:R,IF(OR(P147=1,'PPF NAV'!$P$1="Elite Unit"),18,17)),"") ->  | N147: =IFERROR(XIRR( IF(1-FREQUENCY(9^9,INDIRECT(CONCATENATE("A",MATCH(TRUE,$B$17:$B$498<>"",0)+16)):$A147), IF(INDIRECT(CONCATENATE("B",MATCH(TRUE,$B$17:$B$498<>"",0)+16)):$B147="",0,INDIRECT(CONCATENATE("B",MATCH(TRUE,$B$17:$B$498<>"",0)+16)):$B147),-L147), IF(1-FREQUENCY(9^9,INDIRECT(CONCATENATE("A",MATCH(TRUE,$B$17:$B$498<>"",0)+16)):$A147), INDIRECT(CONCATENATE("A",MATCH(TRUE,$B$17:$B$498<>"",0)+16)):$A147,$A147), IF(L147<SUM(INDIRECT(CONCATENATE("B",MATCH(TRUE,$B$17:$B$498<>"",0)+16)):$B147),-0.5,0.5)),"") ->  | O147: =IFERROR(VLOOKUP(A147,PPF_NAV[],3)/VLOOKUP(A147,PPF_NAV[],2),"") ->  | P147: =IFERROR(IF(OR(P146=1,(_xlfn.NUMBERVALUE(K146)*VLOOKUP(A147,PPF_NAV[],2,0)+SUM(B147,G147))>=1000000),1,0),"") ->  | T147: =INDEX(A:A,17+INT((ROW()-17)/2),1) ->  | V147: $185.93 | W147: $185.93
A148: =IF('PPF NAV'!A134="","",'PPF NAV'!A134) ->  | B148: =IFERROR(1/(1/'PPF NAV'!O134),"") ->  | D148: =IF(A148="","",_xlfn.NUMBERVALUE(VLOOKUP(A148,'PPF NAV'!A:C,IF(AND('PPF NAV'!$P$1="Ordinary unit",P148=0),2,3),0))) ->  | G148: =IFERROR(1/(1/ROUND(MIN(-(MIN(_xlfn.NUMBERVALUE(VLOOKUP(A148,'PPF NAV'!A:C,IF(AND('PPF NAV'!$P$1="Ordinary unit",P147=0),2,3),0)),E148)-F148)*(20%-IF(OR(P147=1,'PPF NAV'!$P$1="Elite Unit"),4%)-IF(A148>=DATE(2021,4,30),2%))*K147,0),2)),"") ->  | H148: =IFERROR(1/(1/ROUND(G148/_xlfn.NUMBERVALUE(VLOOKUP(A148,'PPF NAV'!A:C,IF(AND('PPF NAV'!$P$1="Ordinary unit",P147=0),2,3),0)),8)),"") ->  | I148: =IFERROR(VLOOKUP(A148,'PPF NAV'!A:R,IF(OR(P148=1,'PPF NAV'!$P$1="Elite Unit"),18,17)),"") ->  | M148: =IFERROR((L148-SUM(B148))/L147-1,"") ->  | N148: =IFERROR(XIRR( IF(1-FREQUENCY(9^9,INDIRECT(CONCATENATE("A",MATCH(TRUE,$B$17:$B$498<>"",0)+16)):$A148), IF(INDIRECT(CONCATENATE("B",MATCH(TRUE,$B$17:$B$498<>"",0)+16)):$B148="",0,INDIRECT(CONCATENATE("B",MATCH(TRUE,$B$17:$B$498<>"",0)+16)):$B148),-L148), IF(1-FREQUENCY(9^9,INDIRECT(CONCATENATE("A",MATCH(TRUE,$B$17:$B$498<>"",0)+16)):$A148), INDIRECT(CONCATENATE("A",MATCH(TRUE,$B$17:$B$498<>"",0)+16)):$A148,$A148), IF(L148<SUM(INDIRECT(CONCATENATE("B",MATCH(TRUE,$B$17:$B$498<>"",0)+16)):$B148),-0.5,0.5)),"") ->  | O148: =IFERROR(VLOOKUP(A148,PPF_NAV[],3)/VLOOKUP(A148,PPF_NAV[],2),"") ->  | P148: =IFERROR(IF(OR(P147=1,(_xlfn.NUMBERVALUE(K147)*VLOOKUP(A148,PPF_NAV[],2,0)+SUM(B148,G148))>=1000000),1,0),"") ->  | T148: =INDEX(A:A,17+INT((ROW()-17)/2),1) -> 
A149: =IF('PPF NAV'!A135="","",'PPF NAV'!A135) ->  | B149: =IFERROR(1/(1/'PPF NAV'!O135),"") ->  | D149: =IF(A149="","",_xlfn.NUMBERVALUE(VLOOKUP(A149,'PPF NAV'!A:C,IF(AND('PPF NAV'!$P$1="Ordinary unit",P149=0),2,3),0))) ->  | G149: =IFERROR(1/(1/ROUND(MIN(-(MIN(_xlfn.NUMBERVALUE(VLOOKUP(A149,'PPF NAV'!A:C,IF(AND('PPF NAV'!$P$1="Ordinary unit",P148=0),2,3),0)),E149)-F149)*(20%-IF(OR(P148=1,'PPF NAV'!$P$1="Elite Unit"),4%)-IF(A149>=DATE(2021,4,30),2%))*K148,0),2)),"") ->  | H149: =IFERROR(1/(1/ROUND(G149/_xlfn.NUMBERVALUE(VLOOKUP(A149,'PPF NAV'!A:C,IF(AND('PPF NAV'!$P$1="Ordinary unit",P148=0),2,3),0)),8)),"") ->  | I149: =IFERROR(VLOOKUP(A149,'PPF NAV'!A:R,IF(OR(P149=1,'PPF NAV'!$P$1="Elite Unit"),18,17)),"") ->  | N149: =IFERROR(XIRR( IF(1-FREQUENCY(9^9,INDIRECT(CONCATENATE("A",MATCH(TRUE,$B$17:$B$498<>"",0)+16)):$A149), IF(INDIRECT(CONCATENATE("B",MATCH(TRUE,$B$17:$B$498<>"",0)+16)):$B149="",0,INDIRECT(CONCATENATE("B",MATCH(TRUE,$B$17:$B$498<>"",0)+16)):$B149),-L149), IF(1-FREQUENCY(9^9,INDIRECT(CONCATENATE("A",MATCH(TRUE,$B$17:$B$498<>"",0)+16)):$A149), INDIRECT(CONCATENATE("A",MATCH(TRUE,$B$17:$B$498<>"",0)+16)):$A149,$A149), IF(L149<SUM(INDIRECT(CONCATENATE("B",MATCH(TRUE,$B$17:$B$498<>"",0)+16)):$B149),-0.5,0.5)),"") ->  | O149: =IFERROR(VLOOKUP(A149,PPF_NAV[],3)/VLOOKUP(A149,PPF_NAV[],2),"") ->  | P149: =IFERROR(IF(OR(P148=1,(_xlfn.NUMBERVALUE(K148)*VLOOKUP(A149,PPF_NAV[],2,0)+SUM(B149,G149))>=1000000),1,0),"") ->  | T149: =INDEX(A:A,17+INT((ROW()-17)/2),1) -> 
